Workbook

Sheet AEG Input File
E1: Winter Peak Reduction @Generation (MW) | F1: Winter Peak Reduction @Generation (MW) | G1: Winter Peak Reduction @Generation (MW) | H1: Winter Peak Reduction @Generation (MW) | I1: Winter Peak Reduction @Generation (MW) | J1: Winter Peak Reduction @Generation (MW) | K1: Winter Peak Reduction @Generation (MW) | L1: Winter Peak Reduction @Generation (MW) | M1: Winter Peak Reduction @Generation (MW) | N1: Winter Peak Reduction @Generation (MW) | O1: Winter Peak Reduction @Generation (MW) | P1: Winter Peak Reduction @Generation (MW) | Q1: Winter Peak Reduction @Generation (MW) | R1: Winter Peak Reduction @Generation (MW) | S1: Winter Peak Reduction @Generation (MW) | T1: Winter Peak Reduction @Generation (MW) | U1: Winter Peak Reduction @Generation (MW) | V1: Winter Peak Reduction @Generation (MW) | W1: Winter Peak Reduction @Generation (MW) | X1: Winter Peak Reduction @Generation (MW) | Y1: Winter Peak Reduction @Generation (MW) | Z1: Winter Peak Reduction @Generation (MW) | AA1: Winter Peak Reduction @Generation (MW) | AB1: Winter Peak Reduction @Generation (MW) | AC1: Summer Peak Reduction @Generation (MW) | AD1: Summer Peak Reduction @Generation (MW) | AE1: Summer Peak Reduction @Generation (MW) | AF1: Summer Peak Reduction @Generation (MW) | AG1: Summer Peak Reduction @Generation (MW) | AH1: Summer Peak Reduction @Generation (MW) | AI1: Summer Peak Reduction @Generation (MW) | AJ1: Summer Peak Reduction @Generation (MW) | AK1: Summer Peak Reduction @Generation (MW) | AL1: Summer Peak Reduction @Generation (MW) | AM1: Summer Peak Reduction @Generation (MW) | AN1: Summer Peak Reduction @Generation (MW) | AO1: Summer Peak Reduction @Generation (MW) | AP1: Summer Peak Reduction @Generation (MW) | AQ1: Summer Peak Reduction @Generation (MW) | AR1: Summer Peak Reduction @Generation (MW) | AS1: Summer Peak Reduction @Generation (MW) | AT1: Summer Peak Reduction @Generation (MW) | AU1: Summer Peak Reduction @Generation (MW) | AV1: Summer Peak Reduction @Generation (MW) | AW1: Summer Peak Reduction @Generation (MW) | AX1: Summer Peak Reduction @Generation (MW) | AY1: Summer Peak Reduction @Generation (MW) | AZ1: Summer Peak Reduction @Generation (MW) | BA1: Capital Expense Costs | BB1: Capital Expense Costs | BC1: Capital Expense Costs | BD1: Capital Expense Costs | BE1: Capital Expense Costs | BF1: Capital Expense Costs | BG1: Capital Expense Costs | BH1: Capital Expense Costs | BI1: Capital Expense Costs | BJ1: Capital Expense Costs | BK1: Capital Expense Costs | BL1: Capital Expense Costs | BM1: Capital Expense Costs | BN1: Capital Expense Costs | BO1: Capital Expense Costs | BP1: Capital Expense Costs | BQ1: Capital Expense Costs | BR1: Capital Expense Costs | BS1: Capital Expense Costs | BT1: Capital Expense Costs | BU1: Capital Expense Costs | BV1: Capital Expense Costs | BW1: Capital Expense Costs | BX1: Capital Expense Costs | BY1: O&M Costs | BZ1: O&M Costs | CA1: O&M Costs | CB1: O&M Costs | CC1: O&M Costs | CD1: O&M Costs | CE1: O&M Costs | CF1: O&M Costs | CG1: O&M Costs | CH1: O&M Costs | CI1: O&M Costs | CJ1: O&M Costs | CK1: O&M Costs | CL1: O&M Costs | CM1: O&M Costs | CN1: O&M Costs | CO1: O&M Costs | CP1: O&M Costs | CQ1: O&M Costs | CR1: O&M Costs | CS1: O&M Costs | CT1: O&M Costs | CU1: O&M Costs | CV1: O&M Costs
B2: Row Labels | C2: Option | D2: Start Year | E2: 2023 | F2: 2024 | G2: 2025 | H2: 2026 | I2: 2027 | J2: 2028 | K2: 2029 | L2: 2030 | M2: 2031 | N2: 2032 | O2: 2033 | P2: 2034 | Q2: 2035 | R2: 2036 | S2: 2037 | T2: 2038 | U2: 2039 | V2: 2040 | W2: 2041 | X2: 2042 | Y2: 2043 | Z2: 2044 | AA2: 2045 | AB2: 2046 | AC2: 2023 | AD2: 2024 | AE2: 2025 | AF2: 2026 | AG2: 2027 | AH2: 2028 | AI2: 2029 | AJ2: 2030 | AK2: 2031 | AL2: 2032 | AM2: 2033 | AN2: 2034 | AO2: 2035 | AP2: 2036 | AQ2: 2037 | AR2: 2038 | AS2: 2039 | AT2: 2040 | AU2: 2041 | AV2: 2042 | AW2: 2043 | AX2: 2044 | AY2: 2045 | AZ2: 2046 | BA2: 2023 | BB2: 2024 | BC2: 2025 | BD2: 2026 | BE2: 2027 | BF2: 2028 | BG2: 2029 | BH2: 2030 | BI2: 2031 | BJ2: 2032 | BK2: 2033 | BL2: 2034 | BM2: 2035 | BN2: 2036 | BO2: 2037 | BP2: 2038 | BQ2: 2039 | BR2: 2040 | BS2: 2041 | BT2: 2042 | BU2: 2043 | BV2: 2044 | BW2: 2045 | BX2: 2046 | BY2: 2023 | BZ2: 2024 | CA2: 2025 | CB2: 2026 | CC2: 2027 | CD2: 2028 | CE2: 2029 | CF2: 2030 | CG2: 2031 | CH2: 2032 | CI2: 2033 | CJ2: 2034 | CK2: 2035 | CL2: 2036 | CM2: 2037 | CN2: 2038 | CO2: 2039 | CP2: 2040 | CQ2: 2041 | CR2: 2042 | CS2: 2043 | CT2: 2044 | CU2: 2045 | CV2: 2046
A3: 2 | B3: Stand Alone | C3: Battery Energy Storage | D3: 2023 | E3: 0 | F3: 0.07949514549 | G3: 0.1821776143 | H3: 0.3678648607 | I3: 0.5570307428 | J3: 0.7497316501 | K3: 1.041001531 | L3: 1.337932754 | M3: 1.640617574 | N3: 2.046606855 | O3: 2.460459517 | P3: 2.88230269 | Q3: 3.412636793 | R3: 3.953205718 | S3: 4.504173831 | T3: 5.169089429 | U3: 5.220347997 | V3: 5.272160451 | W3: 5.324532272 | X3: 5.377469023 | Y3: 5.430976349 | Z3: 5.485059982 | AA3: 5.539725736 | AB3: 5.594979507 | AC3: 0 | AD3: 0.07949514549 | AE3: 0.1821776143 | AF3: 0.3678648607 | AG3: 0.5570307428 | AH3: 0.7497316501 | AI3: 1.041001531 | AJ3: 1.337932754 | AK3: 1.640617574 | AL3: 2.046606855 | AM3: 2.460459517 | AN3: 2.88230269 | AO3: 3.412636793 | AP3: 3.953205718 | AQ3: 4.504173831 | AR3: 5.169089429 | AS3: 5.220347997 | AT3: 5.272160451 | AU3: 5.324532272 | AV3: 5.377469023 | AW3: 5.430976349 | AX3: 5.485059982 | AY3: 5.539725736 | AZ3: 5.594979507 | BA3: 0 | BB3: 263185.63 | BC3: 337759.97 | BD3: 604938.04 | BE3: 616158.83 | BF3: 627561.73 | BG3: 944840.06 | BH3: 963104 | BI3: 981665.05 | BJ3: 1314216.12 | BK3: 1339582.48 | BL3: 1365358.39 | BM3: 1714639.3 | BN3: 1747654.02 | BO3: 1781198.38 | BP3: 2148079.53 | BQ3: 173325.04 | BR3: 175082.1 | BS3: 176858.13 | BT3: 178653.35 | BU3: 180467.96 | BV3: 182302.18 | BW3: 184156.26 | BX3: 186030.37 | BY3: 0 | BZ3: 60000 | CA3: 60000 | CB3: 60000 | CC3: 60000 | CD3: 60000 | CE3: 60000 | CF3: 60000 | CG3: 60000 | CH3: 60000 | CI3: 60000 | CJ3: 60000 | CK3: 60000 | CL3: 60000 | CM3: 60000 | CN3: 60000 | CO3: 60000 | CP3: 60000 | CQ3: 60000 | CR3: 60000 | CS3: 60000 | CT3: 60000 | CU3: 60000 | CV3: 60000
A4: 3 | B4: Stand Alone | C4: Behavioral | D4: 2023 | E4: 0 | F4: 1.346900004 | G4: 2.44248121 | H4: 3.077375294 | I4: 3.105757174 | J4: 3.136473097 | K4: 3.170266174 | L4: 3.207473363 | M4: 3.255057674 | N4: 3.304688996 | O4: 3.356492159 | P4: 3.410597328 | Q4: 3.46713989 | R4: 3.526260288 | S4: 3.588103818 | T4: 3.652820374 | U4: 3.720564138 | V4: 3.791493235 | W4: 3.865769333 | X4: 3.943557199 | Y4: 4.025024219 | Z4: 4.110339883 | AA4: 4.199675237 | AB4: 4.302177219 | AC4: 0 | AD4: 1.440513263 | AE4: 2.606163579 | AF4: 3.283271338 | AG4: 3.313141897 | AH4: 3.345357563 | AI4: 3.380661533 | AJ4: 3.41939085 | AK4: 3.468508611 | AL4: 3.51968479 | AM4: 3.573044306 | AN4: 3.628717414 | AO4: 3.686839585 | AP4: 3.747551356 | AQ4: 3.810998112 | AR4: 3.877329837 | AS4: 3.946700807 | AT4: 4.019269238 | AU4: 4.095196891 | AV4: 4.174648627 | AW4: 4.257791928 | AX4: 4.344796379 | AY4: 4.435833121 | AZ4: 4.540049191 | BA4: 0 | BB4: 105210 | BC4: 105210 | BD4: 105210 | BE4: 105210 | BF4: 105210 | BG4: 105210 | BH4: 105210 | BI4: 105210 | BJ4: 105210 | BK4: 105210 | BL4: 105210 | BM4: 105210 | BN4: 105210 | BO4: 105210 | BP4: 105210 | BQ4: 105210 | BR4: 105210 | BS4: 105210 | BT4: 105210 | BU4: 105210 | BV4: 105210 | BW4: 105210 | BX4: 105210 | BY4: 0 | BZ4: 161955.02 | CA4: 246542.22 | CB4: 295536.9 | CC4: 297881.44 | CD4: 300241.73 | CE4: 302723.75 | CF4: 305231.97 | CG4: 307766.64 | CH4: 310328.06 | CI4: 312916.52 | CJ4: 315532.32 | CK4: 318175.73 | CL4: 320847.08 | CM4: 323546.64 | CN4: 326274.73 | CO4: 329031.67 | CP4: 331817.74 | CQ4: 334633.29 | CR4: 337478.62 | CS4: 340354.04 | CT4: 343259.89 | CU4: 346196.51 | CV4: 349164.22
A5: 4 | B5: Stand Alone | C5: DLC Central AC | D5: 2023 | E5: 0 | F5: 0 | G5: 0 | H5: 0 | I5: 0 | J5: 0 | K5: 0 | L5: 0 | M5: 0 | N5: 0 | O5: 0 | P5: 0 | Q5: 0 | R5: 0 | S5: 0 | T5: 0 | U5: 0 | V5: 0 | W5: 0 | X5: 0 | Y5: 0 | Z5: 0 | AA5: 0 | AB5: 0 | AC5: 0 | AD5: 0.9575503631 | AE5: 2.939190559 | AF5: 7.009804302 | AG5: 9.211664766 | AH5: 10.46217706 | AI5: 10.69934457 | AJ5: 10.94326869 | AK5: 11.19416386 | AL5: 11.45225164 | AM5: 11.71776093 | AN5: 11.99092821 | AO5: 12.2719978 | AP5: 12.56122215 | AQ5: 12.85886205 | AR5: 13.16518699 | AS5: 13.4804754 | AT5: 13.80501495 | AU5: 14.13910292 | AV5: 14.48304644 | AW5: 14.83716289 | AX5: 15.2017802 | AY5: 15.36009372 | AZ5: 15.52009003 | BA5: 0 | BB5: 549071.3 | BC5: 1125088.78 | BD5: 2300965.95 | BE5: 1253329.04 | BF5: 719697.19 | BG5: 150025.83 | BH5: 154040.08 | BI5: 158182.66 | BJ5: 162457.82 | BK5: 166870 | BL5: 171423.7 | BM5: 176123.65 | BN5: 180974.72 | BO5: 185981.94 | BP5: 191150.49 | BQ5: 196485.74 | BR5: 201993.27 | BS5: 207678.79 | BT5: 213548.27 | BU5: 219607.8 | BV5: 225863.77 | BW5: 101911.49 | BX5: 102870.45 | BY5: 0 | BZ5: 146750.54 | CA5: 264283.74 | CB5: 505864.29 | CC5: 636764.47 | CD5: 711299.04 | CE5: 725709.16 | CF5: 740534.8 | CG5: 755789.2 | CH5: 771486.07 | CI5: 787639.52 | CJ5: 804264.18 | CK5: 821375.16 | CL5: 838988.05 | CM5: 857118.95 | CN5: 875784.56 | CO5: 895002.06 | CP5: 914789.24 | CQ5: 935164.48 | CR5: 956146.75 | CS5: 977755.69 | CT5: 1000011.55 | CU5: 1009486.67 | CV5: 1019062.49
A6: 5 | B6: Stand Alone | C6: DLC Electric Vehicle Charging | D6: 2023 | E6: 0 | F6: 0.04231732702 | G6: 0.1634371673 | H6: 0.4998659208 | I6: 0.8561925662 | J6: 1.282813661 | K6: 1.740979775 | L6: 2.340489536 | M6: 3.385638215 | N6: 4.512246761 | O6: 5.725707452 | P6: 7.031645232 | Q6: 8.435912668 | R6: 9.944582932 | S6: 11.56394073 | T6: 13.3004711 | U6: 15.16084616 | V6: 17.15190969 | W6: 19.28065974 | X6: 21.55422933 | Y6: 23.97986542 | Z6: 26.56490627 | AA6: 29.31675758 | AB6: 32.63516755 | AC6: 0 | AD6: 0.04231732702 | AE6: 0.1634371673 | AF6: 0.4998659208 | AG6: 0.8561925662 | AH6: 1.282813661 | AI6: 1.740979775 | AJ6: 2.340489536 | AK6: 3.385638215 | AL6: 4.512246761 | AM6: 5.725707452 | AN6: 7.031645232 | AO6: 8.435912668 | AP6: 9.944582932 | AQ6: 11.56394073 | AR6: 13.3004711 | AS6: 15.16084616 | AT6: 17.15190969 | AU6: 19.28065974 | AV6: 21.55422933 | AW6: 23.97986542 | AX6: 26.56490627 | AY6: 29.31675758 | AZ6: 32.63516755 | BA6: 0 | BB6: 71826.58 | BC6: 147466.51 | BD6: 354134.4 | BE6: 373233.73 | BF6: 440707.05 | BG6: 470986.07 | BH6: 606657.15 | BI6: 1034411.17 | BJ6: 1112601.81 | BK6: 1195968.3 | BL6: 1284734 | BM6: 1379117.4 | BN6: 1479330.21 | BO6: 1585575.5 | BP6: 1698045.58 | BQ6: 1816919.99 | BR6: 1942363.52 | BS6: 2074524.26 | BT6: 2213531.74 | BU6: 2359495.33 | BV6: 2512502.69 | BW6: 2672618.51 | BX6: 3216439.42 | BY6: 0 | BZ6: 84618.69 | CA6: 155081.82 | CB6: 350803.86 | CC6: 558101.79 | CD6: 806294.46 | CE6: 1072838.91 | CF6: 1421611.95 | CG6: 2029641.55 | CH6: 2685061.54 | CI6: 3391008.98 | CJ6: 4150756.23 | CK6: 4967708.1 | CL6: 5845397.75 | CM6: 6787481.4 | CN6: 7797731.8 | CO6: 8880030.56 | CP6: 10038359.12 | CQ6: 11276788.7 | CR6: 12599469.05 | CS6: 14010616.17 | CT6: 15514499.21 | CU6: 17115426.51 | CV6: 19045957.11
A7: 6 | B7: Stand Alone | C7: DLC Smart Appliances | D7: 2023 | E7: 0 | F7: 0.2976131517 | G7: 0.9029667572 | H7: 2.128368197 | I7: 2.76388764 | J7: 3.101647797 | K7: 3.13375581 | L7: 3.166202977 | M7: 3.198992954 | N7: 3.232129435 | O7: 3.265616158 | P7: 3.2994569 | Q7: 3.33365548 | R7: 3.368215759 | S7: 3.403141641 | T7: 3.438437072 | U7: 3.474106043 | V7: 3.510152587 | W7: 3.546580782 | X7: 3.583394753 | Y7: 3.620598668 | Z7: 3.658196741 | AA7: 3.696193234 | AB7: 3.734592455 | AC7: 0 | AD7: 0.2976131517 | AE7: 0.9029667572 | AF7: 2.128368197 | AG7: 2.76388764 | AH7: 3.101647797 | AI7: 3.13375581 | AJ7: 3.166202977 | AK7: 3.198992954 | AL7: 3.232129435 | AM7: 3.265616158 | AN7: 3.2994569 | AO7: 3.33365548 | AP7: 3.368215759 | AQ7: 3.403141641 | AR7: 3.438437072 | AS7: 3.474106043 | AT7: 3.510152587 | AU7: 3.546580782 | AV7: 3.583394753 | AW7: 3.620598668 | AX7: 3.658196741 | AY7: 3.696193234 | AZ7: 3.734592455 | BA7: 0 | BB7: 709903.3 | BC7: 1431862.4 | BD7: 2886494.63 | BE7: 1502631.45 | BF7: 804088.16 | BG7: 87028.24 | BH7: 87823.9 | BI7: 88628.13 | BJ7: 89441.03 | BK7: 90262.69 | BL7: 91093.22 | BM7: 91932.7 | BN7: 92781.27 | BO7: 93638.96 | BP7: 94505.93 | BQ7: 95382.25 | BR7: 96268.03 | BS7: 97163.39 | BT7: 98068.42 | BU7: 98983.22 | BV7: 99907.92 | BW7: 100842.62 | BX7: 101787.42 | BY7: 0 | BZ7: 90000 | CA7: 90000 | CB7: 90000 | CC7: 90000 | CD7: 90000 | CE7: 90000 | CF7: 90000 | CG7: 90000 | CH7: 90000 | CI7: 90000 | CJ7: 90000 | CK7: 90000 | CL7: 90000 | CM7: 90000 | CN7: 90000 | CO7: 90000 | CP7: 90000 | CQ7: 90000 | CR7: 90000 | CS7: 90000 | CT7: 90000 | CU7: 90000 | CV7: 90000
A8: 7 | B8: Stand Alone | C8: DLC Smart Thermostats - Cooling | D8: 2023 | E8: 0 | F8: 0 | G8: 0 | H8: 0 | I8: 0 | J8: 0 | K8: 0 | L8: 0 | M8: 0 | N8: 0 | O8: 0 | P8: 0 | Q8: 0 | R8: 0 | S8: 0 | T8: 0 | U8: 0 | V8: 0 | W8: 0 | X8: 0 | Y8: 0 | Z8: 0 | AA8: 0 | AB8: 0 | AC8: 0 | AD8: 1.915100726 | AE8: 5.878381119 | AF8: 14.0196086 | AG8: 18.42332953 | AH8: 20.92435412 | AI8: 21.39868915 | AJ8: 21.88653738 | AK8: 22.38832772 | AL8: 22.90450328 | AM8: 23.43552186 | AN8: 23.98185642 | AO8: 24.54399561 | AP8: 25.12244429 | AQ8: 25.7177241 | AR8: 26.33037398 | AS8: 26.96095079 | AT8: 27.61002991 | AU8: 28.27820584 | AV8: 28.96609288 | AW8: 29.67432578 | AX8: 30.40356041 | AY8: 30.72018743 | AZ8: 31.04018005 | BA8: 0 | BB8: 213302.24 | BC8: 431354.52 | BD8: 876434.38 | BE8: 479655.28 | BF8: 277565.79 | BG8: 61898.92 | BH8: 63406.55 | BI8: 64962.33 | BJ8: 66567.85 | BK8: 68224.77 | BL8: 69934.8 | BM8: 71699.69 | BN8: 73521.28 | BO8: 75401.45 | BP8: 77342.15 | BQ8: 79345.39 | BR8: 81413.24 | BS8: 83547.89 | BT8: 85751.54 | BU8: 88026.48 | BV8: 90375.12 | BW8: 43895.7 | BX8: 44258.02 | BY8: 0 | BZ8: 304460.76 | CA8: 748824.95 | CB8: 1662524.39 | CC8: 2158132.83 | CD8: 2440775.29 | CE8: 2496051.4 | CF8: 2552932.63 | CG8: 2611470.35 | CH8: 2671717.56 | CI8: 2733729.05 | CJ8: 2797561.42 | CK8: 2863273.2 | CL8: 2930924.81 | CM8: 3000578.68 | CN8: 3072299.37 | CO8: 3146153.55 | CP8: 3222210.1 | CQ8: 3300540.22 | CR8: 3381217.52 | CS8: 3464317.96 | CT8: 3549920.16 | CU8: 3585940.75 | CV8: 3622344.31
A9: 8 | B9: Stand Alone | C9: DLC Smart Thermostats - Heating | D9: 2023 | E9: 0 | F9: 0 | G9: 0.4691454059 | H9: 1.421739454 | I9: 3.350583084 | J9: 4.350850884 | K9: 4.884368925 | L9: 4.934988942 | M9: 4.986144536 | N9: 5.037841494 | O9: 5.090085666 | P9: 5.142882967 | Q9: 5.196239378 | R9: 5.250160945 | S9: 5.304653782 | T9: 5.359724069 | U9: 5.415378056 | V9: 5.47162206 | W9: 5.528462469 | X9: 5.585905742 | Y9: 5.643958409 | Z9: 5.702627071 | AA9: 5.761918404 | AB9: 5.821839156 | AC9: 0 | AD9: 0 | AE9: 0 | AF9: 0 | AG9: 0 | AH9: 0 | AI9: 0 | AJ9: 0 | AK9: 0 | AL9: 0 | AM9: 0 | AN9: 0 | AO9: 0 | AP9: 0 | AQ9: 0 | AR9: 0 | AS9: 0 | AT9: 0 | AU9: 0 | AV9: 0 | AW9: 0 | AX9: 0 | AY9: 0 | AZ9: 0 | BA9: 0 | BB9: 0 | BC9: 24242.58 | BD9: 49224.3 | BE9: 99671 | BF9: 51687.84 | BG9: 27569.01 | BH9: 2615.75 | BI9: 2643.42 | BJ9: 2671.4 | BK9: 2699.67 | BL9: 2728.26 | BM9: 2757.15 | BN9: 2786.36 | BO9: 2815.87 | BP9: 2845.71 | BQ9: 2875.88 | BR9: 2906.36 | BS9: 2937.18 | BT9: 2968.33 | BU9: 2999.82 | BV9: 3031.66 | BW9: 3063.83 | BX9: 3096.37 | BY9: 0 | BZ9: 0 | CA9: 8016.46 | CB9: 24293.68 | CC9: 57252.17 | CD9: 74343.65 | CE9: 83459.87 | CF9: 84324.73 | CG9: 85198.73 | CH9: 86081.98 | CI9: 86974.59 | CJ9: 87876.65 | CK9: 88788.26 | CL9: 89709.51 | CM9: 90640.54 | CN9: 91581.42 | CO9: 92532.28 | CP9: 93493.22 | CQ9: 94464.35 | CR9: 95445.78 | CS9: 96437.62 | CT9: 97439.99 | CU9: 98452.99 | CV9: 99476.75
A10: 9 | B10: Stand Alone | C10: DLC Water Heating | D10: 2023 | E10: 0 | F10: 0.197198521 | G10: 0.5969993548 | H10: 1.404901208 | I10: 1.822234388 | J10: 2.042390984 | K10: 2.060373107 | L10: 2.078516707 | M10: 2.096823264 | N10: 2.115294274 | O10: 2.133931246 | P10: 2.152735704 | Q10: 2.171709187 | R10: 2.190853246 | S10: 2.21016945 | T10: 2.229659378 | U10: 2.24932463 | V10: 2.269166815 | W10: 2.289187562 | X10: 2.309388512 | Y10: 2.329771323 | Z10: 2.350337668 | AA10: 2.379340374 | AB10: 2.408701233 | AC10: 0 | AD10: 0.197198521 | AE10: 0.5969993548 | AF10: 1.404901208 | AG10: 1.822234388 | AH10: 2.042390984 | AI10: 2.060373107 | AJ10: 2.078516707 | AK10: 2.096823264 | AL10: 2.115294274 | AM10: 2.133931246 | AN10: 2.152735704 | AO10: 2.171709187 | AP10: 2.190853246 | AQ10: 2.21016945 | AR10: 2.229659378 | AS10: 2.24932463 | AT10: 2.269166815 | AU10: 2.289187562 | AV10: 2.309388512 | AW10: 2.329771323 | AX10: 2.350337668 | AY10: 2.379340374 | AZ10: 2.408701233 | BA10: 0 | BB10: 467448.64 | BC10: 935460.44 | BD10: 1877989.13 | BE10: 975187.38 | BF10: 519471.37 | BG10: 52460.16 | BH10: 52817.41 | BI10: 53177.83 | BJ10: 53541.47 | BK10: 53908.34 | BL10: 54278.49 | BM10: 54651.92 | BN10: 55028.69 | BO10: 55408.82 | BP10: 55792.35 | BQ10: 56179.28 | BR10: 56569.67 | BS10: 56963.55 | BT10: 57360.94 | BU10: 57761.87 | BV10: 58166.38 | BW10: 78705.96 | BX10: 79535.49 | BY10: 0 | BZ10: 131112.39 | CA10: 214442.91 | CB10: 382795.93 | CC10: 469707.56 | CD10: 515509.41 | CE10: 519183.42 | CF10: 522889.61 | CG10: 526628.26 | CH10: 530399.65 | CI10: 534204.08 | CJ10: 538041.85 | CK10: 541913.25 | CL10: 545818.58 | CM10: 549758.14 | CN10: 553732.24 | CO10: 557741.18 | CP10: 561785.27 | CQ10: 565864.84 | CR10: 569980.19 | CS10: 574131.65 | CT10: 578319.52 | CU10: 584363.73 | CV10: 590482.77
A11: 10 | B11: Stand Alone | C11: CTA-2045 ERWH | D11: 2023 | E11: 0 | F11: 0.03462912227 | G11: 0.105082399 | H11: 0.2593657327 | I11: 0.4827487829 | J11: 0.8165779235 | K11: 1.240984219 | L11: 1.844129192 | M11: 2.564879861 | N11: 3.402480246 | O11: 4.335348489 | P11: 4.680224249 | Q11: 4.972200916 | R11: 5.191952247 | S11: 5.356884335 | T11: 5.475971231 | U11: 5.557890624 | V11: 5.612920845 | W11: 5.647462124 | X11: 5.663550425 | Y11: 5.665760378 | Z11: 5.657338861 | AA11: 5.690716651 | AB11: 5.723192869 | AC11: 0 | AD11: 0.0321291589 | AE11: 0.09749623651 | AF11: 0.2406414686 | AG11: 0.4478979349 | AH11: 0.7576271109 | AI11: 1.151394449 | AJ11: 1.710996871 | AK11: 2.379714737 | AL11: 3.156846646 | AM11: 4.022368785 | AN11: 4.342347097 | AO11: 4.613245235 | AP11: 4.817132165 | AQ11: 4.970157391 | AR11: 5.080647104 | AS11: 5.156652531 | AT11: 5.207709982 | AU11: 5.239757639 | AV11: 5.254684485 | AW11: 5.256734896 | AX11: 5.24892135 | AY11: 5.279889513 | AZ11: 5.310021191 | BA11: 0 | BB11: 53969.63 | BC11: 99550.43 | BD11: 207985.58 | BE11: 296480.82 | BF11: 438571.88 | BG11: 555587.33 | BH11: 787065.75 | BI11: 940497.04 | BJ11: 1092763.65 | BK11: 1201461.39 | BL11: 441316.01 | BM11: 365989.56 | BN11: 285530.57 | BO11: 221471.6 | BP11: 167744.26 | BQ11: 123418.9 | BR11: 91522.92 | BS11: 65144.63 | BT11: 43038.35 | BU11: 24540.29 | BV11: 9089.46 | BW11: 68479.68 | BX11: 69058.91 | BY11: 0 | BZ11: 50012.29 | CA11: 59751.9 | CB11: 80747.14 | CC11: 110923.56 | CD11: 155845.04 | CE11: 212912.03 | CF11: 294008.1 | CG11: 391037.37 | CH11: 503877.92 | CI11: 627924.51 | CJ11: 673069.76 | CK11: 710359.57 | CL11: 739366.27 | CM11: 761759.85 | CN11: 778605.98 | CO11: 790870.95 | CP11: 799548.55 | CQ11: 805340.83 | CR11: 808637.87 | CS11: 809941.03 | CT11: 809636.64 | CU11: 815567.66 | CV11: 821480.65
A12: 11 | B12: Stand Alone | C12: CTA-2045 HPWH | D12: 2023 | E12: 0 | F12: 0.004109437891 | G12: 0.02044619191 | H12: 0.06074040935 | I12: 0.1247119726 | J12: 0.22408573 | K12: 0.3521592555 | L12: 0.5361550127 | M12: 0.7574375537 | N12: 1.015251114 | O12: 1.331625073 | P12: 1.464996586 | Q12: 1.594507329 | R12: 1.714285533 | S12: 1.826431129 | T12: 1.934692058 | U12: 2.040626785 | V12: 2.143163879 | W12: 2.242342754 | X12: 2.339931587 | Y12: 2.435540604 | Z12: 2.529089388 | AA12: 2.566845576 | AB12: 2.605282437 | AC12: 0 | AD12: 0.001566377671 | AE12: 0.007793391534 | AF12: 0.02315217397 | AG12: 0.04753595367 | AH12: 0.08541384327 | AI12: 0.1342311064 | AJ12: 0.2043640183 | AK12: 0.2887093814 | AL12: 0.3869791242 | AM12: 0.5075700951 | AN12: 0.5584067705 | AO12: 0.6077718519 | AP12: 0.6534272213 | AQ12: 0.6961733003 | AR12: 0.7374386767 | AS12: 0.7778173844 | AT12: 0.81690103 | AU12: 0.8547046372 | AV12: 0.8919021745 | AW12: 0.9283450732 | AX12: 0.9640026816 | AY12: 0.9783940538 | AZ12: 0.9930448751 | BA12: 0 | BB12: 14885.99 | BC12: 41287.06 | BD12: 92040.79 | BE12: 142008.62 | BF12: 216419.37 | BG12: 276158.7 | BH12: 393053.02 | BI12: 469606.75 | BJ12: 544741.61 | BK12: 664668.99 | BL12: 277081.92 | BM12: 267552.87 | BN12: 252705.67 | BO12: 240648.76 | BP12: 232988.08 | BQ12: 227387.66 | BR12: 221069.66 | BS12: 215123.13 | BT12: 211282.8 | BU12: 207283.64 | BV12: 203410.48 | BW12: 69573.67 | BX12: 70504.76 | BY12: 0 | BZ12: 45938.43 | CA12: 49616.65 | CB12: 58556.68 | CC12: 72676.02 | CD12: 94506.6 | CE12: 122524.82 | CF12: 162653.36 | CG12: 210705.29 | CH12: 266534.5 | CI12: 334774.61 | CJ12: 362832.75 | CK12: 389895.66 | CL12: 415450.58 | CM12: 439777.78 | CN12: 463313.86 | CO12: 486265.7 | CP12: 508567.27 | CQ12: 530258.68 | CR12: 551549.39 | CS12: 572426.55 | CT12: 592904.83 | CU12: 599423.04 | CV12: 606035.01
A13: 12 | B13: Stand Alone | C13: Thermal Energy Storage | D13: 2023 | E13: 0 | F13: 0 | G13: 0 | H13: 0 | I13: 0 | J13: 0 | K13: 0 | L13: 0 | M13: 0 | N13: 0 | O13: 0 | P13: 0 | Q13: 0 | R13: 0 | S13: 0 | T13: 0 | U13: 0 | V13: 0 | W13: 0 | X13: 0 | Y13: 0 | Z13: 0 | AA13: 0 | AB13: 0 | AC13: 0 | AD13: 0.06254370328 | AE13: 0.2157383284 | AF13: 0.5057562307 | AG13: 0.6532877809 | AH13: 0.7292596207 | AI13: 0.7327113118 | AJ13: 0.7362296884 | AK13: 0.7398141136 | AL13: 0.7434640081 | AM13: 0.7471788475 | AN13: 0.7509581601 | AO13: 0.7548015242 | AP13: 0.7587085665 | AQ13: 0.7626789596 | AR13: 0.7667124203 | AS13: 0.7708087076 | AT13: 0.774967621 | AU13: 0.779188999 | AV13: 0.7834727172 | AW13: 0.7878186873 | AX13: 0.7922268552 | AY13: 0.7966971999 | AZ13: 0.8012297323 | BA13: 0 | BB13: 304587.79 | BC13: 719546.5 | BD13: 1356698.22 | BE13: 682852.17 | BF13: 345747.66 | BG13: 12655.06 | BH13: 12724.83 | BI13: 12795.34 | BJ13: 12866.62 | BK13: 12938.66 | BL13: 13011.47 | BM13: 13085.08 | BN13: 13159.47 | BO13: 13234.68 | BP13: 13310.7 | BQ13: 13387.53 | BR13: 13465.2 | BS13: 13543.69 | BT13: 13623.04 | BU13: 13703.25 | BV13: 13784.32 | BW13: 13866.27 | BX13: 13949.1 | BY13: 0 | BZ13: 62934.55 | CA13: 70122.44 | CB13: 83730.07 | CC13: 90652.28 | CD13: 94216.86 | CE13: 94378.83 | CF13: 94543.9 | CG13: 94712.09 | CH13: 94883.34 | CI13: 95057.64 | CJ13: 95234.97 | CK13: 95415.3 | CL13: 95598.6 | CM13: 95784.9 | CN13: 95974.16 | CO13: 96166.36 | CP13: 96361.5 | CQ13: 96559.56 | CR13: 96760.55 | CS13: 96964.46 | CT13: 97171.3 | CU13: 97381.03 | CV13: 97593.71
A14: 13 | B14: Stand Alone | C14: Third Party Contracts | D14: 2023 | E14: 0 | F14: 11.42561709 | G14: 19.87194626 | H14: 24.80284816 | I14: 24.79648563 | J14: 24.79988657 | K14: 24.81535077 | L14: 24.84459729 | M14: 24.9030242 | N14: 24.97552299 | O14: 25.06452205 | P14: 25.17303454 | Q14: 25.30478864 | R14: 25.46437958 | S14: 25.65744292 | T14: 25.89084524 | U14: 26.17288432 | V14: 26.51348451 | W14: 26.92436542 | X14: 27.41915313 | Y14: 28.01339543 | Z14: 28.72443761 | AA14: 29.57111885 | AB14: 30.65096588 | AC14: 0 | AD14: 11.20099091 | AE14: 19.50022591 | AF14: 24.33960984 | AG14: 24.33478797 | AH14: 24.33971169 | AI14: 24.35668155 | AJ14: 24.38741726 | AK14: 24.4473176 | AL14: 24.52127467 | AM14: 24.61171747 | AN14: 24.72165974 | AO14: 24.85483019 | AP14: 25.0158246 | AQ14: 25.21027902 | AR14: 25.4450605 | AS14: 25.72846727 | AT14: 26.07042413 | AU14: 26.48265108 | AV14: 26.97877463 | AW14: 27.5743429 | AX14: 28.28670158 | AY14: 29.13469019 | AZ14: 30.21583577 | BA14: 0 | BB14: 0 | BC14: 0 | BD14: 0 | BE14: 0 | BF14: 0 | BG14: 0 | BH14: 0 | BI14: 0 | BJ14: 0 | BK14: 0 | BL14: 0 | BM14: 0 | BN14: 0 | BO14: 0 | BP14: 0 | BQ14: 0 | BR14: 0 | BS14: 0 | BT14: 0 | BU14: 0 | BV14: 0 | BW14: 0 | BX14: 0 | BY14: 0 | BZ14: 860271.27 | CA14: 1495877.27 | CB14: 1867056.47 | CC14: 1866586.54 | CD14: 1866849.88 | CE14: 1868019.15 | CF14: 1870223.37 | CG14: 1874618.54 | CH14: 1880070.39 | CI14: 1886761.23 | CJ14: 1894917.27 | CK14: 1904818.38 | CL14: 1916809.5 | CM14: 1931313.75 | CN14: 1948846.57 | CO14: 1970030.9 | CP14: 1995611.8 | CQ14: 2026469.04 | CR14: 2063625.56 | CS14: 2108248.59 | CT14: 2161640.25 | CU14: 2225214.84 | CV14: 2306293.85
A15: 14 | B15: Stand Alone | C15: Time-of-Use Opt-in | D15: 2023 | E15: 0 | F15: 0.6679847058 | G15: 2.24238441 | H15: 5.260858656 | I15: 6.810105223 | J15: 7.622918321 | K15: 7.685399858 | L15: 7.754956642 | M15: 7.84497596 | N15: 7.939715429 | O15: 8.039592295 | P15: 8.145081055 | Q15: 8.256723942 | R15: 8.375143129 | S15: 8.501054583 | T15: 8.635283269 | U15: 8.778779051 | V15: 8.932632111 | W15: 9.0980861 | X15: 9.276546499 | Y15: 9.469581024 | Z15: 9.678908546 | AA15: 9.906373215 | AB15: 10.17590385 | AC15: 0 | AD15: 0.6987784526 | AE15: 2.344190977 | AF15: 5.500186342 | AG15: 7.120436582 | AH15: 7.970666029 | AI15: 8.036102027 | AJ15: 8.108632862 | AK15: 8.201646034 | AL15: 8.299399372 | AM15: 8.402310333 | AN15: 8.510853624 | AO15: 8.625571689 | AP15: 8.747086909 | AQ15: 8.876115459 | AR15: 9.013482513 | AS15: 9.160138142 | AT15: 9.317172736 | AU15: 9.485830154 | AV15: 9.667516082 | AW15: 9.863798446 | AX15: 10.07639632 | AY15: 10.30715407 | AZ15: 10.58000071 | BA15: 0 | BB15: 257094.57 | BC15: 628100.93 | BD15: 1184551.77 | BE15: 619231.69 | BF15: 333832.25 | BG15: 40762.18 | BH15: 41093.38 | BI15: 41428.19 | BJ15: 41766.67 | BK15: 42108.83 | BL15: 42454.73 | BM15: 42804.43 | BN15: 43157.93 | BO15: 43515.29 | BP15: 43876.56 | BQ15: 44241.8 | BR15: 44611.01 | BS15: 44984.27 | BT15: 45361.62 | BU15: 45743.09 | BV15: 46128.74 | BW15: 46518.6 | BX15: 46912.74 | BY15: 0 | BZ15: 75000 | CA15: 75000 | CB15: 75000 | CC15: 75000 | CD15: 75000 | CE15: 75000 | CF15: 75000 | CG15: 75000 | CH15: 75000 | CI15: 75000 | CJ15: 75000 | CK15: 75000 | CL15: 75000 | CM15: 75000 | CN15: 75000 | CO15: 75000 | CP15: 75000 | CQ15: 75000 | CR15: 75000 | CS15: 75000 | CT15: 75000 | CU15: 75000 | CV15: 75000
A16: 15 | B16: Stand Alone | C16: Time-of-Use Opt-out | D16: 2023 | E16: 0 | F16: 35.73603427 | G16: 33.95723171 | H16: 31.50963447 | I16: 30.36526787 | J16: 29.91012303 | K16: 30.12053038 | L16: 30.35653693 | M16: 30.66441731 | N16: 30.99036734 | O16: 31.33622552 | P16: 31.70413334 | Q16: 32.09659542 | R16: 32.51654967 | S16: 32.96744704 | T16: 33.45333919 | U16: 33.97897029 | V16: 34.54986632 | W16: 35.17241159 | X16: 35.8538983 | Y16: 36.60253088 | Z16: 37.42736512 | AA16: 38.33816328 | AB16: 39.43181817 | AC16: 0 | AD16: 37.01724631 | AE16: 35.17157956 | AF16: 32.6410539 | AG16: 31.45978551 | AH16: 30.99173715 | AI16: 31.21246776 | AJ16: 31.45886078 | AK16: 31.77719169 | AL16: 32.11365714 | AM16: 32.47009647 | AN16: 32.84865197 | AO16: 33.25182908 | AP16: 33.68256652 | AQ16: 34.14431602 | AR16: 34.64113005 | AS16: 35.17775357 | AT16: 35.75971332 | AU16: 36.39339442 | AV16: 37.08608983 | AW16: 37.84600474 | AX16: 38.68219573 | AY16: 39.60442583 | AZ16: 40.7095886 | BA16: 0 | BB16: 19031537.51 | BC16: 1770123.54 | BD16: 9812.14 | BE16: 9812.14 | BF16: 9812.14 | BG16: 185989.34 | BH16: 187874.63 | BI16: 189780.5 | BJ16: 191707.16 | BK16: 193654.88 | BL16: 195623.87 | BM16: 197614.38 | BN16: 199626.62 | BO16: 201660.88 | BP16: 203717.36 | BQ16: 205796.34 | BR16: 207898.05 | BS16: 210022.76 | BT16: 212170.71 | BU16: 214342.16 | BV16: 216537.38 | BW16: 218756.64 | BX16: 221000.2 | BY16: 0 | BZ16: 75000 | CA16: 75000 | CB16: 75000 | CC16: 75000 | CD16: 75000 | CE16: 75000 | CF16: 75000 | CG16: 75000 | CH16: 75000 | CI16: 75000 | CJ16: 75000 | CK16: 75000 | CL16: 75000 | CM16: 75000 | CN16: 75000 | CO16: 75000 | CP16: 75000 | CQ16: 75000 | CR16: 75000 | CS16: 75000 | CT16: 75000 | CU16: 75000 | CV16: 75000
A17: 16 | B17: Stand Alone | C17: Electric Vehicle TOU Opt-in | D17: 2023 | E17: 0.02636927093 | F17: 0.05186121139 | G17: 0.08117494292 | H17: 0.1035983046 | I17: 0.134556103 | J17: 0.1772411835 | K17: 0.2355951064 | L17: 0.3116845669 | M17: 0.4397954243 | N17: 0.5802661801 | O17: 0.7345804607 | P17: 0.9044729365 | Q17: 1.091980294 | R17: 1.299500646 | S17: 1.529861086 | T17: 1.786391954 | U17: 2.073004625 | V17: 2.394267215 | W17: 2.755469566 | X17: 3.162665388 | Y17: 3.622676334 | Z17: 4.143040973 | AA17: 4.731892801 | AB17: 5.464746388 | AC17: 0.02636927093 | AD17: 0.05186121139 | AE17: 0.08117494292 | AF17: 0.1035983046 | AG17: 0.134556103 | AH17: 0.1772411835 | AI17: 0.2355951064 | AJ17: 0.3116845669 | AK17: 0.4397954243 | AL17: 0.5802661801 | AM17: 0.7345804607 | AN17: 0.9044729365 | AO17: 1.091980294 | AP17: 1.299500646 | AQ17: 1.529861086 | AR17: 1.786391954 | AS17: 2.073004625 | AT17: 2.394267215 | AU17: 2.755469566 | AV17: 3.162665388 | AW17: 3.622676334 | AX17: 4.143040973 | AY17: 4.731892801 | AZ17: 5.464746388 | BA17: 21573.61 | BB17: 21922.5 | BC17: 26224.29 | BD17: 21328.67 | BE17: 29830.3 | BF17: 41613.48 | BG17: 57438.38 | BH17: 75125.87 | BI17: 130422.23 | BJ17: 140873.99 | BK17: 152097.91 | BL17: 164149.83 | BM17: 177091.27 | BN17: 190990.1 | BO17: 205921.32 | BP17: 221967.71 | BQ17: 239219.93 | BR17: 257776.12 | BS17: 277740.31 | BT17: 299219.51 | BU17: 322318.93 | BV17: 347135.07 | BW17: 373747.16 | BX17: 453442.16 | BY17: 75000 | BZ17: 75000 | CA17: 75000 | CB17: 75000 | CC17: 75000 | CD17: 75000 | CE17: 75000 | CF17: 75000 | CG17: 75000 | CH17: 75000 | CI17: 75000 | CJ17: 75000 | CK17: 75000 | CL17: 75000 | CM17: 75000 | CN17: 75000 | CO17: 75000 | CP17: 75000 | CQ17: 75000 | CR17: 75000 | CS17: 75000 | CT17: 75000 | CU17: 75000 | CV17: 75000
A18: 17 | B18: Stand Alone | C18: Variable Peak Pricing Rates | D18: 2023 | E18: 0 | F18: 0.4427023075 | G18: 1.430725105 | H18: 3.328440458 | I18: 4.274074378 | J18: 4.744174328 | K18: 4.740700219 | L18: 4.738778823 | M18: 4.738705749 | N18: 4.740858952 | O18: 4.745718721 | P18: 4.753891823 | Q18: 4.766140253 | R18: 4.783414821 | S18: 4.806893417 | T18: 4.838023156 | U18: 4.878564615 | V18: 4.930635059 | W18: 4.996745776 | X18: 5.079826797 | Y18: 5.183230449 | Z18: 5.310704237 | AA18: 5.466324164 | AB18: 5.667512246 | AC18: 0 | AD18: 0.4323250993 | AE18: 1.398596401 | AF18: 3.253681128 | AG18: 4.178248321 | AH18: 4.63802246 | AI18: 4.634865922 | AJ18: 4.633258289 | AK18: 4.633495314 | AL18: 4.635955091 | AM18: 4.641118038 | AN18: 4.649591048 | AO18: 4.662136233 | AP18: 4.679704518 | AQ18: 4.703473901 | AR18: 4.734891596 | AS18: 4.775718284 | AT18: 4.828071319 | AU18: 4.894462079 | AV18: 4.977820682 | AW18: 5.081499536 | AX18: 5.209246222 | AY18: 5.365136819 | AZ18: 5.566593413 | BA18: 0 | BB18: 21647.9 | BC18: 37677.29 | BD18: 62599.9 | BE18: 36046.78 | BF18: 22790.15 | BG18: 9812.14 | BH18: 9812.14 | BI18: 9812.14 | BJ18: 9812.14 | BK18: 9812.14 | BL18: 9812.14 | BM18: 9812.14 | BN18: 9812.14 | BO18: 9812.14 | BP18: 9812.14 | BQ18: 9812.14 | BR18: 9812.14 | BS18: 9812.14 | BT18: 9812.14 | BU18: 9812.14 | BV18: 9812.14 | BW18: 9812.14 | BX18: 9812.14 | BY18: 0 | BZ18: 74999.99 | CA18: 74999.99 | CB18: 74999.99 | CC18: 74999.99 | CD18: 74999.99 | CE18: 74999.99 | CF18: 74999.99 | CG18: 74999.99 | CH18: 74999.99 | CI18: 74999.99 | CJ18: 74999.99 | CK18: 74999.99 | CL18: 74999.99 | CM18: 74999.99 | CN18: 74999.99 | CO18: 74999.99 | CP18: 74999.99 | CQ18: 74999.99 | CR18: 74999.99 | CS18: 74999.99 | CT18: 74999.99 | CU18: 74999.99 | CV18: 74999.99
A19: 18 | B19: Stand Alone | C19: Peak Time Rebate | D19: 2023 | E19: 0 | F19: 0.9358601544 | G19: 3.188790467 | H19: 7.500874008 | I19: 9.730219966 | J19: 10.91623034 | K19: 11.03306453 | L19: 11.16317524 | M19: 11.33379633 | N19: 11.51234516 | O19: 11.69930917 | P19: 11.89519667 | Q19: 12.10053638 | R19: 12.31587679 | S19: 12.54178539 | T19: 12.7788476 | U19: 13.02766566 | V19: 13.28885719 | W19: 13.56305369 | X19: 13.85089874 | Y19: 14.1530462 | Z19: 14.47015811 | AA19: 14.80290264 | AB19: 15.1870556 | AC19: 0 | AD19: 0.9938366693 | AE19: 3.378761008 | AF19: 7.94694934 | AG19: 10.30789688 | AH19: 11.56274066 | AI19: 11.68425652 | AJ19: 11.81908377 | AK19: 11.99445651 | AL19: 12.17779238 | AM19: 12.3695791 | AN19: 12.57032525 | AO19: 12.78055982 | AP19: 13.00083159 | AQ19: 13.23170831 | AR19: 13.4737757 | AS19: 13.72763629 | AT19: 13.99390797 | AU19: 14.27322254 | AV19: 14.56622387 | AW19: 14.87356612 | AX19: 15.19591162 | AY19: 15.53392883 | AZ19: 15.92339388 | BA19: 0 | BB19: 271218.95 | BC19: 648037.65 | BD19: 1230689.64 | BE19: 642986.71 | BF19: 346327.16 | BG19: 41802.22 | BH19: 42140.14 | BI19: 42481.69 | BJ19: 42826.93 | BK19: 43175.9 | BL19: 43528.61 | BM19: 43885.14 | BN19: 44245.52 | BO19: 44609.78 | BP19: 44977.97 | BQ19: 45350.14 | BR19: 45726.34 | BS19: 46106.59 | BT19: 46490.96 | BU19: 46879.47 | BV19: 47272.19 | BW19: 47669.16 | BX19: 48070.4 | BY19: 0 | BZ19: 75000 | CA19: 75000 | CB19: 75000 | CC19: 75000 | CD19: 75000 | CE19: 75000 | CF19: 75000 | CG19: 75000 | CH19: 75000 | CI19: 75000 | CJ19: 75000 | CK19: 75000 | CL19: 75000 | CM19: 75000 | CN19: 75000 | CO19: 75000 | CP19: 75000 | CQ19: 75000 | CR19: 75000 | CS19: 75000 | CT19: 75000 | CU19: 75000 | CV19: 75000
A20: 19 | B20: Stand Alone | C20: Ancillary Battery Storage | D20: 2023 | E20: 0 | F20: 0.07949514549 | G20: 0.1821776143 | H20: 0.3678648607 | I20: 0.5570307428 | J20: 0.7497316501 | K20: 1.041001531 | L20: 1.337932754 | M20: 1.640617574 | N20: 2.046606855 | O20: 2.460459517 | P20: 2.88230269 | Q20: 3.412636793 | R20: 3.953205718 | S20: 4.504173831 | T20: 5.169089429 | U20: 5.220347997 | V20: 5.272160451 | W20: 5.324532272 | X20: 5.377469023 | Y20: 5.430976349 | Z20: 5.485059982 | AA20: 5.539725736 | AB20: 5.594979507 | AC20: 0 | AD20: 0.07949514549 | AE20: 0.1821776143 | AF20: 0.3678648607 | AG20: 0.5570307428 | AH20: 0.7497316501 | AI20: 1.041001531 | AJ20: 1.337932754 | AK20: 1.640617574 | AL20: 2.046606855 | AM20: 2.460459517 | AN20: 2.88230269 | AO20: 3.412636793 | AP20: 3.953205718 | AQ20: 4.504173831 | AR20: 5.169089429 | AS20: 5.220347997 | AT20: 5.272160451 | AU20: 5.324532272 | AV20: 5.377469023 | AW20: 5.430976349 | AX20: 5.485059982 | AY20: 5.539725736 | AZ20: 5.594979507 | BA20: 0 | BB20: 7328.6 | BC20: 7328.6 | BD20: 7328.6 | BE20: 7328.6 | BF20: 7328.6 | BG20: 7328.6 | BH20: 7328.6 | BI20: 7328.6 | BJ20: 7328.6 | BK20: 7328.6 | BL20: 7328.6 | BM20: 7328.6 | BN20: 7328.6 | BO20: 7328.6 | BP20: 7328.6 | BQ20: 7328.6 | BR20: 7328.6 | BS20: 7328.6 | BT20: 7328.6 | BU20: 7328.6 | BV20: 7328.6 | BW20: 7328.6 | BX20: 7328.6 | BY20: 0 | BZ20: 60715.31 | CA20: 61640.85 | CB20: 63314.88 | CC20: 65021.77 | CD20: 66762.03 | CE20: 69393.36 | CF20: 72078.09 | CG20: 74817.1 | CH20: 78491.78 | CI20: 82240.58 | CJ20: 86064.66 | CK20: 90873.25 | CL20: 95778.24 | CM20: 100781.1 | CN20: 106819.85 | CO20: 107302.57 | CP20: 107790.42 | CQ20: 108283.47 | CR20: 108781.74 | CS20: 109285.28 | CT20: 109794.2 | CU20: 110308.51 | CV20: 110828.29
A21: 20 | B21: Stand Alone | C21: Ancillary EV | D21: 2023 | E21: 0 | F21: 0.03789812515 | G21: 0.1463694108 | H21: 0.4476648824 | I21: 0.7667803075 | J21: 1.148849327 | K21: 1.559169117 | L21: 2.096072025 | M21: 3.032075743 | N21: 4.041032468 | O21: 5.127771361 | P21: 6.297329953 | Q21: 7.554949628 | R21: 8.906069335 | S21: 10.35631746 | T21: 11.91150183 | U21: 13.57759778 | V21: 15.36073438 | W21: 17.26717889 | X21: 19.30331943 | Y21: 21.47564614 | Z21: 23.79073097 | AA21: 26.25520622 | AB21: 29.22707437 | AC21: 0 | AD21: 0.03789812515 | AE21: 0.1463694108 | AF21: 0.4476648824 | AG21: 0.7667803075 | AH21: 1.148849327 | AI21: 1.559169117 | AJ21: 2.096072025 | AK21: 3.032075743 | AL21: 4.041032468 | AM21: 5.127771361 | AN21: 6.297329953 | AO21: 7.554949628 | AP21: 8.906069335 | AQ21: 10.35631746 | AR21: 11.91150183 | AS21: 13.57759778 | AT21: 15.36073438 | AU21: 17.26717889 | AV21: 19.30331943 | AW21: 21.47564614 | AX21: 23.79073097 | AY21: 26.25520622 | AZ21: 29.22707437 | BA21: 0 | BB21: 17484.4 | BC21: 28250.7 | BD21: 57667.04 | BE21: 60385.57 | BF21: 69989.46 | BG21: 74299.26 | BH21: 93610.18 | BI21: 154495.09 | BJ21: 165624.45 | BK21: 177490.53 | BL21: 190125.1 | BM21: 203559.28 | BN21: 217823.2 | BO21: 232945.75 | BP21: 248954.32 | BQ21: 265874.47 | BR21: 283729.63 | BS21: 302540.89 | BT21: 322326.7 | BU21: 343102.62 | BV21: 364881.1 | BW21: 387671.39 | BX21: 465076.83 | BY21: 0 | BZ21: 60000 | CA21: 60000 | CB21: 60000 | CC21: 60000 | CD21: 60000 | CE21: 60000 | CF21: 60000 | CG21: 60000 | CH21: 60000 | CI21: 60000 | CJ21: 60000 | CK21: 60000 | CL21: 60000 | CM21: 60000 | CN21: 60000 | CO21: 60000 | CP21: 60000 | CQ21: 60000 | CR21: 60000 | CS21: 60000 | CT21: 60000 | CU21: 60000 | CV21: 60000
A22: 21 | B22: Stand Alone | C22: Ancillary Cooling | D22: 2023 | E22: 0 | F22: 0 | G22: 0 | H22: 0 | I22: 0 | J22: 0 | K22: 0 | L22: 0 | M22: 0 | N22: 0 | O22: 0 | P22: 0 | Q22: 0 | R22: 0 | S22: 0 | T22: 0 | U22: 0 | V22: 0 | W22: 0 | X22: 0 | Y22: 0 | Z22: 0 | AA22: 0 | AB22: 0 | AC22: 0 | AD22: 0.4787751816 | AE22: 1.46959528 | AF22: 3.504902151 | AG22: 4.605832383 | AH22: 5.231088531 | AI22: 5.349672287 | AJ22: 5.471634345 | AK22: 5.59708193 | AL22: 5.726125821 | AM22: 5.858880466 | AN22: 5.995464105 | AO22: 6.135998902 | AP22: 6.280611073 | AQ22: 6.429431025 | AR22: 6.582593495 | AS22: 6.740237698 | AT22: 6.902507477 | AU22: 7.06955146 | AV22: 7.241523221 | AW22: 7.418581445 | AX22: 7.600890102 | AY22: 7.680046858 | AZ22: 7.760045014 | BA22: 0 | BB22: 106651.12 | BC22: 215677.25 | BD22: 438217.19 | BE22: 239827.63 | BF22: 138782.9 | BG22: 30949.46 | BH22: 31703.27 | BI22: 32481.16 | BJ22: 33283.92 | BK22: 34112.38 | BL22: 34967.41 | BM22: 35849.85 | BN22: 36760.64 | BO22: 37700.73 | BP22: 38671.07 | BQ22: 39672.68 | BR22: 40706.63 | BS22: 41773.94 | BT22: 42875.76 | BU22: 44013.24 | BV22: 45187.57 | BW22: 21947.85 | BX22: 22129.01 | BY22: 0 | BZ22: 63509.5 | CA22: 132941.4 | CB22: 275706.93 | CC22: 353145.75 | CD22: 397308.65 | CE22: 405945.53 | CF22: 414833.22 | CG22: 423979.73 | CH22: 433393.37 | CI22: 443082.66 | CJ22: 453056.48 | CK22: 463323.95 | CL22: 473894.5 | CM22: 484777.92 | CN22: 495984.27 | CO22: 507523.99 | CP22: 519407.83 | CQ22: 531646.92 | CR22: 544252.74 | CS22: 557237.19 | CT22: 570612.52 | CU22: 576240.75 | CV22: 581928.8
A23: 22 | B23: Stand Alone | C23: Ancillary Heating | D23: 2023 | E23: 0 | F23: 0 | G23: 0.1172863515 | H23: 0.3554348636 | I23: 0.837645771 | J23: 1.087712721 | K23: 1.221092231 | L23: 1.233747236 | M23: 1.246536134 | N23: 1.259460373 | O23: 1.272521416 | P23: 1.285720742 | Q23: 1.299059844 | R23: 1.312540236 | S23: 1.326163446 | T23: 1.339931017 | U23: 1.353844514 | V23: 1.367905515 | W23: 1.382115617 | X23: 1.396476436 | Y23: 1.410989602 | Z23: 1.425656768 | AA23: 1.440479601 | AB23: 1.455459789 | AC23: 0 | AD23: 0 | AE23: 0 | AF23: 0 | AG23: 0 | AH23: 0 | AI23: 0 | AJ23: 0 | AK23: 0 | AL23: 0 | AM23: 0 | AN23: 0 | AO23: 0 | AP23: 0 | AQ23: 0 | AR23: 0 | AS23: 0 | AT23: 0 | AU23: 0 | AV23: 0 | AW23: 0 | AX23: 0 | AY23: 0 | AZ23: 0 | BA23: 0 | BB23: 0 | BC23: 12121.3 | BD23: 24612.15 | BE23: 49835.5 | BF23: 25843.92 | BG23: 13784.5 | BH23: 1307.88 | BI23: 1321.72 | BJ23: 1335.7 | BK23: 1349.84 | BL23: 1364.13 | BM23: 1378.57 | BN23: 1393.18 | BO23: 1407.94 | BP23: 1422.86 | BQ23: 1437.94 | BR23: 1453.19 | BS23: 1468.6 | BT23: 1484.18 | BU23: 1499.92 | BV23: 1515.84 | BW23: 1531.91 | BX23: 1548.17 | BY23: 0 | BZ23: 0 | CA23: 4008.23 | CB23: 12146.84 | CC23: 28626.08 | CD23: 37171.82 | CE23: 41729.93 | CF23: 42162.37 | CG23: 42599.37 | CH23: 43040.99 | CI23: 43487.29 | CJ23: 43938.32 | CK23: 44394.13 | CL23: 44854.75 | CM23: 45320.27 | CN23: 45790.72 | CO23: 46266.14 | CP23: 46746.61 | CQ23: 47232.17 | CR23: 47722.9 | CS23: 48218.8 | CT23: 48719.99 | CU23: 49226.49 | CV23: 49738.37
A24: 23 | B24: Stand Alone | C24: Ancillary DLC WH | D24: 2023 | E24: 0 | F24: 0.197198521 | G24: 0.5969993548 | H24: 1.404901208 | I24: 1.822234388 | J24: 2.042390984 | K24: 2.060373107 | L24: 2.078516707 | M24: 2.096823264 | N24: 2.115294274 | O24: 2.133931246 | P24: 2.152735704 | Q24: 2.171709187 | R24: 2.190853246 | S24: 2.21016945 | T24: 2.229659378 | U24: 2.24932463 | V24: 2.269166815 | W24: 2.289187562 | X24: 2.309388512 | Y24: 2.329771323 | Z24: 2.350337668 | AA24: 2.379340374 | AB24: 2.408701233 | AC24: 0 | AD24: 0.197198521 | AE24: 0.5969993548 | AF24: 1.404901208 | AG24: 1.822234388 | AH24: 2.042390984 | AI24: 2.060373107 | AJ24: 2.078516707 | AK24: 2.096823264 | AL24: 2.115294274 | AM24: 2.133931246 | AN24: 2.152735704 | AO24: 2.171709187 | AP24: 2.190853246 | AQ24: 2.21016945 | AR24: 2.229659378 | AS24: 2.24932463 | AT24: 2.269166815 | AU24: 2.289187562 | AV24: 2.309388512 | AW24: 2.329771323 | AX24: 2.350337668 | AY24: 2.379340374 | AZ24: 2.408701233 | BA24: 0 | BB24: 64640.22 | BC24: 119005.62 | BD24: 228494.77 | BE24: 123631.69 | BF24: 70698.08 | BG24: 16448.74 | BH24: 16490.46 | BI24: 16532.56 | BJ24: 16575.04 | BK24: 16617.9 | BL24: 16661.14 | BM24: 16704.77 | BN24: 16748.79 | BO24: 16793.2 | BP24: 16838.01 | BQ24: 16883.22 | BR24: 16928.84 | BS24: 16974.86 | BT24: 17021.3 | BU24: 17068.16 | BV24: 17115.43 | BW24: 19485.99 | BX24: 19582.32 | BY24: 0 | BZ24: 80971.97 | CA24: 123479.76 | CB24: 209358.06 | CC24: 253691.89 | CD24: 277055.09 | CE24: 278928.53 | CF24: 280818.36 | CG24: 282724.74 | CH24: 284647.82 | CI24: 286587.73 | CJ24: 288544.63 | CK24: 290518.68 | CL24: 292510 | CM24: 294518.78 | CN24: 296545.16 | CO24: 298589.31 | CP24: 300651.35 | CQ24: 302731.49 | CR24: 304829.86 | CS24: 306946.63 | CT24: 309081.96 | CU24: 312165.17 | CV24: 315286.54
A25: 24 | B25: Stand Alone | C25: Ancillary ERWH | D25: 2023 | E25: 0 | F25: 0.03462912227 | G25: 0.105082399 | H25: 0.2593657327 | I25: 0.4827487829 | J25: 0.8165779235 | K25: 1.240984219 | L25: 1.844129192 | M25: 2.564879861 | N25: 3.402480246 | O25: 4.335348489 | P25: 4.680224249 | Q25: 4.972200916 | R25: 5.191952247 | S25: 5.356884335 | T25: 5.475971231 | U25: 5.557890624 | V25: 5.612920845 | W25: 5.647462124 | X25: 5.663550425 | Y25: 5.665760378 | Z25: 5.657338861 | AA25: 5.690716651 | AB25: 5.723192869 | AC25: 0 | AD25: 0.0321291589 | AE25: 0.09749623651 | AF25: 0.2406414686 | AG25: 0.4478979349 | AH25: 0.7576271109 | AI25: 1.151394449 | AJ25: 1.710996871 | AK25: 2.379714737 | AL25: 3.156846646 | AM25: 4.022368785 | AN25: 4.342347097 | AO25: 4.613245235 | AP25: 4.817132165 | AQ25: 4.970157391 | AR25: 5.080647104 | AS25: 5.156652531 | AT25: 5.207709982 | AU25: 5.239757639 | AV25: 5.254684485 | AW25: 5.256734896 | AX25: 5.24892135 | AY25: 5.279889513 | AZ25: 5.310021191 | BA25: 0 | BB25: 18465.89 | BC25: 30561.6 | BD25: 59269.28 | BE25: 82731.17 | BF25: 120378.04 | BG25: 151362.83 | BH25: 212635.22 | BI25: 253206.44 | BJ25: 293476.32 | BK25: 322798.09 | BL25: 121537.14 | BM25: 101853.42 | BN25: 80066.45 | BO25: 62850.44 | BP25: 48417.52 | BQ25: 36542.02 | BR25: 28200.5 | BS25: 21319.21 | BT25: 15552.36 | BU25: 10726.78 | BV25: 6696.13 | BW25: 22189.23 | BX25: 22340.33 | BY25: 0 | BZ25: 35012.3 | CA25: 44751.9 | CB25: 65747.14 | CC25: 95923.56 | CD25: 140845.04 | CE25: 197912.03 | CF25: 279008.1 | CG25: 376037.37 | CH25: 488877.92 | CI25: 612924.51 | CJ25: 658069.77 | CK25: 695359.57 | CL25: 724366.27 | CM25: 746759.84 | CN25: 763605.98 | CO25: 775870.95 | CP25: 784548.55 | CQ25: 790340.83 | CR25: 793637.87 | CS25: 794941.03 | CT25: 794636.64 | CU25: 800567.66 | CV25: 806480.65
A26: 25 | B26: Stand Alone | C26: Ancillary HPWH | D26: 2023 | E26: 0 | F26: 0.004109437891 | G26: 0.02044619191 | H26: 0.06074040935 | I26: 0.1247119726 | J26: 0.22408573 | K26: 0.3521592555 | L26: 0.5361550127 | M26: 0.7574375537 | N26: 1.015251114 | O26: 1.331625073 | P26: 1.464996586 | Q26: 1.594507329 | R26: 1.714285533 | S26: 1.826431129 | T26: 1.934692058 | U26: 2.040626785 | V26: 2.143163879 | W26: 2.242342754 | X26: 2.339931587 | Y26: 2.435540604 | Z26: 2.529089388 | AA26: 2.566845576 | AB26: 2.605282437 | AC26: 0 | AD26: 0.001566377671 | AE26: 0.007793391534 | AF26: 0.02315217397 | AG26: 0.04753595367 | AH26: 0.08541384327 | AI26: 0.1342311064 | AJ26: 0.2043640183 | AK26: 0.2887093814 | AL26: 0.3869791242 | AM26: 0.5075700951 | AN26: 0.5584067705 | AO26: 0.6077718519 | AP26: 0.6534272213 | AQ26: 0.6961733003 | AR26: 0.7374386767 | AS26: 0.7778173844 | AT26: 0.81690103 | AU26: 0.8547046372 | AV26: 0.8919021745 | AW26: 0.9283450732 | AX26: 0.9640026816 | AY26: 0.9783940538 | AZ26: 0.9930448751 | BA26: 0 | BB26: 8238.8 | BC26: 15233.03 | BD26: 28715.52 | BE26: 41996.64 | BF26: 61786.09 | BG26: 77696.29 | BH26: 108809.22 | BI26: 129238.93 | BJ26: 149284.72 | BK26: 181301.46 | BL26: 78336.79 | BM26: 75857.25 | BN26: 71691.71 | BO26: 68331.02 | BP26: 66274.17 | BQ26: 64812.25 | BR26: 63100.13 | BS26: 61475.65 | BT26: 60473.59 | BU26: 59403.74 | BV26: 58356.01 | BW26: 23403.04 | BX26: 23669.98 | BY26: 0 | BZ26: 30938.43 | CA26: 34616.64 | CB26: 43556.68 | CC26: 57676.02 | CD26: 79506.6 | CE26: 107524.83 | CF26: 147653.36 | CG26: 195705.29 | CH26: 251534.49 | CI26: 319774.62 | CJ26: 347832.75 | CK26: 374895.66 | CL26: 400450.57 | CM26: 424777.79 | CN26: 448313.87 | CO26: 471265.69 | CP26: 493567.27 | CQ26: 515258.69 | CR26: 536549.39 | CS26: 557426.56 | CT26: 577904.83 | CU26: 584423.04 | CV26: 591035.01
A27: 26 | B27: Stand Alone | C27: Ancillary Third Party | D27: 2023 | E27: 0 | F27: 1.473552952 | G27: 2.530003375 | H27: 3.158114495 | I27: 3.158168269 | J27: 3.159435852 | K27: 3.162207315 | L27: 3.166700822 | M27: 3.17484205 | N27: 3.184751111 | O27: 3.196737424 | P27: 3.211184791 | Q27: 3.228567985 | R27: 3.249472112 | S27: 3.274614675 | T27: 3.304869856 | U27: 3.34129401 | V27: 3.385150546 | W27: 3.437931405 | X27: 3.501371229 | Y27: 3.577449299 | Z27: 3.668373733 | AA27: 3.776542825 | AB27: 3.914327592 | AC27: 0 | AD27: 1.444401872 | AE27: 2.482057067 | AF27: 3.098358244 | AG27: 3.098605896 | AH27: 3.100065467 | AI27: 3.103027107 | AJ27: 3.107709052 | AK27: 3.116037049 | AL27: 3.126131276 | AM27: 3.138301216 | AN27: 3.152930732 | AO27: 3.170494653 | AP27: 3.191578141 | AQ27: 3.216898749 | AR27: 3.247330712 | AS27: 3.283930431 | AT27: 3.32796136 | AU27: 3.380915483 | AV27: 3.444527485 | AW27: 3.520776686 | AX27: 3.61187124 | AY27: 3.720209478 | AZ27: 3.858162452 | BA27: 0 | BB27: 0 | BC27: 0 | BD27: 0 | BE27: 0 | BF27: 0 | BG27: 0 | BH27: 0 | BI27: 0 | BJ27: 0 | BK27: 0 | BL27: 0 | BM27: 0 | BN27: 0 | BO27: 0 | BP27: 0 | BQ27: 0 | BR27: 0 | BS27: 0 | BT27: 0 | BU27: 0 | BV27: 0 | BW27: 0 | BX27: 0 | BY27: 0 | BZ27: 55484.21 | CA27: 95243.38 | CB27: 118889.03 | CC27: 118891.57 | CD27: 118939.72 | CE27: 119044.3 | CF27: 119213.56 | CG27: 119519.77 | CH27: 119892.34 | CI27: 120342.9 | CJ27: 120885.89 | CK27: 121539.07 | CL27: 122324.44 | CM27: 123268.9 | CN27: 124405.31 | CO27: 125773.27 | CP27: 127420.26 | CQ27: 129402.23 | CR27: 131784.33 | CS27: 134640.81 | CT27: 138054.59 | CU27: 142115.68 | CV27: 147288.44
C29: Winter
C30: Battery Energy Storage | E30: =IFERROR(E3/$AA3,0) -> 0 | F30: =IFERROR(F3/$AA3,0) -> 0.01435001465 | G30: 0.03288567395 | H30: 0.06640488686 | I30: 0.1005520434 | J30: 0.1353373228 | K30: 0.1879157165 | L30: 0.2415160638 | M30: 0.2961550178 | N30: 0.3694419097 | O30: 0.4441482547 | P30: 0.5202970016 | Q30: 0.6160299185 | R30: 0.7136103674 | S30: 0.8130680192 | T30: 0.9330948274 | U30: 0.9423477345 | V30: 0.9517006262 | W30: 0.9611544915 | X30: 0.9707103347 | Y30: 0.980369175 | Z30: 0.990132047 | AA30: 1
C31: Behavioral | E31: =IFERROR(E4/$AA4,0) -> 0 | F31: 0.3207152763 | G31: 0.5815881163 | H31: 0.7327650641 | I31: 0.7395231771 | J31: 0.7468370577 | K31: 0.7548836505 | L31: 0.7637431902 | M31: 0.7750736641 | N31: 0.7868915593 | O31: 0.7992265995 | P31: 0.8121097789 | Q31: 0.8255733347 | R31: 0.8396507084 | S31: 0.8543764972 | T31: 0.8697863924 | U31: 0.8859171073 | V31: 0.9028062936 | W31: 0.9204924464 | X31: 0.939014799 | Y31: 0.9584132086 | Z31: 0.9787280329 | AA31: 1
C32: DLC Central AC | E32: =IFERROR(E5/$AA5,0) -> 0 | F32: 0 | G32: 0 | H32: 0 | I32: 0 | J32: 0 | K32: 0 | L32: 0 | M32: 0 | N32: 0 | O32: 0 | P32: 0 | Q32: 0 | R32: 0 | S32: 0 | T32: 0 | U32: 0 | V32: 0 | W32: 0 | X32: 0 | Y32: 0 | Z32: 0 | AA32: 0
C33: DLC Electric Vehicle Charging | E33: =IFERROR(E6/$AA6,0) -> 0 | F33: 0.001443451818 | G33: 0.005574871877 | H33: 0.01705051862 | I33: 0.02920488611 | J33: 0.04375701021 | K33: 0.05938514076 | L33: 0.0798345291 | M33: 0.115484743 | N33: 0.153913568 | O33: 0.1953049357 | P33: 0.2398507138 | Q33: 0.2877505347 | R33: 0.3392115552 | S33: 0.3944481478 | T33: 0.4536815187 | U33: 0.5171392546 | V33: 0.5850547982 | W33: 0.6576668544 | X33: 0.7352187321 | Y33: 0.8179576258 | Z33: 0.9061338452 | AA33: 1
C34: DLC Smart Appliances | E34: =IFERROR(E7/$AA7,0) -> 0 | F34: 0.08051882921 | G34: 0.2442964153 | H34: 0.5758270908 | I34: 0.7477660027 | J34: 0.8391465489 | K34: 0.8478333278 | L34: 0.8566118643 | M34: 0.8654831474 | N34: 0.874448177 | O34: 0.8835079638 | P34: 0.8926635301 | Q34: 0.9019159089 | R34: 0.9112661449 | S34: 0.9207152942 | T34: 0.9302644246 | U34: 0.9399146156 | V34: 0.9496669585 | W34: 0.9595225567 | X34: 0.9694825259 | Y34: 0.9795479939 | Z34: 0.989720101 | AA34: 1
C35: DLC Smart Thermostats - Cooling | E35: =IFERROR(E8/$AA8,0) -> 0 | F35: 0 | G35: 0 | H35: 0 | I35: 0 | J35: 0 | K35: 0 | L35: 0 | M35: 0 | N35: 0 | O35: 0 | P35: 0 | Q35: 0 | R35: 0 | S35: 0 | T35: 0 | U35: 0 | V35: 0 | W35: 0 | X35: 0 | Y35: 0 | Z35: 0 | AA35: 0
C36: DLC Smart Thermostats - Heating | E36: =IFERROR(E9/$AA9,0) -> 0 | F36: 0 | G36: 0.08142173718 | H36: 0.2467475855 | I36: 0.5815047783 | J36: 0.755104564 | K36: 0.8476983849 | L36: 0.8564836564 | M36: 0.865361879 | N36: 0.874334057 | O36: 0.8834012058 | P36: 0.8925643521 | Q36: 0.9018245337 | R36: 0.9111828001 | S36: 0.9206402122 | T36: 0.9301978428 | U36: 0.9398567763 | V36: 0.9496181092 | W36: 0.9594829503 | X36: 0.9694524204 | Y36: 0.9795276527 | Z36: 0.9897097931 | AA36: 1
C37: DLC Water Heating | E37: =IFERROR(E10/$AA10,0) -> 0 | F37: 0.0828794918 | G37: 0.2509096056 | H37: 0.5904582729 | I37: 0.7658569611 | J37: 0.8583853767 | K37: 0.8659429855 | L37: 0.8735684601 | M37: 0.8812624232 | N37: 0.8890255032 | O37: 0.8968583348 | P37: 0.9047615581 | Q37: 0.9127358198 | R37: 0.9207817722 | S37: 0.9289000739 | T37: 0.9370913899 | U37: 0.9453563912 | V37: 0.9536957552 | W37: 0.9621101657 | X37: 0.9706003128 | Y37: 0.9791668934 | Z37: 0.9878106107 | AA37: 1
C38: CTA-2045 ERWH | E38: =IFERROR(E11/$AA11,0) -> 0 | F38: 0.00608519531 | G38: 0.01846558271 | H38: 0.04557698944 | I38: 0.08483092948 | J38: 0.1434929858 | K38: 0.2180716938 | L38: 0.3240592187 | M38: 0.4507129801 | N38: 0.5979001337 | O38: 0.7618282117 | P38: 0.8224314329 | Q38: 0.873738972 | R38: 0.9123547289 | S38: 0.9413373858 | T38: 0.9622639057 | U38: 0.9766591741 | V38: 0.9863293482 | W38: 0.9923991073 | X38: 0.9952262207 | Y38: 0.9956145641 | Z38: 0.9941346949 | AA38: 1
C39: CTA-2045 HPWH | E39: =IFERROR(E12/$AA12,0) -> 0 | F39: 0.001600968102 | G39: 0.007965493559 | H39: 0.02366344509 | I39: 0.04858569355 | J39: 0.08730004331 | K39: 0.1371953415 | L39: 0.2088770036 | M39: 0.2950849715 | N39: 0.395524812 | O39: 0.518778802 | P39: 0.5707381073 | Q39: 0.6211933214 | R39: 0.6678569016 | S39: 0.7115469453 | T39: 0.7537235879 | U39: 0.7949939816 | V39: 0.8349407141 | W39: 0.8735791411 | X39: 0.9115981143 | Y39: 0.9488457842 | Z39: 0.985290822 | AA39: 1
C40: Thermal Energy Storage | E40: =IFERROR(E13/$AA13,0) -> 0 | F40: 0 | G40: 0 | H40: 0 | I40: 0 | J40: 0 | K40: 0 | L40: 0 | M40: 0 | N40: 0 | O40: 0 | P40: 0 | Q40: 0 | R40: 0 | S40: 0 | T40: 0 | U40: 0 | V40: 0 | W40: 0 | X40: 0 | Y40: 0 | Z40: 0 | AA40: 0
C41: Third Party Contracts | E41: =IFERROR(E14/$AA14,0) -> 0 | F41: 0.3863775715 | G41: 0.6720052209 | H41: 0.8387524423 | I41: 0.838537282 | J41: 0.8386522907 | K41: 0.8391752404 | L41: 0.8401642633 | M41: 0.8421400732 | N41: 0.8445917488 | O41: 0.8476014104 | P41: 0.8512709535 | Q41: 0.8557264526 | R41: 0.8611233042 | S41: 0.8676520845 | T41: 0.8755449994 | U41: 0.8850826528 | V41: 0.8966006543 | W41: 0.9104953232 | X41: 0.9272274502 | Y41: 0.9473228106 | Z41: 0.9713679671 | AA41: 1
C42: Time-of-Use Opt-in | E42: =IFERROR(E15/$AA15,0) -> 0 | F42: 0.06742979407 | G42: 0.2263577559 | H42: 0.5310579909 | I42: 0.6874468663 | J42: 0.7694963793 | K42: 0.7758035854 | L42: 0.782825003 | M42: 0.7919120136 | N42: 0.8014755004 | O42: 0.8115575823 | P42: 0.8222061574 | Q42: 0.8334759617 | R42: 0.8454298004 | S42: 0.8581399467 | T42: 0.8716896771 | U42: 0.8861748755 | V42: 0.9017055906 | W42: 0.9184073629 | X42: 0.9364220687 | Y42: 0.9559079614 | Z42: 0.9770385524 | AA42: 1
C43: Time-of-Use Opt-out | E43: =IFERROR(E16/$AA16,0) -> 0 | F43: 0.9321269257 | G43: 0.8857292265 | H43: 0.8218869078 | I43: 0.7920376272 | J43: 0.7801657792 | K43: 0.7856539752 | L43: 0.7918098921 | M43: 0.7998405424 | N43: 0.8083425153 | O43: 0.8173637661 | P43: 0.8269601523 | Q43: 0.8371970037 | R43: 0.8481509517 | S43: 0.8599120098 | T43: 0.8725858604 | U43: 0.8862962486 | V43: 0.9011873121 | W43: 0.9174255775 | X43: 0.935201252 | Y43: 0.9547283371 | Z43: 0.9762430413 | AA43: 1
C44: Electric Vehicle TOU Opt-in | E44: =IFERROR(E17/$AA17,0) -> 0.005572668706 | F44: 0.01095992948 | G44: 0.0171548567 | H44: 0.02189362882 | I44: 0.02843599986 | J44: 0.03745671995 | K44: 0.04978876664 | L44: 0.06586889856 | M44: 0.09294281227 | N44: 0.1226287671 | O44: 0.1552403006 | P44: 0.191144004 | Q44: 0.2307702943 | R44: 0.274625969 | S44: 0.3233084836 | T44: 0.3775216451 | U44: 0.4380920515 | V44: 0.5059850922 | W44: 0.5823186792 | X44: 0.668372155 | Y44: 0.7655871523 | Z44: 0.8755568116 | AA44: 1
C45: Variable Peak Pricing Rates | E45: =IFERROR(E18/$AA18,0) -> 0 | F45: 0.0809872035 | G45: 0.2617344055 | H45: 0.6088992087 | I45: 0.7818918617 | J45: 0.8678911432 | K45: 0.8672555957 | L45: 0.8669040987 | M45: 0.8668907306 | N45: 0.867284634 | O45: 0.8681736719 | P45: 0.8696688451 | Q45: 0.8719095519 | R45: 0.8750697319 | S45: 0.8793648662 | T45: 0.8850596873 | U45: 0.8924762727 | V45: 0.9020019507 | W45: 0.9140961322 | X45: 0.9292948322 | Y45: 0.9482113196 | Z45: 0.9715311565 | AA45: 1
C46: Peak Time Rebate | E46: =IFERROR(E19/$AA19,0) -> 0 | F46: 0.06322139498 | G46: 0.215416567 | H46: 0.5067164321 | I46: 0.6573183791 | J46: 0.7374385017 | K46: 0.7453311555 | L46: 0.7541206963 | M46: 0.7656468877 | N46: 0.7777086322 | O46: 0.7903388585 | P46: 0.8035719052 | Q46: 0.8174434891 | R46: 0.831990664 | S46: 0.847251765 | T46: 0.8632663413 | U46: 0.8800750757 | V46: 0.8977196919 | W46: 0.9162428491 | X46: 0.9356880256 | Y46: 0.9560993911 | Z46: 0.9775216706 | AA46: 1
C48: Summer
C49: Battery Energy Storage | E49: =IFERROR(AC3/$AY3,0) -> 0 | F49: =IFERROR(AD3/$AY3,0) -> 0.01435001465 | G49: 0.03288567395 | H49: 0.06640488686 | I49: 0.1005520434 | J49: 0.1353373228 | K49: 0.1879157165 | L49: 0.2415160638 | M49: 0.2961550178 | N49: 0.3694419097 | O49: 0.4441482547 | P49: 0.5202970016 | Q49: 0.6160299185 | R49: 0.7136103674 | S49: 0.8130680192 | T49: 0.9330948274 | U49: 0.9423477345 | V49: 0.9517006262 | W49: 0.9611544915 | X49: 0.9707103347 | Y49: 0.980369175 | Z49: 0.990132047 | AA49: 1
C50: Behavioral | E50: =IFERROR(AC4/$AY4,0) -> 0 | F50: 0.3247446925 | G50: 0.5875251633 | H50: 0.7401701662 | I50: 0.7469040891 | J50: 0.7541666857 | K50: 0.7621254995 | L50: 0.7708565127 | M50: 0.7819294631 | N50: 0.793466457 | O50: 0.8054956553 | P50: 0.8180464221 | Q50: 0.8311492982 | R50: 0.8448359652 | S50: 0.8591391986 | T50: 0.87409281 | U50: 0.889731579 | V50: 0.9060911735 | W50: 0.9232080601 | X50: 0.9411194049 | Y50: 0.9598629642 | Z50: 0.9794769687 | AA50: 1
C51: DLC Central AC | E51: =IFERROR(AC5/$AY5,0) -> 0 | F51: 0.06234013808 | G51: 0.1913523846 | H51: 0.4563646832 | I51: 0.5997140992 | J51: 0.6811271634 | K51: 0.6965676625 | L51: 0.7124480418 | M51: 0.7287822631 | N51: 0.7455847506 | O51: 0.7628704062 | P51: 0.7806546257 | Q51: 0.7989533158 | R51: 0.8177829107 | S51: 0.8371603903 | T51: 0.8571032985 | U51: 0.8776297622 | V51: 0.8987585108 | W51: 0.9205088968 | X51: 0.9429009165 | Y51: 0.9659552321 | Z51: 0.9896931937 | AA51: 1
C52: DLC Electric Vehicle Charging | E52: =IFERROR(AC6/$AY6,0) -> 0 | F52: 0.001443451818 | G52: 0.005574871877 | H52: 0.01705051862 | I52: 0.02920488611 | J52: 0.04375701021 | K52: 0.05938514076 | L52: 0.0798345291 | M52: 0.115484743 | N52: 0.153913568 | O52: 0.1953049357 | P52: 0.2398507138 | Q52: 0.2877505347 | R52: 0.3392115552 | S52: 0.3944481478 | T52: 0.4536815187 | U52: 0.5171392546 | V52: 0.5850547982 | W52: 0.6576668544 | X52: 0.7352187321 | Y52: 0.8179576258 | Z52: 0.9061338452 | AA52: 1
C53: DLC Smart Appliances | E53: =IFERROR(AC7/$AY7,0) -> 0 | F53: 0.08051882921 | G53: 0.2442964153 | H53: 0.5758270908 | I53: 0.7477660027 | J53: 0.8391465489 | K53: 0.8478333278 | L53: 0.8566118643 | M53: 0.8654831474 | N53: 0.874448177 | O53: 0.8835079638 | P53: 0.8926635301 | Q53: 0.9019159089 | R53: 0.9112661449 | S53: 0.9207152942 | T53: 0.9302644246 | U53: 0.9399146156 | V53: 0.9496669585 | W53: 0.9595225567 | X53: 0.9694825259 | Y53: 0.9795479939 | Z53: 0.989720101 | AA53: 1
C54: DLC Smart Thermostats - Cooling | E54: =IFERROR(AC8/$AY8,0) -> 0 | F54: 0.06234013808 | G54: 0.1913523846 | H54: 0.4563646832 | I54: 0.5997140992 | J54: 0.6811271634 | K54: 0.6965676625 | L54: 0.7124480418 | M54: 0.7287822631 | N54: 0.7455847506 | O54: 0.7628704062 | P54: 0.7806546257 | Q54: 0.7989533158 | R54: 0.8177829107 | S54: 0.8371603903 | T54: 0.8571032985 | U54: 0.8776297622 | V54: 0.8987585108 | W54: 0.9205088968 | X54: 0.9429009165 | Y54: 0.9659552321 | Z54: 0.9896931937 | AA54: 1
C55: DLC Smart Thermostats - Heating | E55: =IFERROR(AC9/$AY9,0) -> 0 | F55: 0 | G55: 0 | H55: 0 | I55: 0 | J55: 0 | K55: 0 | L55: 0 | M55: 0 | N55: 0 | O55: 0 | P55: 0 | Q55: 0 | R55: 0 | S55: 0 | T55: 0 | U55: 0 | V55: 0 | W55: 0 | X55: 0 | Y55: 0 | Z55: 0 | AA55: 0
C56: DLC Water Heating | E56: =IFERROR(AC10/$AY10,0) -> 0 | F56: 0.0828794918 | G56: 0.2509096056 | H56: 0.5904582729 | I56: 0.7658569611 | J56: 0.8583853767 | K56: 0.8659429855 | L56: 0.8735684601 | M56: 0.8812624232 | N56: 0.8890255032 | O56: 0.8968583348 | P56: 0.9047615581 | Q56: 0.9127358198 | R56: 0.9207817722 | S56: 0.9289000739 | T56: 0.9370913899 | U56: 0.9453563912 | V56: 0.9536957552 | W56: 0.9621101657 | X56: 0.9706003128 | Y56: 0.9791668934 | Z56: 0.9878106107 | AA56: 1
C57: CTA-2045 ERWH | E57: =IFERROR(AC11/$AY11,0) -> 0 | F57: 0.00608519531 | G57: 0.01846558271 | H57: 0.04557698944 | I57: 0.08483092948 | J57: 0.1434929858 | K57: 0.2180716938 | L57: 0.3240592187 | M57: 0.4507129801 | N57: 0.5979001337 | O57: 0.7618282117 | P57: 0.8224314329 | Q57: 0.873738972 | R57: 0.9123547289 | S57: 0.9413373858 | T57: 0.9622639057 | U57: 0.9766591741 | V57: 0.9863293482 | W57: 0.9923991073 | X57: 0.9952262207 | Y57: 0.9956145641 | Z57: 0.9941346949 | AA57: 1
C58: CTA-2045 HPWH | E58: =IFERROR(AC12/$AY12,0) -> 0 | F58: 0.001600968102 | G58: 0.007965493559 | H58: 0.02366344509 | I58: 0.04858569355 | J58: 0.08730004331 | K58: 0.1371953415 | L58: 0.2088770036 | M58: 0.2950849715 | N58: 0.395524812 | O58: 0.518778802 | P58: 0.5707381073 | Q58: 0.6211933214 | R58: 0.6678569016 | S58: 0.7115469453 | T58: 0.7537235879 | U58: 0.7949939816 | V58: 0.8349407141 | W58: 0.8735791411 | X58: 0.9115981143 | Y58: 0.9488457842 | Z58: 0.985290822 | AA58: 1
C59: Thermal Energy Storage | E59: =IFERROR(AC13/$AY13,0) -> 0 | F59: 0.07850373176 | G59: 0.2707908706 | H59: 0.6348161268 | I59: 0.8199950759 | J59: 0.9153535631 | K59: 0.9196860637 | L59: 0.9241022667 | M59: 0.9286013728 | N59: 0.9331826548 | O59: 0.9378454544 | P59: 0.9425891796 | Q59: 0.9474133012 | R59: 0.9523173504 | S59: 0.9573009165 | T59: 0.9623636438 | U59: 0.9675052299 | V59: 0.9727254232 | W59: 0.9780240209 | X59: 0.9834008671 | Y59: 0.9888558506 | Z59: 0.9943889037 | AA59: 1
C60: Third Party Contracts | E60: =IFERROR(AC14/$AY14,0) -> 0 | F60: 0.3844554666 | G60: 0.6693129662 | H60: 0.8354168065 | I60: 0.8352513038 | J60: 0.8354203025 | K60: 0.8360027646 | L60: 0.8370577171 | M60: 0.8391136969 | N60: 0.8416521509 | O60: 0.8447564503 | P60: 0.8485300367 | Q60: 0.8531008921 | R60: 0.8586267585 | S60: 0.8653010844 | T60: 0.87335957 | U60: 0.8830870383 | V60: 0.8948241412 | W60: 0.9089731487 | X60: 0.9260017679 | Y60: 0.9464436629 | Z60: 0.9708941951 | AA60: 1
C61: Time-of-Use Opt-in | E61: =IFERROR(AC15/$AY15,0) -> 0 | F61: 0.06779547952 | G61: 0.2274333886 | H61: 0.5336280321 | I61: 0.6908246966 | J61: 0.7733139503 | K61: 0.7796625503 | L61: 0.7866994913 | M61: 0.7957236284 | N61: 0.8052076564 | O61: 0.815192077 | P61: 0.8257229462 | Q61: 0.8368528918 | R61: 0.8486422975 | S61: 0.8611606463 | T61: 0.8744879967 | U61: 0.8887165246 | V61: 0.9039520196 | W61: 0.9203151608 | X61: 0.937942328 | Y61: 0.9569856412 | Z61: 0.9776118853 | AA61: 1
C62: Time-of-Use Opt-out | E62: =IFERROR(AC16/$AY16,0) -> 0 | F62: 0.9346744849 | G62: 0.8880719471 | H62: 0.8241769252 | I62: 0.7943502487 | J62: 0.7825321667 | K62: 0.788105549 | L62: 0.7943268996 | M62: 0.8023646606 | N62: 0.8108603133 | O62: 0.8198603006 | P62: 0.8294187148 | Q62: 0.8395988172 | R62: 0.8504748096 | S62: 0.8621338475 | T62: 0.8746782545 | U62: 0.888227839 | V62: 0.9029221501 | W62: 0.9189224097 | X62: 0.9364127632 | Y62: 0.9556003893 | Z62: 0.9767139638 | AA62: 1
C63: Electric Vehicle TOU Opt-in | E63: =IFERROR(AC17/$AY17,0) -> 0.005572668706 | F63: 0.01095992948 | G63: 0.0171548567 | H63: 0.02189362882 | I63: 0.02843599986 | J63: 0.03745671995 | K63: 0.04978876664 | L63: 0.06586889856 | M63: 0.09294281227 | N63: 0.1226287671 | O63: 0.1552403006 | P63: 0.191144004 | Q63: 0.2307702943 | R63: 0.274625969 | S63: 0.3233084836 | T63: 0.3775216451 | U63: 0.4380920515 | V63: 0.5059850922 | W63: 0.5823186792 | X63: 0.668372155 | Y63: 0.7655871523 | Z63: 0.8755568116 | AA63: 1
C64: Variable Peak Pricing Rates | E64: =IFERROR(AC18/$AY18,0) -> 0 | F64: 0.08058044257 | G64: 0.2606823365 | H64: 0.6064488638 | I64: 0.7787775898 | J64: 0.8644742188 | K64: 0.8638858762 | L64: 0.8635862317 | M64: 0.8636304105 | N64: 0.8640888848 | O64: 0.865051199 | P64: 0.8666304708 | Q64: 0.8689687496 | R64: 0.8722432765 | S64: 0.8766736169 | T64: 0.8825295152 | U64: 0.8901391418 | V64: 0.8998971473 | W64: 0.9122716241 | X64: 0.9278087121 | Y64: 0.9471332619 | Z64: 0.9709437798 | AA64: 1
C65: Peak Time Rebate | E65: =IFERROR(AC19/$AY19,0) -> 0 | F65: 0.06397844873 | G65: 0.2175084645 | H65: 0.5115865681 | I65: 0.6635730721 | J65: 0.7443539097 | K65: 0.7521765194 | L65: 0.7608560522 | M65: 0.7721457101 | N65: 0.7839479963 | O65: 0.7962943075 | P65: 0.8092173838 | Q65: 0.8227512793 | R65: 0.8369313216 | S65: 0.8517940599 | T65: 0.8673772005 | U65: 0.88371953 | V65: 0.9008608271 | W65: 0.9188417621 | X65: 0.9377037859 | Y65: 0.9574890087 | Z65: 0.9782400698 | AA65: 1
C67: Max
C68: Battery Energy Storage | E68: =MAX(E30,E49) -> 0 | F68: =MAX(F30,F49) -> 0.01435001465 | G68: 0.03288567395 | H68: 0.06640488686 | I68: 0.1005520434 | J68: 0.1353373228 | K68: 0.1879157165 | L68: 0.2415160638 | M68: 0.2961550178 | N68: 0.3694419097 | O68: 0.4441482547 | P68: 0.5202970016 | Q68: 0.6160299185 | R68: 0.7136103674 | S68: 0.8130680192 | T68: 0.9330948274 | U68: 0.9423477345 | V68: 0.9517006262 | W68: 0.9611544915 | X68: 0.9707103347 | Y68: 0.980369175 | Z68: 0.990132047 | AA68: 1
C69: Behavioral | E69: =MAX(E31,E50) -> 0 | F69: 0.3247446925 | G69: 0.5875251633 | H69: 0.7401701662 | I69: 0.7469040891 | J69: 0.7541666857 | K69: 0.7621254995 | L69: 0.7708565127 | M69: 0.7819294631 | N69: 0.793466457 | O69: 0.8054956553 | P69: 0.8180464221 | Q69: 0.8311492982 | R69: 0.8448359652 | S69: 0.8591391986 | T69: 0.87409281 | U69: 0.889731579 | V69: 0.9060911735 | W69: 0.9232080601 | X69: 0.9411194049 | Y69: 0.9598629642 | Z69: 0.9794769687 | AA69: 1
C70: DLC Central AC | E70: 0 | F70: 0.06234013808 | G70: 0.1913523846 | H70: 0.4563646832 | I70: 0.5997140992 | J70: 0.6811271634 | K70: 0.6965676625 | L70: 0.7124480418 | M70: 0.7287822631 | N70: 0.7455847506 | O70: 0.7628704062 | P70: 0.7806546257 | Q70: 0.7989533158 | R70: 0.8177829107 | S70: 0.8371603903 | T70: 0.8571032985 | U70: 0.8776297622 | V70: 0.8987585108 | W70: 0.9205088968 | X70: 0.9429009165 | Y70: 0.9659552321 | Z70: 0.9896931937 | AA70: 1
C71: DLC Electric Vehicle Charging | E71: 0 | F71: 0.001443451818 | G71: 0.005574871877 | H71: 0.01705051862 | I71: 0.02920488611 | J71: 0.04375701021 | K71: 0.05938514076 | L71: 0.0798345291 | M71: 0.115484743 | N71: 0.153913568 | O71: 0.1953049357 | P71: 0.2398507138 | Q71: 0.2877505347 | R71: 0.3392115552 | S71: 0.3944481478 | T71: 0.4536815187 | U71: 0.5171392546 | V71: 0.5850547982 | W71: 0.6576668544 | X71: 0.7352187321 | Y71: 0.8179576258 | Z71: 0.9061338452 | AA71: 1
C72: DLC Smart Appliances | E72: 0 | F72: 0.08051882921 | G72: 0.2442964153 | H72: 0.5758270908 | I72: 0.7477660027 | J72: 0.8391465489 | K72: 0.8478333278 | L72: 0.8566118643 | M72: 0.8654831474 | N72: 0.874448177 | O72: 0.8835079638 | P72: 0.8926635301 | Q72: 0.9019159089 | R72: 0.9112661449 | S72: 0.9207152942 | T72: 0.9302644246 | U72: 0.9399146156 | V72: 0.9496669585 | W72: 0.9595225567 | X72: 0.9694825259 | Y72: 0.9795479939 | Z72: 0.989720101 | AA72: 1
C73: DLC Smart Thermostats - Cooling | E73: 0 | F73: 0.06234013808 | G73: 0.1913523846 | H73: 0.4563646832 | I73: 0.5997140992 | J73: 0.6811271634 | K73: 0.6965676625 | L73: 0.7124480418 | M73: 0.7287822631 | N73: 0.7455847506 | O73: 0.7628704062 | P73: 0.7806546257 | Q73: 0.7989533158 | R73: 0.8177829107 | S73: 0.8371603903 | T73: 0.8571032985 | U73: 0.8776297622 | V73: 0.8987585108 | W73: 0.9205088968 | X73: 0.9429009165 | Y73: 0.9659552321 | Z73: 0.9896931937 | AA73: 1
C74: DLC Smart Thermostats - Heating | E74: 0 | F74: 0 | G74: 0.08142173718 | H74: 0.2467475855 | I74: 0.5815047783 | J74: 0.755104564 | K74: 0.8476983849 | L74: 0.8564836564 | M74: 0.865361879 | N74: 0.874334057 | O74: 0.8834012058 | P74: 0.8925643521 | Q74: 0.9018245337 | R74: 0.9111828001 | S74: 0.9206402122 | T74: 0.9301978428 | U74: 0.9398567763 | V74: 0.9496181092 | W74: 0.9594829503 | X74: 0.9694524204 | Y74: 0.9795276527 | Z74: 0.9897097931 | AA74: 1
C75: DLC Water Heating | E75: 0 | F75: 0.0828794918 | G75: 0.2509096056 | H75: 0.5904582729 | I75: 0.7658569611 | J75: 0.8583853767 | K75: 0.8659429855 | L75: 0.8735684601 | M75: 0.8812624232 | N75: 0.8890255032 | O75: 0.8968583348 | P75: 0.9047615581 | Q75: 0.9127358198 | R75: 0.9207817722 | S75: 0.9289000739 | T75: 0.9370913899 | U75: 0.9453563912 | V75: 0.9536957552 | W75: 0.9621101657 | X75: 0.9706003128 | Y75: 0.9791668934 | Z75: 0.9878106107 | AA75: 1
C76: CTA-2045 ERWH | E76: 0 | F76: 0.00608519531 | G76: 0.01846558271 | H76: 0.04557698944 | I76: 0.08483092948 | J76: 0.1434929858 | K76: 0.2180716938 | L76: 0.3240592187 | M76: 0.4507129801 | N76: 0.5979001337 | O76: 0.7618282117 | P76: 0.8224314329 | Q76: 0.873738972 | R76: 0.9123547289 | S76: 0.9413373858 | T76: 0.9622639057 | U76: 0.9766591741 | V76: 0.9863293482 | W76: 0.9923991073 | X76: 0.9952262207 | Y76: 0.9956145641 | Z76: 0.9941346949 | AA76: 1
C77: CTA-2045 HPWH | E77: 0 | F77: 0.001600968102 | G77: 0.007965493559 | H77: 0.02366344509 | I77: 0.04858569355 | J77: 0.08730004331 | K77: 0.1371953415 | L77: 0.2088770036 | M77: 0.2950849715 | N77: 0.395524812 | O77: 0.518778802 | P77: 0.5707381073 | Q77: 0.6211933214 | R77: 0.6678569016 | S77: 0.7115469453 | T77: 0.7537235879 | U77: 0.7949939816 | V77: 0.8349407141 | W77: 0.8735791411 | X77: 0.9115981143 | Y77: 0.9488457842 | Z77: 0.985290822 | AA77: 1
C78: Thermal Energy Storage | E78: 0 | F78: 0.07850373176 | G78: 0.2707908706 | H78: 0.6348161268 | I78: 0.8199950759 | J78: 0.9153535631 | K78: 0.9196860637 | L78: 0.9241022667 | M78: 0.9286013728 | N78: 0.9331826548 | O78: 0.9378454544 | P78: 0.9425891796 | Q78: 0.9474133012 | R78: 0.9523173504 | S78: 0.9573009165 | T78: 0.9623636438 | U78: 0.9675052299 | V78: 0.9727254232 | W78: 0.9780240209 | X78: 0.9834008671 | Y78: 0.9888558506 | Z78: 0.9943889037 | AA78: 1
C79: Third Party Contracts | E79: 0 | F79: 0.3863775715 | G79: 0.6720052209 | H79: 0.8387524423 | I79: 0.838537282 | J79: 0.8386522907 | K79: 0.8391752404 | L79: 0.8401642633 | M79: 0.8421400732 | N79: 0.8445917488 | O79: 0.8476014104 | P79: 0.8512709535 | Q79: 0.8557264526 | R79: 0.8611233042 | S79: 0.8676520845 | T79: 0.8755449994 | U79: 0.8850826528 | V79: 0.8966006543 | W79: 0.9104953232 | X79: 0.9272274502 | Y79: 0.9473228106 | Z79: 0.9713679671 | AA79: 1
C80: Time-of-Use Opt-in | E80: 0 | F80: 0.06779547952 | G80: 0.2274333886 | H80: 0.5336280321 | I80: 0.6908246966 | J80: 0.7733139503 | K80: 0.7796625503 | L80: =MAX(L42,L61) -> 0.7866994913 | M80: 0.7957236284 | N80: 0.8052076564 | O80: 0.815192077 | P80: 0.8257229462 | Q80: 0.8368528918 | R80: 0.8486422975 | S80: 0.8611606463 | T80: 0.8744879967 | U80: 0.8887165246 | V80: 0.9039520196 | W80: 0.9203151608 | X80: 0.937942328 | Y80: 0.9569856412 | Z80: 0.9776118853 | AA80: 1
C81: Time-of-Use Opt-out | E81: 0 | F81: 0.9346744849 | G81: 0.8880719471 | H81: 0.8241769252 | I81: 0.7943502487 | J81: 0.7825321667 | K81: 0.788105549 | L81: 0.7943268996 | M81: 0.8023646606 | N81: 0.8108603133 | O81: 0.8198603006 | P81: 0.8294187148 | Q81: 0.8395988172 | R81: 0.8504748096 | S81: 0.8621338475 | T81: 0.8746782545 | U81: 0.888227839 | V81: 0.9029221501 | W81: 0.9189224097 | X81: 0.9364127632 | Y81: 0.9556003893 | Z81: 0.9767139638 | AA81: 1
C82: Electric Vehicle TOU Opt-in | E82: 0.005572668706 | F82: 0.01095992948 | G82: 0.0171548567 | H82: 0.02189362882 | I82: 0.02843599986 | J82: 0.03745671995 | K82: 0.04978876664 | L82: 0.06586889856 | M82: 0.09294281227 | N82: 0.1226287671 | O82: 0.1552403006 | P82: 0.191144004 | Q82: 0.2307702943 | R82: 0.274625969 | S82: 0.3233084836 | T82: 0.3775216451 | U82: 0.4380920515 | V82: 0.5059850922 | W82: 0.5823186792 | X82: 0.668372155 | Y82: 0.7655871523 | Z82: 0.8755568116 | AA82: 1
C83: Variable Peak Pricing Rates | E83: 0 | F83: 0.0809872035 | G83: 0.2617344055 | H83: 0.6088992087 | I83: 0.7818918617 | J83: 0.8678911432 | K83: 0.8672555957 | L83: 0.8669040987 | M83: 0.8668907306 | N83: 0.867284634 | O83: 0.8681736719 | P83: 0.8696688451 | Q83: 0.8719095519 | R83: 0.8750697319 | S83: 0.8793648662 | T83: 0.8850596873 | U83: 0.8924762727 | V83: 0.9020019507 | W83: 0.9140961322 | X83: 0.9292948322 | Y83: 0.9482113196 | Z83: 0.9715311565 | AA83: 1
C84: Peak Time Rebate | E84: 0 | F84: 0.06397844873 | G84: 0.2175084645 | H84: 0.5115865681 | I84: 0.6635730721 | J84: 0.7443539097 | K84: 0.7521765194 | L84: 0.7608560522 | M84: 0.7721457101 | N84: 0.7839479963 | O84: 0.7962943075 | P84: 0.8092173838 | Q84: 0.8227512793 | R84: 0.8369313216 | S84: 0.8517940599 | T84: 0.8673772005 | U84: 0.88371953 | V84: 0.9008608271 | W84: 0.9188417621 | X84: 0.9377037859 | Y84: 0.9574890087 | Z84: 0.9782400698 | AA84: 1

Sheet LC
C2: 2 | D2: 3 | E2: 4 | F2: 5 | G2: 6 | H2: 7 | I2: 8 | J2: 9 | K2: 10 | L2: 11 | M2: 12 | N2: 13 | O2: 14 | P2: 15 | Q2: 16 | R2: 17 | S2: 18 | T2: 19 | U2: 20 | V2: 21 | W2: 22 | X2: 23 | Y2: 24
A3: Revenue Requirement | B3: Levelization | C3: 2023 | D3: 2024 | E3: 2025 | F3: 2026 | G3: 2027 | H3: 2028 | I3: 2029 | J3: 2030 | K3: 2031 | L3: 2032 | M3: 2033 | N3: 2034 | O3: 2035 | P3: 2036 | Q3: 2037 | R3: 2038 | S3: 2039 | T3: 2040 | U3: 2041 | V3: 2042 | W3: 2043 | X3: 2044 | Y3: 2045
A4: Battery Energy Storage | B4: =-PMT(0.06804,24,NPV(0.06804,LC!C4:Y4)) -> 1162662.531 | C4: =VLOOKUP(C3,'Battery Energy Storage'!$A$28:$S$65,19,FALSE) -> 0 | D4: =VLOOKUP(D3,'Battery Energy Storage'!$A$28:$S$65,19,FALSE) -> 122409.4688 | E4: =VLOOKUP(E3,'Battery Energy Storage'!$A$28:$S$65,19,FALSE) -> 194215.2893 | F4: =VLOOKUP(F3,'Battery Energy Storage'!$A$28:$S$65,19,FALSE) -> 322593.6102 | G4: =VLOOKUP(G3,'Battery Energy Storage'!$A$28:$S$65,19,FALSE) -> 448254.7053 | H4: =VLOOKUP(H3,'Battery Energy Storage'!$A$28:$S$65,19,FALSE) -> 571440.884 | I4: =VLOOKUP(I3,'Battery Energy Storage'!$A$28:$S$65,19,FALSE) -> 765801.4555 | J4: =VLOOKUP(J3,'Battery Energy Storage'!$A$28:$S$65,19,FALSE) -> 957122.1483 | K4: =VLOOKUP(K3,'Battery Energy Storage'!$A$28:$S$65,19,FALSE) -> 1145668.262 | L4: =VLOOKUP(L3,'Battery Energy Storage'!$A$28:$S$65,19,FALSE) -> 1412393.715 | M4: =VLOOKUP(M3,'Battery Energy Storage'!$A$28:$S$65,19,FALSE) -> 1675674.172 | N4: =VLOOKUP(N3,'Battery Energy Storage'!$A$28:$S$65,19,FALSE) -> 1907529.116 | O4: =VLOOKUP(O3,'Battery Energy Storage'!$A$28:$S$65,19,FALSE) -> 2218553.492 | P4: =VLOOKUP(P3,'Battery Energy Storage'!$A$28:$S$65,19,FALSE) -> 2497941.229 | Q4: =VLOOKUP(Q3,'Battery Energy Storage'!$A$28:$S$65,19,FALSE) -> 2776130.199 | R4: =VLOOKUP(R3,'Battery Energy Storage'!$A$28:$S$65,19,FALSE) -> 3151064.021 | S4: =VLOOKUP(S3,'Battery Energy Storage'!$A$28:$S$65,19,FALSE) -> 2888644.358 | T4: =VLOOKUP(T3,'Battery Energy Storage'!$A$28:$S$65,19,FALSE) -> 2640053.8 | U4: =VLOOKUP(U3,'Battery Energy Storage'!$A$28:$S$65,19,FALSE) -> 2407037.224 | V4: =VLOOKUP(V3,'Battery Energy Storage'!$A$28:$S$65,19,FALSE) -> 2145378.594 | W4: =VLOOKUP(W3,'Battery Energy Storage'!$A$28:$S$65,19,FALSE) -> 1895269.281 | X4: =VLOOKUP(X3,'Battery Energy Storage'!$A$28:$S$65,19,FALSE) -> 1656147.328 | Y4: =VLOOKUP(Y3,'Battery Energy Storage'!$A$28:$S$65,19,FALSE) -> 1381768.47
A5: Behavioral | B5: =-PMT(0.06804,24,NPV(0.06804,LC!C5:Y5)) -> 487812.1982 | C5: =VLOOKUP(C$3,Behavioral!$A$28:$S$64,19,FALSE) -> 0 | D5: =VLOOKUP(D$3,Behavioral!$A$28:$S$64,19,FALSE) -> 200958.2455 | E5: =VLOOKUP(E$3,Behavioral!$A$28:$S$64,19,FALSE) -> 322108.5288 | F5: =VLOOKUP(F$3,Behavioral!$A$28:$S$64,19,FALSE) -> 405373.5193 | G5: =VLOOKUP(G$3,Behavioral!$A$28:$S$64,19,FALSE) -> 435510.0801 | H5: =VLOOKUP(H$3,Behavioral!$A$28:$S$64,19,FALSE) -> 465217.4028 | I5: =VLOOKUP(I$3,Behavioral!$A$28:$S$64,19,FALSE) -> 494548.0355 | J5: =VLOOKUP(J$3,Behavioral!$A$28:$S$64,19,FALSE) -> 523616.7666 | K5: =VLOOKUP(K$3,Behavioral!$A$28:$S$64,19,FALSE) -> 552480.4431 | L5: =VLOOKUP(L$3,Behavioral!$A$28:$S$64,19,FALSE) -> 581138.1521 | M5: =VLOOKUP(M$3,Behavioral!$A$28:$S$64,19,FALSE) -> 609588.9598 | N5: =VLOOKUP(N$3,Behavioral!$A$28:$S$64,19,FALSE) -> 626624.955 | O5: =VLOOKUP(O$3,Behavioral!$A$28:$S$64,19,FALSE) -> 644134.0119 | P5: =VLOOKUP(P$3,Behavioral!$A$28:$S$64,19,FALSE) -> 662145.1379 | Q5: =VLOOKUP(Q$3,Behavioral!$A$28:$S$64,19,FALSE) -> 680673.5699 | R5: =VLOOKUP(R$3,Behavioral!$A$28:$S$64,19,FALSE) -> 699735.0841 | S5: =VLOOKUP(S$3,Behavioral!$A$28:$S$64,19,FALSE) -> 719350.0272 | T5: =VLOOKUP(T$3,Behavioral!$A$28:$S$64,19,FALSE) -> 739534.9341 | U5: =VLOOKUP(U$3,Behavioral!$A$28:$S$64,19,FALSE) -> 760306.952 | V5: =VLOOKUP(V$3,Behavioral!$A$28:$S$64,19,FALSE) -> 781683.6715 | W5: =VLOOKUP(W$3,Behavioral!$A$28:$S$64,19,FALSE) -> 803683.2344 | X5: =VLOOKUP(X$3,Behavioral!$A$28:$S$64,19,FALSE) -> 826324.3854 | Y5: =VLOOKUP(Y$3,Behavioral!$A$28:$S$64,19,FALSE) -> 849626.4426
A6: DLC Central AC | B6: =-PMT(0.06804,24,NPV(0.06804,LC!C6:Y6)) -> 1506849.203 | C6: =VLOOKUP(C$3,'DLC-AC'!$A$28:$S$64,19,FALSE) -> 0 | D6: =VLOOKUP(D$3,'DLC-AC'!$A$28:$S$64,19,FALSE) -> 279150.2081 | E6: =VLOOKUP(E$3,'DLC-AC'!$A$28:$S$64,19,FALSE) -> 654116.9218 | F6: =VLOOKUP(F$3,'DLC-AC'!$A$28:$S$64,19,FALSE) -> 1430478.208 | G6: =VLOOKUP(G$3,'DLC-AC'!$A$28:$S$64,19,FALSE) -> 1828094.546 | H6: =VLOOKUP(H$3,'DLC-AC'!$A$28:$S$64,19,FALSE) -> 2030595.284 | I6: =VLOOKUP(I$3,'DLC-AC'!$A$28:$S$64,19,FALSE) -> 2025643.452 | J6: =VLOOKUP(J$3,'DLC-AC'!$A$28:$S$64,19,FALSE) -> 2027625.851 | K6: =VLOOKUP(K$3,'DLC-AC'!$A$28:$S$64,19,FALSE) -> 2036343.086 | L6: =VLOOKUP(L$3,'DLC-AC'!$A$28:$S$64,19,FALSE) -> 2051360.965 | M6: =VLOOKUP(M$3,'DLC-AC'!$A$28:$S$64,19,FALSE) -> 2071499.537 | N6: =VLOOKUP(N$3,'DLC-AC'!$A$28:$S$64,19,FALSE) -> 2036801.241 | O6: =VLOOKUP(O$3,'DLC-AC'!$A$28:$S$64,19,FALSE) -> 1945611.803 | P6: =VLOOKUP(P$3,'DLC-AC'!$A$28:$S$64,19,FALSE) -> 1733492.358 | Q6: =VLOOKUP(Q$3,'DLC-AC'!$A$28:$S$64,19,FALSE) -> 1659319.182 | R6: =VLOOKUP(R$3,'DLC-AC'!$A$28:$S$64,19,FALSE) -> 1658973.264 | S6: =VLOOKUP(S$3,'DLC-AC'!$A$28:$S$64,19,FALSE) -> 1734633.421 | T6: =VLOOKUP(T$3,'DLC-AC'!$A$28:$S$64,19,FALSE) -> 1814031.273 | U6: =VLOOKUP(U$3,'DLC-AC'!$A$28:$S$64,19,FALSE) -> 1897361.589 | V6: =VLOOKUP(V$3,'DLC-AC'!$A$28:$S$64,19,FALSE) -> 1984829.613 | W6: =VLOOKUP(W$3,'DLC-AC'!$A$28:$S$64,19,FALSE) -> 2076651.699 | X6: =VLOOKUP(X$3,'DLC-AC'!$A$28:$S$64,19,FALSE) -> 2173055.836 | Y6: =VLOOKUP(Y$3,'DLC-AC'!$A$28:$S$64,19,FALSE) -> 2206655.99
A7: DLC Electric Vehicle Charging | B7: =-PMT(0.06804,24,NPV(0.06804,LC!C7:Y7)) -> 6676074.911 | C7: =VLOOKUP(C$3,'DLC-EV'!$A$28:$S$65,19,FALSE) -> 0 | D7: =VLOOKUP(D$3,'DLC-EV'!$A$28:$S$65,19,FALSE) -> 108602.8634 | E7: =VLOOKUP(E$3,'DLC-EV'!$A$28:$S$65,19,FALSE) -> 221540.4235 | F7: =VLOOKUP(F$3,'DLC-EV'!$A$28:$S$65,19,FALSE) -> 527249.8765 | G7: =VLOOKUP(G$3,'DLC-EV'!$A$28:$S$65,19,FALSE) -> 857859.7012 | H7: =VLOOKUP(H$3,'DLC-EV'!$A$28:$S$65,19,FALSE) -> 1261331 | I7: =VLOOKUP(I$3,'DLC-EV'!$A$28:$S$65,19,FALSE) -> 1704325.949 | J7: =VLOOKUP(J$3,'DLC-EV'!$A$28:$S$65,19,FALSE) -> 2295239.908 | K7: =VLOOKUP(K$3,'DLC-EV'!$A$28:$S$65,19,FALSE) -> 3341663.818 | L7: =VLOOKUP(L$3,'DLC-EV'!$A$28:$S$65,19,FALSE) -> 4496528.647 | M7: =VLOOKUP(M$3,'DLC-EV'!$A$28:$S$65,19,FALSE) -> 5770592.424 | N7: =VLOOKUP(N$3,'DLC-EV'!$A$28:$S$65,19,FALSE) -> 7168446.513 | O7: =VLOOKUP(O$3,'DLC-EV'!$A$28:$S$65,19,FALSE) -> 8702570.774 | P7: =VLOOKUP(P$3,'DLC-EV'!$A$28:$S$65,19,FALSE) -> 10372235.85 | Q7: =VLOOKUP(Q$3,'DLC-EV'!$A$28:$S$65,19,FALSE) -> 12214468.9 | R7: =VLOOKUP(R$3,'DLC-EV'!$A$28:$S$65,19,FALSE) -> 14239244.24 | S7: =VLOOKUP(S$3,'DLC-EV'!$A$28:$S$65,19,FALSE) -> 16467679.75 | T7: =VLOOKUP(T$3,'DLC-EV'!$A$28:$S$65,19,FALSE) -> 18904564.2 | U7: =VLOOKUP(U$3,'DLC-EV'!$A$28:$S$65,19,FALSE) -> 21532851.59 | V7: =VLOOKUP(V$3,'DLC-EV'!$A$28:$S$65,19,FALSE) -> 24418920.98 | W7: =VLOOKUP(W$3,'DLC-EV'!$A$28:$S$65,19,FALSE) -> 27583589.42 | X7: =VLOOKUP(X$3,'DLC-EV'!$A$28:$S$65,19,FALSE) -> 31048921.37 | Y7: =VLOOKUP(Y$3,'DLC-EV'!$A$28:$S$65,19,FALSE) -> 34838261.1
A8: DLC Smart Appliances | B8: =-PMT(0.06804,24,NPV(0.06804,LC!C8:Y8)) -> 815639.3291 | C8: =VLOOKUP(C$3,'Sm App'!$A$28:$S$64,19,FALSE) -> 0 | D8: =VLOOKUP(D$3,'Sm App'!$A$28:$S$64,19,FALSE) -> 251021.7939 | E8: =VLOOKUP(E$3,'Sm App'!$A$28:$S$64,19,FALSE) -> 556869.9721 | F8: =VLOOKUP(F$3,'Sm App'!$A$28:$S$64,19,FALSE) -> 1174704.032 | G8: =VLOOKUP(G$3,'Sm App'!$A$28:$S$64,19,FALSE) -> 1449440.537 | H8: =VLOOKUP(H$3,'Sm App'!$A$28:$S$64,19,FALSE) -> 1549595.957 | I8: =VLOOKUP(I$3,'Sm App'!$A$28:$S$64,19,FALSE) -> 1477759.724 | J8: =VLOOKUP(J$3,'Sm App'!$A$28:$S$64,19,FALSE) -> 1412417.885 | K8: =VLOOKUP(K$3,'Sm App'!$A$28:$S$64,19,FALSE) -> 1353097.577 | L8: =VLOOKUP(L$3,'Sm App'!$A$28:$S$64,19,FALSE) -> 1299048.195 | M8: =VLOOKUP(M$3,'Sm App'!$A$28:$S$64,19,FALSE) -> 1248546.359 | N8: =VLOOKUP(N$3,'Sm App'!$A$28:$S$64,19,FALSE) -> 1123908.965 | O8: =VLOOKUP(O$3,'Sm App'!$A$28:$S$64,19,FALSE) -> 925342.6392 | P8: =VLOOKUP(P$3,'Sm App'!$A$28:$S$64,19,FALSE) -> 574057.1558 | Q8: =VLOOKUP(Q$3,'Sm App'!$A$28:$S$64,19,FALSE) -> 400142.4201 | R8: =VLOOKUP(R$3,'Sm App'!$A$28:$S$64,19,FALSE) -> 317941.2791 | S8: =VLOOKUP(S$3,'Sm App'!$A$28:$S$64,19,FALSE) -> 326661.4485 | T8: =VLOOKUP(T$3,'Sm App'!$A$28:$S$64,19,FALSE) -> 335630.4476 | U8: =VLOOKUP(U$3,'Sm App'!$A$28:$S$64,19,FALSE) -> 344855.6418 | V8: =VLOOKUP(V$3,'Sm App'!$A$28:$S$64,19,FALSE) -> 354344.6153 | W8: =VLOOKUP(W$3,'Sm App'!$A$28:$S$64,19,FALSE) -> 364105.1824 | X8: =VLOOKUP(X$3,'Sm App'!$A$28:$S$64,19,FALSE) -> 374145.4016 | Y8: =VLOOKUP(Y$3,'Sm App'!$A$28:$S$64,19,FALSE) -> 384473.5774
A9: DLC Smart Thermostats - Cooling | B9: =-PMT(0.06804,24,NPV(0.06804,LC!C9:Y9)) -> 3192078.043 | C9: =VLOOKUP(C$3,'Sm Ther-Cool'!$A$28:$S$63,19,FALSE) -> 0 | D9: =VLOOKUP(D$3,'Sm Ther-Cool'!$A$28:$S$63,19,FALSE) -> 381102.4876 | E9: =VLOOKUP(E$3,'Sm Ther-Cool'!$A$28:$S$63,19,FALSE) -> 981585.1606 | F9: =VLOOKUP(F$3,'Sm Ther-Cool'!$A$28:$S$63,19,FALSE) -> 2240904.691 | G9: =VLOOKUP(G$3,'Sm Ther-Cool'!$A$28:$S$63,19,FALSE) -> 2956047.037 | H9: =VLOOKUP(H$3,'Sm Ther-Cool'!$A$28:$S$63,19,FALSE) -> 3390681.541 | I9: =VLOOKUP(I$3,'Sm Ther-Cool'!$A$28:$S$63,19,FALSE) -> 3508609.682 | J9: =VLOOKUP(J$3,'Sm Ther-Cool'!$A$28:$S$63,19,FALSE) -> 3634920.12 | K9: =VLOOKUP(K$3,'Sm Ther-Cool'!$A$28:$S$63,19,FALSE) -> 3769836.275 | L9: =VLOOKUP(L$3,'Sm Ther-Cool'!$A$28:$S$63,19,FALSE) -> 3913505.424 | M9: =VLOOKUP(M$3,'Sm Ther-Cool'!$A$28:$S$63,19,FALSE) -> 4065809.139 | N9: =VLOOKUP(N$3,'Sm Ther-Cool'!$A$28:$S$63,19,FALSE) -> 4203815.632 | O9: =VLOOKUP(O$3,'Sm Ther-Cool'!$A$28:$S$63,19,FALSE) -> 4327879.099 | P9: =VLOOKUP(P$3,'Sm Ther-Cool'!$A$28:$S$63,19,FALSE) -> 4413997.246 | Q9: =VLOOKUP(Q$3,'Sm Ther-Cool'!$A$28:$S$63,19,FALSE) -> 4560589.697 | R9: =VLOOKUP(R$3,'Sm Ther-Cool'!$A$28:$S$63,19,FALSE) -> 4743797.282 | S9: =VLOOKUP(S$3,'Sm Ther-Cool'!$A$28:$S$63,19,FALSE) -> 4964886.801 | T9: =VLOOKUP(T$3,'Sm Ther-Cool'!$A$28:$S$63,19,FALSE) -> 5196974.326 | U9: =VLOOKUP(U$3,'Sm Ther-Cool'!$A$28:$S$63,19,FALSE) -> 5440633.159 | V9: =VLOOKUP(V$3,'Sm Ther-Cool'!$A$28:$S$63,19,FALSE) -> 5696467.492 | W9: =VLOOKUP(W$3,'Sm Ther-Cool'!$A$28:$S$63,19,FALSE) -> 5965113.876 | X9: =VLOOKUP(X$3,'Sm Ther-Cool'!$A$28:$S$63,19,FALSE) -> 6247243.388 | Y9: =VLOOKUP(Y$3,'Sm Ther-Cool'!$A$28:$S$63,19,FALSE) -> 6436000.377
A10: DLC Smart Thermostats - Heating | B10: =-PMT(0.06804,24,NPV(0.06804,LC!C10:Y10)) -> 107826.2478 | C10: =VLOOKUP(C$3,'Sm Ther-Heat'!$A$28:$S$54,19,FALSE) -> 0 | D10: =VLOOKUP(D$3,'Sm Ther-Heat'!$A$28:$S$54,19,FALSE) -> 0 | E10: =VLOOKUP(E$3,'Sm Ther-Heat'!$A$28:$S$54,19,FALSE) -> 14348.51277 | F10: =VLOOKUP(F$3,'Sm Ther-Heat'!$A$28:$S$54,19,FALSE) -> 43986.79612 | G10: =VLOOKUP(G$3,'Sm Ther-Heat'!$A$28:$S$54,19,FALSE) -> 105198.3 | H10: =VLOOKUP(H$3,'Sm Ther-Heat'!$A$28:$S$54,19,FALSE) -> 136878.0539 | I10: =VLOOKUP(I$3,'Sm Ther-Heat'!$A$28:$S$54,19,FALSE) -> 153487.6087 | J10: =VLOOKUP(J$3,'Sm Ther-Heat'!$A$28:$S$54,19,FALSE) -> 154133.4005 | K10: =VLOOKUP(K$3,'Sm Ther-Heat'!$A$28:$S$54,19,FALSE) -> 155119.3589 | L10: =VLOOKUP(L$3,'Sm Ther-Heat'!$A$28:$S$54,19,FALSE) -> 156432.2469 | M10: =VLOOKUP(M$3,'Sm Ther-Heat'!$A$28:$S$54,19,FALSE) -> 158049.0318 | N10: =VLOOKUP(N$3,'Sm Ther-Heat'!$A$28:$S$54,19,FALSE) -> 159912.4351 | O10: =VLOOKUP(O$3,'Sm Ther-Heat'!$A$28:$S$54,19,FALSE) -> 159310.2341 | P10: =VLOOKUP(P$3,'Sm Ther-Heat'!$A$28:$S$54,19,FALSE) -> 156222.8716 | Q10: =VLOOKUP(Q$3,'Sm Ther-Heat'!$A$28:$S$54,19,FALSE) -> 147851.0382 | R10: =VLOOKUP(R$3,'Sm Ther-Heat'!$A$28:$S$54,19,FALSE) -> 145901.0863 | S10: =VLOOKUP(S$3,'Sm Ther-Heat'!$A$28:$S$54,19,FALSE) -> 147330.0569 | T10: =VLOOKUP(T$3,'Sm Ther-Heat'!$A$28:$S$54,19,FALSE) -> 152136.1915 | U10: =VLOOKUP(U$3,'Sm Ther-Heat'!$A$28:$S$54,19,FALSE) -> 157099.4622 | V10: =VLOOKUP(V$3,'Sm Ther-Heat'!$A$28:$S$54,19,FALSE) -> 162225.0149 | W10: =VLOOKUP(W$3,'Sm Ther-Heat'!$A$28:$S$54,19,FALSE) -> 167518.1678 | X10: =VLOOKUP(X$3,'Sm Ther-Heat'!$A$28:$S$54,19,FALSE) -> 172984.4268 | Y10: =VLOOKUP(Y$3,'Sm Ther-Heat'!$A$28:$S$54,19,FALSE) -> 178629.4376
A11: DLC Water Heating | B11: =-PMT(0.06804,24,NPV(0.06804,LC!C11:Y11)) -> 1028753.971 | C11: =VLOOKUP(C$3,'DLC-WH'!$A$28:$S$65,19,FALSE) -> 0 | D11: =VLOOKUP(D$3,'DLC-WH'!$A$28:$S$65,19,FALSE) -> 244459.3287 | E11: =VLOOKUP(E$3,'DLC-WH'!$A$28:$S$65,19,FALSE) -> 540077.2354 | F11: =VLOOKUP(F$3,'DLC-WH'!$A$28:$S$65,19,FALSE) -> 1139947.168 | G11: =VLOOKUP(G$3,'DLC-WH'!$A$28:$S$65,19,FALSE) -> 1428806.81 | H11: =VLOOKUP(H$3,'DLC-WH'!$A$28:$S$65,19,FALSE) -> 1559052.266 | I11: =VLOOKUP(I$3,'DLC-WH'!$A$28:$S$65,19,FALSE) -> 1527947.925 | J11: =VLOOKUP(J$3,'DLC-WH'!$A$28:$S$65,19,FALSE) -> 1501582.257 | K11: =VLOOKUP(K$3,'DLC-WH'!$A$28:$S$65,19,FALSE) -> 1479658.559 | L11: =VLOOKUP(L$3,'DLC-WH'!$A$28:$S$65,19,FALSE) -> 1461696.542 | M11: =VLOOKUP(M$3,'DLC-WH'!$A$28:$S$65,19,FALSE) -> 1446585.739 | N11: =VLOOKUP(N$3,'DLC-WH'!$A$28:$S$65,19,FALSE) -> 1383204.659 | O11: =VLOOKUP(O$3,'DLC-WH'!$A$28:$S$65,19,FALSE) -> 1272520.086 | P11: =VLOOKUP(P$3,'DLC-WH'!$A$28:$S$65,19,FALSE) -> 1063523.952 | Q11: =VLOOKUP(Q$3,'DLC-WH'!$A$28:$S$65,19,FALSE) -> 970815.9683 | R11: =VLOOKUP(R$3,'DLC-WH'!$A$28:$S$65,19,FALSE) -> 938533.9325 | S11: =VLOOKUP(S$3,'DLC-WH'!$A$28:$S$65,19,FALSE) -> 966086.3377 | T11: =VLOOKUP(T$3,'DLC-WH'!$A$28:$S$65,19,FALSE) -> 994458.7831 | U11: =VLOOKUP(U$3,'DLC-WH'!$A$28:$S$65,19,FALSE) -> 1023675.975 | V11: =VLOOKUP(V$3,'DLC-WH'!$A$28:$S$65,19,FALSE) -> 1053763.311 | W11: =VLOOKUP(W$3,'DLC-WH'!$A$28:$S$65,19,FALSE) -> 1084747.006 | X11: =VLOOKUP(X$3,'DLC-WH'!$A$28:$S$65,19,FALSE) -> 1116654.016 | Y11: =VLOOKUP(Y$3,'DLC-WH'!$A$28:$S$65,19,FALSE) -> 1159504.207
A12: CTA-2045 ERWH | B12: =-PMT(0.06804,24,NPV(0.06804,LC!C12:Y12)) -> 1047727.894 | C12: =VLOOKUP(C$3,'CTA ERWH'!$A$28:$S$54,19,FALSE) -> 0 | D12: =VLOOKUP(D$3,'CTA ERWH'!$A$28:$S$54,19,FALSE) -> 66651.4469 | E12: =VLOOKUP(E$3,'CTA ERWH'!$A$28:$S$54,19,FALSE) -> 99969.05346 | F12: =VLOOKUP(F$3,'CTA ERWH'!$A$28:$S$54,19,FALSE) -> 170048.2552 | G12: =VLOOKUP(G$3,'CTA ERWH'!$A$28:$S$54,19,FALSE) -> 270411.7533 | H12: =VLOOKUP(H$3,'CTA ERWH'!$A$28:$S$54,19,FALSE) -> 420738.6801 | I12: =VLOOKUP(I$3,'CTA ERWH'!$A$28:$S$54,19,FALSE) -> 612485.5725 | J12: =VLOOKUP(J$3,'CTA ERWH'!$A$28:$S$54,19,FALSE) -> 889367.9578 | K12: =VLOOKUP(K$3,'CTA ERWH'!$A$28:$S$54,19,FALSE) -> 1222786.226 | L12: =VLOOKUP(L$3,'CTA ERWH'!$A$28:$S$54,19,FALSE) -> 1613408.651 | M12: =VLOOKUP(M$3,'CTA ERWH'!$A$28:$S$54,19,FALSE) -> 2045116.278 | N12: =VLOOKUP(N$3,'CTA ERWH'!$A$28:$S$54,19,FALSE) -> 2158096.589 | O12: =VLOOKUP(O$3,'CTA ERWH'!$A$28:$S$54,19,FALSE) -> 2237916.853 | P12: =VLOOKUP(P$3,'CTA ERWH'!$A$28:$S$54,19,FALSE) -> 2276352.339 | Q12: =VLOOKUP(Q$3,'CTA ERWH'!$A$28:$S$54,19,FALSE) -> 2281758.946 | R12: =VLOOKUP(R$3,'CTA ERWH'!$A$28:$S$54,19,FALSE) -> 2252250.092 | S12: =VLOOKUP(S$3,'CTA ERWH'!$A$28:$S$54,19,FALSE) -> 2195125.535 | T12: =VLOOKUP(T$3,'CTA ERWH'!$A$28:$S$54,19,FALSE) -> 2101031.212 | U12: =VLOOKUP(U$3,'CTA ERWH'!$A$28:$S$54,19,FALSE) -> 1982723.702 | V12: =VLOOKUP(V$3,'CTA ERWH'!$A$28:$S$54,19,FALSE) -> 1842761.691 | W12: =VLOOKUP(W$3,'CTA ERWH'!$A$28:$S$54,19,FALSE) -> 1689338.159 | X12: =VLOOKUP(X$3,'CTA ERWH'!$A$28:$S$54,19,FALSE) -> 1639881.08 | Y12: =VLOOKUP(Y$3,'CTA ERWH'!$A$28:$S$54,19,FALSE) -> 1636381.121
A13: CTA-2045 HPWH | B13: =-PMT(0.06804,24,NPV(0.06804,LC!C13:Y13)) -> 642182.6346 | C13: =VLOOKUP(C$3,'CTA HPWH'!$A$28:$S$54,19,FALSE) -> 0 | D13: =VLOOKUP(D$3,'CTA HPWH'!$A$28:$S$54,19,FALSE) -> 53802.30522 | E13: =VLOOKUP(E$3,'CTA HPWH'!$A$28:$S$54,19,FALSE) -> 67971.42218 | F13: =VLOOKUP(F$3,'CTA HPWH'!$A$28:$S$54,19,FALSE) -> 99328.32089 | G13: =VLOOKUP(G$3,'CTA HPWH'!$A$28:$S$54,19,FALSE) -> 147852.307 | H13: =VLOOKUP(H$3,'CTA HPWH'!$A$28:$S$54,19,FALSE) -> 222547.3298 | I13: =VLOOKUP(I$3,'CTA HPWH'!$A$28:$S$54,19,FALSE) -> 318348.6025 | J13: =VLOOKUP(J$3,'CTA HPWH'!$A$28:$S$54,19,FALSE) -> 457077.8825 | K13: =VLOOKUP(K$3,'CTA HPWH'!$A$28:$S$54,19,FALSE) -> 623935.6045 | L13: =VLOOKUP(L$3,'CTA HPWH'!$A$28:$S$54,19,FALSE) -> 818933.4926 | M13: =VLOOKUP(M$3,'CTA HPWH'!$A$28:$S$54,19,FALSE) -> 1060700.365 | N13: =VLOOKUP(N$3,'CTA HPWH'!$A$28:$S$54,19,FALSE) -> 1141022.923 | O13: =VLOOKUP(O$3,'CTA HPWH'!$A$28:$S$54,19,FALSE) -> 1215758.608 | P13: =VLOOKUP(P$3,'CTA HPWH'!$A$28:$S$54,19,FALSE) -> 1280663.069 | Q13: =VLOOKUP(Q$3,'CTA HPWH'!$A$28:$S$54,19,FALSE) -> 1336637.352 | R13: =VLOOKUP(R$3,'CTA HPWH'!$A$28:$S$54,19,FALSE) -> 1382855.533 | S13: =VLOOKUP(S$3,'CTA HPWH'!$A$28:$S$54,19,FALSE) -> 1422282.004 | T13: =VLOOKUP(T$3,'CTA HPWH'!$A$28:$S$54,19,FALSE) -> 1447471.205 | U13: =VLOOKUP(U$3,'CTA HPWH'!$A$28:$S$54,19,FALSE) -> 1463919.8 | V13: =VLOOKUP(V$3,'CTA HPWH'!$A$28:$S$54,19,FALSE) -> 1473212.943 | W13: =VLOOKUP(W$3,'CTA HPWH'!$A$28:$S$54,19,FALSE) -> 1469879.751 | X13: =VLOOKUP(X$3,'CTA HPWH'!$A$28:$S$54,19,FALSE) -> 1522043.614 | Y13: =VLOOKUP(Y$3,'CTA HPWH'!$A$28:$S$54,19,FALSE) -> 1508762.618
A14: Thermal Energy Storage | B14: =-PMT(0.06804,24,NPV(0.06804,LC!C14:Y14)) -> 414268.1971 | C14: =VLOOKUP(C$3,'Thermal Eneg Stor'!$A$28:$S$63,19,FALSE) -> 0 | D14: =VLOOKUP(D$3,'Thermal Eneg Stor'!$A$28:$S$63,19,FALSE) -> 134499.1904 | E14: =VLOOKUP(E$3,'Thermal Eneg Stor'!$A$28:$S$63,19,FALSE) -> 297493.7758 | F14: =VLOOKUP(F$3,'Thermal Eneg Stor'!$A$28:$S$63,19,FALSE) -> 604012.4103 | G14: =VLOOKUP(G$3,'Thermal Eneg Stor'!$A$28:$S$63,19,FALSE) -> 736695.1121 | H14: =VLOOKUP(H$3,'Thermal Eneg Stor'!$A$28:$S$63,19,FALSE) -> 781916.1432 | I14: =VLOOKUP(I$3,'Thermal Eneg Stor'!$A$28:$S$63,19,FALSE) -> 743593.4842 | J14: =VLOOKUP(J$3,'Thermal Eneg Stor'!$A$28:$S$63,19,FALSE) -> 708528.3951 | K14: =VLOOKUP(K$3,'Thermal Eneg Stor'!$A$28:$S$63,19,FALSE) -> 676511.4751 | L14: =VLOOKUP(L$3,'Thermal Eneg Stor'!$A$28:$S$63,19,FALSE) -> 647173.7025 | M14: =VLOOKUP(M$3,'Thermal Eneg Stor'!$A$28:$S$63,19,FALSE) -> 619654.0946 | N14: =VLOOKUP(N$3,'Thermal Eneg Stor'!$A$28:$S$63,19,FALSE) -> 560520.6516 | O14: =VLOOKUP(O$3,'Thermal Eneg Stor'!$A$28:$S$63,19,FALSE) -> 458343.6623 | P14: =VLOOKUP(P$3,'Thermal Eneg Stor'!$A$28:$S$63,19,FALSE) -> 290034.1891 | Q14: =VLOOKUP(Q$3,'Thermal Eneg Stor'!$A$28:$S$63,19,FALSE) -> 207908.6355 | R14: =VLOOKUP(R$3,'Thermal Eneg Stor'!$A$28:$S$63,19,FALSE) -> 169901.1857 | S14: =VLOOKUP(S$3,'Thermal Eneg Stor'!$A$28:$S$63,19,FALSE) -> 174084.5489 | T14: =VLOOKUP(T$3,'Thermal Eneg Stor'!$A$28:$S$63,19,FALSE) -> 178376.017 | U14: =VLOOKUP(U$3,'Thermal Eneg Stor'!$A$28:$S$63,19,FALSE) -> 182778.4422 | V14: =VLOOKUP(V$3,'Thermal Eneg Stor'!$A$28:$S$63,19,FALSE) -> 187294.8085 | W14: =VLOOKUP(W$3,'Thermal Eneg Stor'!$A$28:$S$63,19,FALSE) -> 191928.1487 | X14: =VLOOKUP(X$3,'Thermal Eneg Stor'!$A$28:$S$63,19,FALSE) -> 196681.6077 | Y14: =VLOOKUP(Y$3,'Thermal Eneg Stor'!$A$28:$S$63,19,FALSE) -> 201558.3309
A15: Third Party Contracts | B15: =-PMT(0.06804,24,NPV(0.06804,LC!C15:Y15)) -> 2186310.839 | C15: =VLOOKUP(C$3,'3rd party cont.'!$A$28:$S$57,19,FALSE) -> 0 | D15: =VLOOKUP(D$3,'3rd party cont.'!$A$28:$S$57,19,FALSE) -> 947905.2592 | E15: =VLOOKUP(E$3,'3rd party cont.'!$A$28:$S$57,19,FALSE) -> 1687030.94 | F15: =VLOOKUP(F$3,'3rd party cont.'!$A$28:$S$57,19,FALSE) -> 2152668.022 | G15: =VLOOKUP(G$3,'3rd party cont.'!$A$28:$S$57,19,FALSE) -> 2200190.357 | H15: =VLOOKUP(H$3,'3rd party cont.'!$A$28:$S$57,19,FALSE) -> 2249645.279 | I15: =VLOOKUP(I$3,'3rd party cont.'!$A$28:$S$57,19,FALSE) -> 2300577.501 | J15: =VLOOKUP(J$3,'3rd party cont.'!$A$28:$S$57,19,FALSE) -> 2353964.557 | K15: =VLOOKUP(K$3,'3rd party cont.'!$A$28:$S$57,19,FALSE) -> 2411405.48 | L15: =VLOOKUP(L$3,'3rd party cont.'!$A$28:$S$57,19,FALSE) -> 2471623.644 | M15: =VLOOKUP(M$3,'3rd party cont.'!$A$28:$S$57,19,FALSE) -> 2534988.952 | N15: =VLOOKUP(N$3,'3rd party cont.'!$A$28:$S$57,19,FALSE) -> 2601957.97 | O15: =VLOOKUP(O$3,'3rd party cont.'!$A$28:$S$57,19,FALSE) -> 2673095.605 | P15: =VLOOKUP(P$3,'3rd party cont.'!$A$28:$S$57,19,FALSE) -> 2749101.456 | Q15: =VLOOKUP(Q$3,'3rd party cont.'!$A$28:$S$57,19,FALSE) -> 2830841.43 | R15: =VLOOKUP(R$3,'3rd party cont.'!$A$28:$S$57,19,FALSE) -> 2919384.214 | S15: =VLOOKUP(S$3,'3rd party cont.'!$A$28:$S$57,19,FALSE) -> 3016043.078 | T15: =VLOOKUP(T$3,'3rd party cont.'!$A$28:$S$57,19,FALSE) -> 3122421.014 | U15: =VLOOKUP(U$3,'3rd party cont.'!$A$28:$S$57,19,FALSE) -> 3240457.029 | V15: =VLOOKUP(V$3,'3rd party cont.'!$A$28:$S$57,19,FALSE) -> 3372469.944 | W15: =VLOOKUP(W$3,'3rd party cont.'!$A$28:$S$57,19,FALSE) -> 3521193.6 | X15: =VLOOKUP(X$3,'3rd party cont.'!$A$28:$S$57,19,FALSE) -> 3689796.372 | Y15: =VLOOKUP(Y$3,'3rd party cont.'!$A$28:$S$57,19,FALSE) -> 3881877.484
A16: Time-of-Use Opt-in | B16: =-PMT(0.06804,24,NPV(0.06804,LC!C16:Y16)) -> 385136.4176 | C16: =VLOOKUP(C$3,'TOU-in'!$A$28:$S$64,19,FALSE) -> 0 | D16: =VLOOKUP(D$3,'TOU-in'!$A$28:$S$64,19,FALSE) -> 137634.5628 | E16: =VLOOKUP(E$3,'TOU-in'!$A$28:$S$64,19,FALSE) -> 273481.8068 | F16: =VLOOKUP(F$3,'TOU-in'!$A$28:$S$64,19,FALSE) -> 527881.5673 | G16: =VLOOKUP(G$3,'TOU-in'!$A$28:$S$64,19,FALSE) -> 642029.942 | H16: =VLOOKUP(H$3,'TOU-in'!$A$28:$S$64,19,FALSE) -> 684883.9089 | I16: =VLOOKUP(I$3,'TOU-in'!$A$28:$S$64,19,FALSE) -> 657421.8539 | J16: =VLOOKUP(J$3,'TOU-in'!$A$28:$S$64,19,FALSE) -> 632586.2514 | K16: =VLOOKUP(K$3,'TOU-in'!$A$28:$S$64,19,FALSE) -> 610229.9267 | L16: =VLOOKUP(L$3,'TOU-in'!$A$28:$S$64,19,FALSE) -> 590045.61 | M16: =VLOOKUP(M$3,'TOU-in'!$A$28:$S$64,19,FALSE) -> 571307.3469 | N16: =VLOOKUP(N$3,'TOU-in'!$A$28:$S$64,19,FALSE) -> 525785.9804 | O16: =VLOOKUP(O$3,'TOU-in'!$A$28:$S$64,19,FALSE) -> 441552.4135 | P16: =VLOOKUP(P$3,'TOU-in'!$A$28:$S$64,19,FALSE) -> 299430.6847 | Q16: =VLOOKUP(Q$3,'TOU-in'!$A$28:$S$64,19,FALSE) -> 229799.77 | R16: =VLOOKUP(R$3,'TOU-in'!$A$28:$S$64,19,FALSE) -> 197673.197 | S16: =VLOOKUP(S$3,'TOU-in'!$A$28:$S$64,19,FALSE) -> 202740.7697 | T16: =VLOOKUP(T$3,'TOU-in'!$A$28:$S$64,19,FALSE) -> 207943.666 | U16: =VLOOKUP(U$3,'TOU-in'!$A$28:$S$64,19,FALSE) -> 213285.66 | V16: =VLOOKUP(V$3,'TOU-in'!$A$28:$S$64,19,FALSE) -> 218770.6308 | W16: =VLOOKUP(W$3,'TOU-in'!$A$28:$S$64,19,FALSE) -> 224402.5688 | X16: =VLOOKUP(X$3,'TOU-in'!$A$28:$S$64,19,FALSE) -> 230185.5831 | Y16: =VLOOKUP(Y$3,'TOU-in'!$A$28:$S$64,19,FALSE) -> 236123.8936
A17: Time-of-Use Opt-out | B17: =-PMT(0.06804,24,NPV(0.06804,LC!C17:Y17)) -> 2207246.289 | C17: =VLOOKUP(C$3,'TOU-out'!$A$28:$S$62,19,FALSE) -> 0 | D17: =VLOOKUP(D$3,'TOU-out'!$A$28:$S$62,19,FALSE) -> 4153629.953 | E17: =VLOOKUP(E$3,'TOU-out'!$A$28:$S$62,19,FALSE) -> 4275694.223 | F17: =VLOOKUP(F$3,'TOU-out'!$A$28:$S$62,19,FALSE) -> 3988375.208 | G17: =VLOOKUP(G$3,'TOU-out'!$A$28:$S$62,19,FALSE) -> 3739126.307 | H17: =VLOOKUP(H$3,'TOU-out'!$A$28:$S$62,19,FALSE) -> 3507682.998 | I17: =VLOOKUP(I$3,'TOU-out'!$A$28:$S$62,19,FALSE) -> 3330334.323 | J17: =VLOOKUP(J$3,'TOU-out'!$A$28:$S$62,19,FALSE) -> 3173958.447 | K17: =VLOOKUP(K$3,'TOU-out'!$A$28:$S$62,19,FALSE) -> 3028865.042 | L17: =VLOOKUP(L$3,'TOU-out'!$A$28:$S$62,19,FALSE) -> 2883712.406 | M17: =VLOOKUP(M$3,'TOU-out'!$A$28:$S$62,19,FALSE) -> 2737601.54 | N17: =VLOOKUP(N$3,'TOU-out'!$A$28:$S$62,19,FALSE) -> 563355.3947 | O17: =VLOOKUP(O$3,'TOU-out'!$A$28:$S$62,19,FALSE) -> 393679.0167 | P17: =VLOOKUP(P$3,'TOU-out'!$A$28:$S$62,19,FALSE) -> 431578.7351 | Q17: =VLOOKUP(Q$3,'TOU-out'!$A$28:$S$62,19,FALSE) -> 468928.0766 | R17: =VLOOKUP(R$3,'TOU-out'!$A$28:$S$62,19,FALSE) -> 505708.389 | S17: =VLOOKUP(S$3,'TOU-out'!$A$28:$S$62,19,FALSE) -> 520925.3727 | T17: =VLOOKUP(T$3,'TOU-out'!$A$28:$S$62,19,FALSE) -> 536612.8359 | U17: =VLOOKUP(U$3,'TOU-out'!$A$28:$S$62,19,FALSE) -> 552785.6432 | V17: =VLOOKUP(V$3,'TOU-out'!$A$28:$S$62,19,FALSE) -> 569459.1337 | W17: =VLOOKUP(W$3,'TOU-out'!$A$28:$S$62,19,FALSE) -> 586649.1344 | X17: =VLOOKUP(X$3,'TOU-out'!$A$28:$S$62,19,FALSE) -> 604371.987 | Y17: =VLOOKUP(Y$3,'TOU-out'!$A$28:$S$62,19,FALSE) -> 622644.5582
A18: Electric Vehicle TOU Opt-in | B18: =-PMT(0.06804,24,NPV(0.06804,LC!C18:Y18)) -> 246554.6756 | C18: =VLOOKUP(C$3,'EV TOU'!$A$28:$S$63,19,FALSE) -> 84572.21682 | D18: =VLOOKUP(D$3,'EV TOU'!$A$28:$S$63,19,FALSE) -> 91508.52651 | E18: =VLOOKUP(E$3,'EV TOU'!$A$28:$S$63,19,FALSE) -> 98593.73745 | F18: =VLOOKUP(F$3,'EV TOU'!$A$28:$S$63,19,FALSE) -> 104322.7729 | G18: =VLOOKUP(G$3,'EV TOU'!$A$28:$S$63,19,FALSE) -> 111893.9089 | H18: =VLOOKUP(H$3,'EV TOU'!$A$28:$S$63,19,FALSE) -> 122052.2014 | I18: =VLOOKUP(I$3,'EV TOU'!$A$28:$S$63,19,FALSE) -> 135685.5164 | J18: =VLOOKUP(J$3,'EV TOU'!$A$28:$S$63,19,FALSE) -> 153219.7707 | K18: =VLOOKUP(K$3,'EV TOU'!$A$28:$S$63,19,FALSE) -> 183980.0083 | L18: =VLOOKUP(L$3,'EV TOU'!$A$28:$S$63,19,FALSE) -> 216257.2877 | M18: =VLOOKUP(M$3,'EV TOU'!$A$28:$S$63,19,FALSE) -> 248015.633 | N18: =VLOOKUP(N$3,'EV TOU'!$A$28:$S$63,19,FALSE) -> 281867.3232 | O18: =VLOOKUP(O$3,'EV TOU'!$A$28:$S$63,19,FALSE) -> 317664.2915 | P18: =VLOOKUP(P$3,'EV TOU'!$A$28:$S$63,19,FALSE) -> 356725.6597 | Q18: =VLOOKUP(Q$3,'EV TOU'!$A$28:$S$63,19,FALSE) -> 397820.02 | R18: =VLOOKUP(R$3,'EV TOU'!$A$28:$S$63,19,FALSE) -> 440911.7453 | S18: =VLOOKUP(S$3,'EV TOU'!$A$28:$S$63,19,FALSE) -> 485885.6665 | T18: =VLOOKUP(T$3,'EV TOU'!$A$28:$S$63,19,FALSE) -> 532934.7434 | U18: =VLOOKUP(U$3,'EV TOU'!$A$28:$S$63,19,FALSE) -> 577850.1462 | V18: =VLOOKUP(V$3,'EV TOU'!$A$28:$S$63,19,FALSE) -> 627029.7784 | W18: =VLOOKUP(W$3,'EV TOU'!$A$28:$S$63,19,FALSE) -> 680895.0608 | X18: =VLOOKUP(X$3,'EV TOU'!$A$28:$S$63,19,FALSE) -> 739900.8103 | Y18: =VLOOKUP(Y$3,'EV TOU'!$A$28:$S$63,19,FALSE) -> 804530.048
A19: Variable Peak Pricing Rates | B19: =-PMT(0.06804,24,NPV(0.06804,LC!C19:Y19)) -> 112999.7964 | C19: =VLOOKUP(C$3,VPPR!$A$28:$S$54,19,FALSE) -> 0 | D19: =VLOOKUP(D$3,VPPR!$A$28:$S$54,19,FALSE) -> 87270.72772 | E19: =VLOOKUP(E$3,VPPR!$A$28:$S$54,19,FALSE) -> 97159.50859 | F19: =VLOOKUP(F$3,VPPR!$A$28:$S$54,19,FALSE) -> 112215.8229 | G19: =VLOOKUP(G$3,VPPR!$A$28:$S$54,19,FALSE) -> 120676.9243 | H19: =VLOOKUP(H$3,VPPR!$A$28:$S$54,19,FALSE) -> 125820.5541 | I19: =VLOOKUP(I$3,VPPR!$A$28:$S$54,19,FALSE) -> 127817.1104 | J19: =VLOOKUP(J$3,VPPR!$A$28:$S$54,19,FALSE) -> 129928.784 | K19: =VLOOKUP(K$3,VPPR!$A$28:$S$54,19,FALSE) -> 132152.0767 | L19: =VLOOKUP(L$3,VPPR!$A$28:$S$54,19,FALSE) -> 134472.2406 | M19: =VLOOKUP(M$3,VPPR!$A$28:$S$54,19,FALSE) -> 136855.202 | N19: =VLOOKUP(N$3,VPPR!$A$28:$S$54,19,FALSE) -> 136956.0546 | O19: =VLOOKUP(O$3,VPPR!$A$28:$S$54,19,FALSE) -> 135449.4875 | P19: =VLOOKUP(P$3,VPPR!$A$28:$S$54,19,FALSE) -> 131411.5578 | Q19: =VLOOKUP(Q$3,VPPR!$A$28:$S$54,19,FALSE) -> 130823.7005 | R19: =VLOOKUP(R$3,VPPR!$A$28:$S$54,19,FALSE) -> 132026.3515 | S19: =VLOOKUP(S$3,VPPR!$A$28:$S$54,19,FALSE) -> 134930.9313 | T19: =VLOOKUP(T$3,VPPR!$A$28:$S$54,19,FALSE) -> 137899.4118 | U19: =VLOOKUP(U$3,VPPR!$A$28:$S$54,19,FALSE) -> 140933.1988 | V19: =VLOOKUP(V$3,VPPR!$A$28:$S$54,19,FALSE) -> 144033.7292 | W19: =VLOOKUP(W$3,VPPR!$A$28:$S$54,19,FALSE) -> 147202.4712 | X19: =VLOOKUP(X$3,VPPR!$A$28:$S$54,19,FALSE) -> 150440.9256 | Y19: =VLOOKUP(Y$3,VPPR!$A$28:$S$54,19,FALSE) -> 153750.626
A20: Peak Time Rebate | B20: =-PMT(0.06804,24,NPV(0.06804,LC!C20:Y20)) -> 396094.8908 | C20: =VLOOKUP(C$3,'Peak Time Rebate'!$A$28:$S$59,19,FALSE) -> 0 | D20: =VLOOKUP(D$3,'Peak Time Rebate'!$A$28:$S$59,19,FALSE) -> 140655.8746 | E20: =VLOOKUP(E$3,'Peak Time Rebate'!$A$28:$S$59,19,FALSE) -> 280669.5756 | F20: =VLOOKUP(F$3,'Peak Time Rebate'!$A$28:$S$59,19,FALSE) -> 544912.2146 | G20: =VLOOKUP(G$3,'Peak Time Rebate'!$A$28:$S$59,19,FALSE) -> 663363.6702 | H20: =VLOOKUP(H$3,'Peak Time Rebate'!$A$28:$S$59,19,FALSE) -> 707705.9196 | I20: =VLOOKUP(I$3,'Peak Time Rebate'!$A$28:$S$59,19,FALSE) -> 678987.2791 | J20: =VLOOKUP(J$3,'Peak Time Rebate'!$A$28:$S$59,19,FALSE) -> 653001.0906 | K20: =VLOOKUP(K$3,'Peak Time Rebate'!$A$28:$S$59,19,FALSE) -> 629589.0024 | L20: =VLOOKUP(L$3,'Peak Time Rebate'!$A$28:$S$59,19,FALSE) -> 608431.7073 | M20: =VLOOKUP(M$3,'Peak Time Rebate'!$A$28:$S$59,19,FALSE) -> 588777.0676 | N20: =VLOOKUP(N$3,'Peak Time Rebate'!$A$28:$S$59,19,FALSE) -> 540858.1427 | O20: =VLOOKUP(O$3,'Peak Time Rebate'!$A$28:$S$59,19,FALSE) -> 453687.3749 | P20: =VLOOKUP(P$3,'Peak Time Rebate'!$A$28:$S$59,19,FALSE) -> 305838.2032 | Q20: =VLOOKUP(Q$3,'Peak Time Rebate'!$A$28:$S$59,19,FALSE) -> 233344.542 | R20: =VLOOKUP(R$3,'Peak Time Rebate'!$A$28:$S$59,19,FALSE) -> 199829.9438 | S20: =VLOOKUP(S$3,'Peak Time Rebate'!$A$28:$S$59,19,FALSE) -> 204958.9989 | T20: =VLOOKUP(T$3,'Peak Time Rebate'!$A$28:$S$59,19,FALSE) -> 210225.0981 | U20: =VLOOKUP(U$3,'Peak Time Rebate'!$A$28:$S$59,19,FALSE) -> 215632.0547 | V20: =VLOOKUP(V$3,'Peak Time Rebate'!$A$28:$S$59,19,FALSE) -> 221183.7981 | W20: =VLOOKUP(W$3,'Peak Time Rebate'!$A$28:$S$59,19,FALSE) -> 226884.3635 | X20: =VLOOKUP(X$3,'Peak Time Rebate'!$A$28:$S$59,19,FALSE) -> 232737.9153 | Y20: =VLOOKUP(Y$3,'Peak Time Rebate'!$A$28:$S$59,19,FALSE) -> 238748.7316
A21: Battery Storage w Ancillary | B21: =-PMT(0.06804,24,NPV(0.06804,LC!C21:Y21)) -> 1244134.489 | C21: =VLOOKUP(C$3,'Battery Energy Storage w Ancil'!$A$28:$S$59,19,FALSE) -> 0 | D21: =VLOOKUP(D$3,'Battery Energy Storage w Ancil'!$A$28:$S$59,19,FALSE) -> 190877.3602 | E21: =VLOOKUP(E$3,'Battery Energy Storage w Ancil'!$A$28:$S$59,19,FALSE) -> 265758.4074 | F21: =VLOOKUP(F$3,'Battery Energy Storage w Ancil'!$A$28:$S$59,19,FALSE) -> 397098.5198 | G21: =VLOOKUP(G$3,'Battery Energy Storage w Ancil'!$A$28:$S$59,19,FALSE) -> 525699.6476 | H21: =VLOOKUP(H$3,'Battery Energy Storage w Ancil'!$A$28:$S$59,19,FALSE) -> 651809.1168 | I21: =VLOOKUP(I$3,'Battery Energy Storage w Ancil'!$A$28:$S$59,19,FALSE) -> 849055.0225 | J21: =VLOOKUP(J$3,'Battery Energy Storage w Ancil'!$A$28:$S$59,19,FALSE) -> 1043254.355 | K21: =VLOOKUP(K$3,'Battery Energy Storage w Ancil'!$A$28:$S$59,19,FALSE) -> 1234676.399 | L21: =VLOOKUP(L$3,'Battery Energy Storage w Ancil'!$A$28:$S$59,19,FALSE) -> 1504275.03 | M21: =VLOOKUP(M$3,'Battery Energy Storage w Ancil'!$A$28:$S$59,19,FALSE) -> 1770425.853 | N21: =VLOOKUP(N$3,'Battery Energy Storage w Ancil'!$A$28:$S$59,19,FALSE) -> 2004367.648 | O21: =VLOOKUP(O$3,'Battery Energy Storage w Ancil'!$A$28:$S$59,19,FALSE) -> 2317523.428 | P21: =VLOOKUP(P$3,'Battery Energy Storage w Ancil'!$A$28:$S$59,19,FALSE) -> 2599089.124 | Q21: =VLOOKUP(Q$3,'Battery Energy Storage w Ancil'!$A$28:$S$59,19,FALSE) -> 2879503.649 | R21: =VLOOKUP(R$3,'Battery Energy Storage w Ancil'!$A$28:$S$59,19,FALSE) -> 3256711.688 | S21: =VLOOKUP(S$3,'Battery Energy Storage w Ancil'!$A$28:$S$59,19,FALSE) -> 2996616.273 | T21: =VLOOKUP(T$3,'Battery Energy Storage w Ancil'!$A$28:$S$59,19,FALSE) -> 2750401.097 | U21: =VLOOKUP(U$3,'Battery Energy Storage w Ancil'!$A$28:$S$59,19,FALSE) -> 2519812.162 | V21: =VLOOKUP(V$3,'Battery Energy Storage w Ancil'!$A$28:$S$59,19,FALSE) -> 2260634.58 | W21: =VLOOKUP(W$3,'Battery Energy Storage w Ancil'!$A$28:$S$59,19,FALSE) -> 2013060.899 | X21: =VLOOKUP(X$3,'Battery Energy Storage w Ancil'!$A$28:$S$59,19,FALSE) -> 1776530.361 | Y21: =VLOOKUP(Y$3,'Battery Energy Storage w Ancil'!$A$28:$S$59,19,FALSE) -> 1504799.931
A22: EV w Ancillary | B22: =-PMT(0.06804,24,NPV(0.06804,LC!C22:Y22)) -> 6922651.257 | C22: =VLOOKUP(C$3,'DLC-EV w Ancil'!$A$28:$S$59,19,FALSE) -> 0 | D22: =VLOOKUP(D$3,'DLC-EV w Ancil'!$A$28:$S$59,19,FALSE) -> 178454.9801 | E22: =VLOOKUP(E$3,'DLC-EV w Ancil'!$A$28:$S$59,19,FALSE) -> 298887.1883 | F22: =VLOOKUP(F$3,'DLC-EV w Ancil'!$A$28:$S$59,19,FALSE) -> 618364.7882 | G22: =VLOOKUP(G$3,'DLC-EV w Ancil'!$A$28:$S$59,19,FALSE) -> 962876.0872 | H22: =VLOOKUP(H$3,'DLC-EV w Ancil'!$A$28:$S$59,19,FALSE) -> 1382006.461 | I22: =VLOOKUP(I$3,'DLC-EV w Ancil'!$A$28:$S$59,19,FALSE) -> 1841143.614 | J22: =VLOOKUP(J$3,'DLC-EV w Ancil'!$A$28:$S$59,19,FALSE) -> 2452393.071 | K22: =VLOOKUP(K$3,'DLC-EV w Ancil'!$A$28:$S$59,19,FALSE) -> 3533676.807 | L22: =VLOOKUP(L$3,'DLC-EV w Ancil'!$A$28:$S$59,19,FALSE) -> 4724944.327 | M22: =VLOOKUP(M$3,'DLC-EV w Ancil'!$A$28:$S$59,19,FALSE) -> 6037135.309 | N22: =VLOOKUP(N$3,'DLC-EV w Ancil'!$A$28:$S$59,19,FALSE) -> 7473261.79 | O22: =VLOOKUP(O$3,'DLC-EV w Ancil'!$A$28:$S$59,19,FALSE) -> 9046824.927 | P22: =VLOOKUP(P$3,'DLC-EV w Ancil'!$A$28:$S$59,19,FALSE) -> 10755295.63 | Q22: =VLOOKUP(Q$3,'DLC-EV w Ancil'!$A$28:$S$59,19,FALSE) -> 12639145.66 | R22: =VLOOKUP(R$3,'DLC-EV w Ancil'!$A$28:$S$59,19,FALSE) -> 14707808.28 | S22: =VLOOKUP(S$3,'DLC-EV w Ancil'!$A$28:$S$59,19,FALSE) -> 16983305.35 | T22: =VLOOKUP(T$3,'DLC-EV w Ancil'!$A$28:$S$59,19,FALSE) -> 19468857.58 | U22: =VLOOKUP(U$3,'DLC-EV w Ancil'!$A$28:$S$59,19,FALSE) -> 22142589.52 | V22: =VLOOKUP(V$3,'DLC-EV w Ancil'!$A$28:$S$59,19,FALSE) -> 25077765.78 | W22: =VLOOKUP(W$3,'DLC-EV w Ancil'!$A$28:$S$59,19,FALSE) -> 28295438.8 | X22: =VLOOKUP(X$3,'DLC-EV w Ancil'!$A$28:$S$59,19,FALSE) -> 31817915.42 | Y22: =VLOOKUP(Y$3,'DLC-EV w Ancil'!$A$28:$S$59,19,FALSE) -> 35668788.72
A23: Cooling w Ancillary | B23: =-PMT(0.06804,24,NPV(0.06804,LC!C23:Y23)) -> 2111726.895 | C23: =VLOOKUP(C$3,'DLC-AC w Ancil'!$A$28:$S$59,19,FALSE) -> 0 | D23: =VLOOKUP(D$3,'DLC-AC w Ancil'!$A$28:$S$59,19,FALSE) -> 371942.7661 | E23: =VLOOKUP(E$3,'DLC-AC w Ancil'!$A$28:$S$59,19,FALSE) -> 872581.5604 | F23: =VLOOKUP(F$3,'DLC-AC w Ancil'!$A$28:$S$59,19,FALSE) -> 1910389.64 | G23: =VLOOKUP(G$3,'DLC-AC w Ancil'!$A$28:$S$59,19,FALSE) -> 2450457.949 | H23: =VLOOKUP(H$3,'DLC-AC w Ancil'!$A$28:$S$59,19,FALSE) -> 2734085.665 | I23: =VLOOKUP(I$3,'DLC-AC w Ancil'!$A$28:$S$59,19,FALSE) -> 2742876.11 | J23: =VLOOKUP(J$3,'DLC-AC w Ancil'!$A$28:$S$59,19,FALSE) -> 2760587.767 | K23: =VLOOKUP(K$3,'DLC-AC w Ancil'!$A$28:$S$59,19,FALSE) -> 2787019.843 | L23: =VLOOKUP(L$3,'DLC-AC w Ancil'!$A$28:$S$59,19,FALSE) -> 2821692.749 | M23: =VLOOKUP(M$3,'DLC-AC w Ancil'!$A$28:$S$59,19,FALSE) -> 2863241.846 | N23: =VLOOKUP(N$3,'DLC-AC w Ancil'!$A$28:$S$59,19,FALSE) -> 2840111.624 | O23: =VLOOKUP(O$3,'DLC-AC w Ancil'!$A$28:$S$59,19,FALSE) -> 2750685.689 | P23: =VLOOKUP(P$3,'DLC-AC w Ancil'!$A$28:$S$59,19,FALSE) -> 2518377.425 | Q23: =VLOOKUP(Q$3,'DLC-AC w Ancil'!$A$28:$S$59,19,FALSE) -> 2451118.546 | R23: =VLOOKUP(R$3,'DLC-AC w Ancil'!$A$28:$S$59,19,FALSE) -> 2472697.68 | S23: =VLOOKUP(S$3,'DLC-AC w Ancil'!$A$28:$S$59,19,FALSE) -> 2585755.653 | T23: =VLOOKUP(T$3,'DLC-AC w Ancil'!$A$28:$S$59,19,FALSE) -> 2704401.485 | U23: =VLOOKUP(U$3,'DLC-AC w Ancil'!$A$28:$S$59,19,FALSE) -> 2828926.25 | V23: =VLOOKUP(V$3,'DLC-AC w Ancil'!$A$28:$S$59,19,FALSE) -> 2959636.655 | W23: =VLOOKUP(W$3,'DLC-AC w Ancil'!$A$28:$S$59,19,FALSE) -> 3096856.041 | X23: =VLOOKUP(X$3,'DLC-AC w Ancil'!$A$28:$S$59,19,FALSE) -> 3240925.071 | Y23: =VLOOKUP(Y$3,'DLC-AC w Ancil'!$A$28:$S$59,19,FALSE) -> 3302076.707
A24: DLC WH w Ancillary | B24: =-PMT(0.06804,24,NPV(0.06804,LC!C24:Y24)) -> 1402888.702 | C24: =VLOOKUP(C$3,'DLC-WH w Ancil'!$A$28:$S$59,19,FALSE) -> 0 | D24: =VLOOKUP(D$3,'DLC-WH w Ancil'!$A$28:$S$59,19,FALSE) -> 347506.7718 | E24: =VLOOKUP(E$3,'DLC-WH w Ancil'!$A$28:$S$59,19,FALSE) -> 718309.8244 | F24: =VLOOKUP(F$3,'DLC-WH w Ancil'!$A$28:$S$59,19,FALSE) -> 1468834.212 | G24: =VLOOKUP(G$3,'DLC-WH w Ancil'!$A$28:$S$59,19,FALSE) -> 1837796.412 | H24: =VLOOKUP(H$3,'DLC-WH w Ancil'!$A$28:$S$59,19,FALSE) -> 2012028.643 | I24: =VLOOKUP(I$3,'DLC-WH w Ancil'!$A$28:$S$59,19,FALSE) -> 1986653.272 | J24: =VLOOKUP(J$3,'DLC-WH w Ancil'!$A$28:$S$59,19,FALSE) -> 1966728.528 | K24: =VLOOKUP(K$3,'DLC-WH w Ancil'!$A$28:$S$59,19,FALSE) -> 1951934.375 | L24: =VLOOKUP(L$3,'DLC-WH w Ancil'!$A$28:$S$59,19,FALSE) -> 1941740.324 | M24: =VLOOKUP(M$3,'DLC-WH w Ancil'!$A$28:$S$59,19,FALSE) -> 1934912.644 | N24: =VLOOKUP(N$3,'DLC-WH w Ancil'!$A$28:$S$59,19,FALSE) -> 1873295.942 | O24: =VLOOKUP(O$3,'DLC-WH w Ancil'!$A$28:$S$59,19,FALSE) -> 1759143.875 | P24: =VLOOKUP(P$3,'DLC-WH w Ancil'!$A$28:$S$59,19,FALSE) -> 1535532.027 | Q24: =VLOOKUP(Q$3,'DLC-WH w Ancil'!$A$28:$S$59,19,FALSE) -> 1441995.99 | R24: =VLOOKUP(R$3,'DLC-WH w Ancil'!$A$28:$S$59,19,FALSE) -> 1416193.39 | S24: =VLOOKUP(S$3,'DLC-WH w Ancil'!$A$28:$S$59,19,FALSE) -> 1457473.441 | T24: =VLOOKUP(T$3,'DLC-WH w Ancil'!$A$28:$S$59,19,FALSE) -> 1499975.174 | U24: =VLOOKUP(U$3,'DLC-WH w Ancil'!$A$28:$S$59,19,FALSE) -> 1543735.298 | V24: =VLOOKUP(V$3,'DLC-WH w Ancil'!$A$28:$S$59,19,FALSE) -> 1588791.451 | W24: =VLOOKUP(W$3,'DLC-WH w Ancil'!$A$28:$S$59,19,FALSE) -> 1635182.514 | X24: =VLOOKUP(X$3,'DLC-WH w Ancil'!$A$28:$S$59,19,FALSE) -> 1682948.469 | Y24: =VLOOKUP(Y$3,'DLC-WH w Ancil'!$A$28:$S$59,19,FALSE) -> 1744530.183
A25: ERWH w Ancillary | B25: =-PMT(0.06804,24,NPV(0.06804,LC!C25:Y25)) -> 1714164.415 | C25: =VLOOKUP(C$3,'CTA ERWH w Ancil'!$A$28:$S$59,19,FALSE) -> 0 | D25: =VLOOKUP(D$3,'CTA ERWH w Ancil'!$A$28:$S$59,19,FALSE) -> 109180.3684 | E25: =VLOOKUP(E$3,'CTA ERWH w Ancil'!$A$28:$S$59,19,FALSE) -> 160821.3125 | F25: =VLOOKUP(F$3,'CTA ERWH w Ancil'!$A$28:$S$59,19,FALSE) -> 268803.2506 | G25: =VLOOKUP(G$3,'CTA ERWH w Ancil'!$A$28:$S$59,19,FALSE) -> 423830.8078 | H25: =VLOOKUP(H$3,'CTA ERWH w Ancil'!$A$28:$S$59,19,FALSE) -> 656284.2046 | I25: =VLOOKUP(I$3,'CTA ERWH w Ancil'!$A$28:$S$59,19,FALSE) -> 953857.2346 | J25: =VLOOKUP(J$3,'CTA ERWH w Ancil'!$A$28:$S$59,19,FALSE) -> 1383646.639 | K25: =VLOOKUP(K$3,'CTA ERWH w Ancil'!$A$28:$S$59,19,FALSE) -> 1903360.514 | L25: =VLOOKUP(L$3,'CTA ERWH w Ancil'!$A$28:$S$59,19,FALSE) -> 2514833.251 | M25: =VLOOKUP(M$3,'CTA ERWH w Ancil'!$A$28:$S$59,19,FALSE) -> 3194426.523 | N25: =VLOOKUP(N$3,'CTA ERWH w Ancil'!$A$28:$S$59,19,FALSE) -> 3396391.692 | O25: =VLOOKUP(O$3,'CTA ERWH w Ancil'!$A$28:$S$59,19,FALSE) -> 3550672.897 | P25: =VLOOKUP(P$3,'CTA ERWH w Ancil'!$A$28:$S$59,19,FALSE) -> 3645750.886 | Q25: =VLOOKUP(Q$3,'CTA ERWH w Ancil'!$A$28:$S$59,19,FALSE) -> 3693544.526 | R25: =VLOOKUP(R$3,'CTA ERWH w Ancil'!$A$28:$S$59,19,FALSE) -> 3692440.254 | S25: =VLOOKUP(S$3,'CTA ERWH w Ancil'!$A$28:$S$59,19,FALSE) -> 3652422.434 | T25: =VLOOKUP(T$3,'CTA ERWH w Ancil'!$A$28:$S$59,19,FALSE) -> 3562575.299 | U25: =VLOOKUP(U$3,'CTA ERWH w Ancil'!$A$28:$S$59,19,FALSE) -> 3439617.947 | V25: =VLOOKUP(V$3,'CTA ERWH w Ancil'!$A$28:$S$59,19,FALSE) -> 3287046.824 | W25: =VLOOKUP(W$3,'CTA ERWH w Ancil'!$A$28:$S$59,19,FALSE) -> 3115579.057 | X25: =VLOOKUP(X$3,'CTA ERWH w Ancil'!$A$28:$S$59,19,FALSE) -> 3074142.686 | Y25: =VLOOKUP(Y$3,'CTA ERWH w Ancil'!$A$28:$S$59,19,FALSE) -> 3099173.916
A26: HPWH w Ancillary | B26: =-PMT(0.06804,24,NPV(0.06804,LC!C26:Y26)) -> 1045859.964 | C26: =VLOOKUP(C$3,'CTA HPWH w Ancil'!$A$28:$S$59,19,FALSE) -> 0 | D26: =VLOOKUP(D$3,'CTA HPWH w Ancil'!$A$28:$S$59,19,FALSE) -> 89654.70838 | E26: =VLOOKUP(E$3,'CTA HPWH w Ancil'!$A$28:$S$59,19,FALSE) -> 111993.2985 | F26: =VLOOKUP(F$3,'CTA HPWH w Ancil'!$A$28:$S$59,19,FALSE) -> 160622.8785 | G26: =VLOOKUP(G$3,'CTA HPWH w Ancil'!$A$28:$S$59,19,FALSE) -> 235782.46 | H26: =VLOOKUP(H$3,'CTA HPWH w Ancil'!$A$28:$S$59,19,FALSE) -> 351426.389 | I26: =VLOOKUP(I$3,'CTA HPWH w Ancil'!$A$28:$S$59,19,FALSE) -> 500217.4039 | J26: =VLOOKUP(J$3,'CTA HPWH w Ancil'!$A$28:$S$59,19,FALSE) -> 715669.833 | K26: =VLOOKUP(K$3,'CTA HPWH w Ancil'!$A$28:$S$59,19,FALSE) -> 975883.702 | L26: =VLOOKUP(L$3,'CTA HPWH w Ancil'!$A$28:$S$59,19,FALSE) -> 1281278.89 | M26: =VLOOKUP(M$3,'CTA HPWH w Ancil'!$A$28:$S$59,19,FALSE) -> 1660585.519 | N26: =VLOOKUP(N$3,'CTA HPWH w Ancil'!$A$28:$S$59,19,FALSE) -> 1797634.244 | O26: =VLOOKUP(O$3,'CTA HPWH w Ancil'!$A$28:$S$59,19,FALSE) -> 1927996.364 | P26: =VLOOKUP(P$3,'CTA HPWH w Ancil'!$A$28:$S$59,19,FALSE) -> 2045659.253 | Q26: =VLOOKUP(Q$3,'CTA HPWH w Ancil'!$A$28:$S$59,19,FALSE) -> 2152023.355 | R26: =VLOOKUP(R$3,'CTA HPWH w Ancil'!$A$28:$S$59,19,FALSE) -> 2246518.716 | S26: =VLOOKUP(S$3,'CTA HPWH w Ancil'!$A$28:$S$59,19,FALSE) -> 2333127.056 | T26: =VLOOKUP(T$3,'CTA HPWH w Ancil'!$A$28:$S$59,19,FALSE) -> 2402327.338 | U26: =VLOOKUP(U$3,'CTA HPWH w Ancil'!$A$28:$S$59,19,FALSE) -> 2461109.57 | V26: =VLOOKUP(V$3,'CTA HPWH w Ancil'!$A$28:$S$59,19,FALSE) -> 2511748.218 | W26: =VLOOKUP(W$3,'CTA HPWH w Ancil'!$A$28:$S$59,19,FALSE) -> 2547296.93 | X26: =VLOOKUP(X$3,'CTA HPWH w Ancil'!$A$28:$S$59,19,FALSE) -> 2654022.631 | Y26: =VLOOKUP(Y$3,'CTA HPWH w Ancil'!$A$28:$S$59,19,FALSE) -> 2661696.177
A27: Third Party w Ancillary | B27: =-PMT(0.06804,24,NPV(0.06804,LC!C27:Y27)) -> 2325801.239 | C27: =VLOOKUP(C$3,'3rd party cont. w Ancil'!$A$28:$S$59,19,FALSE) -> 0 | D27: =VLOOKUP(D$3,'3rd party cont. w Ancil'!$A$28:$S$59,19,FALSE) -> 1009041.527 | E27: =VLOOKUP(E$3,'3rd party cont. w Ancil'!$A$28:$S$59,19,FALSE) -> 1794445.186 | F27: =VLOOKUP(F$3,'3rd party cont. w Ancil'!$A$28:$S$59,19,FALSE) -> 2289744.011 | G27: =VLOOKUP(G$3,'3rd party cont. w Ancil'!$A$28:$S$59,19,FALSE) -> 2340330.704 | H27: =VLOOKUP(H$3,'3rd party cont. w Ancil'!$A$28:$S$59,19,FALSE) -> 2392973.45 | I27: =VLOOKUP(I$3,'3rd party cont. w Ancil'!$A$28:$S$59,19,FALSE) -> 2447187.689 | J27: =VLOOKUP(J$3,'3rd party cont. w Ancil'!$A$28:$S$59,19,FALSE) -> 2504013.209 | K27: =VLOOKUP(K$3,'3rd party cont. w Ancil'!$A$28:$S$59,19,FALSE) -> 2565149.094 | L27: =VLOOKUP(L$3,'3rd party cont. w Ancil'!$A$28:$S$59,19,FALSE) -> 2629239.414 | M27: =VLOOKUP(M$3,'3rd party cont. w Ancil'!$A$28:$S$59,19,FALSE) -> 2696677.626 | N27: =VLOOKUP(N$3,'3rd party cont. w Ancil'!$A$28:$S$59,19,FALSE) -> 2767949.388 | O27: =VLOOKUP(O$3,'3rd party cont. w Ancil'!$A$28:$S$59,19,FALSE) -> 2843655.464 | P27: =VLOOKUP(P$3,'3rd party cont. w Ancil'!$A$28:$S$59,19,FALSE) -> 2924540.015 | Q27: =VLOOKUP(Q$3,'3rd party cont. w Ancil'!$A$28:$S$59,19,FALSE) -> 3011523.988 | R27: =VLOOKUP(R$3,'3rd party cont. w Ancil'!$A$28:$S$59,19,FALSE) -> 3105744.138 | S27: =VLOOKUP(S$3,'3rd party cont. w Ancil'!$A$28:$S$59,19,FALSE) -> 3208597.215 | T27: =VLOOKUP(T$3,'3rd party cont. w Ancil'!$A$28:$S$59,19,FALSE) -> 3321788.295 | U27: =VLOOKUP(U$3,'3rd party cont. w Ancil'!$A$28:$S$59,19,FALSE) -> 3447379.69 | V27: =VLOOKUP(V$3,'3rd party cont. w Ancil'!$A$28:$S$59,19,FALSE) -> 3587837.839 | W27: =VLOOKUP(W$3,'3rd party cont. w Ancil'!$A$28:$S$59,19,FALSE) -> 3746070.477 | X27: =VLOOKUP(X$3,'3rd party cont. w Ancil'!$A$28:$S$59,19,FALSE) -> 3925447.667 | Y27: =VLOOKUP(Y$3,'3rd party cont. w Ancil'!$A$28:$S$59,19,FALSE) -> 4129797.662
A28: MW
A29: Battery Energy Storage | B29: =-PMT(0.06804,24,NPV(0.06804,LC!C29:Y29)) -> 2.05505088 | C29: =MAX('AEG Input File'!E3,'AEG Input File'!AC3) -> 0 | D29: =MAX('AEG Input File'!F3,'AEG Input File'!AD3) -> 0.07949514549 | E29: =MAX('AEG Input File'!G3,'AEG Input File'!AE3) -> 0.1821776143 | F29: =MAX('AEG Input File'!H3,'AEG Input File'!AF3) -> 0.3678648607 | G29: =MAX('AEG Input File'!I3,'AEG Input File'!AG3) -> 0.5570307428 | H29: =MAX('AEG Input File'!J3,'AEG Input File'!AH3) -> 0.7497316501 | I29: =MAX('AEG Input File'!K3,'AEG Input File'!AI3) -> 1.041001531 | J29: =MAX('AEG Input File'!L3,'AEG Input File'!AJ3) -> 1.337932754 | K29: =MAX('AEG Input File'!M3,'AEG Input File'!AK3) -> 1.640617574 | L29: =MAX('AEG Input File'!N3,'AEG Input File'!AL3) -> 2.046606855 | M29: =MAX('AEG Input File'!O3,'AEG Input File'!AM3) -> 2.460459517 | N29: =MAX('AEG Input File'!P3,'AEG Input File'!AN3) -> 2.88230269 | O29: =MAX('AEG Input File'!Q3,'AEG Input File'!AO3) -> 3.412636793 | P29: =MAX('AEG Input File'!R3,'AEG Input File'!AP3) -> 3.953205718 | Q29: =MAX('AEG Input File'!S3,'AEG Input File'!AQ3) -> 4.504173831 | R29: =MAX('AEG Input File'!T3,'AEG Input File'!AR3) -> 5.169089429 | S29: =MAX('AEG Input File'!U3,'AEG Input File'!AS3) -> 5.220347997 | T29: =MAX('AEG Input File'!V3,'AEG Input File'!AT3) -> 5.272160451 | U29: =MAX('AEG Input File'!W3,'AEG Input File'!AU3) -> 5.324532272 | V29: =MAX('AEG Input File'!X3,'AEG Input File'!AV3) -> 5.377469023 | W29: =MAX('AEG Input File'!Y3,'AEG Input File'!AW3) -> 5.430976349 | X29: =MAX('AEG Input File'!Z3,'AEG Input File'!AX3) -> 5.485059982 | Y29: =MAX('AEG Input File'!AA3,'AEG Input File'!AY3) -> 5.539725736
A30: Behavioral | B30: =-PMT(0.06804,24,NPV(0.06804,LC!C30:Y30)) -> 3.045589597 | C30: =MAX('AEG Input File'!E4,'AEG Input File'!AC4) -> 0 | D30: =MAX('AEG Input File'!F4,'AEG Input File'!AD4) -> 1.440513263 | E30: =MAX('AEG Input File'!G4,'AEG Input File'!AE4) -> 2.606163579 | F30: =MAX('AEG Input File'!H4,'AEG Input File'!AF4) -> 3.283271338 | G30: =MAX('AEG Input File'!I4,'AEG Input File'!AG4) -> 3.313141897 | H30: =MAX('AEG Input File'!J4,'AEG Input File'!AH4) -> 3.345357563 | I30: =MAX('AEG Input File'!K4,'AEG Input File'!AI4) -> 3.380661533 | J30: =MAX('AEG Input File'!L4,'AEG Input File'!AJ4) -> 3.41939085 | K30: =MAX('AEG Input File'!M4,'AEG Input File'!AK4) -> 3.468508611 | L30: =MAX('AEG Input File'!N4,'AEG Input File'!AL4) -> 3.51968479 | M30: =MAX('AEG Input File'!O4,'AEG Input File'!AM4) -> 3.573044306 | N30: =MAX('AEG Input File'!P4,'AEG Input File'!AN4) -> 3.628717414 | O30: =MAX('AEG Input File'!Q4,'AEG Input File'!AO4) -> 3.686839585 | P30: =MAX('AEG Input File'!R4,'AEG Input File'!AP4) -> 3.747551356 | Q30: =MAX('AEG Input File'!S4,'AEG Input File'!AQ4) -> 3.810998112 | R30: =MAX('AEG Input File'!T4,'AEG Input File'!AR4) -> 3.877329837 | S30: =MAX('AEG Input File'!U4,'AEG Input File'!AS4) -> 3.946700807 | T30: =MAX('AEG Input File'!V4,'AEG Input File'!AT4) -> 4.019269238 | U30: =MAX('AEG Input File'!W4,'AEG Input File'!AU4) -> 4.095196891 | V30: =MAX('AEG Input File'!X4,'AEG Input File'!AV4) -> 4.174648627 | W30: =MAX('AEG Input File'!Y4,'AEG Input File'!AW4) -> 4.257791928 | X30: =MAX('AEG Input File'!Z4,'AEG Input File'!AX4) -> 4.344796379 | Y30: =MAX('AEG Input File'!AA4,'AEG Input File'!AY4) -> 4.435833121
A31: DLC Central AC | B31: =-PMT(0.06804,24,NPV(0.06804,LC!C31:Y31)) -> 9.049152191 | C31: =MAX('AEG Input File'!E5,'AEG Input File'!AC5) -> 0 | D31: =MAX('AEG Input File'!F5,'AEG Input File'!AD5) -> 0.9575503631 | E31: =MAX('AEG Input File'!G5,'AEG Input File'!AE5) -> 2.939190559 | F31: =MAX('AEG Input File'!H5,'AEG Input File'!AF5) -> 7.009804302 | G31: =MAX('AEG Input File'!I5,'AEG Input File'!AG5) -> 9.211664766 | H31: =MAX('AEG Input File'!J5,'AEG Input File'!AH5) -> 10.46217706 | I31: =MAX('AEG Input File'!K5,'AEG Input File'!AI5) -> 10.69934457 | J31: =MAX('AEG Input File'!L5,'AEG Input File'!AJ5) -> 10.94326869 | K31: =MAX('AEG Input File'!M5,'AEG Input File'!AK5) -> 11.19416386 | L31: =MAX('AEG Input File'!N5,'AEG Input File'!AL5) -> 11.45225164 | M31: =MAX('AEG Input File'!O5,'AEG Input File'!AM5) -> 11.71776093 | N31: =MAX('AEG Input File'!P5,'AEG Input File'!AN5) -> 11.99092821 | O31: =MAX('AEG Input File'!Q5,'AEG Input File'!AO5) -> 12.2719978 | P31: =MAX('AEG Input File'!R5,'AEG Input File'!AP5) -> 12.56122215 | Q31: =MAX('AEG Input File'!S5,'AEG Input File'!AQ5) -> 12.85886205 | R31: =MAX('AEG Input File'!T5,'AEG Input File'!AR5) -> 13.16518699 | S31: =MAX('AEG Input File'!U5,'AEG Input File'!AS5) -> 13.4804754 | T31: =MAX('AEG Input File'!V5,'AEG Input File'!AT5) -> 13.80501495 | U31: =MAX('AEG Input File'!W5,'AEG Input File'!AU5) -> 14.13910292 | V31: =MAX('AEG Input File'!X5,'AEG Input File'!AV5) -> 14.48304644 | W31: =MAX('AEG Input File'!Y5,'AEG Input File'!AW5) -> 14.83716289 | X31: =MAX('AEG Input File'!Z5,'AEG Input File'!AX5) -> 15.2017802 | Y31: =MAX('AEG Input File'!AA5,'AEG Input File'!AY5) -> 15.36009372
A32: DLC Electric Vehicle Charging | B32: =-PMT(0.06804,24,NPV(0.06804,LC!C32:Y32)) -> 6.117593928 | C32: =MAX('AEG Input File'!E6,'AEG Input File'!AC6) -> 0 | D32: =MAX('AEG Input File'!F6,'AEG Input File'!AD6) -> 0.04231732702 | E32: =MAX('AEG Input File'!G6,'AEG Input File'!AE6) -> 0.1634371673 | F32: =MAX('AEG Input File'!H6,'AEG Input File'!AF6) -> 0.4998659208 | G32: =MAX('AEG Input File'!I6,'AEG Input File'!AG6) -> 0.8561925662 | H32: =MAX('AEG Input File'!J6,'AEG Input File'!AH6) -> 1.282813661 | I32: =MAX('AEG Input File'!K6,'AEG Input File'!AI6) -> 1.740979775 | J32: =MAX('AEG Input File'!L6,'AEG Input File'!AJ6) -> 2.340489536 | K32: =MAX('AEG Input File'!M6,'AEG Input File'!AK6) -> 3.385638215 | L32: =MAX('AEG Input File'!N6,'AEG Input File'!AL6) -> 4.512246761 | M32: =MAX('AEG Input File'!O6,'AEG Input File'!AM6) -> 5.725707452 | N32: =MAX('AEG Input File'!P6,'AEG Input File'!AN6) -> 7.031645232 | O32: =MAX('AEG Input File'!Q6,'AEG Input File'!AO6) -> 8.435912668 | P32: =MAX('AEG Input File'!R6,'AEG Input File'!AP6) -> 9.944582932 | Q32: =MAX('AEG Input File'!S6,'AEG Input File'!AQ6) -> 11.56394073 | R32: =MAX('AEG Input File'!T6,'AEG Input File'!AR6) -> 13.3004711 | S32: =MAX('AEG Input File'!U6,'AEG Input File'!AS6) -> 15.16084616 | T32: =MAX('AEG Input File'!V6,'AEG Input File'!AT6) -> 17.15190969 | U32: =MAX('AEG Input File'!W6,'AEG Input File'!AU6) -> 19.28065974 | V32: =MAX('AEG Input File'!X6,'AEG Input File'!AV6) -> 21.55422933 | W32: =MAX('AEG Input File'!Y6,'AEG Input File'!AW6) -> 23.97986542 | X32: =MAX('AEG Input File'!Z6,'AEG Input File'!AX6) -> 26.56490627 | Y32: =MAX('AEG Input File'!AA6,'AEG Input File'!AY6) -> 29.31675758
A33: DLC Smart Appliances | B33: =-PMT(0.06804,24,NPV(0.06804,LC!C33:Y33)) -> 2.491639214 | C33: =MAX('AEG Input File'!E7,'AEG Input File'!AC7) -> 0 | D33: =MAX('AEG Input File'!F7,'AEG Input File'!AD7) -> 0.2976131517 | E33: =MAX('AEG Input File'!G7,'AEG Input File'!AE7) -> 0.9029667572 | F33: =MAX('AEG Input File'!H7,'AEG Input File'!AF7) -> 2.128368197 | G33: =MAX('AEG Input File'!I7,'AEG Input File'!AG7) -> 2.76388764 | H33: =MAX('AEG Input File'!J7,'AEG Input File'!AH7) -> 3.101647797 | I33: =MAX('AEG Input File'!K7,'AEG Input File'!AI7) -> 3.13375581 | J33: =MAX('AEG Input File'!L7,'AEG Input File'!AJ7) -> 3.166202977 | K33: =MAX('AEG Input File'!M7,'AEG Input File'!AK7) -> 3.198992954 | L33: =MAX('AEG Input File'!N7,'AEG Input File'!AL7) -> 3.232129435 | M33: =MAX('AEG Input File'!O7,'AEG Input File'!AM7) -> 3.265616158 | N33: =MAX('AEG Input File'!P7,'AEG Input File'!AN7) -> 3.2994569 | O33: =MAX('AEG Input File'!Q7,'AEG Input File'!AO7) -> 3.33365548 | P33: =MAX('AEG Input File'!R7,'AEG Input File'!AP7) -> 3.368215759 | Q33: =MAX('AEG Input File'!S7,'AEG Input File'!AQ7) -> 3.403141641 | R33: =MAX('AEG Input File'!T7,'AEG Input File'!AR7) -> 3.438437072 | S33: =MAX('AEG Input File'!U7,'AEG Input File'!AS7) -> 3.474106043 | T33: =MAX('AEG Input File'!V7,'AEG Input File'!AT7) -> 3.510152587 | U33: =MAX('AEG Input File'!W7,'AEG Input File'!AU7) -> 3.546580782 | V33: =MAX('AEG Input File'!X7,'AEG Input File'!AV7) -> 3.583394753 | W33: =MAX('AEG Input File'!Y7,'AEG Input File'!AW7) -> 3.620598668 | X33: =MAX('AEG Input File'!Z7,'AEG Input File'!AX7) -> 3.658196741 | Y33: =MAX('AEG Input File'!AA7,'AEG Input File'!AY7) -> 3.696193234
A34: DLC Smart Thermostats - Cooling | B34: =-PMT(0.06804,24,NPV(0.06804,LC!C34:Y34)) -> 18.09830438 | C34: =MAX('AEG Input File'!E8,'AEG Input File'!AC8) -> 0 | D34: =MAX('AEG Input File'!F8,'AEG Input File'!AD8) -> 1.915100726 | E34: =MAX('AEG Input File'!G8,'AEG Input File'!AE8) -> 5.878381119 | F34: =MAX('AEG Input File'!H8,'AEG Input File'!AF8) -> 14.0196086 | G34: =MAX('AEG Input File'!I8,'AEG Input File'!AG8) -> 18.42332953 | H34: =MAX('AEG Input File'!J8,'AEG Input File'!AH8) -> 20.92435412 | I34: =MAX('AEG Input File'!K8,'AEG Input File'!AI8) -> 21.39868915 | J34: =MAX('AEG Input File'!L8,'AEG Input File'!AJ8) -> 21.88653738 | K34: =MAX('AEG Input File'!M8,'AEG Input File'!AK8) -> 22.38832772 | L34: =MAX('AEG Input File'!N8,'AEG Input File'!AL8) -> 22.90450328 | M34: =MAX('AEG Input File'!O8,'AEG Input File'!AM8) -> 23.43552186 | N34: =MAX('AEG Input File'!P8,'AEG Input File'!AN8) -> 23.98185642 | O34: =MAX('AEG Input File'!Q8,'AEG Input File'!AO8) -> 24.54399561 | P34: =MAX('AEG Input File'!R8,'AEG Input File'!AP8) -> 25.12244429 | Q34: =MAX('AEG Input File'!S8,'AEG Input File'!AQ8) -> 25.7177241 | R34: =MAX('AEG Input File'!T8,'AEG Input File'!AR8) -> 26.33037398 | S34: =MAX('AEG Input File'!U8,'AEG Input File'!AS8) -> 26.96095079 | T34: =MAX('AEG Input File'!V8,'AEG Input File'!AT8) -> 27.61002991 | U34: =MAX('AEG Input File'!W8,'AEG Input File'!AU8) -> 28.27820584 | V34: =MAX('AEG Input File'!X8,'AEG Input File'!AV8) -> 28.96609288 | W34: =MAX('AEG Input File'!Y8,'AEG Input File'!AW8) -> 29.67432578 | X34: =MAX('AEG Input File'!Z8,'AEG Input File'!AX8) -> 30.40356041 | Y34: =MAX('AEG Input File'!AA8,'AEG Input File'!AY8) -> 30.72018743
A35: DLC Smart Thermostats - Heating | B35: =-PMT(0.06804,24,NPV(0.06804,LC!C35:Y35)) -> 3.571119572 | C35: =MAX('AEG Input File'!E9,'AEG Input File'!AC9) -> 0 | D35: =MAX('AEG Input File'!F9,'AEG Input File'!AD9) -> 0 | E35: =MAX('AEG Input File'!G9,'AEG Input File'!AE9) -> 0.4691454059 | F35: =MAX('AEG Input File'!H9,'AEG Input File'!AF9) -> 1.421739454 | G35: =MAX('AEG Input File'!I9,'AEG Input File'!AG9) -> 3.350583084 | H35: =MAX('AEG Input File'!J9,'AEG Input File'!AH9) -> 4.350850884 | I35: =MAX('AEG Input File'!K9,'AEG Input File'!AI9) -> 4.884368925 | J35: =MAX('AEG Input File'!L9,'AEG Input File'!AJ9) -> 4.934988942 | K35: =MAX('AEG Input File'!M9,'AEG Input File'!AK9) -> 4.986144536 | L35: =MAX('AEG Input File'!N9,'AEG Input File'!AL9) -> 5.037841494 | M35: =MAX('AEG Input File'!O9,'AEG Input File'!AM9) -> 5.090085666 | N35: =MAX('AEG Input File'!P9,'AEG Input File'!AN9) -> 5.142882967 | O35: =MAX('AEG Input File'!Q9,'AEG Input File'!AO9) -> 5.196239378 | P35: =MAX('AEG Input File'!R9,'AEG Input File'!AP9) -> 5.250160945 | Q35: =MAX('AEG Input File'!S9,'AEG Input File'!AQ9) -> 5.304653782 | R35: =MAX('AEG Input File'!T9,'AEG Input File'!AR9) -> 5.359724069 | S35: =MAX('AEG Input File'!U9,'AEG Input File'!AS9) -> 5.415378056 | T35: =MAX('AEG Input File'!V9,'AEG Input File'!AT9) -> 5.47162206 | U35: =MAX('AEG Input File'!W9,'AEG Input File'!AU9) -> 5.528462469 | V35: =MAX('AEG Input File'!X9,'AEG Input File'!AV9) -> 5.585905742 | W35: =MAX('AEG Input File'!Y9,'AEG Input File'!AW9) -> 5.643958409 | X35: =MAX('AEG Input File'!Z9,'AEG Input File'!AX9) -> 5.702627071 | Y35: =MAX('AEG Input File'!AA9,'AEG Input File'!AY9) -> 5.761918404
A36: DLC Water Heating | B36: =-PMT(0.06804,24,NPV(0.06804,LC!C36:Y36)) -> 1.626714445 | C36: =MAX('AEG Input File'!E10,'AEG Input File'!AC10) -> 0 | D36: =MAX('AEG Input File'!F10,'AEG Input File'!AD10) -> 0.197198521 | E36: =MAX('AEG Input File'!G10,'AEG Input File'!AE10) -> 0.5969993548 | F36: =MAX('AEG Input File'!H10,'AEG Input File'!AF10) -> 1.404901208 | G36: =MAX('AEG Input File'!I10,'AEG Input File'!AG10) -> 1.822234388 | H36: =MAX('AEG Input File'!J10,'AEG Input File'!AH10) -> 2.042390984 | I36: =MAX('AEG Input File'!K10,'AEG Input File'!AI10) -> 2.060373107 | J36: =MAX('AEG Input File'!L10,'AEG Input File'!AJ10) -> 2.078516707 | K36: =MAX('AEG Input File'!M10,'AEG Input File'!AK10) -> 2.096823264 | L36: =MAX('AEG Input File'!N10,'AEG Input File'!AL10) -> 2.115294274 | M36: =MAX('AEG Input File'!O10,'AEG Input File'!AM10) -> 2.133931246 | N36: =MAX('AEG Input File'!P10,'AEG Input File'!AN10) -> 2.152735704 | O36: =MAX('AEG Input File'!Q10,'AEG Input File'!AO10) -> 2.171709187 | P36: =MAX('AEG Input File'!R10,'AEG Input File'!AP10) -> 2.190853246 | Q36: =MAX('AEG Input File'!S10,'AEG Input File'!AQ10) -> 2.21016945 | R36: =MAX('AEG Input File'!T10,'AEG Input File'!AR10) -> 2.229659378 | S36: =MAX('AEG Input File'!U10,'AEG Input File'!AS10) -> 2.24932463 | T36: =MAX('AEG Input File'!V10,'AEG Input File'!AT10) -> 2.269166815 | U36: =MAX('AEG Input File'!W10,'AEG Input File'!AU10) -> 2.289187562 | V36: =MAX('AEG Input File'!X10,'AEG Input File'!AV10) -> 2.309388512 | W36: =MAX('AEG Input File'!Y10,'AEG Input File'!AW10) -> 2.329771323 | X36: =MAX('AEG Input File'!Z10,'AEG Input File'!AX10) -> 2.350337668 | Y36: =MAX('AEG Input File'!AA10,'AEG Input File'!AY10) -> 2.379340374
A37: CTA-2045 ERWH | B37: =-PMT(0.06804,24,NPV(0.06804,LC!C37:Y37)) -> 2.506265267 | C37: =MAX('AEG Input File'!E11,'AEG Input File'!AC11) -> 0 | D37: =MAX('AEG Input File'!F11,'AEG Input File'!AD11) -> 0.03462912227 | E37: =MAX('AEG Input File'!G11,'AEG Input File'!AE11) -> 0.105082399 | F37: =MAX('AEG Input File'!H11,'AEG Input File'!AF11) -> 0.2593657327 | G37: =MAX('AEG Input File'!I11,'AEG Input File'!AG11) -> 0.4827487829 | H37: =MAX('AEG Input File'!J11,'AEG Input File'!AH11) -> 0.8165779235 | I37: =MAX('AEG Input File'!K11,'AEG Input File'!AI11) -> 1.240984219 | J37: =MAX('AEG Input File'!L11,'AEG Input File'!AJ11) -> 1.844129192 | K37: =MAX('AEG Input File'!M11,'AEG Input File'!AK11) -> 2.564879861 | L37: =MAX('AEG Input File'!N11,'AEG Input File'!AL11) -> 3.402480246 | M37: =MAX('AEG Input File'!O11,'AEG Input File'!AM11) -> 4.335348489 | N37: =MAX('AEG Input File'!P11,'AEG Input File'!AN11) -> 4.680224249 | O37: =MAX('AEG Input File'!Q11,'AEG Input File'!AO11) -> 4.972200916 | P37: =MAX('AEG Input File'!R11,'AEG Input File'!AP11) -> 5.191952247 | Q37: =MAX('AEG Input File'!S11,'AEG Input File'!AQ11) -> 5.356884335 | R37: =MAX('AEG Input File'!T11,'AEG Input File'!AR11) -> 5.475971231 | S37: =MAX('AEG Input File'!U11,'AEG Input File'!AS11) -> 5.557890624 | T37: =MAX('AEG Input File'!V11,'AEG Input File'!AT11) -> 5.612920845 | U37: =MAX('AEG Input File'!W11,'AEG Input File'!AU11) -> 5.647462124 | V37: =MAX('AEG Input File'!X11,'AEG Input File'!AV11) -> 5.663550425 | W37: =MAX('AEG Input File'!Y11,'AEG Input File'!AW11) -> 5.665760378 | X37: =MAX('AEG Input File'!Z11,'AEG Input File'!AX11) -> 5.657338861 | Y37: =MAX('AEG Input File'!AA11,'AEG Input File'!AY11) -> 5.690716651
A38: CTA-2045 HPWH | B38: =-PMT(0.06804,24,NPV(0.06804,LC!C38:Y38)) -> 0.8722077504 | C38: =MAX('AEG Input File'!E12,'AEG Input File'!AC12) -> 0 | D38: =MAX('AEG Input File'!F12,'AEG Input File'!AD12) -> 0.004109437891 | E38: =MAX('AEG Input File'!G12,'AEG Input File'!AE12) -> 0.02044619191 | F38: =MAX('AEG Input File'!H12,'AEG Input File'!AF12) -> 0.06074040935 | G38: =MAX('AEG Input File'!I12,'AEG Input File'!AG12) -> 0.1247119726 | H38: =MAX('AEG Input File'!J12,'AEG Input File'!AH12) -> 0.22408573 | I38: =MAX('AEG Input File'!K12,'AEG Input File'!AI12) -> 0.3521592555 | J38: =MAX('AEG Input File'!L12,'AEG Input File'!AJ12) -> 0.5361550127 | K38: =MAX('AEG Input File'!M12,'AEG Input File'!AK12) -> 0.7574375537 | L38: =MAX('AEG Input File'!N12,'AEG Input File'!AL12) -> 1.015251114 | M38: =MAX('AEG Input File'!O12,'AEG Input File'!AM12) -> 1.331625073 | N38: =MAX('AEG Input File'!P12,'AEG Input File'!AN12) -> 1.464996586 | O38: =MAX('AEG Input File'!Q12,'AEG Input File'!AO12) -> 1.594507329 | P38: =MAX('AEG Input File'!R12,'AEG Input File'!AP12) -> 1.714285533 | Q38: =MAX('AEG Input File'!S12,'AEG Input File'!AQ12) -> 1.826431129 | R38: =MAX('AEG Input File'!T12,'AEG Input File'!AR12) -> 1.934692058 | S38: =MAX('AEG Input File'!U12,'AEG Input File'!AS12) -> 2.040626785 | T38: =MAX('AEG Input File'!V12,'AEG Input File'!AT12) -> 2.143163879 | U38: =MAX('AEG Input File'!W12,'AEG Input File'!AU12) -> 2.242342754 | V38: =MAX('AEG Input File'!X12,'AEG Input File'!AV12) -> 2.339931587 | W38: =MAX('AEG Input File'!Y12,'AEG Input File'!AW12) -> 2.435540604 | X38: =MAX('AEG Input File'!Z12,'AEG Input File'!AX12) -> 2.529089388 | Y38: =MAX('AEG Input File'!AA12,'AEG Input File'!AY12) -> 2.566845576
A39: Thermal Energy Storage | B39: =-PMT(0.06804,24,NPV(0.06804,LC!C39:Y39)) -> 0.5682718387 | C39: =MAX('AEG Input File'!E13,'AEG Input File'!AC13) -> 0 | D39: =MAX('AEG Input File'!F13,'AEG Input File'!AD13) -> 0.06254370328 | E39: =MAX('AEG Input File'!G13,'AEG Input File'!AE13) -> 0.2157383284 | F39: =MAX('AEG Input File'!H13,'AEG Input File'!AF13) -> 0.5057562307 | G39: =MAX('AEG Input File'!I13,'AEG Input File'!AG13) -> 0.6532877809 | H39: =MAX('AEG Input File'!J13,'AEG Input File'!AH13) -> 0.7292596207 | I39: =MAX('AEG Input File'!K13,'AEG Input File'!AI13) -> 0.7327113118 | J39: =MAX('AEG Input File'!L13,'AEG Input File'!AJ13) -> 0.7362296884 | K39: =MAX('AEG Input File'!M13,'AEG Input File'!AK13) -> 0.7398141136 | L39: =MAX('AEG Input File'!N13,'AEG Input File'!AL13) -> 0.7434640081 | M39: =MAX('AEG Input File'!O13,'AEG Input File'!AM13) -> 0.7471788475 | N39: =MAX('AEG Input File'!P13,'AEG Input File'!AN13) -> 0.7509581601 | O39: =MAX('AEG Input File'!Q13,'AEG Input File'!AO13) -> 0.7548015242 | P39: =MAX('AEG Input File'!R13,'AEG Input File'!AP13) -> 0.7587085665 | Q39: =MAX('AEG Input File'!S13,'AEG Input File'!AQ13) -> 0.7626789596 | R39: =MAX('AEG Input File'!T13,'AEG Input File'!AR13) -> 0.7667124203 | S39: =MAX('AEG Input File'!U13,'AEG Input File'!AS13) -> 0.7708087076 | T39: =MAX('AEG Input File'!V13,'AEG Input File'!AT13) -> 0.774967621 | U39: =MAX('AEG Input File'!W13,'AEG Input File'!AU13) -> 0.779188999 | V39: =MAX('AEG Input File'!X13,'AEG Input File'!AV13) -> 0.7834727172 | W39: =MAX('AEG Input File'!Y13,'AEG Input File'!AW13) -> 0.7878186873 | X39: =MAX('AEG Input File'!Z13,'AEG Input File'!AX13) -> 0.7922268552 | Y39: =MAX('AEG Input File'!AA13,'AEG Input File'!AY13) -> 0.7966971999
A40: Third Party Contracts | B40: =-PMT(0.06804,24,NPV(0.06804,LC!C40:Y40)) -> 21.59694026 | C40: =MAX('AEG Input File'!E14,'AEG Input File'!AC14) -> 0 | D40: =MAX('AEG Input File'!F14,'AEG Input File'!AD14) -> 11.42561709 | E40: =MAX('AEG Input File'!G14,'AEG Input File'!AE14) -> 19.87194626 | F40: =MAX('AEG Input File'!H14,'AEG Input File'!AF14) -> 24.80284816 | G40: =MAX('AEG Input File'!I14,'AEG Input File'!AG14) -> 24.79648563 | H40: =MAX('AEG Input File'!J14,'AEG Input File'!AH14) -> 24.79988657 | I40: =MAX('AEG Input File'!K14,'AEG Input File'!AI14) -> 24.81535077 | J40: =MAX('AEG Input File'!L14,'AEG Input File'!AJ14) -> 24.84459729 | K40: =MAX('AEG Input File'!M14,'AEG Input File'!AK14) -> 24.9030242 | L40: =MAX('AEG Input File'!N14,'AEG Input File'!AL14) -> 24.97552299 | M40: =MAX('AEG Input File'!O14,'AEG Input File'!AM14) -> 25.06452205 | N40: =MAX('AEG Input File'!P14,'AEG Input File'!AN14) -> 25.17303454 | O40: =MAX('AEG Input File'!Q14,'AEG Input File'!AO14) -> 25.30478864 | P40: =MAX('AEG Input File'!R14,'AEG Input File'!AP14) -> 25.46437958 | Q40: =MAX('AEG Input File'!S14,'AEG Input File'!AQ14) -> 25.65744292 | R40: =MAX('AEG Input File'!T14,'AEG Input File'!AR14) -> 25.89084524 | S40: =MAX('AEG Input File'!U14,'AEG Input File'!AS14) -> 26.17288432 | T40: =MAX('AEG Input File'!V14,'AEG Input File'!AT14) -> 26.51348451 | U40: =MAX('AEG Input File'!W14,'AEG Input File'!AU14) -> 26.92436542 | V40: =MAX('AEG Input File'!X14,'AEG Input File'!AV14) -> 27.41915313 | W40: =MAX('AEG Input File'!Y14,'AEG Input File'!AW14) -> 28.01339543 | X40: =MAX('AEG Input File'!Z14,'AEG Input File'!AX14) -> 28.72443761 | Y40: =MAX('AEG Input File'!AA14,'AEG Input File'!AY14) -> 29.57111885
A41: Time-of-Use Opt-in | B41: =-PMT(0.06804,24,NPV(0.06804,LC!C41:Y41)) -> 6.490558193 | C41: =MAX('AEG Input File'!E15,'AEG Input File'!AC15) -> 0 | D41: =MAX('AEG Input File'!F15,'AEG Input File'!AD15) -> 0.6987784526 | E41: =MAX('AEG Input File'!G15,'AEG Input File'!AE15) -> 2.344190977 | F41: =MAX('AEG Input File'!H15,'AEG Input File'!AF15) -> 5.500186342 | G41: =MAX('AEG Input File'!I15,'AEG Input File'!AG15) -> 7.120436582 | H41: =MAX('AEG Input File'!J15,'AEG Input File'!AH15) -> 7.970666029 | I41: =MAX('AEG Input File'!K15,'AEG Input File'!AI15) -> 8.036102027 | J41: =MAX('AEG Input File'!L15,'AEG Input File'!AJ15) -> 8.108632862 | K41: =MAX('AEG Input File'!M15,'AEG Input File'!AK15) -> 8.201646034 | L41: =MAX('AEG Input File'!N15,'AEG Input File'!AL15) -> 8.299399372 | M41: =MAX('AEG Input File'!O15,'AEG Input File'!AM15) -> 8.402310333 | N41: =MAX('AEG Input File'!P15,'AEG Input File'!AN15) -> 8.510853624 | O41: =MAX('AEG Input File'!Q15,'AEG Input File'!AO15) -> 8.625571689 | P41: =MAX('AEG Input File'!R15,'AEG Input File'!AP15) -> 8.747086909 | Q41: =MAX('AEG Input File'!S15,'AEG Input File'!AQ15) -> 8.876115459 | R41: =MAX('AEG Input File'!T15,'AEG Input File'!AR15) -> 9.013482513 | S41: =MAX('AEG Input File'!U15,'AEG Input File'!AS15) -> 9.160138142 | T41: =MAX('AEG Input File'!V15,'AEG Input File'!AT15) -> 9.317172736 | U41: =MAX('AEG Input File'!W15,'AEG Input File'!AU15) -> 9.485830154 | V41: =MAX('AEG Input File'!X15,'AEG Input File'!AV15) -> 9.667516082 | W41: =MAX('AEG Input File'!Y15,'AEG Input File'!AW15) -> 9.863798446 | X41: =MAX('AEG Input File'!Z15,'AEG Input File'!AX15) -> 10.07639632 | Y41: =MAX('AEG Input File'!AA15,'AEG Input File'!AY15) -> 10.30715407
A42: Time-of-Use Opt-out | B42: =-PMT(0.06804,24,NPV(0.06804,LC!C42:Y42)) -> 30.46144616 | C42: =MAX('AEG Input File'!E16,'AEG Input File'!AC16) -> 0 | D42: =MAX('AEG Input File'!F16,'AEG Input File'!AD16) -> 37.01724631 | E42: =MAX('AEG Input File'!G16,'AEG Input File'!AE16) -> 35.17157956 | F42: =MAX('AEG Input File'!H16,'AEG Input File'!AF16) -> 32.6410539 | G42: =MAX('AEG Input File'!I16,'AEG Input File'!AG16) -> 31.45978551 | H42: =MAX('AEG Input File'!J16,'AEG Input File'!AH16) -> 30.99173715 | I42: =MAX('AEG Input File'!K16,'AEG Input File'!AI16) -> 31.21246776 | J42: =MAX('AEG Input File'!L16,'AEG Input File'!AJ16) -> 31.45886078 | K42: =MAX('AEG Input File'!M16,'AEG Input File'!AK16) -> 31.77719169 | L42: =MAX('AEG Input File'!N16,'AEG Input File'!AL16) -> 32.11365714 | M42: =MAX('AEG Input File'!O16,'AEG Input File'!AM16) -> 32.47009647 | N42: =MAX('AEG Input File'!P16,'AEG Input File'!AN16) -> 32.84865197 | O42: =MAX('AEG Input File'!Q16,'AEG Input File'!AO16) -> 33.25182908 | P42: =MAX('AEG Input File'!R16,'AEG Input File'!AP16) -> 33.68256652 | Q42: =MAX('AEG Input File'!S16,'AEG Input File'!AQ16) -> 34.14431602 | R42: =MAX('AEG Input File'!T16,'AEG Input File'!AR16) -> 34.64113005 | S42: =MAX('AEG Input File'!U16,'AEG Input File'!AS16) -> 35.17775357 | T42: =MAX('AEG Input File'!V16,'AEG Input File'!AT16) -> 35.75971332 | U42: =MAX('AEG Input File'!W16,'AEG Input File'!AU16) -> 36.39339442 | V42: =MAX('AEG Input File'!X16,'AEG Input File'!AV16) -> 37.08608983 | W42: =MAX('AEG Input File'!Y16,'AEG Input File'!AW16) -> 37.84600474 | X42: =MAX('AEG Input File'!Z16,'AEG Input File'!AX16) -> 38.68219573 | Y42: =MAX('AEG Input File'!AA16,'AEG Input File'!AY16) -> 39.60442583
A43: Electric Vehicle TOU Opt-in | B43: =-PMT(0.06804,24,NPV(0.06804,LC!C43:Y43)) -> 0.875778935 | C43: =MAX('AEG Input File'!E17,'AEG Input File'!AC17) -> 0.02636927093 | D43: =MAX('AEG Input File'!F17,'AEG Input File'!AD17) -> 0.05186121139 | E43: =MAX('AEG Input File'!G17,'AEG Input File'!AE17) -> 0.08117494292 | F43: =MAX('AEG Input File'!H17,'AEG Input File'!AF17) -> 0.1035983046 | G43: =MAX('AEG Input File'!I17,'AEG Input File'!AG17) -> 0.134556103 | H43: =MAX('AEG Input File'!J17,'AEG Input File'!AH17) -> 0.1772411835 | I43: =MAX('AEG Input File'!K17,'AEG Input File'!AI17) -> 0.2355951064 | J43: =MAX('AEG Input File'!L17,'AEG Input File'!AJ17) -> 0.3116845669 | K43: =MAX('AEG Input File'!M17,'AEG Input File'!AK17) -> 0.4397954243 | L43: =MAX('AEG Input File'!N17,'AEG Input File'!AL17) -> 0.5802661801 | M43: =MAX('AEG Input File'!O17,'AEG Input File'!AM17) -> 0.7345804607 | N43: =MAX('AEG Input File'!P17,'AEG Input File'!AN17) -> 0.9044729365 | O43: =MAX('AEG Input File'!Q17,'AEG Input File'!AO17) -> 1.091980294 | P43: =MAX('AEG Input File'!R17,'AEG Input File'!AP17) -> 1.299500646 | Q43: =MAX('AEG Input File'!S17,'AEG Input File'!AQ17) -> 1.529861086 | R43: =MAX('AEG Input File'!T17,'AEG Input File'!AR17) -> 1.786391954 | S43: =MAX('AEG Input File'!U17,'AEG Input File'!AS17) -> 2.073004625 | T43: =MAX('AEG Input File'!V17,'AEG Input File'!AT17) -> 2.394267215 | U43: =MAX('AEG Input File'!W17,'AEG Input File'!AU17) -> 2.755469566 | V43: =MAX('AEG Input File'!X17,'AEG Input File'!AV17) -> 3.162665388 | W43: =MAX('AEG Input File'!Y17,'AEG Input File'!AW17) -> 3.622676334 | X43: =MAX('AEG Input File'!Z17,'AEG Input File'!AX17) -> 4.143040973 | Y43: =MAX('AEG Input File'!AA17,'AEG Input File'!AY17) -> 4.731892801
A44: Variable Peak Pricing Rates | B44: =-PMT(0.06804,24,NPV(0.06804,LC!C44:Y44)) -> 3.66488719 | C44: =MAX('AEG Input File'!E18,'AEG Input File'!AC18) -> 0 | D44: =MAX('AEG Input File'!F18,'AEG Input File'!AD18) -> 0.4427023075 | E44: =MAX('AEG Input File'!G18,'AEG Input File'!AE18) -> 1.430725105 | F44: =MAX('AEG Input File'!H18,'AEG Input File'!AF18) -> 3.328440458 | G44: =MAX('AEG Input File'!I18,'AEG Input File'!AG18) -> 4.274074378 | H44: =MAX('AEG Input File'!J18,'AEG Input File'!AH18) -> 4.744174328 | I44: =MAX('AEG Input File'!K18,'AEG Input File'!AI18) -> 4.740700219 | J44: =MAX('AEG Input File'!L18,'AEG Input File'!AJ18) -> 4.738778823 | K44: =MAX('AEG Input File'!M18,'AEG Input File'!AK18) -> 4.738705749 | L44: =MAX('AEG Input File'!N18,'AEG Input File'!AL18) -> 4.740858952 | M44: =MAX('AEG Input File'!O18,'AEG Input File'!AM18) -> 4.745718721 | N44: =MAX('AEG Input File'!P18,'AEG Input File'!AN18) -> 4.753891823 | O44: =MAX('AEG Input File'!Q18,'AEG Input File'!AO18) -> 4.766140253 | P44: =MAX('AEG Input File'!R18,'AEG Input File'!AP18) -> 4.783414821 | Q44: =MAX('AEG Input File'!S18,'AEG Input File'!AQ18) -> 4.806893417 | R44: =MAX('AEG Input File'!T18,'AEG Input File'!AR18) -> 4.838023156 | S44: =MAX('AEG Input File'!U18,'AEG Input File'!AS18) -> 4.878564615 | T44: =MAX('AEG Input File'!V18,'AEG Input File'!AT18) -> 4.930635059 | U44: =MAX('AEG Input File'!W18,'AEG Input File'!AU18) -> 4.996745776 | V44: =MAX('AEG Input File'!X18,'AEG Input File'!AV18) -> 5.079826797 | W44: =MAX('AEG Input File'!Y18,'AEG Input File'!AW18) -> 5.183230449 | X44: =MAX('AEG Input File'!Z18,'AEG Input File'!AX18) -> 5.310704237 | Y44: =MAX('AEG Input File'!AA18,'AEG Input File'!AY18) -> 5.466324164
A45: Peak Time Rebate | B45: =-PMT(0.06804,24,NPV(0.06804,LC!C45:Y45)) -> 9.568593998 | C45: =MAX('AEG Input File'!E19,'AEG Input File'!AC19) -> 0 | D45: =MAX('AEG Input File'!F19,'AEG Input File'!AD19) -> 0.9938366693 | E45: =MAX('AEG Input File'!G19,'AEG Input File'!AE19) -> 3.378761008 | F45: =MAX('AEG Input File'!H19,'AEG Input File'!AF19) -> 7.94694934 | G45: =MAX('AEG Input File'!I19,'AEG Input File'!AG19) -> 10.30789688 | H45: =MAX('AEG Input File'!J19,'AEG Input File'!AH19) -> 11.56274066 | I45: =MAX('AEG Input File'!K19,'AEG Input File'!AI19) -> 11.68425652 | J45: =MAX('AEG Input File'!L19,'AEG Input File'!AJ19) -> 11.81908377 | K45: =MAX('AEG Input File'!M19,'AEG Input File'!AK19) -> 11.99445651 | L45: =MAX('AEG Input File'!N19,'AEG Input File'!AL19) -> 12.17779238 | M45: =MAX('AEG Input File'!O19,'AEG Input File'!AM19) -> 12.3695791 | N45: =MAX('AEG Input File'!P19,'AEG Input File'!AN19) -> 12.57032525 | O45: =MAX('AEG Input File'!Q19,'AEG Input File'!AO19) -> 12.78055982 | P45: =MAX('AEG Input File'!R19,'AEG Input File'!AP19) -> 13.00083159 | Q45: =MAX('AEG Input File'!S19,'AEG Input File'!AQ19) -> 13.23170831 | R45: =MAX('AEG Input File'!T19,'AEG Input File'!AR19) -> 13.4737757 | S45: =MAX('AEG Input File'!U19,'AEG Input File'!AS19) -> 13.72763629 | T45: =MAX('AEG Input File'!V19,'AEG Input File'!AT19) -> 13.99390797 | U45: =MAX('AEG Input File'!W19,'AEG Input File'!AU19) -> 14.27322254 | V45: =MAX('AEG Input File'!X19,'AEG Input File'!AV19) -> 14.56622387 | W45: =MAX('AEG Input File'!Y19,'AEG Input File'!AW19) -> 14.87356612 | X45: =MAX('AEG Input File'!Z19,'AEG Input File'!AX19) -> 15.19591162 | Y45: =MAX('AEG Input File'!AA19,'AEG Input File'!AY19) -> 15.53392883
A46: Battery Storage w Ancillary | B46: =-PMT(0.06804,24,NPV(0.06804,LC!C46:Y46)) -> 2.05505088 | C46: =MAX('AEG Input File'!E20,'AEG Input File'!AC20) -> 0 | D46: =MAX('AEG Input File'!F20,'AEG Input File'!AD20) -> 0.07949514549 | E46: =MAX('AEG Input File'!G20,'AEG Input File'!AE20) -> 0.1821776143 | F46: =MAX('AEG Input File'!H20,'AEG Input File'!AF20) -> 0.3678648607 | G46: =MAX('AEG Input File'!I20,'AEG Input File'!AG20) -> 0.5570307428 | H46: =MAX('AEG Input File'!J20,'AEG Input File'!AH20) -> 0.7497316501 | I46: =MAX('AEG Input File'!K20,'AEG Input File'!AI20) -> 1.041001531 | J46: =MAX('AEG Input File'!L20,'AEG Input File'!AJ20) -> 1.337932754 | K46: =MAX('AEG Input File'!M20,'AEG Input File'!AK20) -> 1.640617574 | L46: =MAX('AEG Input File'!N20,'AEG Input File'!AL20) -> 2.046606855 | M46: =MAX('AEG Input File'!O20,'AEG Input File'!AM20) -> 2.460459517 | N46: =MAX('AEG Input File'!P20,'AEG Input File'!AN20) -> 2.88230269 | O46: =MAX('AEG Input File'!Q20,'AEG Input File'!AO20) -> 3.412636793 | P46: =MAX('AEG Input File'!R20,'AEG Input File'!AP20) -> 3.953205718 | Q46: =MAX('AEG Input File'!S20,'AEG Input File'!AQ20) -> 4.504173831 | R46: =MAX('AEG Input File'!T20,'AEG Input File'!AR20) -> 5.169089429 | S46: =MAX('AEG Input File'!U20,'AEG Input File'!AS20) -> 5.220347997 | T46: =MAX('AEG Input File'!V20,'AEG Input File'!AT20) -> 5.272160451 | U46: =MAX('AEG Input File'!W20,'AEG Input File'!AU20) -> 5.324532272 | V46: =MAX('AEG Input File'!X20,'AEG Input File'!AV20) -> 5.377469023 | W46: =MAX('AEG Input File'!Y20,'AEG Input File'!AW20) -> 5.430976349 | X46: =MAX('AEG Input File'!Z20,'AEG Input File'!AX20) -> 5.485059982 | Y46: =MAX('AEG Input File'!AA20,'AEG Input File'!AY20) -> 5.539725736
A47: EV w Ancillary | B47: =-PMT(0.06804,24,NPV(0.06804,LC!C47:Y47)) -> 5.478733101 | C47: =MAX('AEG Input File'!E21,'AEG Input File'!AC21) -> 0 | D47: =MAX('AEG Input File'!F21,'AEG Input File'!AD21) -> 0.03789812515 | E47: =MAX('AEG Input File'!G21,'AEG Input File'!AE21) -> 0.1463694108 | F47: =MAX('AEG Input File'!H21,'AEG Input File'!AF21) -> 0.4476648824 | G47: =MAX('AEG Input File'!I21,'AEG Input File'!AG21) -> 0.7667803075 | H47: =MAX('AEG Input File'!J21,'AEG Input File'!AH21) -> 1.148849327 | I47: =MAX('AEG Input File'!K21,'AEG Input File'!AI21) -> 1.559169117 | J47: =MAX('AEG Input File'!L21,'AEG Input File'!AJ21) -> 2.096072025 | K47: =MAX('AEG Input File'!M21,'AEG Input File'!AK21) -> 3.032075743 | L47: =MAX('AEG Input File'!N21,'AEG Input File'!AL21) -> 4.041032468 | M47: =MAX('AEG Input File'!O21,'AEG Input File'!AM21) -> 5.127771361 | N47: =MAX('AEG Input File'!P21,'AEG Input File'!AN21) -> 6.297329953 | O47: =MAX('AEG Input File'!Q21,'AEG Input File'!AO21) -> 7.554949628 | P47: =MAX('AEG Input File'!R21,'AEG Input File'!AP21) -> 8.906069335 | Q47: =MAX('AEG Input File'!S21,'AEG Input File'!AQ21) -> 10.35631746 | R47: =MAX('AEG Input File'!T21,'AEG Input File'!AR21) -> 11.91150183 | S47: =MAX('AEG Input File'!U21,'AEG Input File'!AS21) -> 13.57759778 | T47: =MAX('AEG Input File'!V21,'AEG Input File'!AT21) -> 15.36073438 | U47: =MAX('AEG Input File'!W21,'AEG Input File'!AU21) -> 17.26717889 | V47: =MAX('AEG Input File'!X21,'AEG Input File'!AV21) -> 19.30331943 | W47: =MAX('AEG Input File'!Y21,'AEG Input File'!AW21) -> 21.47564614 | X47: =MAX('AEG Input File'!Z21,'AEG Input File'!AX21) -> 23.79073097 | Y47: =MAX('AEG Input File'!AA21,'AEG Input File'!AY21) -> 26.25520622
A48: Cooling w Ancillary | B48: =-PMT(0.06804,24,NPV(0.06804,LC!C48:Y48)) -> 4.524576096 | C48: =MAX('AEG Input File'!E22,'AEG Input File'!AC22) -> 0 | D48: =MAX('AEG Input File'!F22,'AEG Input File'!AD22) -> 0.4787751816 | E48: =MAX('AEG Input File'!G22,'AEG Input File'!AE22) -> 1.46959528 | F48: =MAX('AEG Input File'!H22,'AEG Input File'!AF22) -> 3.504902151 | G48: =MAX('AEG Input File'!I22,'AEG Input File'!AG22) -> 4.605832383 | H48: =MAX('AEG Input File'!J22,'AEG Input File'!AH22) -> 5.231088531 | I48: =MAX('AEG Input File'!K22,'AEG Input File'!AI22) -> 5.349672287 | J48: =MAX('AEG Input File'!L22,'AEG Input File'!AJ22) -> 5.471634345 | K48: =MAX('AEG Input File'!M22,'AEG Input File'!AK22) -> 5.59708193 | L48: =MAX('AEG Input File'!N22,'AEG Input File'!AL22) -> 5.726125821 | M48: =MAX('AEG Input File'!O22,'AEG Input File'!AM22) -> 5.858880466 | N48: =MAX('AEG Input File'!P22,'AEG Input File'!AN22) -> 5.995464105 | O48: =MAX('AEG Input File'!Q22,'AEG Input File'!AO22) -> 6.135998902 | P48: =MAX('AEG Input File'!R22,'AEG Input File'!AP22) -> 6.280611073 | Q48: =MAX('AEG Input File'!S22,'AEG Input File'!AQ22) -> 6.429431025 | R48: =MAX('AEG Input File'!T22,'AEG Input File'!AR22) -> 6.582593495 | S48: =MAX('AEG Input File'!U22,'AEG Input File'!AS22) -> 6.740237698 | T48: =MAX('AEG Input File'!V22,'AEG Input File'!AT22) -> 6.902507477 | U48: =MAX('AEG Input File'!W22,'AEG Input File'!AU22) -> 7.06955146 | V48: =MAX('AEG Input File'!X22,'AEG Input File'!AV22) -> 7.241523221 | W48: =MAX('AEG Input File'!Y22,'AEG Input File'!AW22) -> 7.418581445 | X48: =MAX('AEG Input File'!Z22,'AEG Input File'!AX22) -> 7.600890102 | Y48: =MAX('AEG Input File'!AA22,'AEG Input File'!AY22) -> 7.680046858
A49: DLC WH w Ancillary | B49: =-PMT(0.06804,24,NPV(0.06804,LC!C49:Y49)) -> 1.626714445 | C49: =MAX('AEG Input File'!E24,'AEG Input File'!AC24) -> 0 | D49: =MAX('AEG Input File'!F24,'AEG Input File'!AD24) -> 0.197198521 | E49: =MAX('AEG Input File'!G24,'AEG Input File'!AE24) -> 0.5969993548 | F49: =MAX('AEG Input File'!H24,'AEG Input File'!AF24) -> 1.404901208 | G49: =MAX('AEG Input File'!I24,'AEG Input File'!AG24) -> 1.822234388 | H49: =MAX('AEG Input File'!J24,'AEG Input File'!AH24) -> 2.042390984 | I49: =MAX('AEG Input File'!K24,'AEG Input File'!AI24) -> 2.060373107 | J49: =MAX('AEG Input File'!L24,'AEG Input File'!AJ24) -> 2.078516707 | K49: =MAX('AEG Input File'!M24,'AEG Input File'!AK24) -> 2.096823264 | L49: =MAX('AEG Input File'!N24,'AEG Input File'!AL24) -> 2.115294274 | M49: =MAX('AEG Input File'!O24,'AEG Input File'!AM24) -> 2.133931246 | N49: =MAX('AEG Input File'!P24,'AEG Input File'!AN24) -> 2.152735704 | O49: =MAX('AEG Input File'!Q24,'AEG Input File'!AO24) -> 2.171709187 | P49: =MAX('AEG Input File'!R24,'AEG Input File'!AP24) -> 2.190853246 | Q49: =MAX('AEG Input File'!S24,'AEG Input File'!AQ24) -> 2.21016945 | R49: =MAX('AEG Input File'!T24,'AEG Input File'!AR24) -> 2.229659378 | S49: =MAX('AEG Input File'!U24,'AEG Input File'!AS24) -> 2.24932463 | T49: =MAX('AEG Input File'!V24,'AEG Input File'!AT24) -> 2.269166815 | U49: =MAX('AEG Input File'!W24,'AEG Input File'!AU24) -> 2.289187562 | V49: =MAX('AEG Input File'!X24,'AEG Input File'!AV24) -> 2.309388512 | W49: =MAX('AEG Input File'!Y24,'AEG Input File'!AW24) -> 2.329771323 | X49: =MAX('AEG Input File'!Z24,'AEG Input File'!AX24) -> 2.350337668 | Y49: =MAX('AEG Input File'!AA24,'AEG Input File'!AY24) -> 2.379340374
A50: ERWH w Ancillary | B50: =-PMT(0.06804,24,NPV(0.06804,LC!C50:Y50)) -> 2.506265267 | C50: =MAX('AEG Input File'!E25,'AEG Input File'!AC25) -> 0 | D50: =MAX('AEG Input File'!F25,'AEG Input File'!AD25) -> 0.03462912227 | E50: =MAX('AEG Input File'!G25,'AEG Input File'!AE25) -> 0.105082399 | F50: =MAX('AEG Input File'!H25,'AEG Input File'!AF25) -> 0.2593657327 | G50: =MAX('AEG Input File'!I25,'AEG Input File'!AG25) -> 0.4827487829 | H50: =MAX('AEG Input File'!J25,'AEG Input File'!AH25) -> 0.8165779235 | I50: =MAX('AEG Input File'!K25,'AEG Input File'!AI25) -> 1.240984219 | J50: =MAX('AEG Input File'!L25,'AEG Input File'!AJ25) -> 1.844129192 | K50: =MAX('AEG Input File'!M25,'AEG Input File'!AK25) -> 2.564879861 | L50: =MAX('AEG Input File'!N25,'AEG Input File'!AL25) -> 3.402480246 | M50: =MAX('AEG Input File'!O25,'AEG Input File'!AM25) -> 4.335348489 | N50: =MAX('AEG Input File'!P25,'AEG Input File'!AN25) -> 4.680224249 | O50: =MAX('AEG Input File'!Q25,'AEG Input File'!AO25) -> 4.972200916 | P50: =MAX('AEG Input File'!R25,'AEG Input File'!AP25) -> 5.191952247 | Q50: =MAX('AEG Input File'!S25,'AEG Input File'!AQ25) -> 5.356884335 | R50: =MAX('AEG Input File'!T25,'AEG Input File'!AR25) -> 5.475971231 | S50: =MAX('AEG Input File'!U25,'AEG Input File'!AS25) -> 5.557890624 | T50: =MAX('AEG Input File'!V25,'AEG Input File'!AT25) -> 5.612920845 | U50: =MAX('AEG Input File'!W25,'AEG Input File'!AU25) -> 5.647462124 | V50: =MAX('AEG Input File'!X25,'AEG Input File'!AV25) -> 5.663550425 | W50: =MAX('AEG Input File'!Y25,'AEG Input File'!AW25) -> 5.665760378 | X50: =MAX('AEG Input File'!Z25,'AEG Input File'!AX25) -> 5.657338861 | Y50: =MAX('AEG Input File'!AA25,'AEG Input File'!AY25) -> 5.690716651
A51: HPWH w Ancillary | B51: =-PMT(0.06804,24,NPV(0.06804,LC!C51:Y51)) -> 0.8722077504 | C51: =MAX('AEG Input File'!E26,'AEG Input File'!AC26) -> 0 | D51: =MAX('AEG Input File'!F26,'AEG Input File'!AD26) -> 0.004109437891 | E51: =MAX('AEG Input File'!G26,'AEG Input File'!AE26) -> 0.02044619191 | F51: =MAX('AEG Input File'!H26,'AEG Input File'!AF26) -> 0.06074040935 | G51: =MAX('AEG Input File'!I26,'AEG Input File'!AG26) -> 0.1247119726 | H51: =MAX('AEG Input File'!J26,'AEG Input File'!AH26) -> 0.22408573 | I51: =MAX('AEG Input File'!K26,'AEG Input File'!AI26) -> 0.3521592555 | J51: =MAX('AEG Input File'!L26,'AEG Input File'!AJ26) -> 0.5361550127 | K51: =MAX('AEG Input File'!M26,'AEG Input File'!AK26) -> 0.7574375537 | L51: =MAX('AEG Input File'!N26,'AEG Input File'!AL26) -> 1.015251114 | M51: =MAX('AEG Input File'!O26,'AEG Input File'!AM26) -> 1.331625073 | N51: =MAX('AEG Input File'!P26,'AEG Input File'!AN26) -> 1.464996586 | O51: =MAX('AEG Input File'!Q26,'AEG Input File'!AO26) -> 1.594507329 | P51: =MAX('AEG Input File'!R26,'AEG Input File'!AP26) -> 1.714285533 | Q51: =MAX('AEG Input File'!S26,'AEG Input File'!AQ26) -> 1.826431129 | R51: =MAX('AEG Input File'!T26,'AEG Input File'!AR26) -> 1.934692058 | S51: =MAX('AEG Input File'!U26,'AEG Input File'!AS26) -> 2.040626785 | T51: =MAX('AEG Input File'!V26,'AEG Input File'!AT26) -> 2.143163879 | U51: =MAX('AEG Input File'!W26,'AEG Input File'!AU26) -> 2.242342754 | V51: =MAX('AEG Input File'!X26,'AEG Input File'!AV26) -> 2.339931587 | W51: =MAX('AEG Input File'!Y26,'AEG Input File'!AW26) -> 2.435540604 | X51: =MAX('AEG Input File'!Z26,'AEG Input File'!AX26) -> 2.529089388 | Y51: =MAX('AEG Input File'!AA26,'AEG Input File'!AY26) -> 2.566845576
A52: Third Party w Ancillary | B52: =-PMT(0.06804,24,NPV(0.06804,LC!C52:Y52)) -> 2.755186076 | C52: =MAX('AEG Input File'!E27,'AEG Input File'!AC27) -> 0 | D52: =MAX('AEG Input File'!F27,'AEG Input File'!AD27) -> 1.473552952 | E52: =MAX('AEG Input File'!G27,'AEG Input File'!AE27) -> 2.530003375 | F52: =MAX('AEG Input File'!H27,'AEG Input File'!AF27) -> 3.158114495 | G52: =MAX('AEG Input File'!I27,'AEG Input File'!AG27) -> 3.158168269 | H52: =MAX('AEG Input File'!J27,'AEG Input File'!AH27) -> 3.159435852 | I52: =MAX('AEG Input File'!K27,'AEG Input File'!AI27) -> 3.162207315 | J52: =MAX('AEG Input File'!L27,'AEG Input File'!AJ27) -> 3.166700822 | K52: =MAX('AEG Input File'!M27,'AEG Input File'!AK27) -> 3.17484205 | L52: =MAX('AEG Input File'!N27,'AEG Input File'!AL27) -> 3.184751111 | M52: =MAX('AEG Input File'!O27,'AEG Input File'!AM27) -> 3.196737424 | N52: =MAX('AEG Input File'!P27,'AEG Input File'!AN27) -> 3.211184791 | O52: =MAX('AEG Input File'!Q27,'AEG Input File'!AO27) -> 3.228567985 | P52: =MAX('AEG Input File'!R27,'AEG Input File'!AP27) -> 3.249472112 | Q52: =MAX('AEG Input File'!S27,'AEG Input File'!AQ27) -> 3.274614675 | R52: =MAX('AEG Input File'!T27,'AEG Input File'!AR27) -> 3.304869856 | S52: =MAX('AEG Input File'!U27,'AEG Input File'!AS27) -> 3.34129401 | T52: =MAX('AEG Input File'!V27,'AEG Input File'!AT27) -> 3.385150546 | U52: =MAX('AEG Input File'!W27,'AEG Input File'!AU27) -> 3.437931405 | V52: =MAX('AEG Input File'!X27,'AEG Input File'!AV27) -> 3.501371229 | W52: =MAX('AEG Input File'!Y27,'AEG Input File'!AW27) -> 3.577449299 | X52: =MAX('AEG Input File'!Z27,'AEG Input File'!AX27) -> 3.668373733 | Y52: =MAX('AEG Input File'!AA27,'AEG Input File'!AY27) -> 3.776542825
D53: =D45/$Y45 -> 0.06397844873 | E53: =E45/$Y45 -> 0.2175084645 | F53: 0.5115865681 | G53: 0.6635730721 | H53: 0.7443539097 | I53: 0.7521765194 | J53: 0.7608560522 | K53: 0.7721457101 | L53: 0.7839479963 | M53: 0.7962943075 | N53: 0.8092173838 | O53: 0.8227512793 | P53: 0.8369313216 | Q53: 0.8517940599 | R53: 0.8673772005 | S53: 0.88371953 | T53: 0.9008608271 | U53: 0.9188417621 | V53: 0.9377037859 | W53: 0.9574890087 | X53: 0.9782400698 | Y53: 1
A55: Battery Energy Storage | B55: =B4/(B29*1000) -> 565.7585136 | C55: =IFERROR(C4/(C29*1000),0) -> 0 | D55: 1539.835773 | E55: 1066.076587 | F55: 876.935105 | G55: 804.7216622 | H55: 762.1938916 | I55: 735.6391253 | J55: 715.373882 | K55: 698.3152442 | L55: 690.1148171 | M55: 681.0411473 | N55: 661.8073538 | O55: 650.0995056 | P55: 631.8773693 | Q55: 616.3461499 | R55: 609.5975054 | S55: 553.343256 | T55: 500.75369 | U55: 452.0654775 | V55: 398.9569414 | W55: 348.9739523 | X55: 301.93787 | Y55: 249.4290397
A56: Behavioral | B56: =B5/(B30*1000) -> 160.1700369 | C56: =IFERROR(C5/(C30*1000),0) -> 0 | D56: 139.5046132 | E56: 123.5949007 | F56: 123.4663473 | G56: 131.4492689 | H56: 139.0635811 | I56: 146.2873555 | J56: 153.1315926 | K56: 159.2847258 | L56: 165.1108513 | M56: 170.6077248 | N56: 172.6849693 | O56: 174.7117001 | P56: 176.6874086 | Q56: 178.6076901 | R56: 180.4682896 | S56: 182.2661667 | T56: 183.9973613 | U56: 185.6582168 | V56: 187.2453807 | W56: 188.7558735 | X56: 190.1871373 | Y56: 191.5370618
A57: DLC Central AC | B57: 166.5182739 | C57: =IFERROR(C6/(C31*1000),0) -> 0 | D57: 291.5253534 | E57: 222.5500214 | F57: 204.0682088 | G57: 198.4543069 | H57: 194.0891721 | I57: 189.3240692 | J57: 185.2852113 | K57: 181.911138 | L57: 179.1229384 | M57: 176.7828811 | N57: 169.8618494 | O57: 158.5407554 | P57: 138.0034791 | Q57: 129.0409039 | R57: 126.0121307 | S57: 128.6774665 | T57: 131.403789 | U57: 134.1925014 | V57: 137.0450354 | W57: 139.9628564 | X57: 142.9474579 | Y57: 143.6616228
A58: DLC Electric Vehicle Charging | B58: 1091.290954 | C58: =IFERROR(C7/(C32*1000),0) -> 0 | D58: 2566.392327 | E58: 1355.508218 | F58: 1054.782602 | G58: 1001.94715 | H58: 983.2534829 | I58: 978.9464378 | J58: 980.6665968 | K58: 987.0114897 | L58: 996.5165659 | M58: 1007.839201 | N58: 1019.455089 | O58: 1031.60987 | P58: 1043.003605 | Q58: 1056.254887 | R58: 1070.581946 | S58: 1086.197932 | T58: 1102.18422 | U58: 1116.810933 | V58: 1132.906243 | W58: 1150.281244 | X58: 1168.794689 | Y58: 1188.339502
A59: DLC Smart Appliances | B59: 327.3504946 | C59: =IFERROR(C8/(C33*1000),0) -> 0 | D59: 843.4499364 | E59: 616.7114876 | F59: 551.9270743 | G59: 524.4209339 | H59: 499.6041004 | I59: 471.5618617 | J59: 446.0920211 | K59: 422.9761043 | L59: 401.9171326 | M59: 382.3310207 | N59: 340.6345345 | O59: 277.5759657 | P59: 170.4336054 | Q59: 117.5803015 | R59: 92.46680175 | S59: 94.02748347 | T59: 95.61705349 | U59: 97.23608823 | V59: 98.88517446 | W59: 100.5649109 | X59: 102.2759103 | Y59: 104.018798
A60: DLC Smart Thermostats - Cooling | B60: 176.3744258 | C60: =IFERROR(C9/(C34*1000),0) -> 0 | D60: 198.9986648 | E60: 166.9822253 | F60: 159.8407455 | G60: 160.4512926 | H60: 162.0447408 | I60: 163.963767 | J60: 166.0801824 | K60: 168.3840045 | L60: 170.8618334 | M60: 173.4891658 | N60: 175.291502 | O60: 176.3314811 | P60: 175.6993545 | Q60: 177.332554 | R60: 180.1644476 | S60: 184.1510279 | T60: 188.2277688 | U60: 192.3966884 | V60: 196.6598504 | W60: 201.0193566 | X60: 205.477362 | Y60: 209.5039424
A61: DLC Smart Thermostats - Heating | B61: 30.19396177 | C61: =IFERROR(C10/(C35*1000),0) -> 0 | D61: 0 | E61: 30.58436168 | F61: 30.93871805 | G61: 31.39701282 | H61: 31.46006551 | I61: 31.42424561 | J61: 31.23277524 | K61: 31.1100807 | L61: 31.05144279 | M61: 31.05036776 | N61: 31.09392847 | O61: 30.65875578 | P61: 29.75582524 | Q61: 27.87194871 | R61: 27.22175328 | S61: 27.20586732 | T61: 27.80458698 | U61: 28.41648343 | V61: 29.0418461 | W61: 29.68097134 | X61: 30.33416435 | Y61: 31.00172982
A62: DLC Water Heating | B62: 632.4121446 | C62: =IFERROR(C11/(C36*1000),0) -> 0 | D62: 1239.661066 | E62: 904.6529632 | F62: 811.407351 | G62: 784.096063 | H62: 763.3466258 | I62: 741.5879774 | J62: 722.4297268 | K62: 705.6667981 | L62: 691.0133311 | M62: 677.8970699 | N62: 642.5334313 | O62: 585.9532635 | P62: 485.4382437 | Q62: 439.2495646 | R62: 420.9315296 | S62: 429.5006265 | T62: 438.2484251 | U62: 447.1787249 | V62: 456.2953812 | W62: 465.6023515 | X62: 475.1036546 | Y62: 487.3217045
A63: CTA-2045 ERWH | B63: 418.0434959 | C63: =IFERROR(C12/(C37*1000),0) -> 0 | D63: 1924.722388 | E63: 951.3396573 | F63: 655.6311561 | G63: 560.1500468 | H63: 515.2462097 | I63: 493.5482364 | J63: 482.2698766 | K63: 476.7421059 | L63: 474.1860449 | M63: 471.7305388 | N63: 461.1096551 | O63: 450.085765 | P63: 438.4386125 | Q63: 425.9488918 | R63: 411.2969184 | S63: 394.9565912 | T63: 374.3204777 | U63: 351.0822486 | V63: 325.3721698 | W63: 298.1661854 | X63: 289.8679256 | Y63: 287.5527322
A64: CTA-2045 HPWH | B64: 736.2725616 | C64: =IFERROR(C13/(C38*1000),0) -> 0 | D64: 13092.37581 | E64: 3324.404979 | F64: 1635.292254 | G64: 1185.550224 | H64: 993.1347697 | I64: 903.990446 | J64: 852.510695 | K64: 823.7452732 | L64: 806.631464 | M64: 796.5458042 | N64: 778.8570527 | O64: 762.4666165 | P64: 747.0535354 | Q64: 731.8301416 | R64: 714.7677728 | S64: 696.9829145 | T64: 675.3898845 | U64: 652.8528242 | V64: 629.5965879 | W64: 603.5127268 | X64: 601.814875 | Y64: 587.7886195
A65: Thermal Energy Storage | B65: 728.9965275 | C65: =IFERROR(C14/(C39*1000),0) -> 0 | D65: 2150.483316 | E65: 1378.956526 | F65: 1194.275767 | G65: 1127.673184 | H65: 1072.205455 | I65: 1014.851924 | J65: 962.3741155 | K65: 914.4344001 | L65: 870.4842405 | M65: 829.3249958 | N65: 746.4072986 | O65: 607.2373301 | P65: 382.273513 | Q65: 272.6030827 | R65: 221.5970177 | S65: 225.8466299 | T65: 230.1722191 | U65: 234.5752345 | V65: 239.0572185 | W65: 243.6196955 | X65: 248.264252 | Y65: 252.9923927
A66: Third Party Contracts | B66: 101.2324344 | C66: =IFERROR(C15/(C40*1000),0) -> 0 | D66: 82.96315653 | E66: 84.89510379 | F66: 86.79116237 | G66: 88.72992688 | H66: 90.71191809 | I66: 92.70783726 | J66: 94.74754329 | K66: 96.83183301 | L66: 98.96183737 | M66: 101.1385315 | N66: 103.3629047 | O66: 105.6359586 | P66: 107.9587055 | Q66: 110.332173 | R66: 112.7573931 | S66: 115.2354108 | T66: 117.7672823 | U66: 120.3540726 | V66: 122.9968675 | W66: 125.6967799 | X66: 128.4549561 | Y66: 131.2725942
A67: Time-of-Use Opt-in | B67: 59.33795 | C67: =IFERROR(C16/(C41*1000),0) -> 0 | D67: 196.9645205 | E67: 116.6636206 | F67: 95.9752151 | G67: 90.16721581 | H67: 85.92555584 | I67: 81.80854993 | J67: 78.01392197 | K67: 74.40334833 | L67: 71.09497731 | M67: 67.99407833 | N67: 61.77828966 | O67: 51.19108964 | P67: 34.23204637 | Q67: 25.88967788 | R67: 21.93083491 | S67: 22.13293801 | T67: 22.31832251 | U67: 22.48465939 | V67: 22.6294561 | W67: 22.75011701 | X67: 22.84403826 | Y67: 22.90873815
A68: Time-of-Use Opt-out | B68: 72.460325 | C68: =IFERROR(C17/(C42*1000),0) -> 0 | D68: 112.207967 | E68: 121.5667387 | F68: 122.1889226 | G68: 118.8541577 | H68: 113.1812322 | I68: 106.698847 | J68: 100.8923517 | K68: 95.31569282 | L68: 89.79707274 | M68: 84.31146925 | N68: 17.15003085 | O68: 11.83931915 | P68: 12.81311906 | Q68: 13.73370831 | R68: 14.59849573 | S68: 14.80837518 | T68: 15.00607209 | U68: 15.18917518 | V68: 15.35505998 | W68: 15.50095283 | X68: 15.62403518 | Y68: 15.72159033
A69: Electric Vehicle TOU Opt-in | B69: 281.5261543 | C69: =IFERROR(C18/(C43*1000),0) -> 3207.226208 | D69: 1764.488797 | E69: 1214.583391 | F69: 1006.993052 | G69: 831.578103 | H69: 688.6221306 | I69: 575.9267178 | J69: 491.5860038 | K69: 418.3308832 | L69: 372.6863551 | M69: 337.6289546 | N69: 311.6371003 | O69: 290.9066155 | P69: 274.509798 | Q69: 260.0366946 | R69: 246.8169117 | S69: 234.3871599 | T69: 222.5878298 | U69: 209.7102263 | V69: 198.2599173 | W69: 187.9536006 | X69: 178.5888228 | Y69: 170.0228813
A70: Variable Peak Pricing Rates | B70: 30.83308994 | C70: =IFERROR(C19/(C44*1000),0) -> 0 | D70: 197.1318564 | E70: 67.90927777 | F70: 33.71423473 | G70: 28.23463365 | H70: 26.52106466 | I70: 26.96165219 | J70: 27.41819967 | K70: 27.8877997 | L70: 28.36453097 | M70: 28.83761345 | N70: 28.80924928 | O70: 28.41911491 | P70: 27.47233153 | Q70: 27.21585214 | R70: 27.28931783 | S70: 27.65791619 | T70: 27.96788043 | U70: 28.20499684 | V70: 28.35406303 | W70: 28.3997543 | X70: 28.32786743 | Y70: 28.12687674
A71: Peak Time Rebate | B71: 41.3953075 | C71: =IFERROR(C20/(C45*1000),0) -> 0 | D71: 141.5281594 | E71: 83.06878614 | F71: 68.56872887 | G71: 64.35489976 | H71: 61.20572454 | I71: 58.11129513 | J71: 55.24972185 | K71: 52.48999836 | L71: 49.9623978 | M71: 47.59879563 | N71: 43.026583 | O71: 35.49823962 | P71: 23.52451081 | Q71: 17.63525439 | R71: 14.83102793 | S71: 14.93039258 | T71: 15.02261544 | U71: 15.10745412 | V71: 15.18470401 | W71: 15.25420075 | X71: 15.31582449 | Y71: 15.3695008
A72: Battery Storage w Ancillary | B72: 605.4032536 | C72: =IFERROR(C21/(C46*1000),0) -> 0 | D72: 2401.119704 | E72: 1458.787395 | F72: 1079.468474 | G72: 943.7533824 | H72: 869.38989 | I72: 815.6136158 | J72: 779.7509637 | K72: 752.568069 | L72: 735.0092794 | M72: 719.5508975 | N72: 695.4049814 | O72: 679.100522 | P72: 657.4636661 | Q72: 639.2967407 | R72: 630.0358569 | S72: 574.0261521 | T72: 521.6838756 | U72: 473.24573 | V72: 420.3900703 | W72: 370.6627998 | X72: 323.8853116 | Y72: 271.637984
A73: EV w Ancillary | B73: 1263.549644 | C73: =IFERROR(C22/(C47*1000),0) -> 0 | D73: 4708.80761 | E73: 2042.005817 | F73: 1381.311808 | G73: 1255.739196 | H73: 1202.948401 | I73: 1180.849206 | J73: 1169.994657 | K73: 1165.431574 | L73: 1169.241862 | M73: 1177.34097 | N73: 1186.734989 | O73: 1197.46992 | P73: 1207.636638 | Q73: 1220.428565 | R73: 1234.756833 | S73: 1250.832852 | T73: 1267.443151 | U73: 1282.351313 | V73: 1299.142661 | W73: 1317.55937 | X73: 1337.408063 | Y73: 1358.541556
A74: Cooling w Ancillary | B74: 466.7236998 | C74: =IFERROR(C23/(C48*1000),0) -> 0 | D74: 776.8630882 | E74: 593.7563712 | F74: 545.0621893 | G74: 532.0336794 | H74: 522.6609431 | I74: 512.7185298 | J74: 504.5270925 | K74: 497.9415842 | L74: 492.7751917 | M74: 488.7011883 | N74: 473.7100538 | O74: 448.2865354 | P74: 400.9764967 | Q74: 381.2341304 | R74: 375.6418625 | S74: 383.6297426 | T74: 391.7998632 | U74: 400.1563984 | V74: 408.7036062 | W74: 417.4458506 | X74: 426.3875713 | Y74: 429.9552813
A75: DLC WH w Ancillary | B75: 862.4062485 | C75: =IFERROR(C24/(C49*1000),0) -> 0 | D75: =IFERROR(D24/(D49*1000),0) -> 1762.217941 | E75: 1203.200336 | F75: 1045.507117 | G75: 1008.540078 | H75: 985.1339237 | I75: 964.2201526 | J75: 946.2173297 | K75: 930.9007625 | L75: 917.9528107 | M75: 906.7361696 | N75: 870.1931863 | O75: 810.0273673 | P75: 700.8831053 | Q75: 652.4368483 | R75: 635.1613183 | S75: 647.9604684 | T75: 661.0246386 | U75: 674.3594644 | V75: 687.9706219 | W75: 701.8639546 | X75: 716.0453971 | Y75: 733.199084
A76: ERWH w Ancillary | B76: 683.9517098 | C76: =IFERROR(C25/(C50*1000),0) -> 0 | D76: =IFERROR(D25/(D50*1000),0) -> 3152.848274 | E76: 1530.430538 | F76: 1036.386911 | G76: 877.953136 | H76: 803.7006459 | I76: 768.6296249 | J76: 750.2981053 | K76: 742.0856404 | L76: 739.1176639 | M76: 736.8326977 | N76: 725.689948 | O76: 714.1048716 | P76: 702.1926844 | Q76: 689.4949181 | R76: 674.2986949 | S76: 657.1598257 | T76: 634.7096989 | U76: 609.055514 | V76: 580.3862555 | W76: 549.8960156 | X76: 543.3902337 | Y76: 544.6016919
A77: HPWH w Ancillary | B77: 1199.095014 | C77: =IFERROR(C26/(C51*1000),0) -> 0 | D77: =IFERROR(D26/(D51*1000),0) -> 21816.78146 | E77: 5477.4649 | F77: 2644.415476 | G77: 1890.616074 | H77: 1568.267596 | I77: 1420.429525 | J77: 1334.818879 | K77: 1288.401529 | L77: 1262.031503 | M77: 1247.036837 | N77: 1227.056951 | O77: 1209.148637 | P77: 1193.301357 | Q77: 1178.266906 | R77: 1161.176378 | S77: 1143.338445 | T77: 1120.925638 | U77: 1097.56172 | V77: 1073.428058 | W77: 1045.885634 | X77: 1049.398508 | Y77: 1036.952204
A78: Third Party w Ancillary | B78: 844.1539608 | C78: =IFERROR(C27/(C52*1000),0) -> 0 | D78: =IFERROR(D27/(D52*1000),0) -> 684.7677413 | E78: 709.2659257 | F78: 725.0351484 | G78: 741.040535 | H78: 757.4052972 | I78: 773.8859109 | J78: 790.7324845 | K78: 807.9611689 | L78: 825.5713939 | M78: 843.5718261 | N78: 861.9713807 | O78: 880.7791805 | P78: 900.0046511 | Q78: 919.6575131 | R78: 939.7477884 | S78: 960.2858071 | T78: 981.2822944 | U78: 1002.748247 | V78: 1024.695071 | W78: 1047.13447 | X78: 1070.078447 | Y78: 1093.539211
A81: Ramp Rate
A82: Peak Time Rebate | C82: =D45/$Y45 -> 0.06397844873 | D82: =E45/$Y45 -> 0.2175084645 | E82: 0.5115865681 | F82: 0.6635730721 | G82: 0.7443539097 | H82: 0.7521765194 | I82: 0.7608560522 | J82: 0.7721457101 | K82: 0.7839479963 | L82: 0.7962943075 | M82: 0.8092173838 | N82: 0.8227512793 | O82: 0.8369313216 | P82: 0.8517940599 | Q82: 0.8673772005 | R82: 0.88371953 | S82: 0.9008608271 | T82: 0.9188417621 | U82: 0.9377037859 | V82: 0.9574890087 | W82: 0.9782400698 | X82: 1 | Y82: 0
A83: Behavioral | C83: =D30/$Y30 -> 0.3247446925 | D83: =E30/$Y30 -> 0.5875251633 | E83: 0.7401701662 | F83: 0.7469040891 | G83: 0.7541666857 | H83: 0.7621254995 | I83: 0.7708565127 | J83: 0.7819294631 | K83: 0.793466457 | L83: 0.8054956553 | M83: 0.8180464221 | N83: 0.8311492982 | O83: 0.8448359652 | P83: 0.8591391986 | Q83: 0.87409281 | R83: 0.889731579 | S83: 0.9060911735 | T83: 0.9232080601 | U83: 0.9411194049 | V83: 0.9598629642 | W83: 0.9794769687 | X83: 1 | Y83: 0
A84: DLC Central AC | C84: =D31/$Y31 -> 0.06234013808 | D84: =E31/$Y31 -> 0.1913523846 | E84: 0.4563646832 | F84: 0.5997140992 | G84: 0.6811271634 | H84: 0.6965676625 | I84: 0.7124480418 | J84: 0.7287822631 | K84: 0.7455847506 | L84: 0.7628704062 | M84: 0.7806546257 | N84: 0.7989533158 | O84: 0.8177829107 | P84: 0.8371603903 | Q84: 0.8571032985 | R84: 0.8776297622 | S84: 0.8987585108 | T84: 0.9205088968 | U84: 0.9429009165 | V84: 0.9659552321 | W84: 0.9896931937 | X84: 1 | Y84: 0
A85: DLC Electric Vehicle Charging | C85: =D32/$Y32 -> 0.001443451818 | D85: =E32/$Y32 -> 0.005574871877 | E85: 0.01705051862 | F85: 0.02920488611 | G85: 0.04375701021 | H85: 0.05938514076 | I85: 0.0798345291 | J85: 0.115484743 | K85: 0.153913568 | L85: 0.1953049357 | M85: 0.2398507138 | N85: 0.2877505347 | O85: 0.3392115552 | P85: 0.3944481478 | Q85: 0.4536815187 | R85: 0.5171392546 | S85: 0.5850547982 | T85: 0.6576668544 | U85: 0.7352187321 | V85: 0.8179576258 | W85: 0.9061338452 | X85: 1 | Y85: 0
A86: DLC Smart Appliances | C86: =D33/$Y33 -> 0.08051882921 | D86: 0.2442964153 | E86: 0.5758270908 | F86: 0.7477660027 | G86: 0.8391465489 | H86: 0.8478333278 | I86: 0.8566118643 | J86: 0.8654831474 | K86: 0.874448177 | L86: 0.8835079638 | M86: 0.8926635301 | N86: 0.9019159089 | O86: 0.9112661449 | P86: 0.9207152942 | Q86: 0.9302644246 | R86: 0.9399146156 | S86: 0.9496669585 | T86: 0.9595225567 | U86: 0.9694825259 | V86: 0.9795479939 | W86: 0.989720101 | X86: 1 | Y86: 0
A87: DLC Smart Thermostats - Cooling | C87: 0.06234013808 | D87: 0.1913523846 | E87: 0.4563646832 | F87: 0.5997140992 | G87: 0.6811271634 | H87: 0.6965676625 | I87: 0.7124480418 | J87: 0.7287822631 | K87: 0.7455847506 | L87: 0.7628704062 | M87: 0.7806546257 | N87: 0.7989533158 | O87: 0.8177829107 | P87: 0.8371603903 | Q87: 0.8571032985 | R87: 0.8776297622 | S87: 0.8987585108 | T87: 0.9205088968 | U87: 0.9429009165 | V87: 0.9659552321 | W87: 0.9896931937 | X87: 1 | Y87: 0
A88: DLC Smart Thermostats - Heating | C88: 0 | D88: 0.08142173718 | E88: 0.2467475855 | F88: 0.5815047783 | G88: 0.755104564 | H88: 0.8476983849 | I88: 0.8564836564 | J88: 0.865361879 | K88: 0.874334057 | L88: 0.8834012058 | M88: 0.8925643521 | N88: 0.9018245337 | O88: 0.9111828001 | P88: 0.9206402122 | Q88: 0.9301978428 | R88: 0.9398567763 | S88: 0.9496181092 | T88: 0.9594829503 | U88: 0.9694524204 | V88: 0.9795276527 | W88: 0.9897097931 | X88: 1 | Y88: 0
A89: DLC Water Heating | C89: 0.0828794918 | D89: 0.2509096056 | E89: 0.5904582729 | F89: 0.7658569611 | G89: 0.8583853767 | H89: 0.8659429855 | I89: 0.8735684601 | J89: 0.8812624232 | K89: 0.8890255032 | L89: 0.8968583348 | M89: 0.9047615581 | N89: 0.9127358198 | O89: 0.9207817722 | P89: 0.9289000739 | Q89: 0.9370913899 | R89: 0.9453563912 | S89: 0.9536957552 | T89: 0.9621101657 | U89: 0.9706003128 | V89: 0.9791668934 | W89: 0.9878106107 | X89: 1 | Y89: 0
A90: CTA-2045 ERWH | C90: 0.00608519531 | D90: 0.01846558271 | E90: 0.04557698944 | F90: 0.08483092948 | G90: 0.1434929858 | H90: 0.2180716938 | I90: 0.3240592187 | J90: 0.4507129801 | K90: 0.5979001337 | L90: 0.7618282117 | M90: 0.8224314329 | N90: 0.873738972 | O90: 0.9123547289 | P90: 0.9413373858 | Q90: 0.9622639057 | R90: 0.9766591741 | S90: 0.9863293482 | T90: 0.9923991073 | U90: 0.9952262207 | V90: 0.9956145641 | W90: 0.9941346949 | X90: 1 | Y90: 0
A91: CTA-2045 HPWH | C91: 0.001600968102 | D91: 0.007965493559 | E91: 0.02366344509 | F91: 0.04858569355 | G91: 0.08730004331 | H91: 0.1371953415 | I91: 0.2088770036 | J91: 0.2950849715 | K91: 0.395524812 | L91: 0.518778802 | M91: 0.5707381073 | N91: 0.6211933214 | O91: 0.6678569016 | P91: 0.7115469453 | Q91: 0.7537235879 | R91: 0.7949939816 | S91: 0.8349407141 | T91: 0.8735791411 | U91: 0.9115981143 | V91: 0.9488457842 | W91: 0.985290822 | X91: 1 | Y91: 0
A92: Thermal Energy Storage | C92: 0.07850373176 | D92: 0.2707908706 | E92: 0.6348161268 | F92: 0.8199950759 | G92: 0.9153535631 | H92: 0.9196860637 | I92: 0.9241022667 | J92: 0.9286013728 | K92: 0.9331826548 | L92: 0.9378454544 | M92: 0.9425891796 | N92: 0.9474133012 | O92: 0.9523173504 | P92: 0.9573009165 | Q92: 0.9623636438 | R92: 0.9675052299 | S92: 0.9727254232 | T92: 0.9780240209 | U92: 0.9834008671 | V92: 0.9888558506 | W92: 0.9943889037 | X92: 1 | Y92: 0
A93: Third Party Contracts | C93: 0.3863775715 | D93: 0.6720052209 | E93: 0.8387524423 | F93: 0.838537282 | G93: 0.8386522907 | H93: 0.8391752404 | I93: 0.8401642633 | J93: 0.8421400732 | K93: 0.8445917488 | L93: 0.8476014104 | M93: 0.8512709535 | N93: 0.8557264526 | O93: 0.8611233042 | P93: 0.8676520845 | Q93: 0.8755449994 | R93: 0.8850826528 | S93: 0.8966006543 | T93: 0.9104953232 | U93: 0.9272274502 | V93: 0.9473228106 | W93: 0.9713679671 | X93: 1 | Y93: 0
A94: Time-of-Use Opt-in | C94: 0.06779547952 | D94: 0.2274333886 | E94: 0.5336280321 | F94: 0.6908246966 | G94: 0.7733139503 | H94: 0.7796625503 | I94: 0.7866994913 | J94: 0.7957236284 | K94: 0.8052076564 | L94: 0.815192077 | M94: 0.8257229462 | N94: 0.8368528918 | O94: 0.8486422975 | P94: 0.8611606463 | Q94: 0.8744879967 | R94: 0.8887165246 | S94: 0.9039520196 | T94: 0.9203151608 | U94: 0.937942328 | V94: 0.9569856412 | W94: 0.9776118853 | X94: 1 | Y94: 0
A95: Battery Energy Storage | C95: =D29/$Y29 -> 0.01435001465 | D95: =E29/$Y29 -> 0.03288567395 | E95: 0.06640488686 | F95: 0.1005520434 | G95: 0.1353373228 | H95: 0.1879157165 | I95: 0.2415160638 | J95: 0.2961550178 | K95: 0.3694419097 | L95: 0.4441482547 | M95: 0.5202970016 | N95: 0.6160299185 | O95: 0.7136103674 | P95: 0.8130680192 | Q95: 0.9330948274 | R95: 0.9423477345 | S95: 0.9517006262 | T95: 0.9611544915 | U95: 0.9707103347 | V95: 0.980369175 | W95: 0.990132047 | X95: 1 | Y95: 0
A96: Electric Vehicle TOU Opt-in | C96: =D43/$Y43 -> 0.01095992948 | D96: =E43/$Y43 -> 0.0171548567 | E96: 0.02189362882 | F96: 0.02843599986 | G96: 0.03745671995 | H96: 0.04978876664 | I96: 0.06586889856 | J96: 0.09294281227 | K96: 0.1226287671 | L96: 0.1552403006 | M96: 0.191144004 | N96: 0.2307702943 | O96: 0.274625969 | P96: 0.3233084836 | Q96: 0.3775216451 | R96: 0.4380920515 | S96: 0.5059850922 | T96: 0.5823186792 | U96: 0.668372155 | V96: 0.7655871523 | W96: 0.8755568116 | X96: 1 | Y96: 0
A97: Variable Peak Pricing Rates | C97: =D44/$Y44 -> 0.0809872035 | D97: =E44/$Y44 -> 0.2617344055 | E97: 0.6088992087 | F97: 0.7818918617 | G97: 0.8678911432 | H97: 0.8672555957 | I97: 0.8669040987 | J97: 0.8668907306 | K97: 0.867284634 | L97: 0.8681736719 | M97: 0.8696688451 | N97: 0.8719095519 | O97: 0.8750697319 | P97: 0.8793648662 | Q97: 0.8850596873 | R97: 0.8924762727 | S97: 0.9020019507 | T97: 0.9140961322 | U97: 0.9292948322 | V97: 0.9482113196 | W97: 0.9715311565 | X97: 1 | Y97: 0

Sheet Battery Energy Storage
A1: State Income Tax Rate ............ | D1: 0.0164024 | I1: Debt ........................... | L1: 0.50975 | M1: 0.048755 | N1: =ROUND(L1*M1,4) -> 0.0249 | O1: =N1*(1-D2) -> 0.019671 | Q1: Gross Revenue | T1: 1 | V1: Washington Electric | Z1: Idaho Electric | AD1: Weighted
A2: Federal Income Tax Rate ........ | D2: 0.21 | I2: Preferred Stock ................. | L2: 0 | M2: 0 | N2: =ROUND(L2*M2,4) -> 0 | O2: =N2 -> 0 | Q2: Uncollectables | T2: 0 | V2: General Case Order in 2021 (UE-200900) | Z2: General Case Settlement in 2021 (AVU-E-21-01)
A3: Discount Factor ...................... | D3: =+O4 -> 0.065771 | I3: Common Equity ...................... | L3: 0.49025 | M3: 0.094 | N3: =ROUND(L3*M3,4) -> 0.0461 | O3: =N3 -> 0.0461 | Q3: Commission Fees | T3: 0 | V3: effective 10/1/2021 | Z3: effective 9/1/2021
A4: Capital Class ........................... | D4: 4 | E4: (1) General Structures. | N4: =SUM(N1:N3) -> 0.071 | O4: =SUM(O1:O3) -> 0.065771 | Q4: Excise Tax | T4: 0 | Y4: ProForma | AC4: ProForma
E5: (2) Generation, Transmission, | Q5: Franchise Fees | T5: 0 | W5: Capital | X5: ProForma | Y5: Weighted | AA5: Capital | AB5: ProForma | AC5: Weighted | AD5: Capital | AE5: ProForma
E6: and Distribution. | Q6: ERSA | T6: 0 | V6: Component | W6: Structure | X6: Cost | Y6: Cost | Z6: Component | AA6: Structure | AB6: Cost | AC6: Cost | AD6: Structure | AE6: Cost
E7: (3) Other Equipment. | N7: IRR CALC | T7: - | V7: L/T Debt | W7: 0.515 | X7: 0.0497 | Y7: =W7*X7 -> 0.0255955 | Z7: L/T Debt | AA7: 0.5 | AB7: 0.047 | AC7: =AA7*AB7 -> 0.0235 | AD7: =W7*$D$14+AA7*$B$14 -> 0.50975 | AE7: =X7*$D$14+AB7*$B$14 -> 0.048755
E8: (4) Transportation Equipment. | I8: Principal ...................... | L8: =T24 -> 1.78614987e-49 | N8: =L8 -> 1.78614987e-49 | O8: pv princ | Q8: Misc. Revenue Items | T8: =SUM(T2:T6) -> 0 | V8: S/T Debt | W8: 0 | X8: 0 | Y8: =W8*X8 -> 0 | Z8: S/T Debt | AA8: 0 | AB8: 0 | AC8: =AA8*AB8 -> 0 | AD8: =W8*$D$14+AA8*$B$14 -> 0 | AE8: 0
A9: Book Life (Years) .............. | D9: 10 | I9: Interest ....................... | L9: =D3 -> 0.065771 | N9: =V20 -> 0 | O9: pv lvlized margin | T9: - | V9: S/T Debt | W9: 0 | X9: 0 | Y9: =W9*X9 -> 0 | Z9: Pref Trust | AC9: =AA9*AB9 -> 0 | AD9: 0 | AE9: 0
A10: Property Tax Rate ............... | D10: 0.015 | I10: Term ............................. | L10: 10 | N10: =IRR($AI$28:$AI$102,0.059065190478108) ->  | O10: IRR | Q10: Before State Income Tax | T10: =T1-T8 -> 1 | V10: Pref Stock | W10: 0 | X10: 0 | Y10: =W10*X10 -> 0 | Z10: Pref Stock | AC10: =AA10*AB10 -> 0 | AD10: 0 | AE10: 0
A11: O&M Escalation Factor .......... | D11: 0.03 | I11: Levelized Gr. Mar. Requirement ....... | L11: =PMT($L$9,$L$10,-$L$8) -> 2.493590545e-50 | Q11: State Income Tax | T11: 0 | V11: Common | W11: 0.485 | X11: 0.094 | Y11: =W11*X11 -> 0.04559 | Z11: Common | AA11: 0.5 | AB11: 0.094 | AC11: =AA11*AB11 -> 0.047 | AD11: 0.49025 | AE11: 0.094
T12: - | V12: Total | W12: =SUM(W7:W11) -> 1 | Y12: =SUM(Y7:Y11) -> 0.0711855 | Z12: Total | AA12: =SUM(AA7:AA11) -> 1 | AC12: =SUM(AC7:AC11) -> 0.0705 | AD12: =SUM(AD7:AD11) -> 1
B13: Idaho | C13: Oregon | D13: Washington | Q13: Before Federal Income Tax | T13: =T10-T11 -> 1 | Z13: (excludes short-term debt)
A14: Electric | B14: 0.35 | C14: 0 | D14: 0.65 | E14: =SUM(B14:D14) -> 1 | K14: Lev ROE | L14: =PMT(L9,L10,-L15) -> 288975.8611 | Q14: Federal Income Tax | T14: =T13*D2 -> 0.21 | V14: (v) | W14: (w) | X14: (x) | Y14: (y) | Z14: (z) | AA14: (aa) | AB14: (ab) | AC14: (ac) | AD14: (ad) | AE14: (ae) | AF14: (af) | AG14: (ag) | AH14: (ah)
A15: Gas | B15: 0 | C15: 0 | D15: 0 | E15: =SUM(B15:D15) -> 0 | K15: NPV equity | L15: =NPV(L9,$M$28:$M$103) -> 2069923.62 | T15: - | V15: PV GM
B16: =SUM(B14:B15) -> 0.35 | C16: =SUM(C14:C15) -> 0 | D16: 0.65 | E16: 1 | Q16: Conversion Factor | T16: =T13-T14 -> 0.79 | V16: =NPV(O4,$V$29:$V$103)+V28 -> 0
A17: ...................................................................................................................................................................................................................... | V17: TERM
B18: Capital Additions | V18: =L10 -> 10 | AD18: pv of contribution to fixed costs | AG18: =NPV(O4,20,AG28:AG28) -> 18.76575737
B19: ----------------- | D19: Rate | E19: Accum. | G19: Book Dep. | I19: Rate | K19: Average | P19: Misc. | Q19: State | R19: Federal | S19: Total | T19: Present Val | V19: LEVELIZED | AE19: Interest ....................... | AG19: =O4 -> 0.065771 | AL19: Inter.
B20: Tax | C20: Book | D20: Base | E20: Book | F20: Tax | G20: on Tax | H20: Deferred | I20: Base | J20: Book | K20: Rate | L20: Interest | M20: Equity | N20: O&M & A&G | O20: Property | P20: Revenue | Q20: Income | R20: Income | S20: Gross Marg | T20: Gross Marg | V20: =PMT(L9,V18,-V16) -> 0 | AE20: Term ............................. | AG20: 50 | AH20: per kwh | AL20: Revenue | AN20: Net Book
B21: Basis | C21: Basis | D21: BOP | E21: Deprec. | F21: Deprec. | G21: Basis | H21: Taxes | I21: EOP | J21: Deprec. | K21: Base | L21: Expense | M21: Return | N21: Expense | O21: Taxes | P21: Items | Q21: Tax | R21: Taxes | S21: Reqmnt | T21: Reqmnt | AD21: levelized cont. to fixed costs | AG21: =PMT(AG19,AG20,-AG18) -> 1.28752208 | AH21: =AG21/(400*1000) -> 3.2188052e-06 | AL21: Requirement | AN21: BOP
A22: (a) | B22: (b) | C22: (c) | D22: (d) | E22: (e) | F22: (f) | G22: (g) | H22: (h) | I22: (i) | J22: (j) | K22: (k) | L22: (l) | M22: (m) | N22: (n) | O22: (o) | P22: (p) | Q22: (q) | R22: (r) | S22: (s) | T22: (t) | W22: - | X22: - | Y22: - | Z22: - | AA22: - | AB22: - | AC22: - | AD22: - | AE22: - | AF22: - | AG22: - | AH22: -
B23: - | C23: - | D23: - | E23: - | F23: - | G23: - | H23: - | I23: - | J23: - | K23: - | L23: - | M23: - | N23: - | O23: - | P23: - | Q23: - | R23: - | S23: - | T23: - | Z23: RES LOAD @ | AG23: ANNUAL | AH23: CUMULATIVE | AL23: - | AN23: -
A24: Total => | B24: =SUM(B25:B104) -> 24771739.92 | C24: =SUM(C25:C104) -> 24771739.92 | F24: =SUM(F25:F104) -> 24771739.92 | G24: =SUM(G25:G104) -> 24771739.92 | H24: =SUM(H25:H104) -> -2.455635695e-11 | J24: =SUM(J25:J104) -> 24771739.92 | L24: =SUM(L25:L104) -> 2734139.514 | M24: 5062001.27 | N24: 1856358.131 | O24: 2043668.544 | P24: 0 | Q24: 96650.55659 | R24: 1217120.888 | S24: 39075974.58 | T24: 1.78614987e-49 | V24: Offsets | X24: NEW | Y24: CUML | Z24: 12000 | AA24: COMM | AB24: COMM | AC24: TOTAL | AD24: TOTAL | AE24: REVENUE | AF24: ESTIMATED | AG24: (SHORTFALL) | AH24: (SHORTFALL)
A25: Period | B25: - | C25: - | D25: - | E25: - | F25: - | G25: - | H25: - | I25: - | J25: - | K25: - | L25: - | M25: - | N25: - | O25: - | P25: - | Q25: - | R25: - | S25: - | T25: - | W25: YR | X25: CUST | Y25: CUST | Z25: KWH EA | AA25: CUST | AB25: LOAD | AC25: CUST | AD25: LOAD | AE25: REQ | AF25: MARGIN | AG25: EXCESS | AH25: EXCESS | AI25: 0.05906519048 | AL25: - | AN25: -
W26: - | X26: - | Y26: - | Z26: - | AA26: - | AB26: - | AC26: - | AD26: - | AE26: - | AF26: - | AG26: - | AH26: - | AJ26: =NPV(AI25,$AI$28:$AI$103) -> 0
S27: =-PMT(O4,20,NPV(O4,S28:S51)) -> 1294295.755
A28: 2023 | B28: =HLOOKUP($A28,'AEG Input File'!$BA$2:$BX$27,2,FALSE)*Inflation!$B4/100 -> 0 | C28: =B28 -> 0 | D28: =I27+C28 -> 0 | E28: =E27+J28 -> 0 | F28: =CA137 -> 0 | G28: =CA229 -> 0 | H28: =(F28-G28)*$D$2 -> 0 | I28: =D28-J28-H28 -> 0 | J28: =CA323 -> 0 | K28: =(+I28+D28)/2 -> 0 | L28: =IF(A28=1,$N$1*K28,$N$1*K28) -> 0 | M28: =IF(A28=1,($N$3+$N$2)*K28,($N$3+$N$2)*K28) -> 0 | N28: =HLOOKUP($A28,'AEG Input File'!$BY$2:$CV$27,2,FALSE)*Inflation!$B4/100 -> 0 | O28: =AN28*$D$10 -> 0 | P28: =AL28*$T$8 -> 0 | Q28: =(+AL28-(G28+L28+N28+O28+P28))*$D$1 -> 0 | R28: =(+AL28-(G28+L28+N28+O28+P28+Q28))*$D$2 -> 0 | S28: =J28+M28+L28+N28+O28+P28+Q28+R28 -> 0 | T28: =S28/(1+$D$3)^(A28-1) -> 0 | V28: 0 | W28: =1+W27 -> 1 | X28: 0 | Y28: =+X28 -> 0 | Z28: =X28*$Z$24 -> 0 | AA28: 0 | AB28: 0 | AC28: =Y28+AA28 -> 0 | AD28: 0 | AE28: =S28 -> 0 | AF28: =V28 -> 0 | AG28: =AF28-AE28 -> 0 | AH28: =AF28-AE28 -> 0 | AI28: =IF(A28=1,AF28-T24,AF28) -> 0 | AL28: =(+J28+L28+M28+N28+O28-(($D$1+(1-$D$1)*$D$2)*(G28+L28+N28+O28)))/$T$16 -> 0 | AN28: =C28-J27+AN27 -> 0
A29: =1+A28 -> 2024 | B29: =HLOOKUP($A29,'AEG Input File'!$BA$2:$BX$27,2,FALSE)*Inflation!$B5/100 -> 291060.2058 | C29: =B29 -> 291060.2058 | D29: =I28+C29 -> 291060.2058 | E29: 29106.02058 | F29: 58212.04116 | G29: =CA230 -> 29106.02058 | H29: 6112.264322 | I29: 255841.9209 | J29: 29106.02058 | K29: 273451.0633 | L29: =IF(A29=1,$N$1*K29,$N$1*K29) -> 6808.931477 | M29: 12606.09402 | N29: =HLOOKUP($A29,'AEG Input File'!$BY$2:$CV$27,2,FALSE)*Inflation!$B5/100 -> 66354.73353 | O29: 4365.903087 | P29: =AL29*$T$8 -> 0 | Q29: 233.0453231 | R29: 2934.740788 | S29: 122409.4688 | T29: =S29/(1+$D$3)^(A29-1) -> 1.329682088e-51 | V29: 0 | W29: =1+W28 -> 2 | X29: 0 | Y29: =+X29 -> 0 | Z29: =X29*$Z$24 -> 0 | AA29: 0 | AB29: 0 | AC29: 0 | AD29: 0 | AE29: 122409.4688 | AF29: 0 | AG29: -122409.4688 | AH29: =AF29-AE29 -> -122409.4688 | AI29: =IF(A29=1,AF29-T25,AF29) -> 0 | AL29: =(+J29+L29+M29+N29+O29-(($D$1+(1-$D$1)*$D$2)*(G29+L29+N29+O29)))/$T$16 -> 120843.5901 | AN29: =C29-J28+AN28 -> 291060.2058
A30: 2025 | B30: =HLOOKUP($A30,'AEG Input File'!$BA$2:$BX$27,2,FALSE)*Inflation!$B6/100 -> 382319.4629 | C30: 382319.4629 | D30: 638161.3838 | E30: 96443.98745 | F30: 169603.1584 | G30: 67337.96687 | H30: 21475.69023 | I30: 549347.7267 | J30: 67337.96687 | K30: 593754.5553 | L30: 14784.48843 | M30: 27372.085 | N30: =HLOOKUP($A30,'AEG Input File'!$BY$2:$CV$27,2,FALSE)*Inflation!$B6/100 -> 67915.5904 | O30: 9664.104722 | P30: 0 | Q30: 525.3477179 | R30: 6615.706144 | S30: 194215.2893 | T30: 1.97948549e-51 | V30: 0 | W30: 3 | X30: 0 | Y30: 0 | Z30: 0 | AA30: 0 | AB30: 0 | AC30: 0 | AD30: 0 | AE30: 194215.2893 | AF30: 0 | AG30: -194215.2893 | AH30: -194215.2893 | AI30: 0 | AL30: 191730.8607 | AN30: 644273.6481
A31: 2026 | B31: =HLOOKUP($A31,'AEG Input File'!$BA$2:$BX$27,2,FALSE)*Inflation!$B7/100 -> 700038.0497 | C31: 700038.0497 | D31: 1249385.776 | E31: 233785.7593 | F31: 318233.3976 | G31: 137341.7718 | H31: 37987.24141 | I31: 1074056.763 | J31: 137341.7718 | K31: 1161721.27 | L31: 28926.85962 | M31: 53555.35054 | N31: =HLOOKUP($A31,'AEG Input File'!$BY$2:$CV$27,2,FALSE)*Inflation!$B7/100 -> 69432.37192 | O31: 19154.60596 | P31: 0 | Q31: 1043.378632 | R31: 13139.27174 | S31: 322593.6102 | T31: 3.085039782e-51 | V31: 0 | W31: 4 | X31: 0 | Y31: 0 | Z31: 0 | AA31: 0 | AB31: 0 | AC31: 0 | AD31: 0 | AE31: 322593.6102 | AF31: 0 | AG31: -322593.6102 | AH31: -322593.6102 | AI31: 0 | AL31: 318466.9486 | AN31: 1276973.731
A32: 2027 | B32: =HLOOKUP($A32,'AEG Input File'!$BA$2:$BX$27,2,FALSE)*Inflation!$B8/100 -> 728946.9937 | C32: 728946.9937 | D32: 1803003.757 | E32: 444022.2305 | F32: 476737.0472 | G32: 210236.4712 | H32: 55965.12096 | I32: 1536802.165 | J32: 210236.4712 | K32: 1669902.961 | L32: 41580.58372 | M32: 76982.52649 | N32: =HLOOKUP($A32,'AEG Input File'!$BY$2:$CV$27,2,FALSE)*Inflation!$B8/100 -> 70983.02822 | O32: 28028.68429 | P32: 0 | Q32: 1503.965618 | R32: 18939.4457 | S32: 448254.7053 | T32: 4.022221341e-51 | V32: 0 | W32: 5 | X32: 0 | Y32: 0 | Z32: 0 | AA32: 0 | AB32: 0 | AC32: 0 | AD32: 0 | AE32: 448254.7053 | AF32: 0 | AG32: -448254.7053 | AH32: -448254.7053 | AI32: 0 | AL32: 442520.5697 | AN32: 1868578.953
A33: 2028 | B33: =HLOOKUP($A33,'AEG Input File'!$BA$2:$BX$27,2,FALSE)*Inflation!$B9/100 -> 759018.2973 | C33: 759018.2973 | D33: 2295820.462 | E33: 730160.5314 | F33: 597047.3408 | G33: 286138.3009 | H33: 65290.89837 | I33: 1944391.263 | J33: 286138.3009 | K33: 2120105.862 | L33: 52790.63597 | M33: 97736.88025 | N33: =HLOOKUP($A33,'AEG Input File'!$BY$2:$CV$27,2,FALSE)*Inflation!$B9/100 -> 72568.31585 | O33: 36260.41168 | P33: 0 | Q33: 1908.800918 | R33: 24037.53843 | S33: 571440.884 | T33: 4.811145811e-51 | V33: 0 | W33: 6 | X33: 0 | Y33: 0 | Z33: 0 | AA33: 0 | AB33: 0 | AC33: 0 | AD33: 0 | AE33: 571440.884 | AF33: 0 | AG33: -571440.884 | AH33: -571440.884 | AI33: 0 | AL33: 564130.9341 | AN33: 2417360.779
A34: 2029 | B34: =HLOOKUP($A34,'AEG Input File'!$BA$2:$BX$27,2,FALSE)*Inflation!$B10/100 -> 1167898.197 | C34: 1167898.197 | D34: 3112289.46 | E34: 1133088.652 | F34: 757875.9707 | G34: 402928.1207 | H34: 74539.04851 | I34: 2634822.291 | J34: 402928.1207 | K34: 2873555.876 | L34: 71551.5413 | M34: 132470.9259 | N34: =HLOOKUP($A34,'AEG Input File'!$BY$2:$CV$27,2,FALSE)*Inflation!$B10/100 -> 74164.8188 | O34: 49486.81013 | P34: 0 | Q34: 2589.51131 | R34: 32609.72742 | S34: 765801.4555 | T34: 6.049639545e-51 | V34: 0 | W34: 7 | X34: 0 | Y34: 0 | Z34: 0 | AA34: 0 | AB34: 0 | AC34: 0 | AD34: 0 | AE34: 765801.4555 | AF34: 0 | AG34: -765801.4555 | AH34: -765801.4555 | AI34: 0 | AL34: 756005.2185 | AN34: 3299120.675
A35: 2030 | B35: =HLOOKUP($A35,'AEG Input File'!$BA$2:$BX$27,2,FALSE)*Inflation!$B11/100 -> 1216664.32 | C35: 1216664.32 | D35: 3851486.611 | E35: 1657683.205 | F35: 949432.4783 | G35: 524594.5527 | H35: 89215.96438 | I35: 3237676.094 | J35: 524594.5527 | K35: 3544581.352 | L35: 88260.07567 | M35: 163405.2003 | N35: =HLOOKUP($A35,'AEG Input File'!$BY$2:$CV$27,2,FALSE)*Inflation!$B11/100 -> 75796.44482 | O35: 61692.85312 | P35: 0 | Q35: 3190.834069 | R35: 40182.1876 | S35: 957122.1483 | T35: 7.09441809e-51 | V35: 0 | W35: 8 | X35: 0 | Y35: 0 | Z35: 0 | AA35: 0 | AB35: 0 | AC35: 0 | AD35: 0 | AE35: 957122.1483 | AF35: 0 | AG35: -957122.1483 | AH35: -957122.1483 | AI35: 0 | AL35: 944878.5108 | AN35: 4112856.875
A36: 2031 | B36: =HLOOKUP($A36,'AEG Input File'!$BA$2:$BX$27,2,FALSE)*Inflation!$B12/100 -> 1267394.477 | C36: 1267394.477 | D36: 4505070.571 | E36: 2309017.205 | F36: 1078783.725 | G36: 651334.0004 | H36: 89764.44215 | I36: 3763972.129 | J36: 651334.0004 | K36: 4134521.35 | L36: 102949.5816 | M36: 190601.4342 | N36: =HLOOKUP($A36,'AEG Input File'!$BY$2:$CV$27,2,FALSE)*Inflation!$B12/100 -> 77463.9666 | O36: 72834.85199 | P36: 0 | Q36: 3714.000613 | R36: 46770.42621 | S36: 1145668.262 | T36: 7.967909561e-51 | V36: 0 | W36: 9 | X36: 0 | Y36: 0 | Z36: 0 | AA36: 0 | AB36: 0 | AC36: 0 | AD36: 0 | AE36: 1145668.262 | AF36: 0 | AG36: -1145668.262 | AH36: -1145668.262 | AI36: 0 | AL36: 1131012.717 | AN36: 4855656.799
A37: 2032 | B37: =HLOOKUP($A37,'AEG Input File'!$BA$2:$BX$27,2,FALSE)*Inflation!$B13/100 -> 1734068.171 | C37: 1734068.171 | D37: 5498040.3 | E37: 3133758.023 | F37: 1249947.544 | G37: 824740.8176 | H37: 89293.41245 | I37: 4584006.07 | J37: 824740.8176 | K37: 5041023.185 | L37: 125521.4773 | M37: 232391.1688 | N37: =HLOOKUP($A37,'AEG Input File'!$BY$2:$CV$27,2,FALSE)*Inflation!$B13/100 -> 79168.17387 | O37: 89075.86456 | P37: 0 | Q37: 4524.107478 | R37: 56972.10555 | S37: 1412393.715 | T37: 9.216741171e-51 | V37: 0 | W37: 10 | X37: 0 | Y37: 0 | Z37: 0 | AA37: 0 | AB37: 0 | AC37: 0 | AD37: 0 | AE37: 1412393.715 | AF37: 0 | AG37: -1412393.715 | AH37: -1412393.715 | AI37: 0 | AL37: 1394326.182 | AN37: 5938390.97
A38: 2033 | B38: =HLOOKUP($A38,'AEG Input File'!$BA$2:$BX$27,2,FALSE)*Inflation!$B14/100 -> 1806424.154 | C38: 1806424.154 | D38: 6390430.224 | E38: 4139141.256 | F38: 1477947.441 | G38: 1005383.233 | H38: 99238.48375 | I38: 5285808.508 | J38: 1005383.233 | K38: 5838119.366 | L38: 145369.1722 | M38: 269137.3028 | N38: =HLOOKUP($A38,'AEG Input File'!$BY$2:$CV$27,2,FALSE)*Inflation!$B14/100 -> 80909.87369 | O38: 103801.1146 | P38: 0 | Q38: 5228.680396 | R38: 65844.79543 | S38: 1675674.172 | T38: 1.025999838e-50 | V38: 0 | W38: 11 | X38: 0 | Y38: 0 | Z38: 0 | AA38: 0 | AB38: 0 | AC38: 0 | AD38: 0 | AE38: 1675674.172 | AF38: 0 | AG38: -1675674.172 | AH38: -1675674.172 | AI38: 0 | AL38: 1654238.719 | AN38: 6920074.307
A39: 2034 | B39: =HLOOKUP($A39,'AEG Input File'!$BA$2:$BX$27,2,FALSE)*Inflation!$B15/100 -> 1881688.939 | C39: 1881688.939 | D39: 7167497.446 | E39: 5303587.362 | F39: 1640769.116 | G39: 1164446.106 | H39: 100027.832 | I39: 5903023.508 | J39: 1164446.106 | K39: 6535260.477 | L39: 162727.9859 | M39: 301275.508 | N39: =HLOOKUP($A39,'AEG Input File'!$BY$2:$CV$27,2,FALSE)*Inflation!$B15/100 -> 82689.89091 | O39: 116945.7002 | P39: 0 | Q39: 5844.471337 | R39: 73599.45349 | S39: 1907529.116 | T39: 1.095885027e-50 | V39: 0 | W39: 12 | X39: 0 | Y39: 0 | Z39: 0 | AA39: 0 | AB39: 0 | AC39: 0 | AD39: 0 | AE39: 1907529.116 | AF39: 0 | AG39: -1907529.116 | AH39: -1907529.116 | AI39: 0 | AL39: 1883127.743 | AN39: 7796380.013
A40: 2035 | B40: =HLOOKUP($A40,'AEG Input File'!$BA$2:$BX$27,2,FALSE)*Inflation!$B16/100 -> 2415042.835 | C40: 2415042.835 | D40: 8318066.343 | E40: 6671305.805 | F40: 1847830.827 | G40: 1367718.443 | H40: 100823.6005 | I40: 6849524.299 | J40: 1367718.443 | K40: 7583795.321 | L40: 188836.5035 | M40: 349612.9643 | N40: =HLOOKUP($A40,'AEG Input File'!$BY$2:$CV$27,2,FALSE)*Inflation!$B16/100 -> 84509.06851 | O40: 135704.6511 | P40: 0 | Q40: 6780.830657 | R40: 85391.03056 | S40: 2218553.492 | T40: 1.195913652e-50 | V40: 0 | W40: 13 | X40: 0 | Y40: 0 | Z40: 0 | AA40: 0 | AB40: 0 | AC40: 0 | AD40: 0 | AE40: 2218553.492 | AF40: 0 | AG40: -2218553.492 | AH40: -2218553.492 | AI40: 0 | AL40: 2190173.452 | AN40: 9046976.741
A41: 2036 | B41: =HLOOKUP($A41,'AEG Input File'!$BA$2:$BX$27,2,FALSE)*Inflation!$B17/100 -> 2515697.513 | C41: 2515697.513 | D41: 9365221.812 | E41: 8220590.195 | F41: 2118104.124 | G41: 1549284.39 | H41: 119452.1441 | I41: 7696485.278 | J41: 1549284.39 | K41: 8530853.545 | L41: 212418.2533 | M41: 393272.3484 | N41: =HLOOKUP($A41,'AEG Input File'!$BY$2:$CV$27,2,FALSE)*Inflation!$B17/100 -> 86368.26802 | O41: 152924.3372 | P41: 0 | Q41: 7626.984368 | R41: 96046.648 | S41: 2497941.229 | T41: 1.263421422e-50 | V41: 0 | W41: 14 | X41: 0 | Y41: 0 | Z41: 0 | AA41: 0 | AB41: 0 | AC41: 0 | AD41: 0 | AE41: 2497941.229 | AF41: 0 | AG41: -2497941.229 | AH41: -2497941.229 | AI41: 0 | AL41: 2465987.223 | AN41: 10194955.81
A42: 2037 | B42: =HLOOKUP($A42,'AEG Input File'!$BA$2:$BX$27,2,FALSE)*Inflation!$B18/100 -> 2620391.292 | C42: 2620391.292 | D42: 10316876.57 | E42: 9959019.015 | F42: 2317542.642 | G42: 1738428.82 | H42: 121613.9027 | I42: 8456833.848 | J42: 1738428.82 | K42: 9386855.209 | L42: 233732.6947 | M42: 432734.0251 | N42: =HLOOKUP($A42,'AEG Input File'!$BY$2:$CV$27,2,FALSE)*Inflation!$B18/100 -> 88268.36992 | O42: 168990.9407 | P42: 0 | Q42: 8384.853353 | R42: 105590.4955 | S42: 2776130.199 | T42: 1.317473692e-50 | V42: 0 | W42: 15 | X42: 0 | Y42: 0 | Z42: 0 | AA42: 0 | AB42: 0 | AC42: 0 | AD42: 0 | AE42: 2776130.199 | AF42: 0 | AG42: -2776130.199 | AH42: -2776130.199 | AI42: 0 | AL42: 2740617.562 | AN42: 11266062.71
A43: 2038 | B43: =HLOOKUP($A43,'AEG Input File'!$BA$2:$BX$27,2,FALSE)*Inflation!$B19/100 -> 3229647.385 | C43: 3229647.385 | D43: 11686481.23 | E43: 11944510.74 | F43: 2566502.145 | G43: 1985491.728 | H43: 122012.1874 | I43: 9578977.317 | J43: 1985491.728 | K43: 10632729.27 | L43: 264754.9589 | M43: 490168.8196 | N43: =HLOOKUP($A43,'AEG Input File'!$BY$2:$CV$27,2,FALSE)*Inflation!$B19/100 -> 90210.27406 | O43: 191359.2192 | P43: 0 | Q43: 9495.989029 | R43: 119583.032 | S43: 3151064.021 | T43: 1.40312205e-50 | V43: 0 | W43: 16 | X43: 0 | Y43: 0 | Z43: 0 | AA43: 0 | AB43: 0 | AC43: 0 | AD43: 0 | AE43: 3151064.021 | AF43: 0 | AG43: -3151064.021 | AH43: -3151064.021 | AI43: 0 | AL43: 3110755.179 | AN43: 12757281.28
A44: 2039 | B44: =HLOOKUP($A44,'AEG Input File'!$BA$2:$BX$27,2,FALSE)*Inflation!$B20/100 -> 266328.0791 | C44: 266328.0791 | D44: 9845305.396 | E44: 13839845.46 | F44: 2266274.478 | G44: 1895334.717 | H44: 77897.3499 | I44: 7872073.329 | J44: 1895334.717 | K44: =(+I44+D44)/2 -> 8858689.363 | L44: 220581.3651 | M44: 408385.5796 | N44: =HLOOKUP($A44,'AEG Input File'!$BY$2:$CV$27,2,FALSE)*Inflation!$B20/100 -> 92194.90009 | O44: 165571.7644 | P44: 0 | Q44: 7840.505939 | R44: =(+AL44-(G44+L44+N44+O44+P44+Q44))*$D$2 -> 98735.52609 | S44: 2888644.358 | T44: 1.206891976e-50 | V44: 0 | W44: 17 | X44: 0 | Y44: 0 | Z44: 0 | AA44: 0 | AB44: 0 | AC44: =Y44+AA44 -> 0 | AD44: 0 | AE44: 2888644.358 | AF44: 0 | AG44: -2888644.358 | AH44: -2888644.358 | AI44: 0 | AL44: 2851692.424 | AN44: 11038117.63
A45: 2040 | B45: =HLOOKUP($A45,'AEG Input File'!$BA$2:$BX$27,2,FALSE)*Inflation!$B21/100 -> 274946.5601 | C45: 274946.5601 | D45: 8147019.889 | E45: 15641008.4 | F45: 1491090.493 | G45: 1801162.941 | H45: -65115.21402 | I45: 6410972.163 | J45: 1801162.941 | K45: 7278996.026 | L45: 181247.0011 | M45: 335561.7168 | N45: =HLOOKUP($A45,'AEG Input File'!$BY$2:$CV$27,2,FALSE)*Inflation!$B21/100 -> 94223.18789 | O45: 141265.9421 | P45: 0 | Q45: 6370.410024 | R45: 80222.60171 | S45: 2640053.8 | T45: 1.034959135e-50 | V45: 0 | W45: 18 | X45: 0 | Y45: 0 | Z45: 0 | AA45: 0 | AB45: 0 | AC45: 0 | AD45: 0 | AE45: 2640053.8 | AF45: 0 | AG45: -2640053.8 | AH45: -2640053.8 | AI45: 0 | AL45: 2606281.871 | AN45: 9417729.473
A46: 2041 | B46: =HLOOKUP($A46,'AEG Input File'!$BA$2:$BX$27,2,FALSE)*Inflation!$B22/100 -> 283845.797 | C46: 283845.797 | D46: 6694817.96 | E46: 17343816.47 | F46: 1014715.682 | G46: 1702808.073 | H46: -144499.402 | I46: 5136509.289 | J46: 1702808.073 | K46: 5915663.625 | L46: 147300.0243 | M46: 272712.0931 | N46: =HLOOKUP($A46,'AEG Input File'!$BY$2:$CV$27,2,FALSE)*Inflation!$B22/100 -> 96296.09802 | O46: 118506.1849 | P46: 0 | Q46: 5106.652606 | R46: 64308.09893 | S46: 2407037.224 | T46: 8.853792366e-51 | V46: 0 | W46: 19 | X46: 0 | Y46: 0 | Z46: 0 | AA46: 0 | AB46: 0 | AC46: 0 | AD46: 0 | AE46: 2407037.224 | AF46: 0 | AG46: -2407037.224 | AH46: -2407037.224 | AI46: 0 | AL46: 2376246.075 | AN46: 7900412.329
A47: 2042 | B47: =HLOOKUP($A47,'AEG Input File'!$BA$2:$BX$27,2,FALSE)*Inflation!$B23/100 -> 293035.0026 | C47: 293035.0026 | D47: 5429544.292 | E47: 18902521.23 | F47: 755898.307 | G47: 1558704.756 | H47: -168589.3542 | I47: =D47-J47-H47 -> 4039428.891 | J47: 1558704.756 | K47: 4734486.591 | L47: 117888.7161 | M47: 218259.8319 | N47: =HLOOKUP($A47,'AEG Input File'!$BY$2:$CV$27,2,FALSE)*Inflation!$B23/100 -> 98414.61218 | O47: 97359.58889 | P47: 0 | Q47: 4027.887253 | R47: 50723.20205 | S47: 2145378.594 | T47: 7.404343712e-51 | V47: 0 | W47: 20 | X47: 0 | Y47: 0 | Z47: 0 | AA47: 0 | AB47: 0 | AC47: 0 | AD47: 0 | AE47: 2145378.594 | AF47: 0 | AG47: -2145378.594 | AH47: -2145378.594 | AI47: 0 | AL47: 2117934.618 | AN47: 6490639.259
A48: 2043 | B48: =HLOOKUP($A48,'AEG Input File'!$BA$2:$BX$27,2,FALSE)*Inflation!$B24/100 -> 302523.6558 | C48: 302523.6558 | D48: =I47+C48 -> 4341952.546 | E48: 20310835.93 | F48: 457156.8528 | G48: 1408314.706 | H48: -199743.1491 | I48: 3133380.99 | J48: 1408314.706 | K48: 3737666.768 | L48: 93067.90252 | M48: 172306.438 | N48: =HLOOKUP($A48,'AEG Input File'!$BY$2:$CV$27,2,FALSE)*Inflation!$B24/100 -> 100579.7336 | O48: 78516.87239 | P48: 0 | Q48: 3125.403885 | R48: 39358.225 | S48: 1895269.281 | T48: 6.137473817e-51 | V48: 0 | W48: 21 | X48: 0 | Y48: 0 | Z48: 0 | AA48: 0 | AB48: 0 | AC48: 0 | AD48: 0 | AE48: 1895269.281 | AF48: 0 | AG48: -1895269.281 | AH48: -1895269.281 | AI48: 0 | AL48: 1871024.737 | AN48: 5234458.159
A49: 2044 | B49: =HLOOKUP($A49,'AEG Input File'!$BA$2:$BX$27,2,FALSE)*Inflation!$B25/100 -> 312321.5768 | C49: 312321.5768 | D49: 3445702.567 | E49: 21562213.9 | F49: 295247.9826 | G49: 1251377.97 | H49: -200787.2973 | I49: 2395111.894 | J49: 1251377.97 | K49: 2920407.23 | L49: 72718.14004 | M49: 134630.7733 | N49: =HLOOKUP($A49,'AEG Input File'!$BY$2:$CV$27,2,FALSE)*Inflation!$B25/100 -> 102792.4878 | O49: 62076.97545 | P49: 0 | Q49: 2394.686291 | R49: 30156.29509 | S49: 1656147.328 | T49: 5.032152549e-51 | V49: 0 | W49: 22 | X49: 0 | Y49: 0 | Z49: 0 | AA49: 0 | AB49: 0 | AC49: 0 | AD49: 0 | AE49: 1656147.328 | AF49: 0 | AG49: -1656147.328 | AH49: -1656147.328 | AI49: 0 | AL49: 1634961.664 | AN49: 4138465.03
A50: 2045 | B50: =HLOOKUP($A50,'AEG Input File'!$BA$2:$BX$27,2,FALSE)*Inflation!$B26/100 -> 322438.9578 | C50: 322438.9578 | D50: 2717550.852 | E50: 22604331.49 | F50: 304808.828 | G50: 1042117.582 | H50: -154834.8383 | I50: 1830268.108 | J50: 1042117.582 | K50: 2273909.48 | L50: 56620.34606 | M50: 104827.227 | N50: =HLOOKUP($A50,'AEG Input File'!$BY$2:$CV$27,2,FALSE)*Inflation!$B26/100 -> 105053.9225 | O50: 48142.89028 | P50: 0 | Q50: 1839.659691 | R50: 23166.84266 | S50: 1381768.47 | T50: 3.939364889e-51 | V50: 0 | W50: 23 | X50: 0 | Y50: 0 | Z50: 0 | AA50: 0 | AB50: 0 | AC50: 0 | AD50: 0 | AE50: 1381768.47 | AF50: 0 | AG50: -1381768.47 | AH50: -1381768.47 | AI50: 0 | AL50: 1364092.699 | AN50: 3209526.018
A51: 2046 | B51: ='AEG Input File'!$BX$509*Inflation!B26/100 -> 0 | C51: 0 | D51: 1830268.108 | E51: 23394879.32 | F51: 248104.0846 | G51: 790547.8306 | H51: -113913.1867 | I51: 1153633.464 | J51: 790547.8306 | K51: 1491950.786 | L51: 37149.57458 | M51: 68778.93125 | N51: ='AEG Input File'!$CV$509*Inflation!$B$26/100 -> 0 | O51: 32511.12655 | P51: 0 | Q51: 1196.595329 | R51: 15068.73029 | S51: 945252.7886 | T51: 2.528570109e-51 | V51: 0 | W51: 24 | X51: 0 | Y51: 0 | Z51: 0 | AA51: 0 | AB51: 0 | AC51: 0 | AD51: 0 | AE51: 945252.7886 | AF51: 0 | AG51: -945252.7886 | AH51: -945252.7886 | AI51: 0 | AL51: 933160.9856 | AN51: 2167408.437
A52: 2047 | B52: 0 | C52: =B52 -> 0 | D52: 1153633.464 | E52: 23923388.02 | F52: 149617.2669 | G52: 528508.7014 | H52: -79567.20126 | I52: 704691.9643 | J52: 528508.7014 | K52: 929162.7144 | L52: 23136.15159 | M52: 42834.40113 | N52: 0 | O52: 20652.90909 | P52: 0 | Q52: 735.3803484 | R52: 9260.647991 | S52: 625128.1916 | T52: 1.569033509e-51 | V52: 0 | W52: 25 | X52: 0 | Y52: 0 | Z52: 0 | AA52: 0 | AB52: 0 | AC52: 0 | AD52: 0 | AE52: 625128.1916 | AF52: 0 | AG52: -625128.1916 | AH52: -625128.1916 | AI52: 0 | AL52: 617131.4662 | AN52: 1376860.606
A53: 2048 | B53: 0 | C53: 0 | D53: 704691.9643 | E53: 24128931.98 | F53: 90549.77617 | G53: 205543.9629 | H53: -24148.77922 | I53: 523296.7806 | J53: 205543.9629 | K53: 613994.3724 | L53: 15288.45987 | M53: 28305.14057 | N53: 0 | O53: 12725.27857 | P53: 0 | Q53: 524.8503104 | R53: 6609.442289 | S53: 268997.1345 | T53: 6.335003932e-52 | V53: 0 | W53: 26 | X53: 0 | Y53: 0 | Z53: 0 | AA53: 0 | AB53: 0 | AC53: 0 | AD53: 0 | AE53: 268997.1345 | AF53: 0 | AG53: -268997.1345 | AH53: -268997.1345 | AI53: 0 | AL53: 265556.0864 | AN53: 848351.9045
A54: 2049 | B54: 0 | C54: 0 | D54: 523296.7806 | E54: 24307843.14 | F54: 55134.69077 | G54: 178911.155 | H54: -25993.05749 | I54: 370378.6831 | J54: 178911.155 | K54: 446837.7318 | L54: 11126.25952 | M54: 20599.21944 | N54: 0 | O54: 9642.119124 | P54: 0 | Q54: 373.9704181 | R54: 4709.411135 | S54: 225362.1347 | T54: 4.979850258e-52 | V54: 0 | W54: 27 | X54: 0 | Y54: 0 | Z54: 0 | AA54: 0 | AB54: 0 | AC54: 0 | AD54: 0 | AE54: 225362.1347 | AF54: 0 | AG54: -225362.1347 | AH54: -225362.1347 | AI54: 0 | AL54: 222479.2714 | AN54: 642807.9416
A55: 2050 | B55: 0 | C55: 0 | D55: 370378.6831 | E55: 24459259.64 | F55: 18572.48397 | G55: 151416.499 | H55: -27897.24316 | I55: 246859.4272 | J55: 151416.499 | K55: 308619.0551 | L55: 7684.614473 | M55: 14227.33844 | N55: 0 | O55: 6958.451799 | P55: 0 | Q55: 250.7191108 | R55: 3157.306875 | S55: 183694.9297 | T55: 3.808628445e-52 | V55: 0 | W55: 28 | X55: 0 | Y55: 0 | Z55: 0 | AA55: 0 | AB55: 0 | AC55: 0 | AD55: 0 | AE55: 183694.9297 | AF55: 0 | AG55: -183694.9297 | AH55: -183694.9297 | AI55: 0 | AL55: 181345.079 | AN55: 463896.7866
A56: 2051 | B56: 0 | C56: 0 | D56: 246859.4272 | E56: 24582291.55 | F56: 0 | G56: 123031.9193 | H56: -25836.70305 | I56: 149664.211 | J56: 123031.9193 | K56: 198261.8191 | L56: 4936.719295 | M56: 9139.869859 | N56: 0 | O56: 4687.204314 | P56: 0 | Q56: 154.0772783 | R56: 1940.295849 | S56: 143890.0859 | T56: 2.799228883e-52 | V56: 0 | W56: 29 | X56: 0 | Y56: 0 | Z56: 0 | AA56: 0 | AB56: 0 | AC56: 0 | AD56: 0 | AE56: 143890.0859 | AF56: 0 | AG56: -143890.0859 | AH56: -143890.0859 | AI56: 0 | AL56: 142049.4242 | AN56: 312480.2876
A57: 2052 | B57: 0 | C57: 0 | D57: 149664.211 | E57: 24676019.97 | F57: 0 | G57: 93728.41905 | H57: -19682.968 | I57: 75618.75991 | J57: 93728.41905 | K57: 112641.4854 | L57: 2804.772987 | M57: 5192.772478 | N57: 0 | O57: 2841.725524 | P57: 0 | Q57: 81.07940172 | R57: 1021.033266 | S57: 105669.8027 | T57: 1.928832595e-52 | V57: 0 | W57: 30 | X57: 0 | Y57: 0 | Z57: 0 | AA57: 0 | AB57: 0 | AC57: 0 | AD57: 0 | AE57: 105669.8027 | AF57: 0 | AG57: -105669.8027 | AH57: -105669.8027 | AI57: 0 | AL57: 104318.0601 | AN57: 189448.3683
A58: 2053 | B58: 0 | C58: 0 | D58: 75618.75991 | E58: 24739496.03 | F58: 0 | G58: 63476.05347 | H58: -13329.97123 | I58: 25472.67767 | J58: 63476.05347 | K58: 50545.71879 | L58: 1258.588398 | M58: 2330.157636 | N58: 0 | O58: 1435.799239 | P58: 0 | Q58: 30.5775605 | R58: 385.0633551 | S58: 68916.23965 | T58: 1.180324206e-52 | V58: 0 | W58: 31 | X58: 0 | Y58: 0 | Z58: 0 | AA58: 0 | AB58: 0 | AC58: 0 | AD58: 0 | AE58: 68916.23965 | AF58: 0 | AG58: -68916.23965 | AH58: -68916.23965 | AI58: 0 | AL58: 68034.65369 | AN58: 95719.94925
A59: 2054 | B59: 0 | C59: 0 | D59: 25472.67767 | E59: 24771739.92 | F59: 0 | G59: 32243.89578 | H59: -6771.218114 | I59: -2.85126589e-09 | J59: 32243.89578 | K59: 12736.33883 | L59: 317.134837 | M59: 587.1452202 | N59: 0 | O59: 483.6584367 | P59: 0 | Q59: 3.300320179 | R59: 41.56094666 | S59: 33676.69554 | T59: 5.411844546e-53 | V59: 0 | W59: 32 | X59: 0 | Y59: 0 | Z59: 0 | AA59: 0 | AB59: 0 | AC59: 0 | AD59: 0 | AE59: 33676.69554 | AF59: 0 | AG59: -33676.69554 | AH59: -33676.69554 | AI59: 0 | AL59: 33245.89865 | AN59: 32243.89578
A60: 2055 | B60: 0 | C60: 0 | D60: -2.85126589e-09 | E60: 24771739.92 | F60: 0 | G60: 0 | H60: 0 | I60: -2.85126589e-09 | J60: 0 | K60: -2.85126589e-09 | L60: -7.099652066e-11 | M60: -1.314433575e-10 | N60: 0 | O60: -8.185452316e-12 | P60: 0 | Q60: -2.707793853e-12 | R60: -3.409926001e-11 | S60: -2.474323844e-10 | T60: -3.730855974e-67 | V60: 0 | W60: 33 | X60: 0 | Y60: 0 | Z60: 0 | AA60: 0 | AB60: 0 | AC60: 0 | AD60: 0 | AE60: -2.474323844e-10 | AF60: 0 | AG60: 2.474323844e-10 | AH60: 2.474323844e-10 | AI60: 0 | AL60: -2.442671955e-10 | AN60: -5.456968211e-10
A61: 2056 | B61: 0 | C61: 0 | D61: -2.85126589e-09 | E61: 24771739.92 | F61: 0 | G61: 0 | H61: 0 | I61: -2.85126589e-09 | J61: 0 | K61: -2.85126589e-09 | L61: -7.099652066e-11 | M61: -1.314433575e-10 | N61: 0 | O61: -8.185452316e-12 | P61: 0 | Q61: -2.707793853e-12 | R61: -3.409926001e-11 | S61: -2.474323844e-10 | T61: -3.5006169e-67 | V61: 0 | W61: 34 | X61: 0 | Y61: 0 | Z61: 0 | AA61: 0 | AB61: 0 | AC61: 0 | AD61: 0 | AE61: -2.474323844e-10 | AF61: 0 | AG61: 2.474323844e-10 | AH61: 2.474323844e-10 | AI61: 0 | AL61: -2.442671955e-10 | AN61: -5.456968211e-10
A62: 2057 | B62: 0 | C62: 0 | D62: -2.85126589e-09 | E62: 24771739.92 | F62: 0 | G62: 0 | H62: 0 | I62: -2.85126589e-09 | J62: 0 | K62: -2.85126589e-09 | L62: -7.099652066e-11 | M62: -1.314433575e-10 | N62: 0 | O62: -8.185452316e-12 | P62: 0 | Q62: -2.707793853e-12 | R62: -3.409926001e-11 | S62: -2.474323844e-10 | T62: -3.28458637e-67 | V62: 0 | W62: 35 | X62: 0 | Y62: 0 | Z62: 0 | AA62: 0 | AB62: 0 | AC62: 0 | AD62: 0 | AE62: -2.474323844e-10 | AF62: 0 | AG62: 2.474323844e-10 | AH62: 2.474323844e-10 | AI62: 0 | AL62: -2.442671955e-10 | AN62: -5.456968211e-10
A63: 2058 | B63: 0 | C63: 0 | D63: -2.85126589e-09 | E63: 24771739.92 | F63: 0 | G63: 0 | H63: 0 | I63: -2.85126589e-09 | J63: 0 | K63: -2.85126589e-09 | L63: -7.099652066e-11 | M63: -1.314433575e-10 | N63: 0 | O63: -8.185452316e-12 | P63: 0 | Q63: -2.707793853e-12 | R63: -3.409926001e-11 | S63: -2.474323844e-10 | T63: -3.081887544e-67 | V63: 0 | W63: 36 | X63: 0 | Y63: 0 | Z63: 0 | AA63: 0 | AB63: 0 | AC63: 0 | AD63: 0 | AE63: -2.474323844e-10 | AF63: 0 | AG63: 2.474323844e-10 | AH63: 2.474323844e-10 | AI63: 0 | AL63: -2.442671955e-10 | AN63: -5.456968211e-10
A64: 2059 | B64: 0 | C64: 0 | D64: -2.85126589e-09 | E64: 24771739.92 | F64: 0 | G64: 0 | H64: 0 | I64: -2.85126589e-09 | J64: 0 | K64: -2.85126589e-09 | L64: -7.099652066e-11 | M64: -1.314433575e-10 | N64: 0 | O64: -8.185452316e-12 | P64: 0 | Q64: -2.707793853e-12 | R64: -3.409926001e-11 | S64: -2.474323844e-10 | T64: -2.891697695e-67 | V64: 0 | W64: 37 | X64: 0 | Y64: 0 | Z64: 0 | AA64: 0 | AB64: 0 | AC64: 0 | AD64: 0 | AE64: -2.474323844e-10 | AF64: 0 | AG64: 2.474323844e-10 | AH64: 2.474323844e-10 | AI64: 0 | AL64: -2.442671955e-10 | AN64: -5.456968211e-10
A65: 2060 | B65: 0 | C65: 0 | D65: -2.85126589e-09 | E65: 24771739.92 | F65: 0 | G65: 0 | H65: 0 | I65: -2.85126589e-09 | J65: 0 | K65: -2.85126589e-09 | L65: -7.099652066e-11 | M65: -1.314433575e-10 | N65: 0 | O65: -8.185452316e-12 | P65: 0 | Q65: -2.707793853e-12 | R65: -3.409926001e-11 | S65: -2.474323844e-10 | T65: -2.713244867e-67 | V65: 0 | W65: 38 | X65: 0 | Y65: 0 | Z65: 0 | AA65: 0 | AB65: 0 | AC65: 0 | AD65: 0 | AE65: -2.474323844e-10 | AF65: 0 | AG65: 2.474323844e-10 | AH65: 2.474323844e-10 | AI65: 0 | AL65: -2.442671955e-10 | AN65: -5.456968211e-10
A66: 2061 | B66: 0 | C66: 0 | D66: -2.85126589e-09 | E66: 24771739.92 | F66: 0 | G66: 0 | H66: 0 | I66: -2.85126589e-09 | J66: 0 | K66: -2.85126589e-09 | L66: -7.099652066e-11 | M66: -1.314433575e-10 | N66: 0 | O66: -8.185452316e-12 | P66: 0 | Q66: -2.707793853e-12 | R66: -3.409926001e-11 | S66: -2.474323844e-10 | T66: -2.545804743e-67 | V66: 0 | W66: 39 | X66: 0 | Y66: 0 | Z66: 0 | AA66: 0 | AB66: 0 | AC66: 0 | AD66: 0 | AE66: -2.474323844e-10 | AF66: 0 | AG66: 2.474323844e-10 | AH66: 2.474323844e-10 | AI66: 0 | AL66: -2.442671955e-10 | AN66: -5.456968211e-10
A67: 2062 | B67: 0 | C67: 0 | D67: -2.85126589e-09 | E67: 24771739.92 | F67: 0 | G67: 0 | H67: 0 | I67: -2.85126589e-09 | J67: 0 | K67: -2.85126589e-09 | L67: -7.099652066e-11 | M67: -1.314433575e-10 | N67: 0 | O67: -8.185452316e-12 | P67: 0 | Q67: -2.707793853e-12 | R67: -3.409926001e-11 | S67: -2.474323844e-10 | T67: -2.388697706e-67 | V67: 0 | W67: 40 | X67: 0 | Y67: 0 | Z67: 0 | AA67: 0 | AB67: 0 | AC67: 0 | AD67: 0 | AE67: -2.474323844e-10 | AF67: 0 | AG67: 2.474323844e-10 | AH67: 2.474323844e-10 | AI67: 0 | AL67: -2.442671955e-10 | AN67: -5.456968211e-10
A68: 2063 | B68: 0 | C68: 0 | D68: -2.85126589e-09 | E68: 24771739.92 | F68: 0 | G68: 0 | H68: 0 | I68: -2.85126589e-09 | J68: 0 | K68: -2.85126589e-09 | L68: -7.099652066e-11 | M68: -1.314433575e-10 | N68: 0 | O68: -8.185452316e-12 | P68: 0 | Q68: -2.707793853e-12 | R68: -3.409926001e-11 | S68: -2.474323844e-10 | T68: -2.24128608e-67 | V68: 0 | W68: 41 | X68: 0 | Y68: 0 | Z68: 0 | AA68: 0 | AB68: 0 | AC68: 0 | AD68: 0 | AE68: -2.474323844e-10 | AF68: 0 | AG68: 2.474323844e-10 | AH68: 2.474323844e-10 | AI68: 0 | AL68: -2.442671955e-10 | AN68: -5.456968211e-10
A69: 2064 | B69: 0 | C69: 0 | D69: -2.85126589e-09 | E69: 24771739.92 | F69: 0 | G69: 0 | H69: 0 | I69: -2.85126589e-09 | J69: 0 | K69: -2.85126589e-09 | L69: -7.099652066e-11 | M69: -1.314433575e-10 | N69: 0 | O69: -8.185452316e-12 | P69: 0 | Q69: -2.707793853e-12 | R69: -3.409926001e-11 | S69: -2.474323844e-10 | T69: -2.102971539e-67 | V69: 0 | W69: 42 | X69: 0 | Y69: 0 | Z69: 0 | AA69: 0 | AB69: 0 | AC69: 0 | AD69: 0 | AE69: -2.474323844e-10 | AF69: 0 | AG69: 2.474323844e-10 | AH69: 2.474323844e-10 | AI69: 0 | AL69: -2.442671955e-10 | AN69: -5.456968211e-10
A70: 2065 | B70: 0 | C70: 0 | D70: -2.85126589e-09 | E70: 24771739.92 | F70: 0 | G70: 0 | H70: 0 | I70: -2.85126589e-09 | J70: 0 | K70: -2.85126589e-09 | L70: -7.099652066e-11 | M70: -1.314433575e-10 | N70: 0 | O70: -8.185452316e-12 | P70: 0 | Q70: -2.707793853e-12 | R70: -3.409926001e-11 | S70: -2.474323844e-10 | T70: -1.973192683e-67 | V70: 0 | W70: 43 | X70: 0 | Y70: 0 | Z70: 0 | AA70: 0 | AB70: 0 | AC70: 0 | AD70: 0 | AE70: -2.474323844e-10 | AF70: 0 | AG70: 2.474323844e-10 | AH70: 2.474323844e-10 | AI70: 0 | AL70: -2.442671955e-10 | AN70: -5.456968211e-10
A71: 2066 | B71: 0 | C71: 0 | D71: -2.85126589e-09 | E71: 24771739.92 | F71: 0 | G71: 0 | H71: 0 | I71: -2.85126589e-09 | J71: 0 | K71: -2.85126589e-09 | L71: -7.099652066e-11 | M71: -1.314433575e-10 | N71: 0 | O71: -8.185452316e-12 | P71: 0 | Q71: -2.707793853e-12 | R71: -3.409926001e-11 | S71: -2.474323844e-10 | T71: -1.851422757e-67 | V71: 0 | W71: 44 | X71: 0 | Y71: 0 | Z71: 0 | AA71: 0 | AB71: 0 | AC71: 0 | AD71: 0 | AE71: -2.474323844e-10 | AF71: 0 | AG71: 2.474323844e-10 | AH71: 2.474323844e-10 | AI71: 0 | AL71: -2.442671955e-10 | AN71: -5.456968211e-10
A72: 2067 | B72: 0 | C72: 0 | D72: -2.85126589e-09 | E72: 24771739.92 | F72: 0 | G72: 0 | H72: 0 | I72: -2.85126589e-09 | J72: 0 | K72: -2.85126589e-09 | L72: -7.099652066e-11 | M72: -1.314433575e-10 | N72: 0 | O72: -8.185452316e-12 | P72: 0 | Q72: -2.707793853e-12 | R72: -3.409926001e-11 | S72: -2.474323844e-10 | T72: -1.737167512e-67 | V72: 0 | W72: 45 | X72: 0 | Y72: 0 | Z72: 0 | AA72: 0 | AB72: 0 | AC72: 0 | AD72: 0 | AE72: -2.474323844e-10 | AF72: 0 | AG72: 2.474323844e-10 | AH72: 2.474323844e-10 | AI72: 0 | AL72: -2.442671955e-10 | AN72: -5.456968211e-10
A73: 2068 | B73: 0 | C73: 0 | D73: -2.85126589e-09 | E73: 24771739.92 | F73: 0 | G73: 0 | H73: 0 | I73: -2.85126589e-09 | J73: 0 | K73: -2.85126589e-09 | L73: -7.099652066e-11 | M73: -1.314433575e-10 | N73: 0 | O73: -8.185452316e-12 | P73: 0 | Q73: -2.707793853e-12 | R73: -3.409926001e-11 | S73: -2.474323844e-10 | T73: -1.629963202e-67 | V73: 0 | W73: 46 | X73: 0 | Y73: 0 | Z73: 0 | AA73: 0 | AB73: 0 | AC73: 0 | AD73: 0 | AE73: -2.474323844e-10 | AF73: 0 | AG73: 2.474323844e-10 | AH73: 2.474323844e-10 | AI73: 0 | AL73: -2.442671955e-10 | AN73: -5.456968211e-10
A74: 2069 | B74: 0 | C74: 0 | D74: -2.85126589e-09 | E74: 24771739.92 | F74: 0 | G74: 0 | H74: 0 | I74: -2.85126589e-09 | J74: 0 | K74: -2.85126589e-09 | L74: -7.099652066e-11 | M74: -1.314433575e-10 | N74: 0 | O74: -8.185452316e-12 | P74: 0 | Q74: -2.707793853e-12 | R74: -3.409926001e-11 | S74: -2.474323844e-10 | T74: -1.529374699e-67 | V74: 0 | W74: 47 | X74: 0 | Y74: 0 | Z74: 0 | AA74: 0 | AB74: 0 | AC74: 0 | AD74: 0 | AE74: -2.474323844e-10 | AF74: 0 | AG74: 2.474323844e-10 | AH74: 2.474323844e-10 | AI74: 0 | AL74: -2.442671955e-10 | AN74: -5.456968211e-10
A75: 2070 | B75: 0 | C75: 0 | D75: -2.85126589e-09 | E75: 24771739.92 | F75: 0 | G75: 0 | H75: 0 | I75: -2.85126589e-09 | J75: 0 | K75: -2.85126589e-09 | L75: -7.099652066e-11 | M75: -1.314433575e-10 | N75: 0 | O75: -8.185452316e-12 | P75: 0 | Q75: -2.707793853e-12 | R75: -3.409926001e-11 | S75: -2.474323844e-10 | T75: -1.434993727e-67 | V75: 0 | W75: 48 | X75: 0 | Y75: 0 | Z75: 0 | AA75: 0 | AB75: 0 | AC75: 0 | AD75: 0 | AE75: -2.474323844e-10 | AF75: 0 | AG75: 2.474323844e-10 | AH75: 2.474323844e-10 | AI75: 0 | AL75: -2.442671955e-10 | AN75: -5.456968211e-10
A76: 2071 | B76: 0 | C76: 0 | D76: -2.85126589e-09 | E76: 24771739.92 | F76: 0 | G76: 0 | H76: 0 | I76: -2.85126589e-09 | J76: 0 | K76: -2.85126589e-09 | L76: -7.099652066e-11 | M76: -1.314433575e-10 | N76: 0 | O76: -8.185452316e-12 | P76: 0 | Q76: -2.707793853e-12 | R76: -3.409926001e-11 | S76: -2.474323844e-10 | T76: -1.346437205e-67 | V76: 0 | W76: 49 | X76: 0 | Y76: 0 | Z76: 0 | AA76: 0 | AB76: 0 | AC76: 0 | AD76: 0 | AE76: -2.474323844e-10 | AF76: 0 | AG76: 2.474323844e-10 | AH76: 2.474323844e-10 | AI76: 0 | AL76: -2.442671955e-10 | AN76: -5.456968211e-10
A77: 2072 | B77: 0 | C77: 0 | D77: -2.85126589e-09 | E77: 24771739.92 | F77: 0 | G77: 0 | H77: 0 | I77: -2.85126589e-09 | J77: 0 | K77: -2.85126589e-09 | L77: -7.099652066e-11 | M77: -1.314433575e-10 | N77: 0 | O77: -8.185452316e-12 | P77: 0 | Q77: -2.707793853e-12 | R77: -3.409926001e-11 | S77: -2.474323844e-10 | T77: -1.263345695e-67 | V77: 0 | W77: 50 | X77: 0 | Y77: 0 | Z77: 0 | AA77: 0 | AB77: 0 | AC77: 0 | AD77: 0 | AE77: -2.474323844e-10 | AF77: 0 | AG77: 2.474323844e-10 | AH77: 2.474323844e-10 | AI77: 0 | AL77: -2.442671955e-10 | AN77: -5.456968211e-10
A78: 2073 | B78: 0 | C78: 0 | D78: -2.85126589e-09 | E78: 24771739.92 | F78: 0 | G78: 0 | H78: 0 | I78: -2.85126589e-09 | J78: 0 | K78: -2.85126589e-09 | L78: -7.099652066e-11 | M78: -1.314433575e-10 | N78: 0 | O78: -8.185452316e-12 | P78: 0 | Q78: -2.707793853e-12 | R78: -3.409926001e-11 | S78: -2.474323844e-10 | T78: -1.18538194e-67 | V78: 0 | W78: 51 | X78: 0 | Y78: 0 | Z78: 0 | AA78: 0 | AB78: 0 | AC78: 0 | AD78: 0 | AE78: -2.474323844e-10 | AF78: 0 | AG78: 2.474323844e-10 | AH78: 2.474323844e-10 | AI78: 0 | AL78: -2.442671955e-10 | AN78: -5.456968211e-10
A79: 2074 | B79: 0 | C79: 0 | D79: -2.85126589e-09 | E79: 24771739.92 | F79: 0 | G79: 0 | H79: 0 | I79: -2.85126589e-09 | J79: 0 | K79: -2.85126589e-09 | L79: -7.099652066e-11 | M79: -1.314433575e-10 | N79: 0 | O79: -8.185452316e-12 | P79: 0 | Q79: -2.707793853e-12 | R79: -3.409926001e-11 | S79: -2.474323844e-10 | T79: -1.112229494e-67 | V79: 0 | W79: 52 | X79: 0 | Y79: 0 | Z79: 0 | AA79: 0 | AB79: 0 | AC79: 0 | AD79: 0 | AE79: -2.474323844e-10 | AF79: 0 | AG79: 2.474323844e-10 | AH79: 2.474323844e-10 | AI79: 0 | AL79: -2.442671955e-10 | AN79: -5.456968211e-10
A80: 2075 | B80: 0 | C80: 0 | D80: -2.85126589e-09 | E80: 24771739.92 | F80: 0 | G80: 0 | H80: 0 | I80: -2.85126589e-09 | J80: 0 | K80: -2.85126589e-09 | L80: -7.099652066e-11 | M80: -1.314433575e-10 | N80: 0 | O80: -8.185452316e-12 | P80: 0 | Q80: -2.707793853e-12 | R80: -3.409926001e-11 | S80: -2.474323844e-10 | T80: -1.043591441e-67 | V80: 0 | W80: 53 | X80: 0 | Y80: 0 | Z80: 0 | AA80: 0 | AB80: 0 | AC80: 0 | AD80: 0 | AE80: -2.474323844e-10 | AF80: 0 | AG80: 2.474323844e-10 | AH80: 2.474323844e-10 | AI80: 0 | AL80: -2.442671955e-10 | AN80: -5.456968211e-10
A81: 2076 | B81: 0 | C81: 0 | D81: -2.85126589e-09 | E81: 24771739.92 | F81: 0 | G81: 0 | H81: 0 | I81: -2.85126589e-09 | J81: 0 | K81: -2.85126589e-09 | L81: -7.099652066e-11 | M81: -1.314433575e-10 | N81: 0 | O81: -8.185452316e-12 | P81: 0 | Q81: -2.707793853e-12 | R81: -3.409926001e-11 | S81: -2.474323844e-10 | T81: -9.791891891e-68 | V81: 0 | W81: 54 | X81: 0 | Y81: 0 | Z81: 0 | AA81: 0 | AB81: 0 | AC81: 0 | AD81: 0 | AE81: -2.474323844e-10 | AF81: 0 | AG81: 2.474323844e-10 | AH81: 2.474323844e-10 | AI81: 0 | AL81: -2.442671955e-10 | AN81: -5.456968211e-10
A82: 2077 | B82: 0 | C82: 0 | D82: -2.85126589e-09 | E82: 24771739.92 | F82: 0 | G82: 0 | H82: 0 | I82: -2.85126589e-09 | J82: 0 | K82: -2.85126589e-09 | L82: -7.099652066e-11 | M82: -1.314433575e-10 | N82: 0 | O82: -8.185452316e-12 | P82: 0 | Q82: -2.707793853e-12 | R82: -3.409926001e-11 | S82: -2.474323844e-10 | T82: -9.187613371e-68 | V82: 0 | W82: 55 | X82: 0 | Y82: 0 | Z82: 0 | AA82: 0 | AB82: 0 | AC82: 0 | AD82: 0 | AE82: -2.474323844e-10 | AF82: 0 | AG82: 2.474323844e-10 | AH82: 2.474323844e-10 | AI82: 0 | AL82: -2.442671955e-10 | AN82: -5.456968211e-10
A83: 2078 | B83: 0 | C83: 0 | D83: -2.85126589e-09 | E83: 24771739.92 | F83: 0 | G83: 0 | H83: 0 | I83: -2.85126589e-09 | J83: 0 | K83: -2.85126589e-09 | L83: -7.099652066e-11 | M83: -1.314433575e-10 | N83: 0 | O83: -8.185452316e-12 | P83: 0 | Q83: -2.707793853e-12 | R83: -3.409926001e-11 | S83: -2.474323844e-10 | T83: -8.620626168e-68 | V83: 0 | W83: 56 | X83: 0 | Y83: 0 | Z83: 0 | AA83: 0 | AB83: 0 | AC83: 0 | AD83: 0 | AE83: -2.474323844e-10 | AF83: 0 | AG83: 2.474323844e-10 | AH83: 2.474323844e-10 | AI83: 0 | AL83: -2.442671955e-10 | AN83: -5.456968211e-10
A84: 2079 | B84: 0 | C84: 0 | D84: -2.85126589e-09 | E84: 24771739.92 | F84: 0 | G84: 0 | H84: 0 | I84: -2.85126589e-09 | J84: 0 | K84: -2.85126589e-09 | L84: -7.099652066e-11 | M84: -1.314433575e-10 | N84: 0 | O84: -8.185452316e-12 | P84: 0 | Q84: -2.707793853e-12 | R84: -3.409926001e-11 | S84: -2.474323844e-10 | T84: -8.088628953e-68 | V84: 0 | W84: 57 | X84: 0 | Y84: 0 | Z84: 0 | AA84: 0 | AB84: 0 | AC84: 0 | AD84: 0 | AE84: -2.474323844e-10 | AF84: 0 | AG84: 2.474323844e-10 | AH84: 2.474323844e-10 | AI84: 0 | AL84: -2.442671955e-10 | AN84: -5.456968211e-10
A85: 2080 | B85: 0 | C85: 0 | D85: -2.85126589e-09 | E85: 24771739.92 | F85: 0 | G85: 0 | H85: 0 | I85: -2.85126589e-09 | J85: 0 | K85: -2.85126589e-09 | L85: -7.099652066e-11 | M85: -1.314433575e-10 | N85: 0 | O85: -8.185452316e-12 | P85: 0 | Q85: -2.707793853e-12 | R85: -3.409926001e-11 | S85: -2.474323844e-10 | T85: -7.58946242e-68 | V85: 0 | W85: 58 | X85: 0 | Y85: 0 | Z85: 0 | AA85: 0 | AB85: 0 | AC85: 0 | AD85: 0 | AE85: -2.474323844e-10 | AF85: 0 | AG85: 2.474323844e-10 | AH85: 2.474323844e-10 | AI85: 0 | AL85: -2.442671955e-10 | AN85: -5.456968211e-10
A86: 2081 | B86: 0 | C86: 0 | D86: -2.85126589e-09 | E86: 24771739.92 | F86: 0 | G86: 0 | H86: 0 | I86: -2.85126589e-09 | J86: 0 | K86: -2.85126589e-09 | L86: -7.099652066e-11 | M86: -1.314433575e-10 | N86: 0 | O86: -8.185452316e-12 | P86: 0 | Q86: -2.707793853e-12 | R86: -3.409926001e-11 | S86: -2.474323844e-10 | T86: -7.121100518e-68 | V86: 0 | W86: 59 | X86: 0 | Y86: 0 | Z86: 0 | AA86: 0 | AB86: 0 | AC86: 0 | AD86: 0 | AE86: -2.474323844e-10 | AF86: 0 | AG86: 2.474323844e-10 | AH86: 2.474323844e-10 | AI86: 0 | AL86: -2.442671955e-10 | AN86: -5.456968211e-10
A87: 2082 | B87: 0 | C87: 0 | D87: -2.85126589e-09 | E87: 24771739.92 | F87: 0 | G87: 0 | H87: 0 | I87: -2.85126589e-09 | J87: 0 | K87: -2.85126589e-09 | L87: -7.099652066e-11 | M87: -1.314433575e-10 | N87: 0 | O87: -8.185452316e-12 | P87: 0 | Q87: -2.707793853e-12 | R87: -3.409926001e-11 | S87: -2.474323844e-10 | T87: -6.681642227e-68 | V87: 0 | W87: 60 | X87: 0 | Y87: 0 | Z87: 0 | AA87: 0 | AB87: 0 | AC87: 0 | AD87: 0 | AE87: -2.474323844e-10 | AF87: 0 | AG87: 2.474323844e-10 | AH87: 2.474323844e-10 | AI87: 0 | AL87: -2.442671955e-10 | AN87: -5.456968211e-10
A88: 2083 | B88: 0 | C88: 0 | D88: -2.85126589e-09 | E88: 24771739.92 | F88: 0 | G88: 0 | H88: 0 | I88: -2.85126589e-09 | J88: 0 | K88: -2.85126589e-09 | L88: -7.099652066e-11 | M88: =IF(A88=1,($N$3+$N$2)*K88,($N$3+$N$2)*K88) -> -1.314433575e-10 | N88: 0 | O88: -8.185452316e-12 | P88: 0 | Q88: -2.707793853e-12 | R88: -3.409926001e-11 | S88: -2.474323844e-10 | T88: -6.269303844e-68 | V88: 0 | W88: 61 | X88: 0 | Y88: 0 | Z88: 0 | AA88: 0 | AB88: 0 | AC88: 0 | AD88: 0 | AE88: -2.474323844e-10 | AF88: 0 | AG88: 2.474323844e-10 | AH88: 2.474323844e-10 | AI88: 0 | AL88: -2.442671955e-10 | AN88: -5.456968211e-10
A89: 2084 | B89: 0 | C89: 0 | D89: -2.85126589e-09 | E89: 24771739.92 | F89: 0 | G89: 0 | H89: 0 | I89: -2.85126589e-09 | J89: 0 | K89: -2.85126589e-09 | L89: -7.099652066e-11 | M89: =IF(A89=1,($N$3+$N$2)*K89,($N$3+$N$2)*K89) -> -1.314433575e-10 | N89: 0 | O89: -8.185452316e-12 | P89: 0 | Q89: -2.707793853e-12 | R89: -3.409926001e-11 | S89: -2.474323844e-10 | T89: -5.882411741e-68 | V89: 0 | W89: 62 | X89: 0 | Y89: 0 | Z89: 0 | AA89: 0 | AB89: 0 | AC89: 0 | AD89: 0 | AE89: -2.474323844e-10 | AF89: 0 | AG89: 2.474323844e-10 | AH89: 2.474323844e-10 | AI89: 0 | AL89: -2.442671955e-10 | AN89: -5.456968211e-10
A90: 2085 | B90: 0 | C90: 0 | D90: -2.85126589e-09 | E90: 24771739.92 | F90: 0 | G90: 0 | H90: 0 | I90: -2.85126589e-09 | J90: 0 | K90: -2.85126589e-09 | L90: -7.099652066e-11 | M90: -1.314433575e-10 | N90: 0 | O90: -8.185452316e-12 | P90: 0 | Q90: -2.707793853e-12 | R90: -3.409926001e-11 | S90: -2.474323844e-10 | T90: -5.519395575e-68 | V90: 0 | W90: 63 | X90: 0 | Y90: 0 | Z90: 0 | AA90: 0 | AB90: 0 | AC90: 0 | AD90: 0 | AE90: -2.474323844e-10 | AF90: 0 | AG90: 2.474323844e-10 | AH90: 2.474323844e-10 | AI90: 0 | AL90: -2.442671955e-10 | AN90: -5.456968211e-10
A91: 2086 | B91: 0 | C91: 0 | D91: -2.85126589e-09 | E91: 24771739.92 | F91: 0 | G91: 0 | H91: 0 | I91: -2.85126589e-09 | J91: 0 | K91: -2.85126589e-09 | L91: -7.099652066e-11 | M91: -1.314433575e-10 | N91: 0 | O91: -8.185452316e-12 | P91: 0 | Q91: -2.707793853e-12 | R91: -3.409926001e-11 | S91: -2.474323844e-10 | T91: -5.17878191e-68 | V91: 0 | W91: 64 | X91: 0 | Y91: 0 | Z91: 0 | AA91: 0 | AB91: 0 | AC91: 0 | AD91: 0 | AE91: -2.474323844e-10 | AF91: 0 | AG91: 2.474323844e-10 | AH91: 2.474323844e-10 | AI91: 0 | AL91: -2.442671955e-10 | AN91: -5.456968211e-10
A92: =1+A91 -> 2087 | B92: 0 | C92: 0 | D92: =I91+C92 -> -2.85126589e-09 | E92: =E91+J92 -> 24771739.92 | F92: =CA201 -> 0 | G92: 0 | H92: =(F92-G92)*$D$2 -> 0 | I92: =D92-J92-H92 -> -2.85126589e-09 | J92: =CA387 -> 0 | K92: =(+I92+D92)/2 -> -2.85126589e-09 | L92: -7.099652066e-11 | M92: -1.314433575e-10 | N92: 0 | O92: =AN92*$D$10 -> -8.185452316e-12 | P92: 0 | Q92: =(+AL92-(G92+L92+N92+O92+P92))*$D$1 -> -2.707793853e-12 | R92: =(+AL92-(G92+L92+N92+O92+P92+Q92))*$D$2 -> -3.409926001e-11 | S92: =J92+M92+L92+N92+O92+P92+Q92+R92 -> -2.474323844e-10 | T92: -4.85918824e-68 | V92: 0 | W92: 65 | X92: 0 | Y92: 0 | Z92: 0 | AA92: 0 | AB92: 0 | AC92: 0 | AD92: 0 | AE92: =S92 -> -2.474323844e-10 | AF92: =V92 -> 0 | AG92: =AF92-AE92 -> 2.474323844e-10 | AH92: 2.474323844e-10 | AI92: 0 | AL92: -2.442671955e-10 | AN92: -5.456968211e-10
A93: 2088 | B93: 0 | C93: =B93 -> 0 | D93: -2.85126589e-09 | E93: 24771739.92 | F93: 0 | G93: =CA294 -> 0 | H93: 0 | I93: -2.85126589e-09 | J93: 0 | K93: -2.85126589e-09 | L93: =IF(A93=1,$N$1*K93,$N$1*K93) -> -7.099652066e-11 | M93: -1.314433575e-10 | N93: 0 | O93: -8.185452316e-12 | P93: =AL93*$T$8 -> 0 | Q93: -2.707793853e-12 | R93: -3.409926001e-11 | S93: -2.474323844e-10 | T93: =S93/(1+$D$3)^(A93-1) -> -4.559317377e-68 | V93: 0 | W93: =1+W92 -> 66 | X93: 0 | Y93: =+X93 -> 0 | Z93: =X93*$Z$24 -> 0 | AA93: 0 | AB93: 0 | AC93: 0 | AD93: 0 | AE93: -2.474323844e-10 | AF93: 0 | AG93: 2.474323844e-10 | AH93: =AF93-AE93 -> 2.474323844e-10 | AI93: =IF(A93=1,AF93-T89,AF93) -> 0 | AL93: =(+J93+L93+M93+N93+O93-(($D$1+(1-$D$1)*$D$2)*(G93+L93+N93+O93)))/$T$16 -> -2.442671955e-10 | AN93: =C93-J92+AN92 -> -5.456968211e-10
A94: 2089 | B94: 0 | C94: 0 | D94: -2.85126589e-09 | E94: 24771739.92 | F94: 0 | G94: 0 | H94: 0 | I94: -2.85126589e-09 | J94: 0 | K94: -2.85126589e-09 | L94: -7.099652066e-11 | M94: -1.314433575e-10 | N94: 0 | O94: -8.185452316e-12 | P94: 0 | Q94: -2.707793853e-12 | R94: -3.409926001e-11 | S94: -2.474323844e-10 | T94: -4.277952184e-68 | V94: 0 | W94: 67 | X94: 0 | Y94: 0 | Z94: 0 | AA94: 0 | AB94: 0 | AC94: 0 | AD94: 0 | AE94: -2.474323844e-10 | AF94: 0 | AG94: 2.474323844e-10 | AH94: 2.474323844e-10 | AI94: 0 | AL94: -2.442671955e-10 | AN94: -5.456968211e-10
A95: 2090 | B95: 0 | C95: 0 | D95: -2.85126589e-09 | E95: 24771739.92 | F95: 0 | G95: 0 | H95: 0 | I95: -2.85126589e-09 | J95: 0 | K95: -2.85126589e-09 | L95: -7.099652066e-11 | M95: -1.314433575e-10 | N95: 0 | O95: -8.185452316e-12 | P95: 0 | Q95: -2.707793853e-12 | R95: -3.409926001e-11 | S95: -2.474323844e-10 | T95: -4.013950637e-68 | V95: 0 | W95: 68 | X95: 0 | Y95: 0 | Z95: 0 | AA95: 0 | AB95: 0 | AC95: 0 | AD95: 0 | AE95: -2.474323844e-10 | AF95: 0 | AG95: 2.474323844e-10 | AH95: 2.474323844e-10 | AI95: 0 | AL95: -2.442671955e-10 | AN95: -5.456968211e-10
A96: 2091 | B96: 0 | C96: 0 | D96: -2.85126589e-09 | E96: 24771739.92 | F96: 0 | G96: 0 | H96: 0 | I96: -2.85126589e-09 | J96: 0 | K96: -2.85126589e-09 | L96: -7.099652066e-11 | M96: -1.314433575e-10 | N96: 0 | O96: -8.185452316e-12 | P96: 0 | Q96: -2.707793853e-12 | R96: -3.409926001e-11 | S96: -2.474323844e-10 | T96: -3.766241187e-68 | V96: 0 | W96: 69 | X96: 0 | Y96: 0 | Z96: 0 | AA96: 0 | AB96: 0 | AC96: 0 | AD96: 0 | AE96: -2.474323844e-10 | AF96: 0 | AG96: 2.474323844e-10 | AH96: 2.474323844e-10 | AI96: 0 | AL96: -2.442671955e-10 | AN96: -5.456968211e-10
A97: 2092 | B97: 0 | C97: 0 | D97: -2.85126589e-09 | E97: 24771739.92 | F97: 0 | G97: 0 | H97: 0 | I97: -2.85126589e-09 | J97: 0 | K97: -2.85126589e-09 | L97: -7.099652066e-11 | M97: -1.314433575e-10 | N97: 0 | O97: -8.185452316e-12 | P97: 0 | Q97: -2.707793853e-12 | R97: -3.409926001e-11 | S97: -2.474323844e-10 | T97: -3.533818416e-68 | V97: 0 | W97: 70 | X97: 0 | Y97: 0 | Z97: 0 | AA97: 0 | AB97: 0 | AC97: 0 | AD97: 0 | AE97: -2.474323844e-10 | AF97: 0 | AG97: 2.474323844e-10 | AH97: 2.474323844e-10 | AI97: 0 | AL97: -2.442671955e-10 | AN97: -5.456968211e-10
A98: 2093 | B98: 0 | C98: 0 | D98: -2.85126589e-09 | E98: 24771739.92 | F98: 0 | G98: 0 | H98: 0 | I98: -2.85126589e-09 | J98: 0 | K98: -2.85126589e-09 | L98: -7.099652066e-11 | M98: -1.314433575e-10 | N98: 0 | O98: -8.185452316e-12 | P98: 0 | Q98: -2.707793853e-12 | R98: -3.409926001e-11 | S98: -2.474323844e-10 | T98: -3.31573895e-68 | V98: 0 | W98: 71 | X98: 0 | Y98: 0 | Z98: 0 | AA98: 0 | AB98: 0 | AC98: 0 | AD98: 0 | AE98: -2.474323844e-10 | AF98: 0 | AG98: 2.474323844e-10 | AH98: 2.474323844e-10 | AI98: 0 | AL98: -2.442671955e-10 | AN98: -5.456968211e-10
A99: 2094 | B99: 0 | C99: 0 | D99: -2.85126589e-09 | E99: 24771739.92 | F99: 0 | G99: 0 | H99: 0 | I99: -2.85126589e-09 | J99: 0 | K99: -2.85126589e-09 | L99: -7.099652066e-11 | M99: -1.314433575e-10 | N99: 0 | O99: -8.185452316e-12 | P99: 0 | Q99: -2.707793853e-12 | R99: -3.409926001e-11 | S99: -2.474323844e-10 | T99: -3.111117632e-68 | V99: 0 | W99: 72 | X99: 0 | Y99: 0 | Z99: 0 | AA99: 0 | AB99: 0 | AC99: 0 | AD99: 0 | AE99: -2.474323844e-10 | AF99: 0 | AG99: 2.474323844e-10 | AH99: 2.474323844e-10 | AI99: 0 | AL99: -2.442671955e-10 | AN99: -5.456968211e-10
A100: 2095 | B100: 0 | C100: 0 | D100: -2.85126589e-09 | E100: 24771739.92 | F100: 0 | G100: 0 | H100: 0 | I100: -2.85126589e-09 | J100: 0 | K100: -2.85126589e-09 | L100: -7.099652066e-11 | M100: -1.314433575e-10 | N100: 0 | O100: -8.185452316e-12 | P100: 0 | Q100: -2.707793853e-12 | R100: -3.409926001e-11 | S100: -2.474323844e-10 | T100: -2.919123932e-68 | V100: 0 | W100: 73 | X100: 0 | Y100: 0 | Z100: 0 | AA100: 0 | AB100: 0 | AC100: 0 | AD100: 0 | AE100: -2.474323844e-10 | AF100: 0 | AG100: 2.474323844e-10 | AH100: 2.474323844e-10 | AI100: 0 | AL100: -2.442671955e-10 | AN100: -5.456968211e-10
A101: 2096 | B101: 0 | C101: 0 | D101: -2.85126589e-09 | E101: 24771739.92 | F101: 0 | G101: 0 | H101: 0 | I101: -2.85126589e-09 | J101: 0 | K101: -2.85126589e-09 | L101: -7.099652066e-11 | M101: -1.314433575e-10 | N101: 0 | O101: -8.185452316e-12 | P101: 0 | Q101: -2.707793853e-12 | R101: -3.409926001e-11 | S101: -2.474323844e-10 | T101: -2.738978572e-68 | V101: 0 | W101: 74 | X101: 0 | Y101: 0 | Z101: 0 | AA101: 0 | AB101: 0 | AC101: 0 | AD101: 0 | AE101: -2.474323844e-10 | AF101: 0 | AG101: 2.474323844e-10 | AH101: 2.474323844e-10 | AI101: 0 | AL101: -2.442671955e-10 | AN101: -5.456968211e-10
A102: 2097 | B102: 0 | C102: 0 | D102: -2.85126589e-09 | E102: 24771739.92 | F102: 0 | G102: 0 | H102: 0 | I102: -2.85126589e-09 | J102: 0 | K102: -2.85126589e-09 | L102: -7.099652066e-11 | M102: -1.314433575e-10 | N102: 0 | O102: -8.185452316e-12 | P102: 0 | Q102: -2.707793853e-12 | R102: -3.409926001e-11 | S102: -2.474323844e-10 | T102: -2.569950367e-68 | V102: 0 | W102: 75 | X102: 0 | Y102: 0 | Z102: 0 | AA102: 0 | AB102: 0 | AC102: 0 | AD102: 0 | AE102: -2.474323844e-10 | AF102: 0 | AG102: 2.474323844e-10 | AH102: 2.474323844e-10 | AI102: 0 | AL102: -2.442671955e-10 | AN102: -5.456968211e-10
A103: 2098 | B103: 0 | C103: 0 | D103: -2.85126589e-09 | E103: 24771739.92 | F103: 0 | G103: 0 | H103: 0 | I103: -2.85126589e-09 | J103: 0 | K103: -2.85126589e-09 | L103: -7.099652066e-11 | M103: -1.314433575e-10 | N103: 0 | O103: -8.185452316e-12 | P103: 0 | Q103: -2.707793853e-12 | R103: -3.409926001e-11 | S103: -2.474323844e-10 | T103: -2.411353252e-68 | V103: 0 | W103: 76 | X103: 0 | Y103: 0 | Z103: 0 | AA103: 0 | AB103: 0 | AC103: 0 | AD103: 0 | AE103: -2.474323844e-10 | AF103: 0 | AG103: 2.474323844e-10 | AH103: 2.474323844e-10 | AI103: 0 | AL103: -2.442671955e-10 | AN103: -5.456968211e-10
A104: = | B104: = | C104: = | D104: = | E104: = | F104: = | G104: = | H104: = | I104: = | J104: = | K104: = | L104: = | M104: = | N104: = | O104: = | P104: = | Q104: = | R104: = | S104: = | T104: =
A106: (a) Time Period in Years
A107: (b) Capital Additions Tax Basis
A108: (c) Capital Additions Book Basis
A109: (d) Rate Base Beginning of Period = Previous(i) + Previous(c)
A110: (e) Accumulated Depreciation = Previous(e) + (j)
A111: (f) Tax Depreciation = Modified ACRS Schedules Times The Tax Basis
A112: (g) Book Depreciation on Tax Basis = Straight Line Depreciation of Tax Basis
A113: (h) Deferred Taxes = [(f)-(g)] * Federal Income Tax Rate
A114: (i) Rate Base End of Period = (d) - (j) - (h)
A115: (j) Book Depreciation = Straight Line Per Book Life
A116: (k) Average Rate Base = [(d) + (i)] / 2
A117: (l) Interest Expense = Weighted Cost of Debt * (k)
A118: (m) Equity Return = [Weighted Cost of Preferred + Weighted Cost of Common] * (k)
A119: (n) Operating and Maintenance Expense = Previous(n) * [1 + O&M Escalation Factor]
A120: (o) Property Taxes = Property Tax Rate * (d)
A121: (p) Miscellaneous Revenue Items = Revenue Requirements * Miscellaneous Revenue Items Percentage
A122: (q) State Income Tax = [Revenue Requirement - [(g) + (l) + (m) + (n) + (o) + (p)] * State Income Tax Rate
A123: (r) Federal Income Taxes = [Revenue Requirements - [(g) + (l) + (n) + (o) + Miscellaneous Revenue Items + State Tax] * Federal Income Tax Rate
A124: (s) Total Revenue Requirements = (j) + (l) + (m) + (n) + (o) + (p) + (q) + (r)
A125: (t) Present Value Revenue Requirements = Total Revenue Requirements / [1 + Discount Factor] ^ [(a) - .5]
A127: Revenue Requirements = [(j) + (l) + (m) + (n) + (o) - Federal Income Tax Rate * [(g) + (l) + (n) + (o)]] / Conversion Factor
A130: TAX DEPRECIATION
A132: Class => | B132: =$D$4 -> 4
C133: 1 | D133: 2 | E133: 3 | F133: 4 | G133: 5 | H133: 6 | I133: 7 | J133: 8 | K133: 9 | L133: 10 | M133: 11 | N133: 12 | O133: 13 | P133: 14 | Q133: 15 | R133: 16 | S133: 17 | T133: 18 | U133: 19 | V133: 20 | W133: 21 | X133: 22 | Y133: 23 | Z133: 24 | AA133: 25 | AB133: 26 | AC133: 27 | AD133: 28 | AE133: 29 | AF133: 30 | AG133: 31 | AH133: 32 | AI133: 33 | AJ133: 34 | AK133: 35 | AL133: 36 | AM133: 37 | AN133: 38 | AO133: 39 | AP133: 40 | AQ133: 41 | AR133: 42 | AS133: 43 | AT133: 44 | AU133: 45 | AV133: 46 | AW133: 47 | AX133: 48 | AY133: 49 | AZ133: 50 | BA133: 51 | BB133: 52 | BC133: 53 | BD133: 54 | BE133: 55 | BF133: 56 | BG133: 57 | BH133: 58 | BI133: 59 | BJ133: 60 | BK133: 61 | BL133: 62 | BM133: 63 | BN133: 64 | BO133: 65 | BP133: 66 | BQ133: 67 | BR133: 68 | BS133: 69 | BT133: 70 | BU133: 71 | BV133: 72 | BW133: 73 | BX133: 74 | BY133: 75 | BZ133: 76 | CA133: Total
C134: - | D134: - | E134: - | F134: - | G134: - | H134: - | I134: - | J134: - | K134: - | L134: - | M134: - | N134: - | O134: - | P134: - | Q134: - | R134: - | S134: - | T134: - | U134: - | V134: - | W134: - | X134: - | Y134: - | Z134: - | AA134: - | AB134: - | AC134: - | AD134: - | AE134: - | AF134: - | AG134: - | AH134: - | AI134: - | AJ134: - | AK134: - | AL134: - | AM134: - | AN134: - | AO134: - | AP134: - | AQ134: - | AR134: - | AS134: - | AT134: - | AU134: - | AV134: - | AW134: - | AX134: - | AY134: - | AZ134: - | BA134: - | BB134: - | BC134: - | BD134: - | BE134: - | BF134: - | BG134: - | BH134: - | BI134: - | BJ134: - | BK134: - | BL134: - | BM134: - | BN134: - | BO134: - | BP134: - | BQ134: - | BR134: - | BS134: - | BT134: - | BU134: - | BV134: - | BW134: - | BX134: - | BY134: - | BZ134: - | CA134: -
A135: Rate | B135: Capital | C135: =$B28 -> 0 | D135: =$B29 -> 291060.2058 | E135: =$B30 -> 382319.4629 | F135: =$B31 -> 700038.0497 | G135: =$B32 -> 728946.9937 | H135: =$B33 -> 759018.2973 | I135: =$B34 -> 1167898.197 | J135: =$B35 -> 1216664.32 | K135: =$B36 -> 1267394.477 | L135: =$B37 -> 1734068.171 | M135: =$B38 -> 1806424.154 | N135: =$B39 -> 1881688.939 | O135: =$B40 -> 2415042.835 | P135: =$B41 -> 2515697.513 | Q135: =$B42 -> 2620391.292 | R135: =$B43 -> 3229647.385 | S135: =$B44 -> 266328.0791 | T135: =$B45 -> 274946.5601 | U135: =$B46 -> 283845.797 | V135: =$B47 -> 293035.0026 | W135: =$B48 -> 302523.6558 | X135: =$B49 -> 312321.5768 | Y135: =$B50 -> 322438.9578 | Z135: =$B51 -> 0 | AA135: =$B52 -> 0 | AB135: =$B53 -> 0 | AC135: =$B54 -> 0 | AD135: =$B55 -> 0 | AE135: =$B56 -> 0 | AF135: =$B57 -> 0 | AG135: =$B58 -> 0 | AH135: =$B59 -> 0 | AI135: =$B60 -> 0 | AJ135: =$B61 -> 0 | AK135: =$B62 -> 0 | AL135: =$B63 -> 0 | AM135: =$B64 -> 0 | AN135: =$B65 -> 0 | AO135: =$B66 -> 0 | AP135: =$B67 -> 0 | AQ135: =$B68 -> 0 | AR135: =$B69 -> 0 | AS135: =$B70 -> 0 | AT135: =$B71 -> 0 | AU135: =$B72 -> 0 | AV135: =$B73 -> 0 | AW135: =$B74 -> 0 | AX135: =$B75 -> 0 | AY135: =$B76 -> 0 | AZ135: =$B77 -> 0 | BA135: =$B78 -> 0 | BB135: =$B79 -> 0 | BC135: =$B80 -> 0 | BD135: =$B81 -> 0 | BE135: =$B82 -> 0 | BF135: =$B83 -> 0 | BG135: =$B84 -> 0 | BH135: =$B85 -> 0 | BI135: =$B86 -> 0 | BJ135: =$B87 -> 0 | BK135: =$B88 -> 0 | BL135: =$B89 -> 0 | BM135: =$B90 -> 0 | BN135: =$B91 -> 0 | BO135: =$B92 -> 0 | BP135: =$B93 -> 0 | BQ135: =$B94 -> 0 | BR135: =$B95 -> 0 | BS135: =$B96 -> 0 | BT135: =$B97 -> 0 | BU135: =$B98 -> 0 | BV135: =$B99 -> 0 | BW135: =$B100 -> 0 | BX135: =$B101 -> 0 | BY135: =$B102 -> 0 | BZ135: =$B103 -> 0 | CA135: =SUM($C135:$BZ135) -> 24771739.92 | CC135: 31.5 Year | CD135: 20 Years | CE135: 7 Years | CF135: 5 Years
C136: - | D136: - | E136: - | F136: - | G136: - | H136: - | I136: - | J136: - | K136: - | L136: - | M136: - | N136: - | O136: - | P136: - | Q136: - | R136: - | S136: - | T136: - | U136: - | V136: - | W136: - | X136: - | Y136: - | Z136: - | AA136: - | AB136: - | AC136: - | AD136: - | AE136: - | AF136: - | AG136: - | AH136: - | AI136: - | AJ136: - | AK136: - | AL136: - | AM136: - | AN136: - | AO136: - | AP136: - | AQ136: - | AR136: - | AS136: - | AT136: - | AU136: - | AV136: - | AW136: - | AX136: - | AY136: - | AZ136: - | BA136: - | BB136: - | BC136: - | BD136: - | BE136: - | BF136: - | BG136: - | BH136: - | BI136: - | BJ136: - | BK136: - | BL136: - | BM136: - | BN136: - | BO136: - | BP136: - | BQ136: - | BR136: - | BS136: - | BT136: - | BU136: - | BV136: - | BW136: - | BX136: - | BY136: - | BZ136: - | CA136: -
A137: =IF($B$132=1,CC137,IF($B$132=2,CD137,IF($B$132=3,CE137,IF($B$132=4,CF137,#VALUE!)))) -> 0.2 | B137: =+B136+1 -> 1 | C137: =C$135*$A137 -> 0 | CA137: =SUM($C137:$BZ137) -> 0 | CC137: 0.01587 | CD137: 0.0375 | CE137: 0.14286 | CF137: 0.2
A138: =IF($B$132=1,CC138,IF($B$132=2,CD138,IF($B$132=3,CE138,IF($B$132=4,CF138,#VALUE!)))) -> 0.32 | B138: =+B137+1 -> 2 | C138: =C$135*$A138 -> 0 | D138: =D$135*$A137 -> 58212.04116 | CA138: 58212.04116 | CC138: 0.03175 | CD138: 0.07219 | CE138: 0.2449 | CF138: 0.32
A139: 0.192 | B139: 3 | C139: 0 | D139: =D$135*$A138 -> 93139.26586 | E139: =E$135*$A137 -> 76463.89259 | CA139: 169603.1584 | CC139: 0.03175 | CD139: 0.06678 | CE139: 0.17493 | CF139: 0.192
A140: 0.1152 | B140: 4 | C140: 0 | D140: 55883.55951 | E140: =E$135*$A138 -> 122342.2281 | F140: =F$135*$A137 -> 140007.6099 | CA140: 318233.3976 | CC140: 0.03175 | CD140: 0.06178 | CE140: 0.12495 | CF140: 0.1152
A141: 0.1152 | B141: 5 | C141: 0 | D141: 33530.13571 | E141: 73405.33688 | F141: =F$135*$A138 -> 224012.1759 | G141: =G$135*$A137 -> 145789.3987 | CA141: 476737.0472 | CC141: 0.03175 | CD141: 0.05715 | CE141: 0.08925 | CF141: 0.1152
A142: 0.0576 | B142: 6 | C142: 0 | D142: 33530.13571 | E142: 44043.20213 | F142: 134407.3055 | G142: =G$135*$A138 -> 233263.038 | H142: =H$135*$A137 -> 151803.6595 | CA142: 597047.3408 | CC142: 0.03175 | CD142: 0.05286 | CE142: 0.08925 | CF142: 0.0576
A143: 0 | B143: 7 | C143: 0 | D143: 16765.06785 | E143: 44043.20213 | F143: 80644.38332 | G143: 139957.8228 | H143: =H$135*$A138 -> 242885.8551 | I143: =I$135*$A137 -> 233579.6395 | CA143: 757875.9707 | CC143: 0.03175 | CD143: 0.0489 | CE143: 0.08925 | CF143: 0
A144: 0 | B144: 8 | C144: 0 | D144: 0 | E144: 22021.60106 | F144: 80644.38332 | G144: 83974.69367 | H144: 145731.5131 | I144: =I$135*$A138 -> 373727.4232 | J144: =J$135*$A137 -> 243332.864 | CA144: 949432.4783 | CC144: 0.03175 | CD144: 0.04523 | CE144: 0.04461 | CF144: 0
A145: 0 | B145: 9 | C145: 0 | D145: 0 | E145: 0 | F145: 40322.19166 | G145: 83974.69367 | H145: 87438.90785 | I145: 224236.4539 | J145: =J$135*$A138 -> 389332.5823 | K145: =K$135*$A137 -> 253478.8955 | CA145: 1078783.725 | CC145: 0.03175 | CD145: 0.04461 | CE145: 0 | CF145: 0
A146: 0 | B146: 10 | C146: 0 | D146: 0 | E146: 0 | F146: 0 | G146: 41987.34684 | H146: 87438.90785 | I146: 134541.8723 | J146: 233599.5494 | K146: =K$135*$A138 -> 405566.2328 | L146: =L$135*$A137 -> 346813.6343 | CA146: 1249947.544 | CC146: 0.03175 | CD146: 0.04461 | CE146: 0 | CF146: 0
A147: 0 | B147: 11 | C147: 0 | D147: 0 | E147: 0 | F147: 0 | G147: 0 | H147: 43719.45393 | I147: 134541.8723 | J147: 140159.7296 | K147: 243339.7397 | L147: =L$135*$A138 -> 554901.8149 | M147: =M$135*$A137 -> 361284.8309 | CA147: 1477947.441 | CC147: 0.03175 | CD147: 0.04461 | CE147: 0 | CF147: 0
A148: 0 | B148: 12 | C148: 0 | D148: 0 | E148: 0 | F148: 0 | G148: 0 | H148: 0 | I148: 67270.93617 | J148: 140159.7296 | K148: 146003.8438 | L148: 332941.0889 | M148: =M$135*$A138 -> 578055.7294 | N148: =N$135*$A137 -> 376337.7878 | CA148: 1640769.116 | CC148: 0.03175 | CD148: 0.04461 | CE148: 0 | CF148: 0
A149: 0 | B149: 13 | C149: 0 | D149: 0 | E149: 0 | F149: 0 | G149: 0 | H149: 0 | I149: 0 | J149: 70079.86482 | K149: 146003.8438 | L149: 199764.6534 | M149: 346833.4376 | N149: =N$135*$A138 -> 602140.4604 | O149: =O$135*$A137 -> 483008.5669 | CA149: 1847830.827 | CC149: 0.03175 | CD149: 0.04461 | CE149: 0 | CF149: 0
A150: 0 | B150: 14 | C150: 0 | D150: 0 | E150: 0 | F150: 0 | G150: 0 | H150: 0 | I150: 0 | J150: 0 | K150: 73001.9219 | L150: 199764.6534 | M150: 208100.0626 | N150: 361284.2762 | O150: =O$135*$A138 -> 772813.7071 | P150: =P$135*$A137 -> 503139.5027 | CA150: 2118104.124 | CC150: 0.03175 | CD150: 0.04461 | CE150: 0 | CF150: 0
A151: 0 | B151: 15 | C151: 0 | D151: 0 | E151: 0 | F151: 0 | G151: 0 | H151: 0 | I151: 0 | J151: 0 | K151: 0 | L151: 99882.32668 | M151: 208100.0626 | N151: 216770.5657 | O151: 463688.2243 | P151: =P$135*$A138 -> 805023.2043 | Q151: =Q$135*$A137 -> 524078.2583 | CA151: 2317542.642 | CC151: 0.03175 | CD151: 0.04461 | CE151: 0 | CF151: 0
A152: 0 | B152: 16 | C152: 0 | D152: 0 | E152: 0 | F152: 0 | G152: 0 | H152: 0 | I152: 0 | J152: 0 | K152: 0 | L152: 0 | M152: 104050.0313 | N152: 216770.5657 | O152: 278212.9346 | P152: 483013.9226 | Q152: =Q$135*$A138 -> 838525.2133 | R152: =R$135*$A137 -> 645929.477 | CA152: 2566502.145 | CC152: 0.03175 | CD152: 0.04461 | CE152: 0 | CF152: 0
A153: 0 | B153: 17 | C153: 0 | D153: 0 | E153: 0 | F153: 0 | G153: 0 | H153: 0 | I153: 0 | J153: 0 | K153: 0 | L153: 0 | M153: 0 | N153: 108385.2829 | O153: 278212.9346 | P153: 289808.3536 | Q153: 503115.128 | R153: =R$135*$A138 -> 1033487.163 | S153: =S$135*$A137 -> 53265.61582 | CA153: 2266274.478 | CC153: 0.03175 | CD153: 0.04461 | CE153: 0 | CF153: 0
A154: 0 | B154: 18 | C154: 0 | D154: 0 | E154: 0 | F154: 0 | G154: 0 | H154: 0 | I154: 0 | J154: 0 | K154: 0 | L154: 0 | M154: 0 | N154: 0 | O154: 139106.4673 | P154: 289808.3536 | Q154: 301869.0768 | R154: 620092.2979 | S154: =S$135*$A138 -> 85224.98531 | T154: =T$135*$A137 -> 54989.31201 | CA154: 1491090.493 | CC154: 0.03175 | CD154: 0.04461 | CE154: 0 | CF154: 0
A155: 0 | B155: 19 | C155: 0 | D155: 0 | E155: 0 | F155: 0 | G155: 0 | H155: 0 | I155: 0 | J155: 0 | K155: 0 | L155: 0 | M155: 0 | N155: 0 | O155: 0 | P155: 144904.1768 | Q155: 301869.0768 | R155: 372055.3787 | S155: 51134.99118 | T155: =T$135*$A138 -> 87982.89922 | U155: =U$135*$A137 -> 56769.15941 | CA155: 1014715.682 | CC155: 0.03175 | CD155: 0.04461 | CE155: 0 | CF155: 0
A156: 0 | B156: 20 | C156: 0 | D156: 0 | E156: 0 | F156: 0 | G156: 0 | H156: 0 | I156: 0 | J156: 0 | K156: 0 | L156: 0 | M156: 0 | N156: 0 | O156: 0 | P156: 0 | Q156: 150934.5384 | R156: 372055.3787 | S156: 30680.99471 | T156: 52789.73953 | U156: =U$135*$A138 -> 90830.65505 | V156: =V$135*$A137 -> 58607.00051 | CA156: 755898.307 | CC156: 0.03175 | CD156: 0.04461 | CE156: 0 | CF156: 0
A157: 0 | B157: 21 | C157: 0 | D157: 0 | E157: 0 | F157: 0 | G157: 0 | H157: 0 | I157: 0 | J157: 0 | K157: 0 | L157: 0 | M157: 0 | N157: 0 | O157: 0 | P157: 0 | Q157: 0 | R157: 186027.6894 | S157: 30680.99471 | T157: 31673.84372 | U157: 54498.39303 | V157: =V$135*$A138 -> 93771.20082 | W157: =W$135*$A137 -> 60504.73116 | CA157: 457156.8528 | CC157: 0.03175 | CD157: 0.02229 | CE157: 0 | CF157: 0
A158: 0 | B158: 22 | C158: 0 | D158: 0 | E158: 0 | F158: 0 | G158: 0 | H158: 0 | I158: 0 | J158: 0 | K158: 0 | L158: 0 | M158: 0 | N158: 0 | O158: 0 | P158: 0 | Q158: 0 | R158: 0 | S158: 15340.49736 | T158: 31673.84372 | U158: 32699.03582 | V158: 56262.72049 | W158: =W$135*$A138 -> 96807.56986 | X158: =X$135*$A137 -> 62464.31537 | CA158: 295247.9826 | CC158: 0.03175 | CD158: 0 | CE158: 0 | CF158: 0
A159: 0 | B159: 23 | C159: 0 | D159: 0 | E159: 0 | F159: 0 | G159: 0 | H159: 0 | I159: 0 | J159: 0 | K159: 0 | L159: 0 | M159: 0 | N159: 0 | O159: 0 | P159: 0 | Q159: 0 | R159: 0 | S159: 0 | T159: 15836.92186 | U159: 32699.03582 | V159: 33757.6323 | W159: 58084.54191 | X159: =X$135*$A138 -> 99942.90459 | Y159: =Y$135*$A137 -> 64487.79156 | CA159: 304808.828 | CC159: 0.03175 | CD159: 0 | CE159: 0 | CF159: 0
A160: 0 | B160: 24 | C160: 0 | D160: 0 | E160: 0 | F160: 0 | G160: 0 | H160: 0 | I160: 0 | J160: 0 | K160: 0 | L160: 0 | M160: 0 | N160: 0 | O160: 0 | P160: 0 | Q160: 0 | R160: 0 | S160: 0 | T160: 0 | U160: 16349.51791 | V160: 33757.6323 | W160: 34850.72515 | X160: 59965.74275 | Y160: =Y$135*$A138 -> 103180.4665 | Z160: =Z$135*$A137 -> 0 | CA160: 248104.0846 | CC160: 0.03175 | CD160: 0 | CE160: 0 | CF160: 0
A161: 0 | B161: 25 | C161: 0 | D161: 0 | E161: 0 | F161: 0 | G161: 0 | H161: 0 | I161: 0 | J161: 0 | K161: 0 | L161: 0 | M161: 0 | N161: 0 | O161: 0 | P161: 0 | Q161: 0 | R161: 0 | S161: 0 | T161: 0 | U161: 0 | V161: 16878.81615 | W161: 34850.72515 | X161: 35979.44565 | Y161: 61908.2799 | Z161: =Z$135*$A138 -> 0 | AA161: =AA$135*$A137 -> 0 | CA161: 149617.2669 | CC161: 0.03175 | CD161: 0 | CE161: 0 | CF161: 0
A162: 0 | B162: 26 | C162: 0 | D162: 0 | E162: 0 | F162: 0 | G162: 0 | H162: 0 | I162: 0 | J162: 0 | K162: 0 | L162: 0 | M162: 0 | N162: 0 | O162: 0 | P162: 0 | Q162: 0 | R162: 0 | S162: 0 | T162: 0 | U162: 0 | V162: 0 | W162: 17425.36257 | X162: 35979.44565 | Y162: 37144.96794 | Z162: 0 | AA162: =AA$135*$A138 -> 0 | AB162: =AB$135*$A137 -> 0 | CA162: 90549.77617 | CC162: 0.03175 | CD162: 0 | CE162: 0 | CF162: 0
A163: 0 | B163: 27 | C163: 0 | D163: 0 | E163: 0 | F163: 0 | G163: 0 | H163: 0 | I163: 0 | J163: 0 | K163: 0 | L163: 0 | M163: 0 | N163: 0 | O163: 0 | P163: 0 | Q163: 0 | R163: 0 | S163: 0 | T163: 0 | U163: 0 | V163: 0 | W163: 0 | X163: 17989.72283 | Y163: 37144.96794 | Z163: 0 | AA163: 0 | AB163: =AB$135*$A138 -> 0 | AC163: =AC$135*$A137 -> 0 | CA163: 55134.69077 | CC163: 0.03175 | CD163: 0 | CE163: 0 | CF163: 0
A164: 0 | B164: 28 | C164: 0 | D164: 0 | E164: 0 | F164: 0 | G164: 0 | H164: 0 | I164: 0 | J164: 0 | K164: 0 | L164: 0 | M164: 0 | N164: 0 | O164: 0 | P164: 0 | Q164: 0 | R164: 0 | S164: 0 | T164: 0 | U164: 0 | V164: 0 | W164: 0 | X164: 0 | Y164: 18572.48397 | Z164: 0 | AA164: 0 | AB164: 0 | AC164: =AC$135*$A138 -> 0 | AD164: =AD$135*$A137 -> 0 | CA164: 18572.48397 | CC164: 0.03175 | CD164: 0 | CE164: 0 | CF164: 0
A165: 0 | B165: 29 | C165: 0 | D165: 0 | E165: 0 | F165: 0 | G165: 0 | H165: 0 | I165: 0 | J165: 0 | K165: 0 | L165: 0 | M165: 0 | N165: 0 | O165: 0 | P165: 0 | Q165: 0 | R165: 0 | S165: 0 | T165: 0 | U165: 0 | V165: 0 | W165: 0 | X165: 0 | Y165: 0 | Z165: 0 | AA165: 0 | AB165: 0 | AC165: 0 | AD165: =AD$135*$A138 -> 0 | AE165: =AE$135*$A137 -> 0 | CA165: 0 | CC165: 0.03175 | CD165: 0 | CE165: 0 | CF165: 0
A166: 0 | B166: 30 | C166: 0 | D166: 0 | E166: 0 | F166: 0 | G166: 0 | H166: 0 | I166: 0 | J166: 0 | K166: 0 | L166: 0 | M166: 0 | N166: 0 | O166: 0 | P166: 0 | Q166: 0 | R166: 0 | S166: 0 | T166: 0 | U166: 0 | V166: 0 | W166: 0 | X166: 0 | Y166: 0 | Z166: 0 | AA166: 0 | AB166: 0 | AC166: 0 | AD166: 0 | AE166: =AE$135*$A138 -> 0 | AF166: =AF$135*$A137 -> 0 | CA166: 0 | CC166: 0.03175 | CD166: 0 | CE166: 0 | CF166: 0
A167: 0 | B167: 31 | C167: 0 | D167: 0 | E167: 0 | F167: 0 | G167: 0 | H167: 0 | I167: 0 | J167: 0 | K167: 0 | L167: 0 | M167: 0 | N167: 0 | O167: 0 | P167: 0 | Q167: 0 | R167: 0 | S167: 0 | T167: 0 | U167: 0 | V167: 0 | W167: 0 | X167: 0 | Y167: 0 | Z167: 0 | AA167: 0 | AB167: 0 | AC167: 0 | AD167: 0 | AE167: 0 | AF167: =AF$135*$A138 -> 0 | AG167: =AG$135*$A137 -> 0 | CA167: 0 | CC167: 0.03175 | CD167: 0 | CE167: 0 | CF167: 0
A168: 0 | B168: 32 | C168: 0 | D168: 0 | E168: 0 | F168: 0 | G168: 0 | H168: 0 | I168: 0 | J168: 0 | K168: 0 | L168: 0 | M168: 0 | N168: 0 | O168: 0 | P168: 0 | Q168: 0 | R168: 0 | S168: 0 | T168: 0 | U168: 0 | V168: 0 | W168: 0 | X168: 0 | Y168: 0 | Z168: 0 | AA168: 0 | AB168: 0 | AC168: 0 | AD168: 0 | AE168: 0 | AF168: 0 | AG168: =AG$135*$A138 -> 0 | AH168: =AH$135*$A137 -> 0 | CA168: 0 | CC168: 0.03163 | CD168: 0 | CE168: 0 | CF168: 0
A169: 0 | B169: 33 | C169: 0 | D169: 0 | E169: 0 | F169: 0 | G169: 0 | H169: 0 | I169: 0 | J169: 0 | K169: 0 | L169: 0 | M169: 0 | N169: 0 | O169: 0 | P169: 0 | Q169: 0 | R169: 0 | S169: 0 | T169: 0 | U169: 0 | V169: 0 | W169: 0 | X169: 0 | Y169: 0 | Z169: 0 | AA169: 0 | AB169: 0 | AC169: 0 | AD169: 0 | AE169: 0 | AF169: 0 | AG169: 0 | AH169: =AH$135*$A138 -> 0 | AI169: =AI$135*$A137 -> 0 | CA169: 0
A170: 0 | B170: 34 | C170: 0 | D170: 0 | E170: 0 | F170: 0 | G170: 0 | H170: 0 | I170: 0 | J170: 0 | K170: 0 | L170: 0 | M170: 0 | N170: 0 | O170: 0 | P170: 0 | Q170: 0 | R170: 0 | S170: 0 | T170: 0 | U170: 0 | V170: 0 | W170: 0 | X170: 0 | Y170: 0 | Z170: 0 | AA170: 0 | AB170: 0 | AC170: 0 | AD170: 0 | AE170: 0 | AF170: 0 | AG170: 0 | AH170: 0 | AI170: =AI$135*$A138 -> 0 | AJ170: =AJ$135*$A137 -> 0 | CA170: 0
A171: 0 | B171: 35 | C171: 0 | D171: 0 | E171: 0 | F171: 0 | G171: 0 | H171: 0 | I171: 0 | J171: 0 | K171: 0 | L171: 0 | M171: 0 | N171: 0 | O171: 0 | P171: 0 | Q171: 0 | R171: 0 | S171: 0 | T171: 0 | U171: 0 | V171: 0 | W171: 0 | X171: 0 | Y171: 0 | Z171: 0 | AA171: 0 | AB171: 0 | AC171: 0 | AD171: 0 | AE171: 0 | AF171: 0 | AG171: 0 | AH171: 0 | AI171: 0 | AJ171: =AJ$135*$A138 -> 0 | AK171: =AK$135*$A137 -> 0 | CA171: 0
A172: 0 | B172: 36 | C172: 0 | D172: 0 | E172: 0 | F172: 0 | G172: 0 | H172: 0 | I172: 0 | J172: 0 | K172: 0 | L172: 0 | M172: 0 | N172: 0 | O172: 0 | P172: 0 | Q172: 0 | R172: 0 | S172: 0 | T172: 0 | U172: 0 | V172: 0 | W172: 0 | X172: 0 | Y172: 0 | Z172: 0 | AA172: 0 | AB172: 0 | AC172: 0 | AD172: 0 | AE172: 0 | AF172: 0 | AG172: 0 | AH172: 0 | AI172: 0 | AJ172: 0 | AK172: =AK$135*$A138 -> 0 | AL172: =AL$135*$A137 -> 0 | CA172: 0
A173: 0 | B173: 37 | C173: 0 | D173: 0 | E173: 0 | F173: 0 | G173: 0 | H173: 0 | I173: 0 | J173: 0 | K173: 0 | L173: 0 | M173: 0 | N173: 0 | O173: 0 | P173: 0 | Q173: 0 | R173: 0 | S173: 0 | T173: 0 | U173: 0 | V173: 0 | W173: 0 | X173: 0 | Y173: 0 | Z173: 0 | AA173: 0 | AB173: 0 | AC173: 0 | AD173: 0 | AE173: 0 | AF173: 0 | AG173: 0 | AH173: 0 | AI173: 0 | AJ173: 0 | AK173: 0 | AL173: =AL$135*$A138 -> 0 | AM173: =AM$135*$A137 -> 0 | CA173: 0
A174: 0 | B174: 38 | C174: 0 | D174: 0 | E174: 0 | F174: 0 | G174: 0 | H174: 0 | I174: 0 | J174: 0 | K174: 0 | L174: 0 | M174: 0 | N174: 0 | O174: 0 | P174: 0 | Q174: 0 | R174: 0 | S174: 0 | T174: 0 | U174: 0 | V174: 0 | W174: 0 | X174: 0 | Y174: 0 | Z174: 0 | AA174: 0 | AB174: 0 | AC174: 0 | AD174: 0 | AE174: 0 | AF174: 0 | AG174: 0 | AH174: 0 | AI174: 0 | AJ174: 0 | AK174: 0 | AL174: 0 | AM174: =AM$135*$A138 -> 0 | AN174: =AN$135*$A137 -> 0 | CA174: 0
A175: 0 | B175: 39 | C175: 0 | D175: 0 | E175: 0 | F175: 0 | G175: 0 | H175: 0 | I175: 0 | J175: 0 | K175: 0 | L175: 0 | M175: 0 | N175: 0 | O175: 0 | P175: 0 | Q175: 0 | R175: 0 | S175: 0 | T175: 0 | U175: 0 | V175: 0 | W175: 0 | X175: 0 | Y175: 0 | Z175: 0 | AA175: 0 | AB175: 0 | AC175: 0 | AD175: 0 | AE175: 0 | AF175: 0 | AG175: 0 | AH175: 0 | AI175: 0 | AJ175: 0 | AK175: 0 | AL175: 0 | AM175: 0 | AN175: =AN$135*$A138 -> 0 | AO175: =AO$135*$A137 -> 0 | CA175: 0
A176: 0 | B176: 40 | C176: 0 | D176: 0 | E176: 0 | F176: 0 | G176: 0 | H176: 0 | I176: 0 | J176: 0 | K176: 0 | L176: 0 | M176: 0 | N176: 0 | O176: 0 | P176: 0 | Q176: 0 | R176: 0 | S176: 0 | T176: 0 | U176: 0 | V176: 0 | W176: 0 | X176: 0 | Y176: 0 | Z176: 0 | AA176: 0 | AB176: 0 | AC176: 0 | AD176: 0 | AE176: 0 | AF176: 0 | AG176: 0 | AH176: 0 | AI176: 0 | AJ176: 0 | AK176: 0 | AL176: 0 | AM176: 0 | AN176: 0 | AO176: =AO$135*$A138 -> 0 | AP176: =AP$135*$A137 -> 0 | CA176: 0
A177: 0 | B177: 41 | C177: 0 | D177: 0 | E177: 0 | F177: 0 | G177: 0 | H177: 0 | I177: 0 | J177: 0 | K177: 0 | L177: 0 | M177: 0 | N177: 0 | O177: 0 | P177: 0 | Q177: 0 | R177: 0 | S177: 0 | T177: 0 | U177: 0 | V177: 0 | W177: 0 | X177: 0 | Y177: 0 | Z177: 0 | AA177: 0 | AB177: 0 | AC177: 0 | AD177: 0 | AE177: 0 | AF177: 0 | AG177: 0 | AH177: 0 | AI177: 0 | AJ177: 0 | AK177: 0 | AL177: 0 | AM177: 0 | AN177: 0 | AO177: 0 | AP177: =AP$135*$A138 -> 0 | AQ177: =AQ$135*$A137 -> 0 | CA177: 0
A178: 0 | B178: 42 | C178: 0 | D178: 0 | E178: 0 | F178: 0 | G178: 0 | H178: 0 | I178: 0 | J178: 0 | K178: 0 | L178: 0 | M178: 0 | N178: 0 | O178: 0 | P178: 0 | Q178: 0 | R178: 0 | S178: 0 | T178: 0 | U178: 0 | V178: 0 | W178: 0 | X178: 0 | Y178: 0 | Z178: 0 | AA178: 0 | AB178: 0 | AC178: 0 | AD178: 0 | AE178: 0 | AF178: 0 | AG178: 0 | AH178: 0 | AI178: 0 | AJ178: 0 | AK178: 0 | AL178: 0 | AM178: 0 | AN178: 0 | AO178: 0 | AP178: 0 | AQ178: =AQ$135*$A138 -> 0 | AR178: =AR$135*$A137 -> 0 | CA178: 0
A179: 0 | B179: 43 | C179: 0 | D179: 0 | E179: 0 | F179: 0 | G179: 0 | H179: 0 | I179: 0 | J179: 0 | K179: 0 | L179: 0 | M179: 0 | N179: 0 | O179: 0 | P179: 0 | Q179: 0 | R179: 0 | S179: 0 | T179: 0 | U179: 0 | V179: 0 | W179: 0 | X179: 0 | Y179: 0 | Z179: 0 | AA179: 0 | AB179: 0 | AC179: 0 | AD179: 0 | AE179: 0 | AF179: 0 | AG179: 0 | AH179: 0 | AI179: 0 | AJ179: 0 | AK179: 0 | AL179: 0 | AM179: 0 | AN179: 0 | AO179: 0 | AP179: 0 | AQ179: 0 | AR179: =AR$135*$A138 -> 0 | AS179: =AS$135*$A137 -> 0 | CA179: 0
A180: 0 | B180: 44 | C180: 0 | D180: 0 | E180: 0 | F180: 0 | G180: 0 | H180: 0 | I180: 0 | J180: 0 | K180: 0 | L180: 0 | M180: 0 | N180: 0 | O180: 0 | P180: 0 | Q180: 0 | R180: 0 | S180: 0 | T180: 0 | U180: 0 | V180: 0 | W180: 0 | X180: 0 | Y180: 0 | Z180: 0 | AA180: 0 | AB180: 0 | AC180: 0 | AD180: 0 | AE180: 0 | AF180: 0 | AG180: 0 | AH180: 0 | AI180: 0 | AJ180: 0 | AK180: 0 | AL180: 0 | AM180: 0 | AN180: 0 | AO180: 0 | AP180: 0 | AQ180: 0 | AR180: 0 | AS180: =AS$135*$A138 -> 0 | AT180: =AT$135*$A137 -> 0 | CA180: 0
A181: 0 | B181: 45 | C181: 0 | D181: 0 | E181: 0 | F181: 0 | G181: 0 | H181: 0 | I181: 0 | J181: 0 | K181: 0 | L181: 0 | M181: 0 | N181: 0 | O181: 0 | P181: 0 | Q181: 0 | R181: 0 | S181: 0 | T181: 0 | U181: 0 | V181: 0 | W181: 0 | X181: 0 | Y181: 0 | Z181: 0 | AA181: 0 | AB181: 0 | AC181: 0 | AD181: 0 | AE181: 0 | AF181: 0 | AG181: 0 | AH181: 0 | AI181: 0 | AJ181: 0 | AK181: 0 | AL181: 0 | AM181: 0 | AN181: 0 | AO181: 0 | AP181: 0 | AQ181: 0 | AR181: 0 | AS181: 0 | AT181: =AT$135*$A138 -> 0 | AU181: =AU$135*$A137 -> 0 | CA181: 0
A182: 0 | B182: 46 | C182: 0 | D182: 0 | E182: 0 | F182: 0 | G182: 0 | H182: 0 | I182: 0 | J182: 0 | K182: 0 | L182: 0 | M182: 0 | N182: 0 | O182: 0 | P182: 0 | Q182: 0 | R182: 0 | S182: 0 | T182: 0 | U182: 0 | V182: 0 | W182: 0 | X182: 0 | Y182: 0 | Z182: 0 | AA182: 0 | AB182: 0 | AC182: 0 | AD182: 0 | AE182: 0 | AF182: 0 | AG182: 0 | AH182: 0 | AI182: 0 | AJ182: 0 | AK182: 0 | AL182: 0 | AM182: 0 | AN182: 0 | AO182: 0 | AP182: 0 | AQ182: 0 | AR182: 0 | AS182: 0 | AT182: 0 | AU182: =AU$135*$A138 -> 0 | AV182: =AV$135*$A137 -> 0 | CA182: 0
A183: 0 | B183: 47 | C183: 0 | D183: 0 | E183: 0 | F183: 0 | G183: 0 | H183: 0 | I183: 0 | J183: 0 | K183: 0 | L183: 0 | M183: 0 | N183: 0 | O183: 0 | P183: 0 | Q183: 0 | R183: 0 | S183: 0 | T183: 0 | U183: 0 | V183: 0 | W183: 0 | X183: 0 | Y183: 0 | Z183: 0 | AA183: 0 | AB183: 0 | AC183: 0 | AD183: 0 | AE183: 0 | AF183: 0 | AG183: 0 | AH183: 0 | AI183: 0 | AJ183: 0 | AK183: 0 | AL183: 0 | AM183: 0 | AN183: 0 | AO183: 0 | AP183: 0 | AQ183: 0 | AR183: 0 | AS183: 0 | AT183: 0 | AU183: 0 | AV183: =AV$135*$A138 -> 0 | AW183: =AW$135*$A137 -> 0 | CA183: 0
A184: 0 | B184: 48 | C184: 0 | D184: 0 | E184: 0 | F184: 0 | G184: 0 | H184: 0 | I184: 0 | J184: 0 | K184: 0 | L184: 0 | M184: 0 | N184: 0 | O184: 0 | P184: 0 | Q184: 0 | R184: 0 | S184: 0 | T184: 0 | U184: 0 | V184: 0 | W184: 0 | X184: 0 | Y184: 0 | Z184: 0 | AA184: 0 | AB184: 0 | AC184: 0 | AD184: 0 | AE184: 0 | AF184: 0 | AG184: 0 | AH184: 0 | AI184: 0 | AJ184: 0 | AK184: 0 | AL184: 0 | AM184: 0 | AN184: 0 | AO184: 0 | AP184: 0 | AQ184: 0 | AR184: 0 | AS184: 0 | AT184: 0 | AU184: 0 | AV184: 0 | AW184: =AW$135*$A138 -> 0 | AX184: =AX$135*$A137 -> 0 | CA184: 0
A185: 0 | B185: 49 | C185: 0 | D185: 0 | E185: 0 | F185: 0 | G185: 0 | H185: 0 | I185: 0 | J185: 0 | K185: 0 | L185: 0 | M185: 0 | N185: 0 | O185: 0 | P185: 0 | Q185: 0 | R185: 0 | S185: 0 | T185: 0 | U185: 0 | V185: 0 | W185: 0 | X185: 0 | Y185: 0 | Z185: 0 | AA185: 0 | AB185: 0 | AC185: 0 | AD185: 0 | AE185: 0 | AF185: 0 | AG185: 0 | AH185: 0 | AI185: 0 | AJ185: 0 | AK185: 0 | AL185: 0 | AM185: 0 | AN185: 0 | AO185: 0 | AP185: 0 | AQ185: 0 | AR185: 0 | AS185: 0 | AT185: 0 | AU185: 0 | AV185: 0 | AW185: 0 | AX185: =AX$135*$A138 -> 0 | AY185: =AY$135*$A137 -> 0 | CA185: 0
A186: 0 | B186: 50 | C186: 0 | D186: 0 | E186: 0 | F186: 0 | G186: 0 | H186: 0 | I186: 0 | J186: 0 | K186: 0 | L186: 0 | M186: 0 | N186: 0 | O186: 0 | P186: 0 | Q186: 0 | R186: 0 | S186: 0 | T186: 0 | U186: 0 | V186: 0 | W186: 0 | X186: 0 | Y186: 0 | Z186: 0 | AA186: 0 | AB186: 0 | AC186: 0 | AD186: 0 | AE186: 0 | AF186: 0 | AG186: 0 | AH186: 0 | AI186: 0 | AJ186: 0 | AK186: 0 | AL186: 0 | AM186: 0 | AN186: 0 | AO186: 0 | AP186: 0 | AQ186: 0 | AR186: 0 | AS186: 0 | AT186: 0 | AU186: 0 | AV186: 0 | AW186: 0 | AX186: 0 | AY186: =AY$135*$A138 -> 0 | AZ186: =AZ$135*$A137 -> 0 | CA186: 0
A187: 0 | B187: 51 | C187: 0 | D187: 0 | E187: 0 | F187: 0 | G187: 0 | H187: 0 | I187: 0 | J187: 0 | K187: 0 | L187: 0 | M187: 0 | N187: 0 | O187: 0 | P187: 0 | Q187: 0 | R187: 0 | S187: 0 | T187: 0 | U187: 0 | V187: 0 | W187: 0 | X187: 0 | Y187: 0 | Z187: 0 | AA187: 0 | AB187: 0 | AC187: 0 | AD187: 0 | AE187: 0 | AF187: 0 | AG187: 0 | AH187: 0 | AI187: 0 | AJ187: 0 | AK187: 0 | AL187: 0 | AM187: 0 | AN187: 0 | AO187: 0 | AP187: 0 | AQ187: 0 | AR187: 0 | AS187: 0 | AT187: 0 | AU187: 0 | AV187: 0 | AW187: 0 | AX187: 0 | AY187: 0 | AZ187: =AZ$135*$A138 -> 0 | BA187: =BA$135*$A137 -> 0 | CA187: 0
A188: 0 | B188: 52 | C188: 0 | D188: 0 | E188: 0 | F188: 0 | G188: 0 | H188: 0 | I188: 0 | J188: 0 | K188: 0 | L188: 0 | M188: 0 | N188: 0 | O188: 0 | P188: 0 | Q188: 0 | R188: 0 | S188: 0 | T188: 0 | U188: 0 | V188: 0 | W188: 0 | X188: 0 | Y188: 0 | Z188: 0 | AA188: 0 | AB188: 0 | AC188: 0 | AD188: 0 | AE188: 0 | AF188: 0 | AG188: 0 | AH188: 0 | AI188: 0 | AJ188: 0 | AK188: 0 | AL188: 0 | AM188: 0 | AN188: 0 | AO188: 0 | AP188: 0 | AQ188: 0 | AR188: 0 | AS188: 0 | AT188: 0 | AU188: 0 | AV188: 0 | AW188: 0 | AX188: 0 | AY188: 0 | AZ188: 0 | BA188: =BA$135*$A138 -> 0 | BB188: =BB$135*$A137 -> 0 | CA188: 0
A189: 0 | B189: 53 | C189: 0 | D189: 0 | E189: 0 | F189: 0 | G189: 0 | H189: 0 | I189: 0 | J189: 0 | K189: 0 | L189: 0 | M189: 0 | N189: 0 | O189: 0 | P189: 0 | Q189: 0 | R189: 0 | S189: 0 | T189: 0 | U189: 0 | V189: 0 | W189: 0 | X189: 0 | Y189: 0 | Z189: 0 | AA189: 0 | AB189: 0 | AC189: 0 | AD189: 0 | AE189: 0 | AF189: 0 | AG189: 0 | AH189: 0 | AI189: 0 | AJ189: 0 | AK189: 0 | AL189: 0 | AM189: 0 | AN189: 0 | AO189: 0 | AP189: 0 | AQ189: 0 | AR189: 0 | AS189: 0 | AT189: 0 | AU189: 0 | AV189: 0 | AW189: 0 | AX189: 0 | AY189: 0 | AZ189: 0 | BA189: 0 | BB189: =BB$135*$A138 -> 0 | BC189: =BC$135*$A137 -> 0 | CA189: 0
A190: 0 | B190: 54 | C190: 0 | D190: 0 | E190: 0 | F190: 0 | G190: 0 | H190: 0 | I190: 0 | J190: 0 | K190: 0 | L190: 0 | M190: 0 | N190: 0 | O190: 0 | P190: 0 | Q190: 0 | R190: 0 | S190: 0 | T190: 0 | U190: 0 | V190: 0 | W190: 0 | X190: 0 | Y190: 0 | Z190: 0 | AA190: 0 | AB190: 0 | AC190: 0 | AD190: 0 | AE190: 0 | AF190: 0 | AG190: 0 | AH190: 0 | AI190: 0 | AJ190: 0 | AK190: 0 | AL190: 0 | AM190: 0 | AN190: 0 | AO190: 0 | AP190: 0 | AQ190: 0 | AR190: 0 | AS190: 0 | AT190: 0 | AU190: 0 | AV190: 0 | AW190: 0 | AX190: 0 | AY190: 0 | AZ190: 0 | BA190: 0 | BB190: 0 | BC190: =BC$135*$A138 -> 0 | BD190: =BD$135*$A137 -> 0 | CA190: 0
A191: 0 | B191: 55 | C191: 0 | D191: 0 | E191: 0 | F191: 0 | G191: 0 | H191: 0 | I191: 0 | J191: 0 | K191: 0 | L191: 0 | M191: 0 | N191: 0 | O191: 0 | P191: 0 | Q191: 0 | R191: 0 | S191: 0 | T191: 0 | U191: 0 | V191: 0 | W191: 0 | X191: 0 | Y191: 0 | Z191: 0 | AA191: 0 | AB191: 0 | AC191: 0 | AD191: 0 | AE191: 0 | AF191: 0 | AG191: 0 | AH191: 0 | AI191: 0 | AJ191: 0 | AK191: 0 | AL191: 0 | AM191: 0 | AN191: 0 | AO191: 0 | AP191: 0 | AQ191: 0 | AR191: 0 | AS191: 0 | AT191: 0 | AU191: 0 | AV191: 0 | AW191: 0 | AX191: 0 | AY191: 0 | AZ191: 0 | BA191: 0 | BB191: 0 | BC191: 0 | BD191: =BD$135*$A138 -> 0 | BE191: =BE$135*$A137 -> 0 | CA191: 0
A192: 0 | B192: 56 | C192: 0 | D192: 0 | E192: 0 | F192: 0 | G192: 0 | H192: 0 | I192: 0 | J192: 0 | K192: 0 | L192: 0 | M192: 0 | N192: 0 | O192: 0 | P192: 0 | Q192: 0 | R192: 0 | S192: 0 | T192: 0 | U192: 0 | V192: 0 | W192: 0 | X192: 0 | Y192: 0 | Z192: 0 | AA192: 0 | AB192: 0 | AC192: 0 | AD192: 0 | AE192: 0 | AF192: 0 | AG192: 0 | AH192: 0 | AI192: 0 | AJ192: 0 | AK192: 0 | AL192: 0 | AM192: 0 | AN192: 0 | AO192: 0 | AP192: 0 | AQ192: 0 | AR192: 0 | AS192: 0 | AT192: 0 | AU192: 0 | AV192: 0 | AW192: 0 | AX192: 0 | AY192: 0 | AZ192: 0 | BA192: 0 | BB192: 0 | BC192: 0 | BD192: 0 | BE192: =BE$135*$A138 -> 0 | BF192: =BF$135*$A137 -> 0 | CA192: 0
A193: 0 | B193: 57 | C193: 0 | D193: 0 | E193: 0 | F193: 0 | G193: 0 | H193: 0 | I193: 0 | J193: 0 | K193: 0 | L193: 0 | M193: 0 | N193: 0 | O193: 0 | P193: 0 | Q193: 0 | R193: 0 | S193: 0 | T193: 0 | U193: 0 | V193: 0 | W193: 0 | X193: 0 | Y193: 0 | Z193: 0 | AA193: 0 | AB193: 0 | AC193: 0 | AD193: 0 | AE193: 0 | AF193: 0 | AG193: 0 | AH193: 0 | AI193: 0 | AJ193: 0 | AK193: 0 | AL193: 0 | AM193: 0 | AN193: 0 | AO193: 0 | AP193: 0 | AQ193: 0 | AR193: 0 | AS193: 0 | AT193: 0 | AU193: 0 | AV193: 0 | AW193: 0 | AX193: 0 | AY193: 0 | AZ193: 0 | BA193: 0 | BB193: 0 | BC193: 0 | BD193: 0 | BE193: 0 | BF193: =BF$135*$A138 -> 0 | BG193: =BG$135*$A137 -> 0 | CA193: 0
A194: 0 | B194: 58 | C194: 0 | D194: 0 | E194: 0 | F194: 0 | G194: 0 | H194: 0 | I194: 0 | J194: 0 | K194: 0 | L194: 0 | M194: 0 | N194: 0 | O194: 0 | P194: 0 | Q194: 0 | R194: 0 | S194: 0 | T194: 0 | U194: 0 | V194: 0 | W194: 0 | X194: 0 | Y194: 0 | Z194: 0 | AA194: 0 | AB194: 0 | AC194: 0 | AD194: 0 | AE194: 0 | AF194: 0 | AG194: 0 | AH194: 0 | AI194: 0 | AJ194: 0 | AK194: 0 | AL194: 0 | AM194: 0 | AN194: 0 | AO194: 0 | AP194: 0 | AQ194: 0 | AR194: 0 | AS194: 0 | AT194: 0 | AU194: 0 | AV194: 0 | AW194: 0 | AX194: 0 | AY194: 0 | AZ194: 0 | BA194: 0 | BB194: 0 | BC194: 0 | BD194: 0 | BE194: 0 | BF194: 0 | BG194: =BG$135*$A138 -> 0 | BH194: =BH$135*$A137 -> 0 | CA194: 0
A195: 0 | B195: 59 | C195: 0 | D195: 0 | E195: 0 | F195: 0 | G195: 0 | H195: 0 | I195: 0 | J195: 0 | K195: 0 | L195: 0 | M195: 0 | N195: 0 | O195: 0 | P195: 0 | Q195: 0 | R195: 0 | S195: 0 | T195: 0 | U195: 0 | V195: 0 | W195: 0 | X195: 0 | Y195: 0 | Z195: 0 | AA195: 0 | AB195: 0 | AC195: 0 | AD195: 0 | AE195: 0 | AF195: 0 | AG195: 0 | AH195: 0 | AI195: 0 | AJ195: 0 | AK195: 0 | AL195: 0 | AM195: 0 | AN195: 0 | AO195: 0 | AP195: 0 | AQ195: 0 | AR195: 0 | AS195: 0 | AT195: 0 | AU195: 0 | AV195: 0 | AW195: 0 | AX195: 0 | AY195: 0 | AZ195: 0 | BA195: 0 | BB195: 0 | BC195: 0 | BD195: 0 | BE195: 0 | BF195: 0 | BG195: 0 | BH195: =BH$135*$A138 -> 0 | BI195: =BI$135*$A137 -> 0 | CA195: 0
A196: 0 | B196: 60 | C196: 0 | D196: 0 | E196: 0 | F196: 0 | G196: 0 | H196: 0 | I196: 0 | J196: 0 | K196: 0 | L196: 0 | M196: 0 | N196: 0 | O196: 0 | P196: 0 | Q196: 0 | R196: 0 | S196: 0 | T196: 0 | U196: 0 | V196: 0 | W196: 0 | X196: 0 | Y196: 0 | Z196: 0 | AA196: 0 | AB196: 0 | AC196: 0 | AD196: 0 | AE196: 0 | AF196: 0 | AG196: 0 | AH196: 0 | AI196: 0 | AJ196: 0 | AK196: 0 | AL196: 0 | AM196: 0 | AN196: 0 | AO196: 0 | AP196: 0 | AQ196: 0 | AR196: 0 | AS196: 0 | AT196: 0 | AU196: 0 | AV196: 0 | AW196: 0 | AX196: 0 | AY196: 0 | AZ196: 0 | BA196: 0 | BB196: 0 | BC196: 0 | BD196: 0 | BE196: 0 | BF196: 0 | BG196: 0 | BH196: 0 | BI196: =BI$135*$A138 -> 0 | BJ196: =BJ$135*$A137 -> 0 | CA196: 0
A197: 0 | B197: 61 | C197: 0 | D197: 0 | E197: 0 | F197: 0 | G197: 0 | H197: 0 | I197: 0 | J197: 0 | K197: 0 | L197: 0 | M197: 0 | N197: 0 | O197: 0 | P197: 0 | Q197: 0 | R197: 0 | S197: 0 | T197: 0 | U197: 0 | V197: 0 | W197: 0 | X197: 0 | Y197: 0 | Z197: 0 | AA197: 0 | AB197: 0 | AC197: 0 | AD197: 0 | AE197: 0 | AF197: 0 | AG197: 0 | AH197: 0 | AI197: 0 | AJ197: 0 | AK197: 0 | AL197: 0 | AM197: 0 | AN197: 0 | AO197: 0 | AP197: 0 | AQ197: 0 | AR197: 0 | AS197: 0 | AT197: 0 | AU197: 0 | AV197: 0 | AW197: 0 | AX197: 0 | AY197: 0 | AZ197: 0 | BA197: 0 | BB197: 0 | BC197: 0 | BD197: 0 | BE197: 0 | BF197: 0 | BG197: 0 | BH197: 0 | BI197: 0 | BJ197: =BJ$135*$A138 -> 0 | BK197: =BK$135*$A137 -> 0 | CA197: 0
A198: 0 | B198: 62 | C198: 0 | D198: 0 | E198: 0 | F198: 0 | G198: 0 | H198: 0 | I198: 0 | J198: 0 | K198: 0 | L198: 0 | M198: 0 | N198: 0 | O198: 0 | P198: 0 | Q198: 0 | R198: 0 | S198: 0 | T198: 0 | U198: 0 | V198: 0 | W198: 0 | X198: 0 | Y198: 0 | Z198: 0 | AA198: 0 | AB198: 0 | AC198: 0 | AD198: 0 | AE198: 0 | AF198: 0 | AG198: 0 | AH198: 0 | AI198: 0 | AJ198: 0 | AK198: 0 | AL198: 0 | AM198: 0 | AN198: 0 | AO198: 0 | AP198: 0 | AQ198: 0 | AR198: 0 | AS198: 0 | AT198: 0 | AU198: 0 | AV198: 0 | AW198: 0 | AX198: 0 | AY198: 0 | AZ198: 0 | BA198: 0 | BB198: 0 | BC198: 0 | BD198: 0 | BE198: 0 | BF198: 0 | BG198: 0 | BH198: 0 | BI198: 0 | BJ198: 0 | BK198: =BK$135*$A138 -> 0 | BL198: =BL$135*$A137 -> 0 | CA198: 0
A199: 0 | B199: 63 | C199: 0 | D199: 0 | E199: 0 | F199: 0 | G199: 0 | H199: 0 | I199: 0 | J199: 0 | K199: 0 | L199: 0 | M199: 0 | N199: 0 | O199: 0 | P199: 0 | Q199: 0 | R199: 0 | S199: 0 | T199: 0 | U199: 0 | V199: 0 | W199: 0 | X199: 0 | Y199: 0 | Z199: 0 | AA199: 0 | AB199: 0 | AC199: 0 | AD199: 0 | AE199: 0 | AF199: 0 | AG199: 0 | AH199: 0 | AI199: 0 | AJ199: 0 | AK199: 0 | AL199: 0 | AM199: 0 | AN199: 0 | AO199: 0 | AP199: 0 | AQ199: 0 | AR199: 0 | AS199: 0 | AT199: 0 | AU199: 0 | AV199: 0 | AW199: 0 | AX199: 0 | AY199: 0 | AZ199: 0 | BA199: 0 | BB199: 0 | BC199: 0 | BD199: 0 | BE199: 0 | BF199: 0 | BG199: 0 | BH199: 0 | BI199: 0 | BJ199: 0 | BK199: 0 | BL199: =BL$135*$A138 -> 0 | BM199: =BM$135*$A137 -> 0 | CA199: 0
A200: 0 | B200: 64 | C200: 0 | D200: 0 | E200: 0 | F200: 0 | G200: 0 | H200: 0 | I200: 0 | J200: 0 | K200: 0 | L200: 0 | M200: 0 | N200: 0 | O200: 0 | P200: 0 | Q200: 0 | R200: 0 | S200: 0 | T200: 0 | U200: 0 | V200: 0 | W200: 0 | X200: 0 | Y200: 0 | Z200: 0 | AA200: 0 | AB200: 0 | AC200: 0 | AD200: 0 | AE200: 0 | AF200: 0 | AG200: 0 | AH200: 0 | AI200: 0 | AJ200: 0 | AK200: 0 | AL200: 0 | AM200: 0 | AN200: 0 | AO200: 0 | AP200: 0 | AQ200: 0 | AR200: 0 | AS200: 0 | AT200: 0 | AU200: 0 | AV200: 0 | AW200: 0 | AX200: 0 | AY200: 0 | AZ200: 0 | BA200: 0 | BB200: 0 | BC200: 0 | BD200: 0 | BE200: 0 | BF200: 0 | BG200: 0 | BH200: 0 | BI200: 0 | BJ200: 0 | BK200: 0 | BL200: 0 | BM200: =BM$135*$A138 -> 0 | BN200: =BN$135*$A137 -> 0 | CA200: 0
A201: 0 | B201: 65 | C201: 0 | D201: 0 | E201: 0 | F201: 0 | G201: 0 | H201: 0 | I201: 0 | J201: 0 | K201: 0 | L201: 0 | M201: 0 | N201: 0 | O201: 0 | P201: 0 | Q201: 0 | R201: 0 | S201: 0 | T201: 0 | U201: 0 | V201: 0 | W201: 0 | X201: 0 | Y201: 0 | Z201: 0 | AA201: 0 | AB201: 0 | AC201: 0 | AD201: 0 | AE201: 0 | AF201: 0 | AG201: 0 | AH201: 0 | AI201: 0 | AJ201: 0 | AK201: 0 | AL201: 0 | AM201: 0 | AN201: 0 | AO201: 0 | AP201: 0 | AQ201: 0 | AR201: 0 | AS201: 0 | AT201: 0 | AU201: 0 | AV201: 0 | AW201: 0 | AX201: 0 | AY201: 0 | AZ201: 0 | BA201: 0 | BB201: 0 | BC201: 0 | BD201: 0 | BE201: 0 | BF201: 0 | BG201: 0 | BH201: 0 | BI201: 0 | BJ201: 0 | BK201: 0 | BL201: 0 | BM201: 0 | BN201: =BN$135*$A138 -> 0 | BO201: =BO$135*$A137 -> 0 | CA201: =SUM($C201:$BZ201) -> 0
A202: =IF($B$132=1,CC202,IF($B$132=2,CD202,IF($B$132=3,CE202,IF($B$132=4,CF202,#VALUE!)))) -> 0 | B202: =+B201+1 -> 66 | C202: =C$135*$A202 -> 0 | D202: 0 | E202: 0 | F202: 0 | G202: 0 | H202: 0 | I202: 0 | J202: 0 | K202: 0 | L202: 0 | M202: 0 | N202: 0 | O202: 0 | P202: 0 | Q202: 0 | R202: 0 | S202: 0 | T202: 0 | U202: 0 | V202: 0 | W202: 0 | X202: 0 | Y202: 0 | Z202: 0 | AA202: 0 | AB202: 0 | AC202: 0 | AD202: 0 | AE202: 0 | AF202: 0 | AG202: 0 | AH202: 0 | AI202: 0 | AJ202: 0 | AK202: 0 | AL202: 0 | AM202: 0 | AN202: 0 | AO202: 0 | AP202: 0 | AQ202: 0 | AR202: 0 | AS202: 0 | AT202: 0 | AU202: 0 | AV202: 0 | AW202: 0 | AX202: 0 | AY202: 0 | AZ202: 0 | BA202: 0 | BB202: 0 | BC202: 0 | BD202: 0 | BE202: 0 | BF202: 0 | BG202: 0 | BH202: 0 | BI202: 0 | BJ202: 0 | BK202: 0 | BL202: 0 | BM202: 0 | BN202: 0 | BO202: =BO$135*$A138 -> 0 | BP202: =BP$135*$A137 -> 0 | CA202: 0
A203: 0 | B203: 67 | C203: 0 | D203: =D$135*$A202 -> 0 | E203: 0 | F203: 0 | G203: 0 | H203: 0 | I203: 0 | J203: 0 | K203: 0 | L203: 0 | M203: 0 | N203: 0 | O203: 0 | P203: 0 | Q203: 0 | R203: 0 | S203: 0 | T203: 0 | U203: 0 | V203: 0 | W203: 0 | X203: 0 | Y203: 0 | Z203: 0 | AA203: 0 | AB203: 0 | AC203: 0 | AD203: 0 | AE203: 0 | AF203: 0 | AG203: 0 | AH203: 0 | AI203: 0 | AJ203: 0 | AK203: 0 | AL203: 0 | AM203: 0 | AN203: 0 | AO203: 0 | AP203: 0 | AQ203: 0 | AR203: 0 | AS203: 0 | AT203: 0 | AU203: 0 | AV203: 0 | AW203: 0 | AX203: 0 | AY203: 0 | AZ203: 0 | BA203: 0 | BB203: 0 | BC203: 0 | BD203: 0 | BE203: 0 | BF203: 0 | BG203: 0 | BH203: 0 | BI203: 0 | BJ203: 0 | BK203: 0 | BL203: 0 | BM203: 0 | BN203: 0 | BO203: 0 | BP203: =BP$135*$A138 -> 0 | BQ203: =BQ$135*$A137 -> 0 | CA203: 0
A204: 0 | B204: 68 | C204: 0 | D204: 0 | E204: =E$135*$A202 -> 0 | F204: 0 | G204: 0 | H204: 0 | I204: 0 | J204: 0 | K204: 0 | L204: 0 | M204: 0 | N204: 0 | O204: 0 | P204: 0 | Q204: 0 | R204: 0 | S204: 0 | T204: 0 | U204: 0 | V204: 0 | W204: 0 | X204: 0 | Y204: 0 | Z204: 0 | AA204: 0 | AB204: 0 | AC204: 0 | AD204: 0 | AE204: 0 | AF204: 0 | AG204: 0 | AH204: 0 | AI204: 0 | AJ204: 0 | AK204: 0 | AL204: 0 | AM204: 0 | AN204: 0 | AO204: 0 | AP204: 0 | AQ204: 0 | AR204: 0 | AS204: 0 | AT204: 0 | AU204: 0 | AV204: 0 | AW204: 0 | AX204: 0 | AY204: 0 | AZ204: 0 | BA204: 0 | BB204: 0 | BC204: 0 | BD204: 0 | BE204: 0 | BF204: 0 | BG204: 0 | BH204: 0 | BI204: 0 | BJ204: 0 | BK204: 0 | BL204: 0 | BM204: 0 | BN204: 0 | BO204: 0 | BP204: 0 | BQ204: =BQ$135*$A138 -> 0 | BR204: =BR$135*$A137 -> 0 | CA204: 0
A205: 0 | B205: 69 | C205: 0 | D205: 0 | E205: 0 | F205: =F$135*$A202 -> 0 | G205: 0 | H205: 0 | I205: 0 | J205: 0 | K205: 0 | L205: 0 | M205: 0 | N205: 0 | O205: 0 | P205: 0 | Q205: 0 | R205: 0 | S205: 0 | T205: 0 | U205: 0 | V205: 0 | W205: 0 | X205: 0 | Y205: 0 | Z205: 0 | AA205: 0 | AB205: 0 | AC205: 0 | AD205: 0 | AE205: 0 | AF205: 0 | AG205: 0 | AH205: 0 | AI205: 0 | AJ205: 0 | AK205: 0 | AL205: 0 | AM205: 0 | AN205: 0 | AO205: 0 | AP205: 0 | AQ205: 0 | AR205: 0 | AS205: 0 | AT205: 0 | AU205: 0 | AV205: 0 | AW205: 0 | AX205: 0 | AY205: 0 | AZ205: 0 | BA205: 0 | BB205: 0 | BC205: 0 | BD205: 0 | BE205: 0 | BF205: 0 | BG205: 0 | BH205: 0 | BI205: 0 | BJ205: 0 | BK205: 0 | BL205: 0 | BM205: 0 | BN205: 0 | BO205: 0 | BP205: 0 | BQ205: 0 | BR205: =BR$135*$A138 -> 0 | BS205: =BS$135*$A137 -> 0 | CA205: 0
... 177 more rows

Sheet Battery Energy Storage w Ancil
A1: State Income Tax Rate ............ | D1: 0.0164024 | I1: Debt ........................... | L1: 0.50975 | M1: 0.048755 | N1: =ROUND(L1*M1,4) -> 0.0249 | O1: =N1*(1-D2) -> 0.019671 | Q1: Gross Revenue | T1: 1
A2: Federal Income Tax Rate ........ | D2: 0.21 | I2: Preferred Stock ................. | L2: 0 | M2: 0 | N2: =ROUND(L2*M2,4) -> 0 | O2: =N2 -> 0 | Q2: Uncollectables | T2: 0
A3: Discount Factor ...................... | D3: =+O4 -> 0.065771 | I3: Common Equity ...................... | L3: 0.49025 | M3: 0.094 | N3: =ROUND(L3*M3,4) -> 0.0461 | O3: =N3 -> 0.0461 | Q3: Commission Fees | T3: 0
A4: Capital Class ........................... | D4: 4 | E4: (1) General Structures. | N4: =SUM(N1:N3) -> 0.071 | O4: =SUM(O1:O3) -> 0.065771 | Q4: Excise Tax | T4: 0
E5: (2) Generation, Transmission, | Q5: Franchise Fees | T5: 0
E6: and Distribution. | Q6: ERSA | T6: 0
E7: (3) Other Equipment. | N7: IRR CALC | T7: -
E8: (4) Transportation Equipment. | I8: Principal ...................... | L8: =T24 -> 1.907835256e-49 | N8: =L8 -> 1.907835256e-49 | O8: pv princ | Q8: Misc. Revenue Items | T8: =SUM(T2:T6) -> 0
A9: Book Life (Years) .............. | D9: 10 | I9: Interest ....................... | L9: =D3 -> 0.065771 | N9: =V20 -> 0 | O9: pv lvlized margin | T9: -
A10: Property Tax Rate ............... | D10: 0.015 | I10: Term ............................. | L10: 10 | N10: =IRR($AI$28:$AI$102,0.059065190478108) ->  | O10: IRR | Q10: Before State Income Tax | T10: =T1-T8 -> 1
A11: O&M Escalation Factor .......... | D11: 0.03 | I11: Levelized Gr. Mar. Requirement ....... | L11: =PMT($L$9,$L$10,-$L$8) -> 2.663471882e-50 | Q11: State Income Tax | T11: 0
T12: -
B13: Idaho | C13: Oregon | D13: Washington | Q13: Before Federal Income Tax | T13: =T10-T11 -> 1
A14: Electric | B14: 0.35 | C14: 0 | D14: 0.65 | E14: =SUM(B14:D14) -> 1 | K14: Lev ROE | L14: =PMT(L9,L10,-L15) -> 291527.6627 | Q14: Federal Income Tax | T14: =T13*D2 -> 0.21 | V14: (v) | W14: (w) | X14: (x) | Y14: (y) | Z14: (z) | AA14: (aa) | AB14: (ab) | AC14: (ac) | AD14: (ad) | AE14: (ae) | AF14: (af) | AG14: (ag) | AH14: (ah)
A15: Gas | B15: 0 | C15: 0 | D15: 0 | E15: =SUM(B15:D15) -> 0 | K15: NPV equity | L15: =NPV(L9,$M$28:$M$103) -> 2088202.082 | T15: - | V15: PV GM
B16: =SUM(B14:B15) -> 0.35 | C16: =SUM(C14:C15) -> 0 | D16: 0.65 | E16: 1 | Q16: Conversion Factor | T16: =T13-T14 -> 0.79 | V16: =NPV(O4,$V$29:$V$103)+V28 -> 0
A17: ...................................................................................................................................................................................................................... | V17: TERM
B18: Capital Additions | V18: =L10 -> 10 | AD18: pv of contribution to fixed costs | AG18: =NPV(O4,20,AG28:AG28) -> 18.76575737
B19: ----------------- | D19: Rate | E19: Accum. | G19: Book Dep. | I19: Rate | K19: Average | P19: Misc. | Q19: State | R19: Federal | S19: Total | T19: Present Val | V19: LEVELIZED | AE19: Interest ....................... | AG19: =O4 -> 0.065771 | AL19: Inter.
B20: Tax | C20: Book | D20: Base | E20: Book | F20: Tax | G20: on Tax | H20: Deferred | I20: Base | J20: Book | K20: Rate | L20: Interest | M20: Equity | N20: O&M & A&G | O20: Property | P20: Revenue | Q20: Income | R20: Income | S20: Gross Marg | T20: Gross Marg | V20: =PMT(L9,V18,-V16) -> 0 | AE20: Term ............................. | AG20: 50 | AH20: per kwh | AL20: Revenue | AN20: Net Book
B21: Basis | C21: Basis | D21: BOP | E21: Deprec. | F21: Deprec. | G21: Basis | H21: Taxes | I21: EOP | J21: Deprec. | K21: Base | L21: Expense | M21: Return | N21: Expense | O21: Taxes | P21: Items | Q21: Tax | R21: Taxes | S21: Reqmnt | T21: Reqmnt | AD21: levelized cont. to fixed costs | AG21: =PMT(AG19,AG20,-AG18) -> 1.28752208 | AH21: =AG21/(400*1000) -> 3.2188052e-06 | AL21: Requirement | AN21: BOP
A22: (a) | B22: (b) | C22: (c) | D22: (d) | E22: (e) | F22: (f) | G22: (g) | H22: (h) | I22: (i) | J22: (j) | K22: (k) | L22: (l) | M22: (m) | N22: (n) | O22: (o) | P22: (p) | Q22: (q) | R22: (r) | S22: (s) | T22: (t) | W22: - | X22: - | Y22: - | Z22: - | AA22: - | AB22: - | AC22: - | AD22: - | AE22: - | AF22: - | AG22: - | AH22: -
B23: - | C23: - | D23: - | E23: - | F23: - | G23: - | H23: - | I23: - | J23: - | K23: - | L23: - | M23: - | N23: - | O23: - | P23: - | Q23: - | R23: - | S23: - | T23: - | Z23: RES LOAD @ | AG23: ANNUAL | AH23: CUMULATIVE | AL23: - | AN23: -
A24: Total => | B24: =SUM(B25:B104) -> 24998481.69 | C24: =SUM(C25:C104) -> 24998481.69 | F24: =SUM(F25:F104) -> 24998481.69 | G24: =SUM(G25:G104) -> 24998481.69 | H24: =SUM(H25:H104) -> -4.311004886e-10 | J24: =SUM(J25:J104) -> 24998481.69 | L24: =SUM(L25:L104) -> 2759165.759 | M24: 5108335 | N24: 3734847.455 | O24: 2062374.74 | P24: 0 | Q24: 97034.40773 | R24: 1221954.727 | S24: 41365657.54 | T24: 1.907835256e-49 | V24: Offsets | X24: NEW | Y24: CUML | Z24: 12000 | AA24: COMM | AB24: COMM | AC24: TOTAL | AD24: TOTAL | AE24: REVENUE | AF24: ESTIMATED | AG24: (SHORTFALL) | AH24: (SHORTFALL)
A25: Period | B25: - | C25: - | D25: - | E25: - | F25: - | G25: - | H25: - | I25: - | J25: - | K25: - | L25: - | M25: - | N25: - | O25: - | P25: - | Q25: - | R25: - | S25: - | T25: - | W25: YR | X25: CUST | Y25: CUST | Z25: KWH EA | AA25: CUST | AB25: LOAD | AC25: CUST | AD25: LOAD | AE25: REQ | AF25: MARGIN | AG25: EXCESS | AH25: EXCESS | AI25: 0.05906519048 | AL25: - | AN25: -
W26: - | X26: - | Y26: - | Z26: - | AA26: - | AB26: - | AC26: - | AD26: - | AE26: - | AF26: - | AG26: - | AH26: - | AJ26: =NPV(AI25,$AI$28:$AI$103) -> 0
S27: =-PMT(O4,20,NPV(O4,S28:S51)) -> 1383463.76
A28: 2023 | B28: =HLOOKUP($A28,'AEG Input File'!$BA$2:$BX$27,2,FALSE)*Inflation!$B4/100 -> 0 | C28: =B28 -> 0 | D28: =I27+C28 -> 0 | E28: =E27+J28 -> 0 | F28: =CA137 -> 0 | G28: =CA229 -> 0 | H28: =(F28-G28)*$D$2 -> 0 | I28: =D28-J28-H28 -> 0 | J28: =CA323 -> 0 | K28: =(+I28+D28)/2 -> 0 | L28: =IF(A28=1,$N$1*K28,$N$1*K28) -> 0 | M28: =IF(A28=1,($N$3+$N$2)*K28,($N$3+$N$2)*K28) -> 0 | N28: =HLOOKUP($A28,'AEG Input File'!$BY$2:$CV$27,2,FALSE)*Inflation!$B4/100 -> 0 | O28: =AN28*$D$10 -> 0 | P28: =AL28*$T$8 -> 0 | Q28: =(+AL28-(G28+L28+N28+O28+P28))*$D$1 -> 0 | R28: =(+AL28-(G28+L28+N28+O28+P28+Q28))*$D$2 -> 0 | S28: =J28+M28+L28+N28+O28+P28+Q28+R28 -> 0 | T28: =S28/(1+$D$3)^(A28-1) -> 0 | V28: 0 | W28: =1+W27 -> 1 | X28: 0 | Y28: =+X28 -> 0 | Z28: =X28*$Z$24 -> 0 | AA28: 0 | AB28: 0 | AC28: =Y28+AA28 -> 0 | AD28: 0 | AE28: =S28 -> 0 | AF28: =V28 -> 0 | AG28: =AF28-AE28 -> 0 | AH28: =AF28-AE28 -> 0 | AI28: =IF(A28=1,AF28-T24,AF28) -> 0 | AL28: =(+J28+L28+M28+N28+O28-(($D$1+(1-$D$1)*$D$2)*(G28+L28+N28+O28)))/$T$16 -> 0 | AN28: =C28-J27+AN27 -> 0
A29: =1+A28 -> 2024 | B29: =(HLOOKUP($A29,'AEG Input File'!$BA$2:$BX$27,2,FALSE)+HLOOKUP($A29,'AEG Input File'!$BA$2:$BX$27,19,FALSE))*Inflation!$B5/100 -> 299164.9941 | C29: =B29 -> 299164.9941 | D29: =I28+C29 -> 299164.9941 | E29: 29916.49941 | F29: 59832.99883 | G29: =CA230 -> 29916.49941 | H29: 6282.464877 | I29: 262966.0298 | J29: 29916.49941 | K29: 281065.512 | L29: =IF(A29=1,$N$1*K29,$N$1*K29) -> 6998.531249 | M29: 12957.1201 | N29: =(HLOOKUP($A29,'AEG Input File'!$BY$2:$CV$27,2,FALSE)+60715.31)*Inflation!$B5/100 -> 133500.5371 | O29: 4487.474912 | P29: =AL29*$T$8 -> 0 | Q29: 221.9669244 | R29: 2795.230464 | S29: 190877.3602 | T29: =S29/(1+$D$3)^(A29-1) -> 2.073419723e-51 | V29: 0 | W29: =1+W28 -> 2 | X29: 0 | Y29: =+X29 -> 0 | Z29: =X29*$Z$24 -> 0 | AA29: 0 | AB29: 0 | AC29: 0 | AD29: 0 | AE29: 190877.3602 | AF29: 0 | AG29: -190877.3602 | AH29: =AF29-AE29 -> -190877.3602 | AI29: =IF(A29=1,AF29-T25,AF29) -> 0 | AL29: =(+J29+L29+M29+N29+O29-(($D$1+(1-$D$1)*$D$2)*(G29+L29+N29+O29)))/$T$16 -> 188435.6309 | AN29: =C29-J28+AN28 -> 299164.9941
A30: 2025 | B30: =(HLOOKUP($A30,'AEG Input File'!$BA$2:$BX$27,2,FALSE)+HLOOKUP($A30,'AEG Input File'!$BA$2:$BX$27,19,FALSE))*Inflation!$B6/100 -> 390614.8995 | C30: 390614.8995 | D30: 653580.9294 | E30: 98894.48878 | F30: 173855.778 | G30: 68977.98937 | H30: 22024.33562 | I30: 562578.6044 | J30: 68977.98937 | K30: 608079.7669 | L30: 15141.1862 | M30: 28032.47725 | N30: =(HLOOKUP($A30,'AEG Input File'!$BY$2:$CV$27,2,FALSE)+60715.31)*Inflation!$B6/100 -> 136640.8591 | O30: 9897.950914 | P30: 0 | Q30: 519.9692655 | R30: 6547.975269 | S30: 265758.4074 | T30: 2.708668886e-51 | V30: 0 | W30: 3 | X30: 0 | Y30: 0 | Z30: 0 | AA30: 0 | AB30: 0 | AC30: 0 | AD30: 0 | AE30: 265758.4074 | AF30: 0 | AG30: -265758.4074 | AH30: -265758.4074 | AI30: 0 | AL30: 262358.7895 | AN30: 659863.3942
A31: 2026 | B31: =(HLOOKUP($A31,'AEG Input File'!$BA$2:$BX$27,2,FALSE)+HLOOKUP($A31,'AEG Input File'!$BA$2:$BX$27,19,FALSE))*Inflation!$B7/100 -> 708518.751 | C31: 708518.751 | D31: 1271097.355 | E31: 238724.3532 | F31: 324140.1969 | G31: 139829.8645 | H31: 38705.16982 | I31: 1092562.321 | J31: 139829.8645 | K31: 1181829.838 | L31: 29427.56297 | M31: 54482.35554 | N31: =(HLOOKUP($A31,'AEG Input File'!$BY$2:$CV$27,2,FALSE)+60715.31)*Inflation!$B7/100 -> 139692.505 | O31: 19491.06234 | P31: 0 | Q31: 1042.828284 | R31: 13132.34121 | S31: 397098.5198 | T31: 3.797548036e-51 | V31: 0 | W31: 4 | X31: 0 | Y31: 0 | Z31: 0 | AA31: 0 | AB31: 0 | AC31: 0 | AD31: 0 | AE31: 397098.5198 | AF31: 0 | AG31: -397098.5198 | AH31: -397098.5198 | AI31: 0 | AL31: 392018.7812 | AN31: 1299404.156
A32: 2027 | B32: =(HLOOKUP($A32,'AEG Input File'!$BA$2:$BX$27,2,FALSE)+HLOOKUP($A32,'AEG Input File'!$BA$2:$BX$27,19,FALSE))*Inflation!$B8/100 -> 737617.0973 | C32: 737617.0973 | D32: 1830179.418 | E32: 452315.9274 | F32: 483711.2878 | G32: 213591.5742 | H32: 56725.13986 | I32: 1559862.704 | J32: 213591.5742 | K32: 1695021.061 | L32: 42206.02443 | M32: 78140.47093 | N32: =(HLOOKUP($A32,'AEG Input File'!$BY$2:$CV$27,2,FALSE)+60715.31)*Inflation!$B8/100 -> 142812.3043 | O32: 28457.87083 | P32: 0 | Q32: 1507.496231 | R32: 18983.90673 | S32: 525699.6476 | T32: 4.717140316e-51 | V32: 0 | W32: 5 | X32: 0 | Y32: 0 | Z32: 0 | AA32: 0 | AB32: 0 | AC32: 0 | AD32: 0 | AE32: 525699.6476 | AF32: 0 | AG32: -525699.6476 | AH32: -525699.6476 | AI32: 0 | AL32: 518974.8258 | AN32: 1897191.389
A33: 2028 | B33: =(HLOOKUP($A33,'AEG Input File'!$BA$2:$BX$27,2,FALSE)+HLOOKUP($A33,'AEG Input File'!$BA$2:$BX$27,19,FALSE))*Inflation!$B9/100 -> 767882.0333 | C33: 767882.0333 | D33: 2327744.738 | E33: 742695.705 | F33: 605112.1218 | G33: 290379.7775 | H33: 66093.79229 | I33: 1971271.168 | J33: 290379.7775 | K33: 2149507.953 | L33: 53522.74803 | M33: 99092.31662 | N33: =(HLOOKUP($A33,'AEG Input File'!$BY$2:$CV$27,2,FALSE)+60715.31)*Inflation!$B9/100 -> 146001.7791 | O33: 36772.22772 | P33: 0 | Q33: 1915.710977 | R33: 24124.55683 | S33: 651809.1168 | T33: 5.487791982e-51 | V33: 0 | W33: 6 | X33: 0 | Y33: 0 | Z33: 0 | AA33: 0 | AB33: 0 | AC33: 0 | AD33: 0 | AE33: 651809.1168 | AF33: 0 | AG33: -651809.1168 | AH33: -651809.1168 | AI33: 0 | AL33: 643471.0854 | AN33: 2451481.848
A34: 2029 | B34: =(HLOOKUP($A34,'AEG Input File'!$BA$2:$BX$27,2,FALSE)+HLOOKUP($A34,'AEG Input File'!$BA$2:$BX$27,19,FALSE))*Inflation!$B10/100 -> 1176956.936 | C34: 1176956.936 | D34: 3148228.104 | E34: 1150771.176 | F34: 766588.2207 | G34: 408075.4711 | H34: 75287.67741 | I34: 2664864.955 | J34: 408075.4711 | K34: 2906546.529 | L34: 72373.00858 | M34: 133991.795 | N34: =(HLOOKUP($A34,'AEG Input File'!$BY$2:$CV$27,2,FALSE)+60715.31)*Inflation!$B10/100 -> 149213.8182 | O34: 50070.88509 | P34: 0 | Q34: 2599.134335 | R34: 32730.91021 | S34: 849055.0225 | T34: 6.707321857e-51 | V34: 0 | W34: 7 | X34: 0 | Y34: 0 | Z34: 0 | AA34: 0 | AB34: 0 | AC34: 0 | AD34: 0 | AE34: 849055.0225 | AF34: 0 | AG34: -849055.0225 | AH34: -849055.0225 | AI34: 0 | AL34: 838193.7945 | AN34: 3338059.006
A35: 2030 | B35: =(HLOOKUP($A35,'AEG Input File'!$BA$2:$BX$27,2,FALSE)+HLOOKUP($A35,'AEG Input File'!$BA$2:$BX$27,19,FALSE))*Inflation!$B11/100 -> 1225922.35 | C35: 1225922.35 | D35: 3890787.305 | E35: 1681438.882 | F35: 958338.3078 | G35: 530667.7061 | H35: 89810.82635 | I35: 3270308.773 | J35: 530667.7061 | K35: 3580548.039 | L35: 89155.64617 | M35: 165063.2646 | N35: =(HLOOKUP($A35,'AEG Input File'!$BY$2:$CV$27,2,FALSE)+60715.31)*Inflation!$B11/100 -> 152496.5222 | O35: 62338.58828 | P35: 0 | Q35: 3202.575805 | R35: 40330.05133 | S35: 1043254.355 | T35: 7.732850586e-51 | V35: 0 | W35: 8 | X35: 0 | Y35: 0 | Z35: 0 | AA35: 0 | AB35: 0 | AC35: 0 | AD35: 0 | AE35: 1043254.355 | AF35: 0 | AG35: -1043254.355 | AH35: -1043254.355 | AI35: 0 | AL35: 1029908.902 | AN35: 4155905.885
A36: 2031 | B36: =(HLOOKUP($A36,'AEG Input File'!$BA$2:$BX$27,2,FALSE)+HLOOKUP($A36,'AEG Input File'!$BA$2:$BX$27,19,FALSE))*Inflation!$B12/100 -> 1276856.185 | C36: 1276856.185 | D36: 4547164.957 | E36: 2339792.207 | F36: 1087886.301 | G36: 658353.3246 | H36: 90201.92495 | I36: 3798609.708 | J36: 658353.3246 | K36: 4172887.333 | L36: 103904.8946 | M36: 192370.106 | N36: =(HLOOKUP($A36,'AEG Input File'!$BY$2:$CV$27,2,FALSE)+60715.31)*Inflation!$B12/100 -> 155851.4457 | O36: 73531.41545 | P36: 0 | Q36: 3727.300561 | R36: 46937.91251 | S36: 1234676.399 | T36: 8.586944595e-51 | V36: 0 | W36: 9 | X36: 0 | Y36: 0 | Z36: 0 | AA36: 0 | AB36: 0 | AC36: 0 | AD36: 0 | AE36: 1234676.399 | AF36: 0 | AG36: -1234676.399 | AH36: -1234676.399 | AI36: 0 | AL36: 1218882.25 | AN36: 4902094.364
A37: 2032 | B37: =(HLOOKUP($A37,'AEG Input File'!$BA$2:$BX$27,2,FALSE)+HLOOKUP($A37,'AEG Input File'!$BA$2:$BX$27,19,FALSE))*Inflation!$B13/100 -> 1743738.036 | C37: 1743738.036 | D37: 5542347.744 | E37: 3172519.335 | F37: 1259250.872 | G37: 832727.1282 | H37: 89569.98611 | I37: 4620050.63 | J37: 832727.1282 | K37: 5081199.187 | L37: 126521.8598 | M37: 234243.2825 | N37: =(HLOOKUP($A37,'AEG Input File'!$BY$2:$CV$27,2,FALSE)+60715.31)*Inflation!$B13/100 -> 159280.1775 | O37: 89812.18613 | P37: 0 | Q37: 4538.392948 | R37: 57152.00254 | S37: 1504275.03 | T37: 9.816323486e-51 | V37: 0 | W37: 10 | X37: 0 | Y37: 0 | Z37: 0 | AA37: 0 | AB37: 0 | AC37: 0 | AD37: 0 | AE37: 1504275.03 | AF37: 0 | AG37: -1504275.03 | AH37: -1504275.03 | AI37: 0 | AL37: 1485032.138 | AN37: 5987479.075
A38: 2033 | B38: =(HLOOKUP($A38,'AEG Input File'!$BA$2:$BX$27,2,FALSE)+HLOOKUP($A38,'AEG Input File'!$BA$2:$BX$27,19,FALSE))*Inflation!$B14/100 -> 1816306.756 | C38: 1816306.756 | D38: 6436357.386 | E38: 4186877.139 | F38: 1487455.609 | G38: 1014357.804 | H38: 99350.5391 | I38: 5322649.043 | J38: 1014357.804 | K38: 5879503.214 | L38: 146399.63 | M38: 271045.0982 | N38: =(HLOOKUP($A38,'AEG Input File'!$BY$2:$CV$27,2,FALSE)+60715.31)*Inflation!$B14/100 -> 162784.3414 | O38: 104565.8805 | P38: 0 | Q38: 5243.366164 | R38: 66029.73338 | S38: 1770425.853 | T38: 1.084015418e-50 | V38: 0 | W38: 11 | X38: 0 | Y38: 0 | Z38: 0 | AA38: 0 | AB38: 0 | AC38: 0 | AD38: 0 | AE38: 1770425.853 | AF38: 0 | AG38: -1770425.853 | AH38: -1770425.853 | AI38: 0 | AL38: 1747778.324 | AN38: 6971058.703
A39: 2034 | B39: =(HLOOKUP($A39,'AEG Input File'!$BA$2:$BX$27,2,FALSE)+HLOOKUP($A39,'AEG Input File'!$BA$2:$BX$27,19,FALSE))*Inflation!$B15/100 -> 1891788.958 | C39: 1891788.958 | D39: 7214438 | E39: 5360497.339 | F39: 1650486.463 | G39: 1173620.2 | H39: 100141.9152 | I39: 5940675.885 | J39: 1173620.2 | K39: 6577556.943 | L39: 163781.1679 | M39: 303225.3751 | N39: =(HLOOKUP($A39,'AEG Input File'!$BY$2:$CV$27,2,FALSE)+60715.31)*Inflation!$B15/100 -> 166365.5969 | O39: 117727.3479 | P39: 0 | Q39: 5859.481682 | R39: 73788.47882 | S39: 2004367.648 | T39: 1.151519249e-50 | V39: 0 | W39: 12 | X39: 0 | Y39: 0 | Z39: 0 | AA39: 0 | AB39: 0 | AC39: 0 | AD39: 0 | AE39: 2004367.648 | AF39: 0 | AG39: -2004367.648 | AH39: -2004367.648 | AI39: 0 | AL39: 1978727.503 | AN39: 7848489.857
A40: 2035 | B40: =(HLOOKUP($A40,'AEG Input File'!$BA$2:$BX$27,2,FALSE)+HLOOKUP($A40,'AEG Input File'!$BA$2:$BX$27,19,FALSE))*Inflation!$B16/100 -> 2425365.054 | C40: 2425365.054 | D40: 8366040.939 | E40: 6737592.554 | F40: 1857761.956 | G40: 1377095.216 | H40: 100940.0155 | I40: 6888005.708 | J40: 1377095.216 | K40: 7627023.324 | L40: 189912.8808 | M40: 351605.7752 | N40: =(HLOOKUP($A40,'AEG Input File'!$BY$2:$CV$27,2,FALSE)+60715.31)*Inflation!$B16/100 -> 170025.6401 | O40: 136503.5207 | P40: 0 | Q40: 6796.171958 | R40: 85584.22364 | S40: 2317523.428 | T40: 1.249263502e-50 | V40: 0 | W40: 13 | X40: 0 | Y40: 0 | Z40: 0 | AA40: 0 | AB40: 0 | AC40: 0 | AD40: 0 | AE40: 2317523.428 | AF40: 0 | AG40: -2317523.428 | AH40: -2317523.428 | AI40: 0 | AL40: 2287877.351 | AN40: 9100234.711
A41: 2036 | B41: =(HLOOKUP($A41,'AEG Input File'!$BA$2:$BX$27,2,FALSE)+HLOOKUP($A41,'AEG Input File'!$BA$2:$BX$27,19,FALSE))*Inflation!$B17/100 -> 2526246.822 | C41: 2526246.822 | D41: 9414252.53 | E41: 8296460.577 | F41: 2128253.738 | G41: 1558868.023 | H41: 119571.0002 | I41: 7735813.507 | J41: 1558868.023 | K41: 8575033.018 | L41: 213518.3222 | M41: 395309.0221 | N41: =(HLOOKUP($A41,'AEG Input File'!$BY$2:$CV$27,2,FALSE)+60715.31)*Inflation!$B17/100 -> 173766.2041 | O41: 153740.7948 | P41: 0 | Q41: 7642.663452 | R41: 96244.09478 | S41: 2599089.124 | T41: 1.314580519e-50 | V41: 0 | W41: 14 | X41: 0 | Y41: 0 | Z41: 0 | AA41: 0 | AB41: 0 | AC41: 0 | AD41: 0 | AE41: 2599089.124 | AF41: 0 | AG41: -2599089.124 | AH41: -2599089.124 | AI41: 0 | AL41: 2565841.22 | AN41: 10249386.32
A42: 2037 | B42: =(HLOOKUP($A42,'AEG Input File'!$BA$2:$BX$27,2,FALSE)+HLOOKUP($A42,'AEG Input File'!$BA$2:$BX$27,19,FALSE))*Inflation!$B18/100 -> 2631172.685 | C42: 2631172.685 | D42: 10366986.19 | E42: 10044684.16 | F42: 2327915.547 | G42: 1748223.581 | H42: 121735.3128 | I42: 8497027.297 | J42: 1748223.581 | K42: 9432006.744 | L42: 234856.9679 | M42: 434815.5109 | N42: =(HLOOKUP($A42,'AEG Input File'!$BY$2:$CV$27,2,FALSE)+60715.31)*Inflation!$B18/100 -> 177589.0606 | O42: 169825.3647 | P42: 0 | Q42: 8400.877407 | R42: 105792.2865 | S42: 2879503.649 | T42: 1.366531838e-50 | V42: 0 | W42: 15 | X42: 0 | Y42: 0 | Z42: 0 | AA42: 0 | AB42: 0 | AC42: 0 | AD42: 0 | AE42: 2879503.649 | AF42: 0 | AG42: -2879503.649 | AH42: -2879503.649 | AI42: 0 | AL42: 2842668.645 | AN42: 11321690.98
A43: 2038 | B43: =(HLOOKUP($A43,'AEG Input File'!$BA$2:$BX$27,2,FALSE)+HLOOKUP($A43,'AEG Input File'!$BA$2:$BX$27,19,FALSE))*Inflation!$B19/100 -> 3240665.968 | C43: 3240665.968 | D43: 11737693.27 | E43: 12040186.13 | F43: 2577103.254 | G43: 1995501.975 | H43: 122136.2686 | I43: 9620055.022 | J43: 1995501.975 | K43: 10678874.14 | L43: 265903.9662 | M43: 492296.098 | N43: =(HLOOKUP($A43,'AEG Input File'!$BY$2:$CV$27,2,FALSE)+60715.31)*Inflation!$B19/100 -> 181496.02 | O43: 192212.0005 | P43: 0 | Q43: 9512.365612 | R43: 119789.2624 | S43: 3256711.688 | T43: 1.450165388e-50 | V43: 0 | W43: 16 | X43: 0 | Y43: 0 | Z43: 0 | AA43: 0 | AB43: 0 | AC43: 0 | AD43: 0 | AE43: 3256711.688 | AF43: 0 | AG43: -3256711.688 | AH43: -3256711.688 | AI43: 0 | AL43: 3215051.386 | AN43: 12814133.37
A44: 2039 | B44: =(HLOOKUP($A44,'AEG Input File'!$BA$2:$BX$27,2,FALSE)+HLOOKUP($A44,'AEG Input File'!$BA$2:$BX$27,19,FALSE))*Inflation!$B20/100 -> 277589.0715 | C44: 277589.0715 | D44: 9897644.094 | E44: 13945751.32 | F44: 2277108.812 | G44: 1905565.188 | H44: 78024.16088 | I44: 7914054.744 | J44: 1905565.188 | K44: =(+I44+D44)/2 -> 8905849.419 | L44: 221755.6505 | M44: 410559.6582 | N44: =(HLOOKUP($A44,'AEG Input File'!$BY$2:$CV$27,2,FALSE)+60715.31)*Inflation!$B20/100 -> 185488.9324 | O44: 166443.3069 | P44: 0 | Q44: 7857.242807 | R44: =(+AL44-(G44+L44+N44+O44+P44+Q44))*$D$2 -> 98946.29354 | S44: 2996616.273 | T44: 1.252003254e-50 | V44: 0 | W44: 17 | X44: 0 | Y44: 0 | Z44: 0 | AA44: 0 | AB44: 0 | AC44: =Y44+AA44 -> 0 | AD44: 0 | AE44: 2996616.273 | AF44: 0 | AG44: -2996616.273 | AH44: -2996616.273 | AI44: 0 | AL44: 2958283.148 | AN44: 11096220.46
A45: 2040 | B45: =(HLOOKUP($A45,'AEG Input File'!$BA$2:$BX$27,2,FALSE)+HLOOKUP($A45,'AEG Input File'!$BA$2:$BX$27,19,FALSE))*Inflation!$B21/100 -> 286455.2943 | C45: 286455.2943 | D45: 8200510.039 | E45: 15757369.8 | F45: 1502163.182 | G45: 1811618.483 | H45: -64985.6132 | I45: 6453877.169 | J45: 1811618.483 | K45: 7327193.604 | L45: 182447.1207 | M45: 337783.6251 | N45: =(HLOOKUP($A45,'AEG Input File'!$BY$2:$CV$27,2,FALSE)+60715.31)*Inflation!$B21/100 -> 189569.6889 | O45: 142156.6585 | P45: 0 | Q45: 6387.515103 | R45: 80438.00605 | S45: 2750401.097 | T45: 1.078217702e-50 | V45: 0 | W45: 18 | X45: 0 | Y45: 0 | Z45: 0 | AA45: 0 | AB45: 0 | AC45: 0 | AD45: 0 | AE45: 2750401.097 | AF45: 0 | AG45: -2750401.097 | AH45: -2750401.097 | AI45: 0 | AL45: 2715217.59 | AN45: 9477110.568
A46: 2041 | B46: =(HLOOKUP($A46,'AEG Input File'!$BA$2:$BX$27,2,FALSE)+HLOOKUP($A46,'AEG Input File'!$BA$2:$BX$27,19,FALSE))*Inflation!$B22/100 -> 295607.7234 | C46: 295607.7234 | D46: 6749484.892 | E46: 17470863.44 | F46: 1026031.97 | G46: 1713493.637 | H46: -144366.9499 | I46: 5180358.206 | J46: 1713493.637 | K46: 5964921.549 | L46: 148526.5466 | M46: 274982.8834 | N46: =(HLOOKUP($A46,'AEG Input File'!$BY$2:$CV$27,2,FALSE)+60715.31)*Inflation!$B22/100 -> 193740.2221 | O46: 119416.4971 | P46: 0 | Q46: 5124.133997 | R46: 64528.24216 | S46: 2519812.162 | T46: 9.268611827e-51 | V46: 0 | W46: 19 | X46: 0 | Y46: 0 | Z46: 0 | AA46: 0 | AB46: 0 | AC46: 0 | AD46: 0 | AE46: 2519812.162 | AF46: 0 | AG46: -2519812.162 | AH46: -2519812.162 | AI46: 0 | AL46: 2487578.38 | AN46: 7961099.809
A47: 2042 | B47: =(HLOOKUP($A47,'AEG Input File'!$BA$2:$BX$27,2,FALSE)+HLOOKUP($A47,'AEG Input File'!$BA$2:$BX$27,19,FALSE))*Inflation!$B23/100 -> 305055.6914 | C47: 305055.6914 | D47: 5485413.897 | E47: 19040488.84 | F47: 767463.5535 | G47: 1569625.402 | H47: -168453.9882 | I47: =D47-J47-H47 -> 4084242.483 | J47: 1569625.402 | K47: 4784828.19 | L47: 119142.2219 | M47: 220580.5796 | N47: =(HLOOKUP($A47,'AEG Input File'!$BY$2:$CV$27,2,FALSE)+60715.31)*Inflation!$B23/100 -> 198002.507 | O47: 98289.92795 | P47: 0 | Q47: 4045.753235 | R47: 50948.18844 | S47: 2260634.58 | T47: 7.802126621e-51 | V47: 0 | W47: 20 | X47: 0 | Y47: 0 | Z47: 0 | AA47: 0 | AB47: 0 | AC47: 0 | AD47: 0 | AE47: 2260634.58 | AF47: 0 | AG47: -2260634.58 | AH47: -2260634.58 | AI47: 0 | AL47: 2231716.234 | AN47: 6552661.863
A48: 2043 | B48: =(HLOOKUP($A48,'AEG Input File'!$BA$2:$BX$27,2,FALSE)+HLOOKUP($A48,'AEG Input File'!$BA$2:$BX$27,19,FALSE))*Inflation!$B24/100 -> 314808.7997 | C48: 314808.7997 | D48: =I47+C48 -> 4399051.283 | E48: 20459964.45 | F48: 468976.5348 | G48: 1419475.607 | H48: -199604.8051 | I48: 3179180.481 | J48: 1419475.607 | K48: 3789115.882 | L48: 94348.98546 | M48: 174678.2422 | N48: =(HLOOKUP($A48,'AEG Input File'!$BY$2:$CV$27,2,FALSE)+60715.31)*Inflation!$B24/100 -> 202358.5621 | O48: 79467.67891 | P48: 0 | Q48: 3143.662918 | R48: 39588.16108 | S48: 2013060.899 | T48: 6.518919862e-51 | V48: 0 | W48: 21 | X48: 0 | Y48: 0 | Z48: 0 | AA48: 0 | AB48: 0 | AC48: 0 | AD48: 0 | AE48: 2013060.899 | AF48: 0 | AG48: -2013060.899 | AH48: -2013060.899 | AI48: 0 | AL48: 1987309.549 | AN48: 5297845.261
A49: 2044 | B49: =(HLOOKUP($A49,'AEG Input File'!$BA$2:$BX$27,2,FALSE)+HLOOKUP($A49,'AEG Input File'!$BA$2:$BX$27,19,FALSE))*Inflation!$B25/100 -> 324876.9939 | C49: 324876.9939 | D49: 3504057.475 | E49: 21722748.86 | F49: 307327.6976 | G49: 1262784.41 | H49: -200645.9097 | I49: 2441918.974 | J49: 1262784.41 | K49: 2972988.225 | L49: 74027.40679 | M49: 137054.7572 | N49: =(HLOOKUP($A49,'AEG Input File'!$BY$2:$CV$27,2,FALSE)+60715.31)*Inflation!$B25/100 -> 206810.4505 | O49: 63048.69972 | P49: 0 | Q49: 2413.347023 | R49: 30391.28977 | S49: 1776530.361 | T49: 5.397932682e-51 | V49: 0 | W49: 22 | X49: 0 | Y49: 0 | Z49: 0 | AA49: 0 | AB49: 0 | AC49: 0 | AD49: 0 | AE49: 1776530.361 | AF49: 0 | AG49: -1776530.361 | AH49: -1776530.361 | AI49: 0 | AL49: 1753804.742 | AN49: 4203246.648
A50: 2045 | B50: =(HLOOKUP($A50,'AEG Input File'!$BA$2:$BX$27,2,FALSE)+HLOOKUP($A50,'AEG Input File'!$BA$2:$BX$27,19,FALSE))*Inflation!$B26/100 -> 335270.5941 | C50: 335270.5941 | D50: 2777189.568 | E50: 22776523.83 | F50: 317154.2968 | G50: 1053774.964 | H50: -154690.3402 | I50: 1878104.944 | J50: 1053774.964 | K50: 2327647.256 | L50: 57958.41668 | M50: 107304.5385 | N50: =(HLOOKUP($A50,'AEG Input File'!$BY$2:$CV$27,2,FALSE)+60715.31)*Inflation!$B26/100 -> 211360.2804 | O50: 49135.99248 | P50: 0 | Q50: 1858.730959 | R50: 23407.00722 | S50: 1504799.931 | T50: 4.290122506e-51 | V50: 0 | W50: 23 | X50: 0 | Y50: 0 | Z50: 0 | AA50: 0 | AB50: 0 | AC50: 0 | AD50: 0 | AE50: 1504799.931 | AF50: 0 | AG50: -1504799.931 | AH50: -1504799.931 | AI50: 0 | AL50: 1485550.324 | AN50: 3275732.832
A51: 2046 | B51: =(HLOOKUP($A51,'AEG Input File'!$BA$2:$BX$27,2,FALSE)+HLOOKUP($A51,'AEG Input File'!$BA$2:$BX$27,19,FALSE))*Inflation!$B27/100 -> 0 | C51: 0 | D51: 1878104.944 | E51: 23577674.11 | F51: 258098.3672 | G51: 801150.2822 | H51: -114040.9021 | I51: 1190995.564 | J51: 801150.2822 | K51: 1534550.254 | L51: 38210.30133 | M51: 70742.76672 | N51: =(HLOOKUP($A51,'AEG Input File'!$BY$2:$CV$27,2,FALSE)+60715.31)*Inflation!$B27/100 -> 0 | O51: 33329.36801 | P51: 0 | Q51: 1234.01154 | R51: 15539.9128 | S51: 960206.6426 | T51: 2.568571968e-51 | V51: 0 | W51: 24 | X51: 0 | Y51: 0 | Z51: 0 | AA51: 0 | AB51: 0 | AC51: 0 | AD51: 0 | AE51: 960206.6426 | AF51: 0 | AG51: -960206.6426 | AH51: -960206.6426 | AI51: 0 | AL51: 947923.5478 | AN51: 2221957.868
A52: 2047 | B52: 0 | C52: 0 | D52: 1190995.564 | E52: 24115707.12 | F52: 155634.9653 | G52: 538033.0137 | H52: -80303.59016 | I52: 733266.1408 | J52: 538033.0137 | K52: 962130.8525 | L52: 23957.05823 | M52: 44354.2323 | N52: 0 | O52: 21312.11378 | P52: 0 | Q52: 763.975275 | R52: 9620.744029 | S52: 638041.1373 | T52: 1.601444212e-51 | V52: 0 | W52: 25 | X52: 0 | Y52: 0 | Z52: 0 | AA52: 0 | AB52: 0 | AC52: 0 | AD52: 0 | AE52: 638041.1373 | AF52: 0 | AG52: -638041.1373 | AH52: -638041.1373 | AI52: 0 | AL52: 629879.2278 | AN52: 1420807.585
A53: 2048 | B53: 0 | C53: 0 | D53: 733266.1408 | E53: 24329673.54 | F53: 94181.98901 | G53: 213966.4168 | H53: -25154.72984 | I53: 544454.4538 | J53: 213966.4168 | K53: 638860.2973 | L53: 15907.6214 | M53: 29451.4597 | N53: 0 | O53: 13241.61858 | P53: 0 | Q53: 546.0793376 | R53: 6876.779522 | S53: 279989.9754 | T53: 6.593890295e-52 | V53: 0 | W53: 26 | X53: 0 | Y53: 0 | Z53: 0 | AA53: 0 | AB53: 0 | AC53: 0 | AD53: 0 | AE53: 279989.9754 | AF53: 0 | AG53: -279989.9754 | AH53: -279989.9754 | AI53: 0 | AL53: 276408.3053 | AN53: 882774.5717
A54: 2049 | B54: 0 | C54: 0 | D54: 544454.4538 | E54: 24515881.05 | F54: 57336.08729 | G54: 186207.5097 | H54: -27062.9987 | I54: 385309.9428 | J54: 186207.5097 | K54: 464882.1983 | L54: 11575.56674 | M54: 21431.06934 | N54: 0 | O54: 10032.12232 | P54: 0 | Q54: 389.0529191 | R54: 4899.345137 | S54: 234534.6661 | T54: 5.18253663e-52 | V54: 0 | W54: 27 | X54: 0 | Y54: 0 | Z54: 0 | AA54: 0 | AB54: 0 | AC54: 0 | AD54: 0 | AE54: 234534.6661 | AF54: 0 | AG54: -234534.6661 | AH54: -234534.6661 | AI54: 0 | AL54: 231534.4666 | AN54: 668808.1548
A55: 2050 | B55: 0 | C55: 0 | D55: 385309.9428 | E55: 24673443.03 | F55: 19311.58622 | G55: 157561.9803 | H55: -29032.58275 | I55: 256780.5453 | J55: 157561.9803 | K55: 321045.244 | L55: 7994.026576 | M55: 14800.18575 | N55: 0 | O55: 7239.009677 | P55: 0 | Q55: 260.8007739 | R55: 3284.265304 | S55: 191140.2683 | T55: 3.962995953e-52 | V55: 0 | W55: 28 | X55: 0 | Y55: 0 | Z55: 0 | AA55: 0 | AB55: 0 | AC55: 0 | AD55: 0 | AE55: 191140.2683 | AF55: 0 | AG55: -191140.2683 | AH55: -191140.2683 | AI55: 0 | AL55: 188695.1759 | AN55: 482600.6452
A56: 2051 | B56: 0 | C56: 0 | D56: 256780.5453 | E56: 24801444.24 | F56: 0 | G56: 128001.2079 | H56: -26880.25366 | I56: 155659.591 | J56: 128001.2079 | K56: 206220.0681 | L56: 5134.879697 | M56: 9506.745142 | N56: 0 | O56: 4875.579974 | P56: 0 | Q56: 160.2536137 | R56: 2018.074468 | S56: 149696.7408 | T56: 2.91219119e-52 | V56: 0 | W56: 29 | X56: 0 | Y56: 0 | Z56: 0 | AA56: 0 | AB56: 0 | AC56: 0 | AD56: 0 | AE56: 149696.7408 | AF56: 0 | AG56: -149696.7408 | AH56: -149696.7408 | AI56: 0 | AL56: 147781.7996 | AN56: 325038.6649
A57: 2052 | B57: 0 | C57: 0 | D57: 155659.591 | E57: 24898939.87 | F57: 0 | G57: 97495.63878 | H57: -20474.08414 | I57: 78638.03639 | J57: 97495.63878 | K57: 117148.8137 | L57: 2917.005461 | M57: 5400.560312 | N57: 0 | O57: 2955.561855 | P57: 0 | Q57: 84.31925393 | R57: 1061.832739 | S57: 109914.9184 | T57: 2.006320367e-52 | V57: 0 | W57: 30 | X57: 0 | Y57: 0 | Z57: 0 | AA57: 0 | AB57: 0 | AC57: 0 | AD57: 0 | AE57: 109914.9184 | AF57: 0 | AG57: -109914.9184 | AH57: -109914.9184 | AI57: 0 | AL57: 108508.8717 | AN57: 197037.457
A58: 2053 | B58: 0 | C58: 0 | D58: 78638.03639 | E58: 24964954.63 | F58: 0 | G58: 66014.7588 | H58: -13863.09935 | I58: 26486.37693 | J58: 66014.7588 | K58: 52562.20666 | L58: 1308.798946 | M58: 2423.117727 | N58: 0 | O58: 1493.127273 | P58: 0 | Q58: 31.79570524 | R58: 400.4034572 | S58: 71672.00191 | T58: 1.227521977e-52 | V58: 0 | W58: 31 | X58: 0 | Y58: 0 | Z58: 0 | AA58: 0 | AB58: 0 | AC58: 0 | AD58: 0 | AE58: 71672.00191 | AF58: 0 | AG58: -71672.00191 | AH58: -71672.00191 | AI58: 0 | AL58: 70755.16386 | AN58: 99541.81821
A59: 2054 | B59: 0 | C59: 0 | D59: 26486.37693 | E59: 24998481.69 | F59: 0 | G59: 33527.05941 | H59: -7040.682476 | I59: -1.335138222e-09 | J59: 33527.05941 | K59: 13243.18847 | L59: 329.7553928 | M59: 610.5109883 | N59: 0 | O59: 502.9058911 | P59: 0 | Q59: 3.431658242 | R59: 43.21488747 | S59: 35016.87823 | T59: 5.627211886e-53 | V59: 0 | W59: 32 | X59: 0 | Y59: 0 | Z59: 0 | AA59: 0 | AB59: 0 | AC59: 0 | AD59: 0 | AE59: 35016.87823 | AF59: 0 | AG59: -35016.87823 | AH59: -35016.87823 | AI59: 0 | AL59: 34568.93753 | AN59: 33527.05941
A60: 2055 | B60: 0 | C60: 0 | D60: -1.335138222e-09 | E60: 24998481.69 | F60: 0 | G60: 0 | H60: 0 | I60: -1.335138222e-09 | J60: 0 | K60: -1.335138222e-09 | L60: -3.324494173e-11 | M60: -6.154987204e-11 | N60: 0 | O60: 1.309672371e-12 | P60: 0 | Q60: -1.269339342e-12 | R60: -1.598479597e-11 | S60: -1.107392767e-10 | T60: -1.669758359e-67 | V60: 0 | W60: 33 | X60: 0 | Y60: 0 | Z60: 0 | AA60: 0 | AB60: 0 | AC60: 0 | AD60: 0 | AE60: -1.107392767e-10 | AF60: 0 | AG60: 1.107392767e-10 | AH60: 1.107392767e-10 | AI60: 0 | AL60: -1.093226847e-10 | AN60: 8.731149137e-11
A61: 2056 | B61: 0 | C61: 0 | D61: -1.335138222e-09 | E61: 24998481.69 | F61: 0 | G61: 0 | H61: 0 | I61: -1.335138222e-09 | J61: 0 | K61: -1.335138222e-09 | L61: -3.324494173e-11 | M61: -6.154987204e-11 | N61: 0 | O61: 1.309672371e-12 | P61: 0 | Q61: -1.269339342e-12 | R61: -1.598479597e-11 | S61: -1.107392767e-10 | T61: -1.566714012e-67 | V61: 0 | W61: 34 | X61: 0 | Y61: 0 | Z61: 0 | AA61: 0 | AB61: 0 | AC61: 0 | AD61: 0 | AE61: -1.107392767e-10 | AF61: 0 | AG61: 1.107392767e-10 | AH61: 1.107392767e-10 | AI61: 0 | AL61: -1.093226847e-10 | AN61: 8.731149137e-11
A62: 2057 | B62: 0 | C62: 0 | D62: -1.335138222e-09 | E62: 24998481.69 | F62: 0 | G62: 0 | H62: 0 | I62: -1.335138222e-09 | J62: 0 | K62: -1.335138222e-09 | L62: -3.324494173e-11 | M62: -6.154987204e-11 | N62: 0 | O62: 1.309672371e-12 | P62: 0 | Q62: -1.269339342e-12 | R62: -1.598479597e-11 | S62: -1.107392767e-10 | T62: -1.470028751e-67 | V62: 0 | W62: 35 | X62: 0 | Y62: 0 | Z62: 0 | AA62: 0 | AB62: 0 | AC62: 0 | AD62: 0 | AE62: -1.107392767e-10 | AF62: 0 | AG62: 1.107392767e-10 | AH62: 1.107392767e-10 | AI62: 0 | AL62: -1.093226847e-10 | AN62: 8.731149137e-11
A63: 2058 | B63: 0 | C63: 0 | D63: -1.335138222e-09 | E63: 24998481.69 | F63: 0 | G63: 0 | H63: 0 | I63: -1.335138222e-09 | J63: 0 | K63: -1.335138222e-09 | L63: -3.324494173e-11 | M63: -6.154987204e-11 | N63: 0 | O63: 1.309672371e-12 | P63: 0 | Q63: -1.269339342e-12 | R63: -1.598479597e-11 | S63: -1.107392767e-10 | T63: -1.379310143e-67 | V63: 0 | W63: 36 | X63: 0 | Y63: 0 | Z63: 0 | AA63: 0 | AB63: 0 | AC63: 0 | AD63: 0 | AE63: -1.107392767e-10 | AF63: 0 | AG63: 1.107392767e-10 | AH63: 1.107392767e-10 | AI63: 0 | AL63: -1.093226847e-10 | AN63: 8.731149137e-11
